Workbook

Sheet Visor
A1: Resultados del Programa de apoyo a la generación de empleo
A2: Reporte por sector económico - consolidado nóminas septiembre 2021 a junio 2022
A4: Seleccione el sector económico | D4: Industrias manufactureras | N4: =IFERROR(VLOOKUP(D4,Hoja4!$C$2:$D$23,2,FALSE),"") -> C
D8: Total Empleadores beneficiados | G8: % | H8: Jovenes | J8: Mujeres > 28 años | L8: Hombres > 28 años | N8: Total Empleados beneficiados | Q8: % | R8: Recursos asociados en Millones
A10: General | D10: =Hoja4!I24 -> 20651 | G10: =D10/$D$10 -> 1 | H10: =SUMIFS(insumos2!$T$2:$T$400000,insumos2!$J$2:$J$400000,"Aprobado con subsidio") -> 381938 | J10: =SUMIFS(insumos2!$U$2:$U$400000,insumos2!$J$2:$J$400000,"Aprobado con subsidio") -> 75794 | L10: =SUMIFS(insumos2!$V$2:$V$400000,insumos2!$J$2:$J$400000,"Aprobado con subsidio") -> 63793 | N10: =Hoja4!K24 -> 521525 | Q10: =N10/$N$10 -> 1 | R10: =Hoja4!M24/1000000 -> 338033.7423
A11: ="Sección "&N4 -> Sección C | D11: =VLOOKUP(N4,Hoja4!$H$1:$M$24,2,FALSE) -> 3160 | G11: =D11/$D$10 -> 0.1530192243 | H11: =SUMIFS(insumos2!$BA$2:$BA$400000,insumos2!$AQ$2:$AQ$400000,"Aprobado con subsidio") -> 39181 | J11: =SUMIFS(insumos2!$BB$2:$BB$400000,insumos2!$AQ$2:$AQ$400000,"Aprobado con subsidio") -> 7854 | L11: =SUMIFS(insumos2!$BC$2:$BC$400000,insumos2!$AQ$2:$AQ$400000,"Aprobado con subsidio") -> 5908 | N11: =VLOOKUP(N4,Hoja4!$H$1:$M$24,4,FALSE) -> 52943 | Q11: =N11/$N$10 -> 0.1015157471 | R11: =VLOOKUP(N4,Hoja4!$H$1:$M$24,6,FALSE)/1000000 -> 34055.9993
B30: Empleadores | E30: Natural | H30: Jurídica | L30: Recurso en millones | O30: Natural | R30: Jurídica
B31: ="Total sección "&N4 -> Total sección C | E31: =COUNTIFS(insumos2!$AQ$1:$AQ$399999,"Aprobado con subsidio",insumos2!$AN$1:$AN$399999,"Natural") -> 274 | H31: =COUNTIFS(insumos2!$AQ$1:$AQ$399999,"Aprobado con subsidio",insumos2!$AN$1:$AN$399999,"Jurídica") -> 2886 | L31: ="Total sección "&N4 -> Total sección C | O31: =SUMIFS(insumos1!$K$2:$K$372158,insumos1!$H$2:$H$372158,Visor!N4,insumos1!$I$2:$I$372158,"Natural")/1000000 -> 498.487592 | R31: =SUMIFS(insumos1!$K$2:$K$372158,insumos1!$H$2:$H$372158,Visor!N4,insumos1!$I$2:$I$372158,"Jurídica")/1000000 -> 33557.51171
B32: ="% sección "&N4 -> % sección C | E32: =E31/(E31+H31) -> 0.08670886076 | H32: =H31/(E31+H31) -> 0.9132911392 | L32: ="% sección "&N4 -> % sección C | O32: =O31/(O31+R31) -> 0.01463729158 | R32: =R31/(O31+R31) -> 0.9853627084
B33: ="% general" -> % general | E33: 0.1646 | H33: 0.8354 | L33: ="% general" -> % general | O33: 0.0563 | R33: 0.9437
C36: Tamaño | E36: Empleadores | H36: % | J36: Empleados | N36: % | P36: Recursos en millones
C37: Micro | E37: =COUNTIFS(insumos2!$AQ$2:$AQ$399999,"Aprobado con subsidio",insumos2!$AR$2:$AR$399999,"MICRO") -> 1317 | H37: =E37/$E$42 -> 0.4167721519 | J37: =SUMIFS(insumos2!$AL$2:$AL$399999,insumos2!$AQ$2:$AQ$399999,"Aprobado con subsidio",insumos2!$AR$2:$AR$399999,"MICRO") -> 5589 | N37: =J37/$J$42 -> 0.1055663638 | P37: =SUMIFS(insumos1!$K$2:$K$372158,insumos1!$H$2:$H$372158,Visor!N4,insumos1!$J$2:$J$372158,"MICRO")/1000000 -> 2666.916441
C38: Pequeña | E38: =COUNTIFS(insumos2!$AQ$2:$AQ$399999,"Aprobado con subsidio",insumos2!$AR$2:$AR$399999,"PEQUEÑA") -> 1169 | H38: 0.3699367089 | J38: =SUMIFS(insumos2!$AL$2:$AL$399999,insumos2!$AQ$2:$AQ$399999,"Aprobado con subsidio",insumos2!$AR$2:$AR$399999,"PEQUEÑA") -> 10675 | N38: 0.2016319438 | P38: =SUMIFS(insumos1!$K$2:$K$372158,insumos1!$H$2:$H$372158,Visor!N4,insumos1!$J$2:$J$372158,"PEQUEÑA")/1000000 -> 5649.89782
C39: Mediana | E39: =COUNTIFS(insumos2!$AQ$2:$AQ$399999,"Aprobado con subsidio",insumos2!$AR$2:$AR$399999,"MEDIANA") -> 447 | H39: 0.1414556962 | J39: =SUMIFS(insumos2!$AL$2:$AL$399999,insumos2!$AQ$2:$AQ$399999,"Aprobado con subsidio",insumos2!$AR$2:$AR$399999,"MEDIANA") -> 11022 | N39: 0.2081861625 | P39: =SUMIFS(insumos1!$K$2:$K$372158,insumos1!$H$2:$H$372158,Visor!N4,insumos1!$J$2:$J$372158,"MEDIANA")/1000000 -> 6531.533494
C40: Grande | E40: =COUNTIFS(insumos2!$AQ$2:$AQ$399999,"Aprobado con subsidio",insumos2!$AR$2:$AR$399999,"GRANDE") -> 144 | H40: 0.04556962025 | J40: =SUMIFS(insumos2!$AL$2:$AL$399999,insumos2!$AQ$2:$AQ$399999,"Aprobado con subsidio",insumos2!$AR$2:$AR$399999,"GRANDE") -> 8940 | N40: 0.1688608503 | P40: =SUMIFS(insumos1!$K$2:$K$372158,insumos1!$H$2:$H$372158,Visor!N4,insumos1!$J$2:$J$372158,"GRANDE")/1000000 -> 6229.12898
C41: Muy grande | E41: =COUNTIFS(insumos2!$AQ$2:$AQ$399999,"Aprobado con subsidio",insumos2!$AR$2:$AR$399999,"MUY GRANDE") -> 83 | H41: 0.02626582278 | J41: =SUMIFS(insumos2!$AL$2:$AL$399999,insumos2!$AQ$2:$AQ$399999,"Aprobado con subsidio",insumos2!$AR$2:$AR$399999,"MUY GRANDE") -> 16717 | N41: 0.3157546796 | P41: =SUMIFS(insumos1!$K$2:$K$372158,insumos1!$H$2:$H$372158,Visor!N4,insumos1!$J$2:$J$372158,"MUY GRANDE")/1000000 -> 12978.52257
C42: Total | E42: =COUNTIFS(insumos2!$AQ$2:$AQ$399999,"Aprobado con subsidio") -> 3160 | H42: 1 | J42: =SUMIFS(insumos2!$AL$2:$AL$399999,insumos2!$AQ$2:$AQ$399999,"Aprobado con subsidio") -> 52943 | N42: 1 | P42: =P41+P40+P39+P37+P38 -> 34055.9993
B44: Tamaño | C44: ="Sección "&N4 -> Sección C | D44: general | E44: ="Sección "&N4 -> Sección C | F44: general
B45: Micro | C45: =H37 -> 0.4167721519 | D45: 0.6376801371 | E45: =N37 -> 0.1055663638 | F45: 0.104427293
B46: Pequeña | C46: =H38 -> 0.3699367089 | D46: 0.2743797922 | E46: =N38 -> 0.2016319438 | F46: 0.1894298344
B47: Mediana | C47: =H39 -> 0.1414556962 | D47: 0.06616490439 | E47: =N39 -> 0.2081861625 | F47: 0.1934365931
B48: Grande | C48: =H40 -> 0.04556962025 | D48: 0.01371264116 | E48: =N40 -> 0.1688608503 | F48: 0.1301781558
B49: Muy Grande | C49: =H41 -> 0.02626582278 | D49: 0.008062525129 | E49: =N41 -> 0.3157546796 | F49: 0.3835281237
G61: Actividad económica | J61: =D4 -> Industrias manufactureras | U61: =N4 -> C
A66: Distribución Departamental | K66: Distribución en los principales municipios del País
A67: Departamento | D67: Empleadores | F67: % | G67: Empleados | I67: % | K67: Departamento | M67: Municipio | P67: Empleadores | R67: % | S67: Empleados | U67: %
A68: =IFERROR(insumos2!BL2,"") -> Bogotá | D68: =insumos2!BM2 -> 920 | F68: =IFERROR(D68/$D$96,"") -> 0.2911392405 | G68: =insumos2!BN2 -> 15255 | I68: =G68/$G$96 -> 0.2881400752 | K68: =IFERROR(insumos2!BU2,"") -> Bogotá | M68: =IFERROR(insumos2!BV2,"") -> Bogotá, d.c. | P68: =IF(K68<>"",insumos2!BW2,"") -> 920 | R68: =IFERROR(P68/$P$96,"") -> 0.2911392405 | S68: =IF(K68<>"",insumos2!BX2,"") -> 15255 | U68: =IFERROR(S68/$S$96,"") -> 0.2881400752
A69: =IFERROR(insumos2!BL3,"") -> Antioquia | D69: =insumos2!BM3 -> 892 | F69: =IFERROR(D69/$D$96,"") -> 0.282278481 | G69: =insumos2!BN3 -> 17086 | I69: 0.3227244395 | K69: =IFERROR(insumos2!BU3,"") -> Antioquia | M69: =IFERROR(insumos2!BV3,"") -> Medellín | P69: =IF(K69<>"",insumos2!BW3,"") -> 433 | R69: =IFERROR(P69/$P$96,"") -> 0.1370253165 | S69: =IF(K69<>"",insumos2!BX3,"") -> 8606 | U69: =IFERROR(S69/$S$96,"") -> 0.1625521788
A70: =IFERROR(insumos2!BL4,"") -> Valle del cauca | D70: =insumos2!BM4 -> 323 | F70: 0.1022151899 | G70: =insumos2!BN4 -> 6425 | I70: 0.121356931 | K70: =IFERROR(insumos2!BU4,"") -> Valle del cauca | M70: =IFERROR(insumos2!BV4,"") -> Cali | P70: =IF(K70<>"",insumos2!BW4,"") -> 200 | R70: 0.06329113924 | S70: =IF(K70<>"",insumos2!BX4,"") -> 2764 | U70: 0.05220709064
A71: =IFERROR(insumos2!BL5,"") -> Cundinamarca | D71: =insumos2!BM5 -> 198 | F71: 0.06265822785 | G71: =insumos2!BN5 -> 2491 | I71: 0.04705060159 | K71: =IFERROR(insumos2!BU5,"") -> Antioquia | M71: =IFERROR(insumos2!BV5,"") -> Itagüí | P71: =IF(K71<>"",insumos2!BW5,"") -> 124 | R71: 0.03924050633 | S71: =IF(K71<>"",insumos2!BX5,"") -> 1737 | U71: 0.03280886992
A72: =IFERROR(insumos2!BL6,"") -> Santander | D72: =insumos2!BM6 -> 184 | F72: 0.0582278481 | G72: =insumos2!BN6 -> 1747 | I72: 0.0329977523 | K72: =IFERROR(insumos2!BU6,"") -> Santander | M72: =IFERROR(insumos2!BV6,"") -> Bucaramanga | P72: =IF(K72<>"",insumos2!BW6,"") -> 114 | R72: 0.03607594937 | S72: =IF(K72<>"",insumos2!BX6,"") -> 1232 | U72: 0.02327030958
A73: =IFERROR(insumos2!BL7,"") -> Atlántico | D73: =insumos2!BM7 -> 109 | F73: 0.03449367089 | G73: =insumos2!BN7 -> 2568 | I73: 0.04850499594 | K73: =IFERROR(insumos2!BU7,"") -> Atlántico | M73: =IFERROR(insumos2!BV7,"") -> Barranquilla | P73: =IF(K73<>"",insumos2!BW7,"") -> 91 | R73: 0.02879746835 | S73: =IF(K73<>"",insumos2!BX7,"") -> 2042 | U73: 0.0385697826
A74: =IFERROR(insumos2!BL8,"") -> Norte de stder | D74: =insumos2!BM8 -> 85 | F74: 0.02689873418 | G74: =insumos2!BN8 -> 757 | I74: 0.01429839639 | K74: =IFERROR(insumos2!BU8,"") -> Norte de stder | M74: =IFERROR(insumos2!BV8,"") -> Cucuta | P74: =IF(K74<>"",insumos2!BW8,"") -> 67 | R74: 0.02120253165 | S74: =IF(K74<>"",insumos2!BX8,"") -> 606 | U74: 0.01144627241
A75: =IFERROR(insumos2!BL9,"") -> Risaralda | D75: =insumos2!BM9 -> 85 | F75: 0.02689873418 | G75: =insumos2!BN9 -> 1780 | I75: 0.03362106416 | K75: =IFERROR(insumos2!BU9,"") -> Caldas | M75: =IFERROR(insumos2!BV9,"") -> Manizales | P75: =IF(K75<>"",insumos2!BW9,"") -> 53 | R75: 0.0167721519 | S75: =IF(K75<>"",insumos2!BX9,"") -> 621 | U75: 0.01172959598
A76: =IFERROR(insumos2!BL10,"") -> Caldas | D76: =insumos2!BM10 -> 62 | F76: 0.01962025316 | G76: =insumos2!BN10 -> 686 | I76: 0.01295733147 | K76: =IFERROR(insumos2!BU10,"") -> Antioquia | M76: =IFERROR(insumos2!BV10,"") -> La estrella | P76: =IF(K76<>"",insumos2!BW10,"") -> 48 | R76: 0.01518987342 | S76: =IF(K76<>"",insumos2!BX10,"") -> 622 | U76: 0.01174848422
A77: =IFERROR(insumos2!BL11,"") -> Tolima | D77: =insumos2!BM11 -> 43 | F77: 0.01360759494 | G77: =insumos2!BN11 -> 491 | I77: 0.009274125002 | K77: =IFERROR(insumos2!BU11,"") -> Valle del cauca | M77: =IFERROR(insumos2!BV11,"") -> Yumbo | P77: =IF(K77<>"",insumos2!BW11,"") -> 46 | R77: 0.01455696203 | S77: =IF(K77<>"",insumos2!BX11,"") -> 2276 | U77: 0.04298963036
A78: =IFERROR(insumos2!BL12,"") -> Bolívar | D78: =insumos2!BM12 -> 33 | F78: 0.01044303797 | G78: =insumos2!BN12 -> 888 | I78: 0.01677275561 | K78: =IFERROR(insumos2!BU12,"") -> Risaralda | M78: =IFERROR(insumos2!BV12,"") -> Dosquebradas | P78: =IF(K78<>"",insumos2!BW12,"") -> 43 | R78: 0.01360759494 | S78: =IF(K78<>"",insumos2!BX12,"") -> 935 | U78: 0.0176605028
A79: =IFERROR(insumos2!BL13,"") -> Quindío | D79: =insumos2!BM13 -> 31 | F79: 0.009810126582 | G79: =insumos2!BN13 -> 423 | I79: 0.007989724798 | K79: =IFERROR(insumos2!BU13,"") -> Antioquia | M79: =IFERROR(insumos2!BV13,"") -> Envigado | P79: =IF(K79<>"",insumos2!BW13,"") -> 42 | R79: 0.01329113924 | S79: =IF(K79<>"",insumos2!BX13,"") -> 1018 | U79: 0.01922822658
A80: =IFERROR(insumos2!BL14,"") -> Boyacá | D80: =insumos2!BM14 -> 29 | F80: 0.00917721519 | G80: =insumos2!BN14 -> 439 | I80: 0.008291936611 | K80: =IFERROR(insumos2!BU14,"") -> Antioquia | M80: =IFERROR(insumos2!BV14,"") -> Sabaneta | P80: =IF(K80<>"",insumos2!BW14,"") -> 41 | R80: 0.01297468354 | S80: =IF(K80<>"",insumos2!BX14,"") -> 918 | U80: 0.01733940275
A81: =IFERROR(insumos2!BL15,"") -> Nariño | D81: =insumos2!BM15 -> 24 | F81: 0.007594936709 | G81: =insumos2!BN15 -> 116 | I81: 0.002191035642 | K81: =IFERROR(insumos2!BU15,"") -> Tolima | M81: =IFERROR(insumos2!BV15,"") -> Ibagué | P81: =IF(K81<>"",insumos2!BW15,"") -> 40 | R81: 0.01265822785 | S81: =IF(K81<>"",insumos2!BX15,"") -> 477 | U81: 0.009009689666
A82: =IFERROR(insumos2!BL16,"") -> Huila | D82: =insumos2!BM16 -> 24 | F82: 0.007594936709 | G82: =insumos2!BN16 -> 118 | I82: 0.002228812119 | K82: =IFERROR(insumos2!BU16,"") -> Risaralda | M82: =IFERROR(insumos2!BV16,"") -> Pereira | P82: =IF(K82<>"",insumos2!BW16,"") -> 39 | R82: 0.01234177215 | S82: =IF(K82<>"",insumos2!BX16,"") -> 770 | U82: 0.01454394349
A83: =IFERROR(insumos2!BL17,"") -> Meta | D83: =insumos2!BM17 -> 21 | F83: 0.00664556962 | G83: =insumos2!BN17 -> 211 | I83: 0.00398541828 | K83: =IFERROR(insumos2!BU17,"") -> Cundinamarca | M83: =IFERROR(insumos2!BV17,"") -> Cota | P83: =IF(K83<>"",insumos2!BW17,"") -> 38 | R83: 0.01202531646 | S83: =IF(K83<>"",insumos2!BX17,"") -> 294 | U83: 0.005553142058
A84: =IFERROR(insumos2!BL18,"") -> Cauca | D84: =insumos2!BM18 -> 20 | F84: 0.006329113924 | G84: =insumos2!BN18 -> 420 | I84: 0.007933060083 | K84: =IFERROR(insumos2!BU18,"") -> Antioquia | M84: =IFERROR(insumos2!BV18,"") -> Rionegro | P84: =IF(K84<>"",insumos2!BW18,"") -> 36 | R84: 0.01139240506 | S84: =IF(K84<>"",insumos2!BX18,"") -> 1430 | U84: 0.02701018076
A85: =IFERROR(insumos2!BL19,"") -> Córdoba | D85: =insumos2!BM19 -> 17 | F85: 0.005379746835 | G85: =insumos2!BN19 -> 408 | I85: 0.007706401224 | K85: =IFERROR(insumos2!BU19,"") -> Valle del cauca | M85: =IFERROR(insumos2!BV19,"") -> Palmira | P85: =IF(K85<>"",insumos2!BW19,"") -> 33 | R85: 0.01044303797 | S85: =IF(K85<>"",insumos2!BX19,"") -> 537 | U85: 0.01014298396
A86: =IFERROR(insumos2!BL20,"") -> Magdalena | D86: =insumos2!BM20 -> 13 | F86: 0.004113924051 | G86: =insumos2!BN20 -> 49 | I86: 0.0009255236764 | K86: =IFERROR(insumos2!BU20,"") -> Bolívar | M86: =IFERROR(insumos2!BV20,"") -> Cartagena de ind | P86: =IF(K86<>"",insumos2!BW20,"") -> 31 | R86: 0.009810126582 | S86: =IF(K86<>"",insumos2!BX20,"") -> 572 | U86: 0.0108040723
A87: =IFERROR(insumos2!BL21,"") -> Sucre | D87: =insumos2!BM21 -> 12 | F87: 0.003797468354 | G87: =insumos2!BN21 -> 44 | I87: 0.0008310824849 | K87: =IFERROR(insumos2!BU21,"") -> Quindío | M87: =IFERROR(insumos2!BV21,"") -> Armenia | P87: =IF(K87<>"",insumos2!BW21,"") -> 25 | R87: 0.007911392405 | S87: =IF(K87<>"",insumos2!BX21,"") -> 303 | U87: 0.005723136203
A88: =IFERROR(insumos2!BL22,"") -> Casanare | D88: =insumos2!BM22 -> 11 | F88: 0.003481012658 | G88: =insumos2!BN22 -> 132 | I88: 0.002493247455 | K88: =IFERROR(insumos2!BU22,"") -> Cundinamarca | M88: =IFERROR(insumos2!BV22,"") -> Soacha | P88: =IF(K88<>"",insumos2!BW22,"") -> 25 | R88: 0.007911392405 | S88: =IF(K88<>"",insumos2!BX22,"") -> 318 | U88: 0.006006459777
A89: =IFERROR(insumos2!BL23,"") -> Cesar | D89: =insumos2!BM23 -> 11 | F89: 0.003481012658 | G89: =insumos2!BN23 -> 113 | I89: 0.002134370927 | K89: =IFERROR(insumos2!BU23,"") -> Antioquia | M89: =IFERROR(insumos2!BV23,"") -> Bello | P89: =IF(K89<>"",insumos2!BW23,"") -> 24 | R89: 0.007594936709 | S89: =IF(K89<>"",insumos2!BX23,"") -> 229 | U89: 0.004325406569
A90: =IFERROR(insumos2!BL24,"") -> Caquetá | D90: =insumos2!BM24 -> 9 | F90: 0.002848101266 | G90: =insumos2!BN24 -> 47 | I90: 0.0008877471998 | K90: =IFERROR(insumos2!BU24,"") -> Santander | M90: =IFERROR(insumos2!BV24,"") -> Girón | P90: =IF(K90<>"",insumos2!BW24,"") -> 24 | R90: 0.007594936709 | S90: =IF(K90<>"",insumos2!BX24,"") -> 312 | U90: 0.005893130348
A91: =IFERROR(insumos2!BL25,"") -> Putumayo | D91: =insumos2!BM25 -> 3 | F91: 0.0009493670886 | G91: =insumos2!BN25 -> 5 | I91: 9.444119147e-05 | K91: =IFERROR(insumos2!BU25,"") -> Cundinamarca | M91: =IFERROR(insumos2!BV25,"") -> Funza | P91: =IF(K91<>"",insumos2!BW25,"") -> 23 | R91: 0.007278481013 | S91: =IF(K91<>"",insumos2!BX25,"") -> 262 | U91: 0.004948718433
A92: =IFERROR(insumos2!BL26,"") -> Arauca | D92: =insumos2!BM26 -> 1 | F92: =D92/$D$96 -> 0.0003164556962 | G92: =insumos2!BN26 -> 244 | I92: 0.004608730144 | K92: =IFERROR(insumos2!BU26,"") -> Cundinamarca | M92: =IFERROR(insumos2!BV26,"") -> Mosquera | P92: =IF(K92<>"",insumos2!BW26,"") -> 22 | R92: 0.006962025316 | S92: =IF(K92<>"",insumos2!BX26,"") -> 290 | U92: 0.005477589105
A93: =IFERROR(insumos2!BL27,"") -> Vaupés | D93: =insumos2!BM27 -> 0 | F93: 0 | G93: =insumos2!BN27 -> 0 | I93: 0 | K93: =IFERROR(insumos2!BU27,"") -> Huila | M93: =IFERROR(insumos2!BV27,"") -> Neiva | P93: =IF(K93<>"",insumos2!BW27,"") -> 20 | R93: 0.006329113924 | S93: =IF(K93<>"",insumos2!BX27,"") -> 107 | U93: 0.002021041497
A94: =IFERROR(insumos2!BL28,"") -> La guajira | D94: =insumos2!BM28 -> 0 | F94: 0 | G94: =insumos2!BN28 -> 0 | I94: 0 | K94: =IFERROR(insumos2!BU28,"") -> Nariño | M94: =IFERROR(insumos2!BV28,"") -> Pasto | P94: =IF(K94<>"",insumos2!BW28,"") -> 19 | R94: 0.006012658228 | S94: =IF(K94<>"",insumos2!BX28,"") -> 99 | U94: 0.001869935591
A95: =IFERROR(insumos2!BL29,"") -> Otros | D95: =insumos2!BM29 -> 0 | F95: 0 | G95: =insumos2!BN29 -> 0 | I95: 0 | K95: =IF(K94="","",IFERROR(insumos2!BU29,"")) -> Otros | M95: =IF(M94="","",IFERROR(insumos2!BV29,"")) -> Otros | P95: =IF(K95<>"",insumos2!BW29,"") -> 539 | R95: 0.1705696203 | S95: =IF(K95<>"",insumos2!BX29,"") -> 8311 | U95: 0.1569801485
A96: =insumos2!BL30 -> Total | D96: =insumos2!BM30 -> 3160 | F96: =D96/$D$96 -> 1 | G96: =insumos2!BN30 -> 52943 | I96: 1 | K96: =insumos2!BU30 -> Total | P96: =insumos2!BW30 -> 3160 | R96: =P96/$P$96 -> 1 | S96: =insumos2!BX30 -> 52943 | U96: =S96/$S$96 -> 1
G127: Actividad económica | J127: =J61 -> Industrias manufactureras | U127: =U61 -> C
B131: Sexo | D131: ="Total empleadores sección "&N4 -> Total empleadores sección C | G131: %
B133: Hombres | D133: =VLOOKUP(N4,Hoja4!$H$2:$P$23,7,FALSE) -> 24484 | G133: =D133/$D$136 -> 0.4624596264
B134: Mujeres | D134: =VLOOKUP(N4,Hoja4!$H$2:$P$23,8,FALSE) -> 28459 | G134: =D134/$D$136 -> 0.5375403736
B135: No disponible | D135: =VLOOKUP(N4,Hoja4!$H$2:$P$23,9,FALSE) -> 0 | G135: =D135/$D$136 -> 0
B136: Total | D136: =D135+D134+D133 -> 52943 | G136: =D136/$D$136 -> 1
B139: =IFERROR("Para la Sección "&U127&" hay "&ROUND(VLOOKUP(U127,Hoja4!$H$2:$R$23,11,FALSE),0)&" mujeres por cada 100 hombres beneficiados del Programa.","") -> Para la Sección C hay 116 mujeres por cada 100 hombres beneficiados del Programa.
G204: Actividad económica | J204: =J127 -> Industrias manufactureras | U204: =U127 -> C
B214: ="Grupo o División de la sección "&U127 -> Grupo o División de la sección C | I214: Empleadores | M214: % | O214: Empleados | S214: %
B215: =IF(insumos2!CC2=0,"",insumos2!CC2) -> Elaboración de productos alimenticios | I215: =IF(insumos2!CC2=0,"",insumos2!CD2) -> 621 | M215: =IFERROR(I215/insumos2!$CA$28,"") -> 0.1965189873 | O215: =IF(insumos2!CE2=0,"",insumos2!CE2) -> 12023 | S215: =IFERROR(O215/insumos2!$CB$28,"") -> 0.227093289
B216: =IF(insumos2!CC3=0,"",insumos2!CC3) -> Confección de prendas de vestir | I216: =IF(insumos2!CC3=0,"",insumos2!CD3) -> 600 | M216: =IFERROR(I216/insumos2!$CA$28,"") -> 0.1898734177 | O216: =IF(insumos2!CE3=0,"",insumos2!CE3) -> 16470 | S216: =IFERROR(O216/insumos2!$CB$28,"") -> 0.3110892847
B217: =IF(insumos2!CC4=0,"",insumos2!CC4) -> Instalación, mantenimiento y reparación especializado de maquinaria y equipo | I217: =IF(insumos2!CC4=0,"",insumos2!CD4) -> 261 | M217: =IFERROR(I217/insumos2!$CA$28,"") -> 0.08259493671 | O217: =IF(insumos2!CE4=0,"",insumos2!CE4) -> 2691 | S217: =IFERROR(O217/insumos2!$CB$28,"") -> 0.05082824925
B218: =IF(insumos2!CC5=0,"",insumos2!CC5) -> Fabricación de productos elaborados de metal, excepto maquinaria y equipo | I218: =IF(insumos2!CC5=0,"",insumos2!CD5) -> 256 | M218: =IFERROR(I218/insumos2!$CA$28,"") -> 0.08101265823 | O218: =IF(insumos2!CE5=0,"",insumos2!CE5) -> 2583 | S218: =IFERROR(O218/insumos2!$CB$28,"") -> 0.04878831951
B219: =IF(insumos2!CC6=0,"",insumos2!CC6) -> Fabricación de productos de caucho y de plástico | I219: =IF(insumos2!CC6=0,"",insumos2!CD6) -> 179 | M219: =IFERROR(I219/insumos2!$CA$28,"") -> 0.05664556962 | O219: =IF(insumos2!CE6=0,"",insumos2!CE6) -> 2561 | S219: =IFERROR(O219/insumos2!$CB$28,"") -> 0.04837277827
B220: =IF(insumos2!CC7=0,"",insumos2!CC7) -> Fabricación de sustancias y productos químicos | I220: =IF(insumos2!CC7=0,"",insumos2!CD7) -> 138 | M220: =IFERROR(I220/insumos2!$CA$28,"") -> 0.04367088608 | O220: =IF(insumos2!CE7=0,"",insumos2!CE7) -> 1475 | S220: =IFERROR(O220/insumos2!$CB$28,"") -> 0.02786015148
B221: =IF(insumos2!CC8=0,"",insumos2!CC8) -> Fabricación de productos textiles | I221: =IF(insumos2!CC8=0,"",insumos2!CD8) -> 138 | M221: =IFERROR(I221/insumos2!$CA$28,"") -> 0.04367088608 | O221: =IF(insumos2!CE8=0,"",insumos2!CE8) -> 2535 | S221: =IFERROR(O221/insumos2!$CB$28,"") -> 0.04788168408
B222: =IF(insumos2!CC9=0,"",insumos2!CC9) -> Otras industrias manufactureras | I222: =IF(insumos2!CC9=0,"",insumos2!CD9) -> 110 | M222: =IFERROR(I222/insumos2!$CA$28,"") -> 0.03481012658 | O222: =IF(insumos2!CE9=0,"",insumos2!CE9) -> 1180 | S222: =IFERROR(O222/insumos2!$CB$28,"") -> 0.02228812119
B223: =IF(insumos2!CC10=0,"",insumos2!CC10) -> Fabricación de muebles, colchones y somieres | I223: =IF(insumos2!CC10=0,"",insumos2!CD10) -> 108 | M223: =IFERROR(I223/insumos2!$CA$28,"") -> 0.03417721519 | O223: =IF(insumos2!CE10=0,"",insumos2!CE10) -> 1058 | S223: =IFERROR(O223/insumos2!$CB$28,"") -> 0.01998375612
B224: =IF(insumos2!CC11=0,"",insumos2!CC11) -> Actividades de impresión y de producción de copias a partir de grabaciones originales | I224: =IF(insumos2!CC11=0,"",insumos2!CD11) -> 97 | M224: =IFERROR(I224/insumos2!$CA$28,"") -> 0.03069620253 | O224: =IF(insumos2!CE11=0,"",insumos2!CE11) -> 563 | S224: =IFERROR(O224/insumos2!$CB$28,"") -> 0.01063407816
B225: =IF(insumos2!CC12=0,"",insumos2!CC12) -> Curtido y recurtido de cueros; fabricación de calzado; fabricación de artículos de viaje, maletas, bolsos de mano y artículos similares, y fabricación de artículos de talabartería y guarnicionería; adobo y teñido de pieles | I225: =IF(insumos2!CC12=0,"",insumos2!CD12) -> 93 | M225: =IFERROR(I225/insumos2!$CA$28,"") -> 0.02943037975 | O225: =IF(insumos2!CE12=0,"",insumos2!CE12) -> 1374 | S225: =IFERROR(O225/insumos2!$CB$28,"") -> 0.02595243942
B226: =IF(insumos2!CC13=0,"",insumos2!CC13) -> Fabricación de maquinaria y equipo n.c.p. | I226: =IF(insumos2!CC13=0,"",insumos2!CD13) -> 84 | M226: =IFERROR(I226/insumos2!$CA$28,"") -> 0.02658227848 | O226: =IF(insumos2!CE13=0,"",insumos2!CE13) -> 1053 | S226: =IFERROR(O226/insumos2!$CB$28,"") -> 0.01988931492
B227: =IF(insumos2!CC14=0,"",insumos2!CC14) -> Fabricación de otros productos minerales no metálicos | I227: =IF(insumos2!CC14=0,"",insumos2!CD14) -> 79 | M227: =IFERROR(I227/insumos2!$CA$28,"") -> 0.025 | O227: =IF(insumos2!CE14=0,"",insumos2!CE14) -> 1311 | S227: =IFERROR(O227/insumos2!$CB$28,"") -> 0.0247624804
B228: =IF(insumos2!CC15=0,"",insumos2!CC15) -> Transformación de la madera y fabricación de productos de madera y de corcho, excepto muebles; fabricación de artículos de cestería y espartería | I228: =IF(insumos2!CC15=0,"",insumos2!CD15) -> 77 | M228: =IFERROR(I228/insumos2!$CA$28,"") -> 0.02436708861 | O228: =IF(insumos2!CE15=0,"",insumos2!CE15) -> 601 | S228: =IFERROR(O228/insumos2!$CB$28,"") -> 0.01135183121
B229: =IF(insumos2!CC16=0,"",insumos2!CC16) -> Fabricación de papel, cartón y productos de papel y cartón | I229: =IF(insumos2!CC16=0,"",insumos2!CD16) -> 62 | M229: =IFERROR(I229/insumos2!$CA$28,"") -> 0.01962025316 | O229: =IF(insumos2!CE16=0,"",insumos2!CE16) -> 472 | S229: =IFERROR(O229/insumos2!$CB$28,"") -> 0.008915248475
B230: =IF(insumos2!CC17=0,"",insumos2!CC17) -> Fabricación de aparatos y equipo eléctrico | I230: =IF(insumos2!CC17=0,"",insumos2!CD17) -> 55 | M230: =IFERROR(I230/insumos2!$CA$28,"") -> 0.01740506329 | O230: =IF(insumos2!CE17=0,"",insumos2!CE17) -> 1324 | S230: =IFERROR(O230/insumos2!$CB$28,"") -> 0.0250080275
B231: =IF(insumos2!CC18=0,"",insumos2!CC18) -> Fabricación de vehículos automotores, remolques y semirremolques | I231: =IF(insumos2!CC18=0,"",insumos2!CD18) -> 48 | M231: =IFERROR(I231/insumos2!$CA$28,"") -> 0.01518987342 | O231: =IF(insumos2!CE18=0,"",insumos2!CE18) -> 656 | S231: =IFERROR(O231/insumos2!$CB$28,"") -> 0.01239068432
B232: =IF(insumos2!CC19=0,"",insumos2!CC19) -> Elaboración de bebidas | I232: =IF(insumos2!CC19=0,"",insumos2!CD19) -> 41 | M232: =IFERROR(I232/insumos2!$CA$28,"") -> 0.01297468354 | O232: =IF(insumos2!CE19=0,"",insumos2!CE19) -> 542 | S232: =IFERROR(O232/insumos2!$CB$28,"") -> 0.01023742516
B233: =IF(insumos2!CC20=0,"",insumos2!CC20) -> Fabricación de productos farmacéuticos, sustancias químicas medicinales y productos botánicos de uso farmacéutico | I233: =IF(insumos2!CC20=0,"",insumos2!CD20) -> 36 | M233: =IFERROR(I233/insumos2!$CA$28,"") -> 0.01139240506 | O233: =IF(insumos2!CE20=0,"",insumos2!CE20) -> 843 | S233: =IFERROR(O233/insumos2!$CB$28,"") -> 0.01592278488
B234: =IF(insumos2!CC21=0,"",insumos2!CC21) -> Fabricación de productos metalúrgicos básicos | I234: =IF(insumos2!CC21=0,"",insumos2!CD21) -> 35 | M234: =IFERROR(I234/insumos2!$CA$28,"") -> 0.01107594937 | O234: =IF(insumos2!CE21=0,"",insumos2!CE21) -> 710 | S234: =IFERROR(O234/insumos2!$CB$28,"") -> 0.01341064919
B235: =IF(insumos2!CC22=0,"",insumos2!CC22) -> Fabricación de productos informáticos, electrónicos y ópticos | I235: =IF(insumos2!CC22=0,"",insumos2!CD22) -> 22 | M235: =IFERROR(I235/insumos2!$CA$28,"") -> 0.006962025316 | O235: =IF(insumos2!CE22=0,"",insumos2!CE22) -> 214 | S235: =IFERROR(O235/insumos2!$CB$28,"") -> 0.004042082995
B236: =IF(insumos2!CC23=0,"",insumos2!CC23) -> Fabricación de otros tipos de equipo de transporte | I236: =IF(insumos2!CC23=0,"",insumos2!CD23) -> 11 | M236: =IFERROR(I236/insumos2!$CA$28,"") -> 0.003481012658 | O236: =IF(insumos2!CE23=0,"",insumos2!CE23) -> 556 | S236: =IFERROR(O236/insumos2!$CB$28,"") -> 0.01050186049
B237: =IF(insumos2!CC24=0,"",insumos2!CC24) -> Coquización, fabricación de productos de la refinación del petróleo y actividad de mezcla de combustibles | I237: =IF(insumos2!CC24=0,"",insumos2!CD24) -> 7 | M237: =IFERROR(I237/insumos2!$CA$28,"") -> 0.002215189873 | O237: =IF(insumos2!CE24=0,"",insumos2!CE24) -> 48 | S237: =IFERROR(O237/insumos2!$CB$28,"") -> 0.0009066354381
B238: =IF(insumos2!CC25=0,"",insumos2!CC25) -> Elaboración de productos de tabaco | I238: =IF(insumos2!CC25=0,"",insumos2!CD25) -> 2 | M238: =IFERROR(I238/insumos2!$CA$28,"") -> 0.0006329113924 | O238: =IF(insumos2!CE25=0,"",insumos2!CE25) -> 100 | S238: =IFERROR(O238/insumos2!$CB$28,"") -> 0.001888823829
B239: =IF(insumos2!CC26=0,"",insumos2!CC26) ->  | I239: =IF(insumos2!CC26=0,"",insumos2!CD26) ->  | M239: =IFERROR(I239/insumos2!$CA$28,"") ->  | O239: =IF(insumos2!CE26=0,"",insumos2!CE26) ->  | S239: =IFERROR(O239/insumos2!$CB$28,"") -> 
B242: Postulaciones recibidas en la sección | F242: Cantidad | I242: % | L242: Empleados postulados en la sección | P242: Cantidad | S242: %
B243: Total solicitudes | F243: =COUNT(insumos2!$AL$2:$AL$399999) -> 4547 | I243: =F243/$F$243 -> 1 | L243: Total empleados | P243: =SUM(insumos2!$AL$2:$AM$399999) -> 140964 | S243: =P243/$P$243 -> 1
B244: Empleadores con beneficiados | F244: =COUNTIFS(insumos2!$AQ$2:$AQ$399999,"Aprobado con subsidio") -> 3160 | I244: =F244/$F$243 -> 0.6949637123 | L244: Conformidad | P244: =SUMIFS(insumos2!$AL$2:$AL$399999,insumos2!$AQ$2:$AQ$399999,"Aprobado con subsidio") -> 52943 | S244: =P244/$P$243 -> 0.3755781618
B245: Empleadores sin beneficio | F245: =F243-F244 -> 1387 | I245: =F245/$F$243 -> 0.3050362877 | L245: No conformidad | P245: =P243-P244 -> 88021 | S245: =P245/$P$243 -> 0.6244218382

Sheet insumos1 (hidden)
A1: Ciclo | B1: DIVIPOLA1 | C1: MpioNOM | D1: Depto | E1: DeptoNOM | F1: NOM_AECONOMICA1 | G1: SECTOR_ECONOMICO1 | H1: actividad | I1: TIPO_PERSONA1 | J1: SIZE1 | K1: Suma de RECURSOS1 | Q1: Suma de Suma de RECURSOS1 | R1: Etiquetas de columna
B2: 5001 | C2: MEDELLÍN | D2: 5 | E2: ANTIOQUIA | F2: AGRICULTURA, GANADERÍA, CAZA, SILVICULTURA Y PESCA | G2: 141 | H2: A | I2: Natural | J2: MICRO | K2: 454262 | Q2: Etiquetas de fila | R2: (en blanco) | S2: Total general
B3: 25307 | C3: GIRARDOT | D3: 25 | E3: CUNDINAMARCA | F3: COMERCIO AL POR MAYOR Y AL POR MENOR; REPARACIÓN DE VEHÍCULOS AUTOMOTORES Y MOTOCICLETAS | G3: 4530 | H3: G | I3: Natural | J3: MICRO | K3: 250000 | Q3: ACTIVIDADES ARTÍSTICAS, DE ENTRETENIMIENTO Y RECREACIÓN | R3: 753769500 | S3: 753769500
B4: 5001 | C4: MEDELLÍN | D4: 5 | E4: ANTIOQUIA | F4: ALOJAMIENTO Y SERVICIOS DE COMIDA | G4: 5611 | H4: I | I4: Natural | J4: MICRO | K4: 1000000 | Q4: ACTIVIDADES DE ATENCIÓN DE LA SALUD HUMANA Y DE ASISTENCIA SOCIAL | R4: 2381098500 | S4: 2381098500
B5: 11001 | C5: BOGOTÁ, D.C. | D5: 11 | E5: BOGOTÁ, D.C. | F5: COMERCIO AL POR MAYOR Y AL POR MENOR; REPARACIÓN DE VEHÍCULOS AUTOMOTORES Y MOTOCICLETAS | G5: 4663 | H5: G | I5: Natural | J5: MICRO | K5: 2227131 | Q5: ACTIVIDADES DE LOS HOGARES INDIVIDUALES EN CALIDAD DE EMPLEADORES; ACTIVIDADES NO DIFERENCIADAS DE LOS HOGARES INDIVIDUALES COMO PRODUCTORES DE BIENES Y SERVICIOS PARA USO PROPIO | R5: 17424000 | S5: 17424000
B6: 15176 | C6: CHIQUINQUIRÁ | D6: 15 | E6: BOYACÁ | F6: COMERCIO AL POR MAYOR Y AL POR MENOR; REPARACIÓN DE VEHÍCULOS AUTOMOTORES Y MOTOCICLETAS | G6: 4752 | H6: G | I6: Natural | J6: MICRO | K6: 1508524 | Q6: ACTIVIDADES DE SERVICIOS ADMINISTRATIVOS Y DE APOYO | R6: 10798161000 | S6: 10798161000
B7: 76001 | C7: CALI | D7: 76 | E7: VALLE DEL CAUCA | F7: COMERCIO AL POR MAYOR Y AL POR MENOR; REPARACIÓN DE VEHÍCULOS AUTOMOTORES Y MOTOCICLETAS | G7: 4774 | H7: G | I7: Natural | J7: MICRO | K7: 454262 | Q7: ACTIVIDADES FINANCIERAS Y DE SEGUROS | R7: 617644500 | S7: 617644500
B8: 76001 | C8: CALI | D8: 76 | E8: VALLE DEL CAUCA | F8: ALOJAMIENTO Y SERVICIOS DE COMIDA | G8: 5511 | H8: I | I8: Natural | J8: MICRO | K8: 454262 | Q8: ACTIVIDADES INMOBILIARIAS | R8: 522357000 | S8: 522357000
B9: 41001 | C9: NEIVA | D9: 41 | E9: HUILA | F9: COMERCIO AL POR MAYOR Y AL POR MENOR; REPARACIÓN DE VEHÍCULOS AUTOMOTORES Y MOTOCICLETAS | G9: 4729 | H9: G | I9: Natural | J9: MICRO | K9: 1550000 | Q9: ACTIVIDADES PROFESIONALES, CIENTÍFICAS Y TÉCNICAS | R9: 5504169000 | S9: 5504169000
B10: 52356 | C10: IPIALES | D10: 52 | E10: NARIÑO | F10: TRANSPORTE Y ALMACENAMIENTO | G10: 4923 | H10: H | I10: Natural | J10: MICRO | K10: 400000 | Q10: ADMINISTRACIÓN PÚBLICA Y DEFENSA; PLANES DE SEGURIDAD SOCIAL DE AFILIACIÓN OBLIGATORIA | R10: 109263000 | S10: 109263000
B11: 54001 | C11: CÚCUTA | D11: 54 | E11: NORTE DE SANTANDER | F11: OTRAS | G11: 90 | H11: Otras | I11: Natural | J11: PEQUEÑA | K11: 1300000 | Q11: AGRICULTURA, GANADERÍA, CAZA, SILVICULTURA Y PESCA | R11: 4285033500 | S11: 4285033500
B12: 54405 | C12: LOS PATIOS | D12: 54 | E12: NORTE DE SANTANDER | F12: TRANSPORTE Y ALMACENAMIENTO | G12: 4923 | H12: H | I12: Natural | J12: MICRO | K12: 317983 | Q12: ALOJAMIENTO Y SERVICIOS DE COMIDA | R12: 3928567500 | S12: 3928567500
B13: 76828 | C13: TRUJILLO | D13: 76 | E13: VALLE DEL CAUCA | F13: COMERCIO AL POR MAYOR Y AL POR MENOR; REPARACIÓN DE VEHÍCULOS AUTOMOTORES Y MOTOCICLETAS | G13: 4752 | H13: G | I13: Natural | J13: MICRO | K13: 2331080 | Q13: COMERCIO AL POR MAYOR Y AL POR MENOR; REPARACIÓN DE VEHÍCULOS AUTOMOTORES Y MOTOCICLETAS | R13: 21186495000 | S13: 21186495000
B14: 11001 | C14: BOGOTÁ, D.C. | D14: 11 | E14: BOGOTÁ, D.C. | F14: INDUSTRIAS MANUFACTURERAS | G14: 1313 | H14: C | I14: Natural | J14: MICRO | K14: 726818 | Q14: CONSTRUCCIÓN | R14: 9549078000 | S14: 9549078000
B15: 11001 | C15: BOGOTÁ, D.C. | D15: 11 | E15: BOGOTÁ, D.C. | F15: COMERCIO AL POR MAYOR Y AL POR MENOR; REPARACIÓN DE VEHÍCULOS AUTOMOTORES Y MOTOCICLETAS | G15: 4754 | H15: G | I15: Natural | J15: MICRO | K15: 1000000 | Q15: DISTRIBUCIÓN DE AGUA; EVACUACIÓN Y TRATAMIENTO DE AGUAS RESIDUALES, GESTIÓN DE DESECHOS Y ACTIVIDADES DE SANEAMIENTO AMBIENTAL | R15: 246477000 | S15: 246477000
B16: 11001 | C16: BOGOTÁ, D.C. | D16: 11 | E16: BOGOTÁ, D.C. | F16: EDUCACIÓN | G16: 8512 | H16: P | I16: Natural | J16: MICRO | K16: 750000 | Q16: EDUCACIÓN | R16: 1614442500 | S16: 1614442500
B17: 25181 | C17: CHOACHÍ | D17: 25 | E17: CUNDINAMARCA | F17: AGRICULTURA, GANADERÍA, CAZA, SILVICULTURA Y PESCA | G17: 145 | H17: A | I17: Natural | J17: MICRO | K17: 100000 | Q17: EXPLOTACIÓN DE MINAS Y CANTERAS | R17: 571906500 | S17: 571906500
B18: 25181 | C18: CHOACHÍ | D18: 25 | E18: CUNDINAMARCA | F18: COMERCIO AL POR MAYOR Y AL POR MENOR; REPARACIÓN DE VEHÍCULOS AUTOMOTORES Y MOTOCICLETAS | G18: 4663 | H18: G | I18: Natural | J18: PEQUEÑA | K18: 181704 | Q18: INDUSTRIAS MANUFACTURERAS | R18: 28151013000 | S18: 28151013000
B19: 25279 | C19: FOMEQUE | D19: 25 | E19: CUNDINAMARCA | F19: AGRICULTURA, GANADERÍA, CAZA, SILVICULTURA Y PESCA | G19: 145 | H19: A | I19: Natural | J19: PEQUEÑA | K19: 250000 | Q19: INFORMACIÓN Y COMUNICACIONES | R19: 1208790000 | S19: 1208790000
B20: 25214 | C20: COTA | D20: 25 | E20: CUNDINAMARCA | F20: CONSTRUCCIÓN | G20: 4290 | H20: F | I20: Natural | J20: MICRO | K20: 90852 | Q20: OTRAS | R20: 676995000 | S20: 676995000
B21: 25758 | C21: SOPÓ | D21: 25 | E21: CUNDINAMARCA | F21: AGRICULTURA, GANADERÍA, CAZA, SILVICULTURA Y PESCA | G21: 141 | H21: A | I21: Natural | J21: MICRO | K21: 250000 | Q21: OTRAS ACTIVIDADES DE SERVICIOS | R21: 965217000 | S21: 965217000
B22: 25297 | C22: GACHETÁ | D22: 25 | E22: CUNDINAMARCA | F22: COMERCIO AL POR MAYOR Y AL POR MENOR; REPARACIÓN DE VEHÍCULOS AUTOMOTORES Y MOTOCICLETAS | G22: 4663 | H22: G | I22: Natural | J22: MICRO | K22: 750000 | Q22: SUMINISTRO DE ELECTRICIDAD, GAS, VAPOR Y AIRE ACONDICIONADO | R22: 43015500 | S22: 43015500
B23: 11001 | C23: BOGOTÁ, D.C. | D23: 11 | E23: BOGOTÁ, D.C. | F23: ACTIVIDADES PROFESIONALES, CIENTÍFICAS Y TÉCNICAS | G23: 7310 | H23: M | I23: Natural | J23: MICRO | K23: 227131 | Q23: TRANSPORTE Y ALMACENAMIENTO | R23: 14265537000 | S23: 14265537000
B24: 25754 | C24: SOACHA | D24: 25 | E24: CUNDINAMARCA | F24: ACTIVIDADES DE SERVICIOS ADMINISTRATIVOS Y DE APOYO | G24: 8219 | H24: N | I24: Natural | J24: MICRO | K24: 400000 | Q24: (en blanco)
B25: 11001 | C25: BOGOTÁ, D.C. | D25: 11 | E25: BOGOTÁ, D.C. | F25: ACTIVIDADES PROFESIONALES, CIENTÍFICAS Y TÉCNICAS | G25: 6910 | H25: M | I25: Natural | J25: PEQUEÑA | K25: 8630978 | Q25: Total general | R25: 107396454000 | S25: 107396454000
B26: 11001 | C26: BOGOTÁ, D.C. | D26: 11 | E26: BOGOTÁ, D.C. | F26: COMERCIO AL POR MAYOR Y AL POR MENOR; REPARACIÓN DE VEHÍCULOS AUTOMOTORES Y MOTOCICLETAS | G26: 4751 | H26: G | I26: Natural | J26: MICRO | K26: 681393
B27: 25785 | C27: TABIO | D27: 25 | E27: CUNDINAMARCA | F27: ACTIVIDADES ARTÍSTICAS, DE ENTRETENIMIENTO Y RECREACIÓN | G27: 9004 | H27: R | I27: Natural | J27: MICRO | K27: 250000
B28: 50001 | C28: VILLAVICENCIO | D28: 50 | E28: META | F28: COMERCIO AL POR MAYOR Y AL POR MENOR; REPARACIÓN DE VEHÍCULOS AUTOMOTORES Y MOTOCICLETAS | G28: 4729 | H28: G | I28: Natural | J28: MICRO | K28: 1977131
B29: 25875 | C29: VILLETA | D29: 25 | E29: CUNDINAMARCA | F29: INDUSTRIAS MANUFACTURERAS | G29: 1081 | H29: C | I29: Natural | J29: PEQUEÑA | K29: 454262
B30: 25269 | C30: FACATATIVÁ | D30: 25 | E30: CUNDINAMARCA | F30: EDUCACIÓN | G30: 8560 | H30: P | I30: Natural | J30: MICRO | K30: 1850000
B31: 85001 | C31: YOPAL | D31: 85 | E31: CASANARE | F31: COMERCIO AL POR MAYOR Y AL POR MENOR; REPARACIÓN DE VEHÍCULOS AUTOMOTORES Y MOTOCICLETAS | G31: 4769 | H31: G | I31: Natural | J31: MICRO | K31: 2450000
B32: 5001 | C32: MEDELLÍN | D32: 5 | E32: ANTIOQUIA | F32: OTRAS | G32: 90 | H32: Otras | I32: Natural | J32: MICRO | K32: 300000
B33: 15759 | C33: SOGAMOSO | D33: 15 | E33: BOYACÁ | F33: COMERCIO AL POR MAYOR Y AL POR MENOR; REPARACIÓN DE VEHÍCULOS AUTOMOTORES Y MOTOCICLETAS | G33: 4799 | H33: G | I33: Natural | J33: MICRO | K33: 250000
B34: 5001 | C34: MEDELLÍN | D34: 5 | E34: ANTIOQUIA | F34: ALOJAMIENTO Y SERVICIOS DE COMIDA | G34: 5611 | H34: I | I34: Natural | J34: MICRO | K34: 100000
B35: 5001 | C35: MEDELLÍN | D35: 5 | E35: ANTIOQUIA | F35: COMERCIO AL POR MAYOR Y AL POR MENOR; REPARACIÓN DE VEHÍCULOS AUTOMOTORES Y MOTOCICLETAS | G35: 4722 | H35: G | I35: Natural | J35: MICRO | K35: 2000000
B36: 5001 | C36: MEDELLÍN | D36: 5 | E36: ANTIOQUIA | F36: INDUSTRIAS MANUFACTURERAS | G36: 3240 | H36: C | I36: Natural | J36: MICRO | K36: 1654262
B37: 5001 | C37: MEDELLÍN | D37: 5 | E37: ANTIOQUIA | F37: COMERCIO AL POR MAYOR Y AL POR MENOR; REPARACIÓN DE VEHÍCULOS AUTOMOTORES Y MOTOCICLETAS | G37: 4771 | H37: G | I37: Natural | J37: MICRO | K37: 908524
B38: 11001 | C38: BOGOTÁ, D.C. | D38: 11 | E38: BOGOTÁ, D.C. | F38: COMERCIO AL POR MAYOR Y AL POR MENOR; REPARACIÓN DE VEHÍCULOS AUTOMOTORES Y MOTOCICLETAS | G38: 4771 | H38: G | I38: Natural | J38: PEQUEÑA | K38: 454262
B39: 5697 | C39: EL SANTUARIO | D39: 5 | E39: ANTIOQUIA | F39: COMERCIO AL POR MAYOR Y AL POR MENOR; REPARACIÓN DE VEHÍCULOS AUTOMOTORES Y MOTOCICLETAS | G39: 4773 | H39: G | I39: Natural | J39: MICRO | K39: 454262
B40: 11001 | C40: BOGOTÁ, D.C. | D40: 11 | E40: BOGOTÁ, D.C. | F40: COMERCIO AL POR MAYOR Y AL POR MENOR; REPARACIÓN DE VEHÍCULOS AUTOMOTORES Y MOTOCICLETAS | G40: 4652 | H40: G | I40: Natural | J40: MICRO | K40: 227131
B41: 54001 | C41: CÚCUTA | D41: 54 | E41: NORTE DE SANTANDER | F41: COMERCIO AL POR MAYOR Y AL POR MENOR; REPARACIÓN DE VEHÍCULOS AUTOMOTORES Y MOTOCICLETAS | G41: 4631 | H41: G | I41: Natural | J41: PEQUEÑA | K41: 454262
B42: 5001 | C42: MEDELLÍN | D42: 5 | E42: ANTIOQUIA | F42: ACTIVIDADES INMOBILIARIAS | G42: 6810 | H42: L | I42: Natural | J42: MICRO | K42: 90852
B43: 15759 | C43: SOGAMOSO | D43: 15 | E43: BOYACÁ | F43: EDUCACIÓN | G43: 8512 | H43: P | I43: Natural | J43: MICRO | K43: 1950000
B44: 15176 | C44: CHIQUINQUIRÁ | D44: 15 | E44: BOYACÁ | F44: INDUSTRIAS MANUFACTURERAS | G44: 1081 | H44: C | I44: Natural | J44: MICRO | K44: 1250000
B45: 11001 | C45: BOGOTÁ, D.C. | D45: 11 | E45: BOGOTÁ, D.C. | F45: INDUSTRIAS MANUFACTURERAS | G45: 2920 | H45: C | I45: Natural | J45: MICRO | K45: 600000
B46: 15238 | C46: DUITAMA | D46: 15 | E46: BOYACÁ | F46: TRANSPORTE Y ALMACENAMIENTO | G46: 4923 | H46: H | I46: Natural | J46: MICRO | K46: 500000
B47: 85001 | C47: YOPAL | D47: 85 | E47: CASANARE | F47: COMERCIO AL POR MAYOR Y AL POR MENOR; REPARACIÓN DE VEHÍCULOS AUTOMOTORES Y MOTOCICLETAS | G47: 4542 | H47: G | I47: Natural | J47: MICRO | K47: 2681393
B48: 15759 | C48: SOGAMOSO | D48: 15 | E48: BOYACÁ | F48: INDUSTRIAS MANUFACTURERAS | G48: 2395 | H48: C | I48: Natural | J48: PEQUEÑA | K48: 100000
B49: 11001 | C49: BOGOTÁ, D.C. | D49: 11 | E49: BOGOTÁ, D.C. | F49: COMERCIO AL POR MAYOR Y AL POR MENOR; REPARACIÓN DE VEHÍCULOS AUTOMOTORES Y MOTOCICLETAS | G49: 4663 | H49: G | I49: Natural | J49: MICRO | K49: 500000
B50: 15753 | C50: SOATÁ | D50: 15 | E50: BOYACÁ | F50: COMERCIO AL POR MAYOR Y AL POR MENOR; REPARACIÓN DE VEHÍCULOS AUTOMOTORES Y MOTOCICLETAS | G50: 4631 | H50: G | I50: Natural | J50: MICRO | K50: 381704
B51: 11001 | C51: BOGOTÁ, D.C. | D51: 11 | E51: BOGOTÁ, D.C. | F51: INDUSTRIAS MANUFACTURERAS | G51: 1081 | H51: C | I51: Natural | J51: MICRO | K51: 1908524
B52: 11001 | C52: BOGOTÁ, D.C. | D52: 11 | E52: BOGOTÁ, D.C. | F52: TRANSPORTE Y ALMACENAMIENTO | G52: 4923 | H52: H | I52: Natural | J52: MICRO | K52: 2526818
B53: 11001 | C53: BOGOTÁ, D.C. | D53: 11 | E53: BOGOTÁ, D.C. | F53: ALOJAMIENTO Y SERVICIOS DE COMIDA | G53: 5611 | H53: I | I53: Natural | J53: MICRO | K53: 1800000
B54: 5266 | C54: ENVIGADO | D54: 5 | E54: ANTIOQUIA | F54: COMERCIO AL POR MAYOR Y AL POR MENOR; REPARACIÓN DE VEHÍCULOS AUTOMOTORES Y MOTOCICLETAS | G54: 4541 | H54: G | I54: Natural | J54: MICRO | K54: 227131
B55: 66001 | C55: PEREIRA | D55: 66 | E55: RISARALDA | F55: CONSTRUCCIÓN | G55: 4290 | H55: F | I55: Natural | J55: MICRO | K55: 908522
B56: 66594 | C56: QUINCHÍA | D56: 66 | E56: RISARALDA | F56: COMERCIO AL POR MAYOR Y AL POR MENOR; REPARACIÓN DE VEHÍCULOS AUTOMOTORES Y MOTOCICLETAS | G56: 4711 | H56: G | I56: Natural | J56: MICRO | K56: 500000
B57: 66170 | C57: DOSQUEBRADAS | D57: 66 | E57: RISARALDA | F57: COMERCIO AL POR MAYOR Y AL POR MENOR; REPARACIÓN DE VEHÍCULOS AUTOMOTORES Y MOTOCICLETAS | G57: 4775 | H57: G | I57: Natural | J57: MICRO | K57: 1000000
B58: 66170 | C58: DOSQUEBRADAS | D58: 66 | E58: RISARALDA | F58: ACTIVIDADES PROFESIONALES, CIENTÍFICAS Y TÉCNICAS | G58: 6910 | H58: M | I58: Natural | J58: PEQUEÑA | K58: 3950000
B59: 18205 | C59: CURILLO | D59: 18 | E59: CAQUETÁ | F59: INDUSTRIAS MANUFACTURERAS | G59: 1040 | H59: C | I59: Natural | J59: MICRO | K59: 1850000
B60: 19001 | C60: POPAYÁN | D60: 19 | E60: CAUCA | F60: EDUCACIÓN | G60: 8559 | H60: P | I60: Natural | J60: MICRO | K60: 317982
B61: 76001 | C61: CALI | D61: 76 | E61: VALLE DEL CAUCA | F61: COMERCIO AL POR MAYOR Y AL POR MENOR; REPARACIÓN DE VEHÍCULOS AUTOMOTORES Y MOTOCICLETAS | G61: 4752 | H61: G | I61: Natural | J61: MICRO | K61: 4998441
B62: 41001 | C62: NEIVA | D62: 41 | E62: HUILA | F62: COMERCIO AL POR MAYOR Y AL POR MENOR; REPARACIÓN DE VEHÍCULOS AUTOMOTORES Y MOTOCICLETAS | G62: 4752 | H62: G | I62: Natural | J62: PEQUEÑA | K62: 12050000
B63: 41001 | C63: NEIVA | D63: 41 | E63: HUILA | F63: COMERCIO AL POR MAYOR Y AL POR MENOR; REPARACIÓN DE VEHÍCULOS AUTOMOTORES Y MOTOCICLETAS | G63: 4711 | H63: G | I63: Natural | J63: PEQUEÑA | K63: 227131
B64: 41551 | C64: PITALITO | D64: 41 | E64: HUILA | F64: COMERCIO AL POR MAYOR Y AL POR MENOR; REPARACIÓN DE VEHÍCULOS AUTOMOTORES Y MOTOCICLETAS | G64: 4754 | H64: G | I64: Natural | J64: MICRO | K64: 363409
B65: 41551 | C65: PITALITO | D65: 41 | E65: HUILA | F65: COMERCIO AL POR MAYOR Y AL POR MENOR; REPARACIÓN DE VEHÍCULOS AUTOMOTORES Y MOTOCICLETAS | G65: 4620 | H65: G | I65: Natural | J65: MICRO | K65: 1000000
B66: 54498 | C66: OCAÑA | D66: 54 | E66: NORTE DE SANTANDER | F66: COMERCIO AL POR MAYOR Y AL POR MENOR; REPARACIÓN DE VEHÍCULOS AUTOMOTORES Y MOTOCICLETAS | G66: 4541 | H66: G | I66: Natural | J66: MICRO | K66: 931393
B67: 52317 | C67: GUACHUCAL | D67: 52 | E67: NARIÑO | F67: COMERCIO AL POR MAYOR Y AL POR MENOR; REPARACIÓN DE VEHÍCULOS AUTOMOTORES Y MOTOCICLETAS | G67: 4731 | H67: G | I67: Natural | J67: PEQUEÑA | K67: 1250000
B68: 52560 | C68: POTOSÍ | D68: 52 | E68: NARIÑO | F68: INDUSTRIAS MANUFACTURERAS | G68: 1040 | H68: C | I68: Natural | J68: MICRO | K68: 500000
B69: 52683 | C69: SANDONÁ | D69: 52 | E69: NARIÑO | F69: COMERCIO AL POR MAYOR Y AL POR MENOR; REPARACIÓN DE VEHÍCULOS AUTOMOTORES Y MOTOCICLETAS | G69: 4711 | H69: G | I69: Natural | J69: MICRO | K69: 250000
B70: 54001 | C70: CÚCUTA | D70: 54 | E70: NORTE DE SANTANDER | F70: INDUSTRIAS MANUFACTURERAS | G70: 2599 | H70: C | I70: Natural | J70: MICRO | K70: 227131
B71: 54001 | C71: CÚCUTA | D71: 54 | E71: NORTE DE SANTANDER | F71: TRANSPORTE Y ALMACENAMIENTO | G71: 4923 | H71: H | I71: Natural | J71: MICRO | K71: 250000
B72: 54518 | C72: PAMPLONA | D72: 54 | E72: NORTE DE SANTANDER | F72: ALOJAMIENTO Y SERVICIOS DE COMIDA | G72: 5611 | H72: I | I72: Natural | J72: PEQUEÑA | K72: 454262
B73: 68001 | C73: BUCARAMANGA | D73: 68 | E73: SANTANDER | F73: INDUSTRIAS MANUFACTURERAS | G73: 1610 | H73: C | I73: Natural | J73: PEQUEÑA | K73: 250000
B74: 68001 | C74: BUCARAMANGA | D74: 68 | E74: SANTANDER | F74: COMERCIO AL POR MAYOR Y AL POR MENOR; REPARACIÓN DE VEHÍCULOS AUTOMOTORES Y MOTOCICLETAS | G74: 4774 | H74: G | I74: Natural | J74: MICRO | K74: 3250000
B75: 11001 | C75: BOGOTÁ, D.C. | D75: 11 | E75: BOGOTÁ, D.C. | F75: COMERCIO AL POR MAYOR Y AL POR MENOR; REPARACIÓN DE VEHÍCULOS AUTOMOTORES Y MOTOCICLETAS | G75: 4731 | H75: G | I75: Natural | J75: MICRO | K75: 7316421
B76: 54001 | C76: CÚCUTA | D76: 54 | E76: NORTE DE SANTANDER | F76: INDUSTRIAS MANUFACTURERAS | G76: 1410 | H76: C | I76: Natural | J76: MICRO | K76: 1158524
B77: 68001 | C77: BUCARAMANGA | D77: 68 | E77: SANTANDER | F77: ACTIVIDADES PROFESIONALES, CIENTÍFICAS Y TÉCNICAS | G77: 7420 | H77: M | I77: Natural | J77: MICRO | K77: 300000
B78: 68679 | C78: SAN GIL | D78: 68 | E78: SANTANDER | F78: COMERCIO AL POR MAYOR Y AL POR MENOR; REPARACIÓN DE VEHÍCULOS AUTOMOTORES Y MOTOCICLETAS | G78: 4711 | H78: G | I78: Natural | J78: PEQUEÑA | K78: 4250000
B79: 68861 | C79: VÉLEZ | D79: 68 | E79: SANTANDER | F79: INDUSTRIAS MANUFACTURERAS | G79: 1089 | H79: C | I79: Natural | J79: MICRO | K79: 954262
B80: 68001 | C80: BUCARAMANGA | D80: 68 | E80: SANTANDER | F80: COMERCIO AL POR MAYOR Y AL POR MENOR; REPARACIÓN DE VEHÍCULOS AUTOMOTORES Y MOTOCICLETAS | G80: 4711 | H80: G | I80: Natural | J80: MEDIANA | K80: 1000000
B81: 11001 | C81: BOGOTÁ, D.C. | D81: 11 | E81: BOGOTÁ, D.C. | F81: ACTIVIDADES DE SERVICIOS ADMINISTRATIVOS Y DE APOYO | G81: 8121 | H81: N | I81: Natural | J81: MICRO | K81: 400000
B82: 41001 | C82: NEIVA | D82: 41 | E82: HUILA | F82: ALOJAMIENTO Y SERVICIOS DE COMIDA | G82: 5511 | H82: I | I82: Natural | J82: MICRO | K82: 750000
B83: 73001 | C83: IBAGUÉ | D83: 73 | E83: TOLIMA | F83: COMERCIO AL POR MAYOR Y AL POR MENOR; REPARACIÓN DE VEHÍCULOS AUTOMOTORES Y MOTOCICLETAS | G83: 4773 | H83: G | I83: Natural | J83: MICRO | K83: 550000
B84: 76001 | C84: CALI | D84: 76 | E84: VALLE DEL CAUCA | F84: INDUSTRIAS MANUFACTURERAS | G84: 1811 | H84: C | I84: Natural | J84: MICRO | K84: 750000
B85: 73001 | C85: IBAGUÉ | D85: 73 | E85: TOLIMA | F85: COMERCIO AL POR MAYOR Y AL POR MENOR; REPARACIÓN DE VEHÍCULOS AUTOMOTORES Y MOTOCICLETAS | G85: 4752 | H85: G | I85: Natural | J85: MICRO | K85: 2408524
B86: 50001 | C86: VILLAVICENCIO | D86: 50 | E86: META | F86: ALOJAMIENTO Y SERVICIOS DE COMIDA | G86: 5511 | H86: I | I86: Natural | J86: PEQUEÑA | K86: 4253949
B87: 76834 | C87: TULUÁ | D87: 76 | E87: VALLE DEL CAUCA | F87: COMERCIO AL POR MAYOR Y AL POR MENOR; REPARACIÓN DE VEHÍCULOS AUTOMOTORES Y MOTOCICLETAS | G87: 4751 | H87: G | I87: Natural | J87: PEQUEÑA | K87: 300000
B88: 76020 | C88: ALCALÁ | D88: 76 | E88: VALLE DEL CAUCA | F88: COMERCIO AL POR MAYOR Y AL POR MENOR; REPARACIÓN DE VEHÍCULOS AUTOMOTORES Y MOTOCICLETAS | G88: 4752 | H88: G | I88: Natural | J88: MICRO | K88: 2000000
B89: 76001 | C89: CALI | D89: 76 | E89: VALLE DEL CAUCA | F89: ALOJAMIENTO Y SERVICIOS DE COMIDA | G89: 5611 | H89: I | I89: Natural | J89: MICRO | K89: 2400000
B90: 76122 | C90: CAICEDONIA | D90: 76 | E90: VALLE DEL CAUCA | F90: ACTIVIDADES PROFESIONALES, CIENTÍFICAS Y TÉCNICAS | G90: 6920 | H90: M | I90: Natural | J90: MICRO | K90: 250000
B91: 76400 | C91: LA UNIÓN | D91: 76 | E91: VALLE DEL CAUCA | F91: AGRICULTURA, GANADERÍA, CAZA, SILVICULTURA Y PESCA | G91: 130 | H91: A | I91: Natural | J91: PEQUEÑA | K91: 6198441
B92: 76001 | C92: CALI | D92: 76 | E92: VALLE DEL CAUCA | F92: COMERCIO AL POR MAYOR Y AL POR MENOR; REPARACIÓN DE VEHÍCULOS AUTOMOTORES Y MOTOCICLETAS | G92: 4741 | H92: G | I92: Natural | J92: MICRO | K92: 290852
B93: 76001 | C93: CALI | D93: 76 | E93: VALLE DEL CAUCA | F93: INDUSTRIAS MANUFACTURERAS | G93: 1081 | H93: C | I93: Natural | J93: MICRO | K93: 500000
B94: 76001 | C94: CALI | D94: 76 | E94: VALLE DEL CAUCA | F94: INDUSTRIAS MANUFACTURERAS | G94: 1410 | H94: C | I94: Natural | J94: PEQUEÑA | K94: 227131
B95: 76834 | C95: TULUÁ | D95: 76 | E95: VALLE DEL CAUCA | F95: COMERCIO AL POR MAYOR Y AL POR MENOR; REPARACIÓN DE VEHÍCULOS AUTOMOTORES Y MOTOCICLETAS | G95: 4774 | H95: G | I95: Natural | J95: MICRO | K95: 12524320
B96: 76111 | C96: GUADALAJARA DE BUGA | D96: 76 | E96: VALLE DEL CAUCA | F96: TRANSPORTE Y ALMACENAMIENTO | G96: 4923 | H96: H | I96: Natural | J96: MICRO | K96: 90852
B97: 5088 | C97: BELLO | D97: 5 | E97: ANTIOQUIA | F97: COMERCIO AL POR MAYOR Y AL POR MENOR; REPARACIÓN DE VEHÍCULOS AUTOMOTORES Y MOTOCICLETAS | G97: 4752 | H97: G | I97: Natural | J97: MICRO | K97: 750000
B98: 41551 | C98: PITALITO | D98: 41 | E98: HUILA | F98: COMERCIO AL POR MAYOR Y AL POR MENOR; REPARACIÓN DE VEHÍCULOS AUTOMOTORES Y MOTOCICLETAS | G98: 4711 | H98: G | I98: Natural | J98: MEDIANA | K98: 227131
B99: 11001 | C99: BOGOTÁ, D.C. | D99: 11 | E99: BOGOTÁ, D.C. | F99: EDUCACIÓN | G99: 8521 | H99: P | I99: Natural | J99: PEQUEÑA | K99: 454262
B100: 11001 | C100: BOGOTÁ, D.C. | D100: 11 | E100: BOGOTÁ, D.C. | F100: ALOJAMIENTO Y SERVICIOS DE COMIDA | G100: 5611 | H100: I | I100: Natural | J100: MICRO | K100: 3454262
B101: 11001 | C101: BOGOTÁ, D.C. | D101: 11 | E101: BOGOTÁ, D.C. | F101: CONSTRUCCIÓN | G101: 4210 | H101: F | I101: Natural | J101: PEQUEÑA | K101: 10250000
B102: 5631 | C102: SABANETA | D102: 5 | E102: ANTIOQUIA | F102: COMERCIO AL POR MAYOR Y AL POR MENOR; REPARACIÓN DE VEHÍCULOS AUTOMOTORES Y MOTOCICLETAS | G102: 4771 | H102: G | I102: Natural | J102: MICRO | K102: 1908524
B103: 18001 | C103: FLORENCIA | D103: 18 | E103: CAQUETÁ | F103: COMERCIO AL POR MAYOR Y AL POR MENOR; REPARACIÓN DE VEHÍCULOS AUTOMOTORES Y MOTOCICLETAS | G103: 4643 | H103: G | I103: Natural | J103: MICRO | K103: 1953949
B104: 18001 | C104: FLORENCIA | D104: 18 | E104: CAQUETÁ | F104: ACTIVIDADES DE SERVICIOS ADMINISTRATIVOS Y DE APOYO | G104: 8020 | H104: N | I104: Natural | J104: MICRO | K104: 227131
B105: 18001 | C105: FLORENCIA | D105: 18 | E105: CAQUETÁ | F105: COMERCIO AL POR MAYOR Y AL POR MENOR; REPARACIÓN DE VEHÍCULOS AUTOMOTORES Y MOTOCICLETAS | G105: 4741 | H105: G | I105: Natural | J105: MICRO | K105: 2500000
B106: 70001 | C106: SINCELEJO | D106: 70 | E106: SUCRE | F106: COMERCIO AL POR MAYOR Y AL POR MENOR; REPARACIÓN DE VEHÍCULOS AUTOMOTORES Y MOTOCICLETAS | G106: 4530 | H106: G | I106: Natural | J106: MICRO | K106: 250000
B107: 23001 | C107: MONTERÍA | D107: 23 | E107: CÓRDOBA | F107: COMERCIO AL POR MAYOR Y AL POR MENOR; REPARACIÓN DE VEHÍCULOS AUTOMOTORES Y MOTOCICLETAS | G107: 4541 | H107: G | I107: Natural | J107: MICRO | K107: 3385655
B108: 23001 | C108: MONTERÍA | D108: 23 | E108: CÓRDOBA | F108: COMERCIO AL POR MAYOR Y AL POR MENOR; REPARACIÓN DE VEHÍCULOS AUTOMOTORES Y MOTOCICLETAS | G108: 4752 | H108: G | I108: Natural | J108: PEQUEÑA | K108: 2800000
B109: 91001 | C109: LETICIA | D109: 91 | E109: AMAZONAS | F109: ALOJAMIENTO Y SERVICIOS DE COMIDA | G109: 5613 | H109: I | I109: Natural | J109: MICRO | K109: 590540
B110: 15776 | C110: SUTAMARCHÁN | D110: 15 | E110: BOYACÁ | F110: ALOJAMIENTO Y SERVICIOS DE COMIDA | G110: 5611 | H110: I | I110: Natural | J110: PEQUEÑA | K110: 2331080
B111: 15001 | C111: TUNJA | D111: 15 | E111: BOYACÁ | F111: ACTIVIDADES PROFESIONALES, CIENTÍFICAS Y TÉCNICAS | G111: 7310 | H111: M | I111: Natural | J111: MICRO | K111: 704262
B112: 15001 | C112: TUNJA | D112: 15 | E112: BOYACÁ | F112: ACTIVIDADES ARTÍSTICAS, DE ENTRETENIMIENTO Y RECREACIÓN | G112: 9311 | H112: R | I112: Natural | J112: MICRO | K112: 4025882
B113: 15238 | C113: DUITAMA | D113: 15 | E113: BOYACÁ | F113: TRANSPORTE Y ALMACENAMIENTO | G113: 4923 | H113: H | I113: Natural | J113: MICRO | K113: 400000
B114: 15238 | C114: DUITAMA | D114: 15 | E114: BOYACÁ | F114: COMERCIO AL POR MAYOR Y AL POR MENOR; REPARACIÓN DE VEHÍCULOS AUTOMOTORES Y MOTOCICLETAS | G114: 4732 | H114: G | I114: Natural | J114: MICRO | K114: 250000
B115: 85139 | C115: MANÍ | D115: 85 | E115: CASANARE | F115: COMERCIO AL POR MAYOR Y AL POR MENOR; REPARACIÓN DE VEHÍCULOS AUTOMOTORES Y MOTOCICLETAS | G115: 4731 | H115: G | I115: Natural | J115: PEQUEÑA | K115: 1000000
B116: 15238 | C116: DUITAMA | D116: 15 | E116: BOYACÁ | F116: INDUSTRIAS MANUFACTURERAS | G116: 1392 | H116: C | I116: Natural | J116: MICRO | K116: 1300000
B117: 15238 | C117: DUITAMA | D117: 15 | E117: BOYACÁ | F117: COMERCIO AL POR MAYOR Y AL POR MENOR; REPARACIÓN DE VEHÍCULOS AUTOMOTORES Y MOTOCICLETAS | G117: 4771 | H117: G | I117: Natural | J117: PEQUEÑA | K117: 250000
B118: 15759 | C118: SOGAMOSO | D118: 15 | E118: BOYACÁ | F118: ALOJAMIENTO Y SERVICIOS DE COMIDA | G118: 5619 | H118: I | I118: Natural | J118: MICRO | K118: 1362786
B119: 11001 | C119: BOGOTÁ, D.C. | D119: 11 | E119: BOGOTÁ, D.C. | F119: INDUSTRIAS MANUFACTURERAS | G119: 1081 | H119: C | I119: Natural | J119: MICRO | K119: 272556
B120: 15238 | C120: DUITAMA | D120: 15 | E120: BOYACÁ | F120: COMERCIO AL POR MAYOR Y AL POR MENOR; REPARACIÓN DE VEHÍCULOS AUTOMOTORES Y MOTOCICLETAS | G120: 4722 | H120: G | I120: Natural | J120: PEQUEÑA | K120: 136278
B121: 15238 | C121: DUITAMA | D121: 15 | E121: BOYACÁ | F121: COMERCIO AL POR MAYOR Y AL POR MENOR; REPARACIÓN DE VEHÍCULOS AUTOMOTORES Y MOTOCICLETAS | G121: 4530 | H121: G | I121: Natural | J121: MICRO | K121: 150000
B122: 11001 | C122: BOGOTÁ, D.C. | D122: 11 | E122: BOGOTÁ, D.C. | F122: COMERCIO AL POR MAYOR Y AL POR MENOR; REPARACIÓN DE VEHÍCULOS AUTOMOTORES Y MOTOCICLETAS | G122: 4752 | H122: G | I122: Natural | J122: MICRO | K122: 454262
B123: 15176 | C123: CHIQUINQUIRÁ | D123: 15 | E123: BOYACÁ | F123: CONSTRUCCIÓN | G123: 4112 | H123: F | I123: Natural | J123: MICRO | K123: 3385340
B124: 8001 | C124: BARRANQUILLA | D124: 8 | E124: ATLÁNTICO | F124: INDUSTRIAS MANUFACTURERAS | G124: 1081 | H124: C | I124: Natural | J124: PEQUEÑA | K124: 227131
B125: 47001 | C125: SANTA MARTA | D125: 47 | E125: MAGDALENA | F125: COMERCIO AL POR MAYOR Y AL POR MENOR; REPARACIÓN DE VEHÍCULOS AUTOMOTORES Y MOTOCICLETAS | G125: 4773 | H125: G | I125: Natural | J125: MICRO | K125: 750000
B126: 63001 | C126: ARMENIA | D126: 63 | E126: QUINDÍO | F126: CONSTRUCCIÓN | G126: 4330 | H126: F | I126: Natural | J126: PEQUEÑA | K126: 1408209
B127: 63001 | C127: ARMENIA | D127: 63 | E127: QUINDÍO | F127: CONSTRUCCIÓN | G127: 4111 | H127: F | I127: Natural | J127: MICRO | K127: 1044801
B128: 5266 | C128: ENVIGADO | D128: 5 | E128: ANTIOQUIA | F128: ACTIVIDADES PROFESIONALES, CIENTÍFICAS Y TÉCNICAS | G128: 7111 | H128: M | I128: Natural | J128: MICRO | K128: 2776195
B129: 73001 | C129: IBAGUÉ | D129: 73 | E129: TOLIMA | F129: COMERCIO AL POR MAYOR Y AL POR MENOR; REPARACIÓN DE VEHÍCULOS AUTOMOTORES Y MOTOCICLETAS | G129: 4752 | H129: G | I129: Natural | J129: PEQUEÑA | K129: 2500000
B130: 25899 | C130: ZIPAQUIRÁ | D130: 25 | E130: CUNDINAMARCA | F130: ALOJAMIENTO Y SERVICIOS DE COMIDA | G130: 5511 | H130: I | I130: Natural | J130: MICRO | K130: 3454262
B131: 63001 | C131: ARMENIA | D131: 63 | E131: QUINDÍO | F131: COMERCIO AL POR MAYOR Y AL POR MENOR; REPARACIÓN DE VEHÍCULOS AUTOMOTORES Y MOTOCICLETAS | G131: 4661 | H131: G | I131: Natural | J131: PEQUEÑA | K131: 454262
B132: 20001 | C132: VALLEDUPAR | D132: 20 | E132: CESAR | F132: INDUSTRIAS MANUFACTURERAS | G132: 1410 | H132: C | I132: Natural | J132: PEQUEÑA | K132: 3500000
B133: 44001 | C133: RIOHACHA | D133: 44 | E133: LA GUAJIRA | F133: COMERCIO AL POR MAYOR Y AL POR MENOR; REPARACIÓN DE VEHÍCULOS AUTOMOTORES Y MOTOCICLETAS | G133: 4530 | H133: G | I133: Natural | J133: MICRO | K133: 500000
B134: 5318 | C134: GUARNE | D134: 5 | E134: ANTIOQUIA | F134: INDUSTRIAS MANUFACTURERAS | G134: 2221 | H134: C | I134: Natural | J134: PEQUEÑA | K134: 1650000
B135: 76001 | C135: CALI | D135: 76 | E135: VALLE DEL CAUCA | F135: INDUSTRIAS MANUFACTURERAS | G135: 1313 | H135: C | I135: Natural | J135: PEQUEÑA | K135: 227131
B136: 73001 | C136: IBAGUÉ | D136: 73 | E136: TOLIMA | F136: COMERCIO AL POR MAYOR Y AL POR MENOR; REPARACIÓN DE VEHÍCULOS AUTOMOTORES Y MOTOCICLETAS | G136: 4729 | H136: G | I136: Natural | J136: MICRO | K136: 8210288
B137: 41001 | C137: NEIVA | D137: 41 | E137: HUILA | F137: INDUSTRIAS MANUFACTURERAS | G137: 1081 | H137: C | I137: Natural | J137: MICRO | K137: 704262
B138: 41001 | C138: NEIVA | D138: 41 | E138: HUILA | F138: TRANSPORTE Y ALMACENAMIENTO | G138: 4923 | H138: H | I138: Natural | J138: MICRO | K138: 500000
B139: 41001 | C139: NEIVA | D139: 41 | E139: HUILA | F139: COMERCIO AL POR MAYOR Y AL POR MENOR; REPARACIÓN DE VEHÍCULOS AUTOMOTORES Y MOTOCICLETAS | G139: 4752 | H139: G | I139: Natural | J139: MICRO | K139: 1500000
B140: 5001 | C140: MEDELLÍN | D140: 5 | E140: ANTIOQUIA | F140: ACTIVIDADES DE SERVICIOS ADMINISTRATIVOS Y DE APOYO | G140: 8299 | H140: N | I140: Natural | J140: MICRO | K140: 1050000
B141: 41001 | C141: NEIVA | D141: 41 | E141: HUILA | F141: COMERCIO AL POR MAYOR Y AL POR MENOR; REPARACIÓN DE VEHÍCULOS AUTOMOTORES Y MOTOCICLETAS | G141: 4653 | H141: G | I141: Natural | J141: MICRO | K141: 250000
B142: 86001 | C142: MOCOA | D142: 86 | E142: PUTUMAYO | F142: ACTIVIDADES PROFESIONALES, CIENTÍFICAS Y TÉCNICAS | G142: 7500 | H142: M | I142: Natural | J142: MICRO | K142: 150000
B143: 41298 | C143: GARZÓN | D143: 41 | E143: HUILA | F143: EDUCACIÓN | G143: 8530 | H143: P | I143: Natural | J143: MICRO | K143: 900000
B144: 41551 | C144: PITALITO | D144: 41 | E144: HUILA | F144: TRANSPORTE Y ALMACENAMIENTO | G144: 4923 | H144: H | I144: Natural | J144: MICRO | K144: 750000
B145: 41001 | C145: NEIVA | D145: 41 | E145: HUILA | F145: ACTIVIDADES DE SERVICIOS ADMINISTRATIVOS Y DE APOYO | G145: 8230 | H145: N | I145: Natural | J145: MICRO | K145: 2581079
B146: 18753 | C146: SAN VICENTE DEL CAGUÁN | D146: 18 | E146: CAQUETÁ | F146: INDUSTRIAS MANUFACTURERAS | G146: 1040 | H146: C | I146: Natural | J146: MICRO | K146: 500000
B147: 13001 | C147: CARTAGENA | D147: 13 | E147: BOLÍVAR | F147: TRANSPORTE Y ALMACENAMIENTO | G147: 5310 | H147: H | I147: Natural | J147: MICRO | K147: 300000
B148: 13688 | C148: SANTA ROSA DEL SUR | D148: 13 | E148: BOLÍVAR | F148: COMERCIO AL POR MAYOR Y AL POR MENOR; REPARACIÓN DE VEHÍCULOS AUTOMOTORES Y MOTOCICLETAS | G148: 4663 | H148: G | I148: Natural | J148: PEQUEÑA | K148: 750000
B149: 5001 | C149: MEDELLÍN | D149: 5 | E149: ANTIOQUIA | F149: INDUSTRIAS MANUFACTURERAS | G149: 2511 | H149: C | I149: Natural | J149: MICRO | K149: 1227131
B150: 5631 | C150: SABANETA | D150: 5 | E150: ANTIOQUIA | F150: ALOJAMIENTO Y SERVICIOS DE COMIDA | G150: 5630 | H150: I | I150: Natural | J150: MICRO | K150: 2063096
B151: 5001 | C151: MEDELLÍN | D151: 5 | E151: ANTIOQUIA | F151: INDUSTRIAS MANUFACTURERAS | G151: 1089 | H151: C | I151: Natural | J151: MICRO | K151: 800000
B152: 5001 | C152: MEDELLÍN | D152: 5 | E152: ANTIOQUIA | F152: ACTIVIDADES PROFESIONALES, CIENTÍFICAS Y TÉCNICAS | G152: 7420 | H152: M | I152: Natural | J152: MICRO | K152: 250000
B153: 23466 | C153: MONTELÍBANO | D153: 23 | E153: CÓRDOBA | F153: AGRICULTURA, GANADERÍA, CAZA, SILVICULTURA Y PESCA | G153: 141 | H153: A | I153: Natural | J153: MICRO | K153: 200000
B154: 5001 | C154: MEDELLÍN | D154: 5 | E154: ANTIOQUIA | F154: ALOJAMIENTO Y SERVICIOS DE COMIDA | G154: 5612 | H154: I | I154: Natural | J154: MICRO | K154: 2600000
B155: 5686 | C155: SANTA ROSA DE OSOS | D155: 5 | E155: ANTIOQUIA | F155: AGRICULTURA, GANADERÍA, CAZA, SILVICULTURA Y PESCA | G155: 141 | H155: A | I155: Natural | J155: MICRO | K155: 100000
B156: 5686 | C156: SANTA ROSA DE OSOS | D156: 5 | E156: ANTIOQUIA | F156: INDUSTRIAS MANUFACTURERAS | G156: 1610 | H156: C | I156: Natural | J156: MICRO | K156: 400000
B157: 5001 | C157: MEDELLÍN | D157: 5 | E157: ANTIOQUIA | F157: COMERCIO AL POR MAYOR Y AL POR MENOR; REPARACIÓN DE VEHÍCULOS AUTOMOTORES Y MOTOCICLETAS | G157: 4741 | H157: G | I157: Natural | J157: MICRO | K157: 1907900
B158: 5001 | C158: MEDELLÍN | D158: 5 | E158: ANTIOQUIA | F158: INDUSTRIAS MANUFACTURERAS | G158: 1081 | H158: C | I158: Natural | J158: PEQUEÑA | K158: 227131
B159: 50001 | C159: VILLAVICENCIO | D159: 50 | E159: META | F159: ALOJAMIENTO Y SERVICIOS DE COMIDA | G159: 5511 | H159: I | I159: Natural | J159: PEQUEÑA | K159: 550000
B160: 23001 | C160: MONTERÍA | D160: 23 | E160: CÓRDOBA | F160: ALOJAMIENTO Y SERVICIOS DE COMIDA | G160: 5611 | H160: I | I160: Natural | J160: PEQUEÑA | K160: 150000
B161: 5001 | C161: MEDELLÍN | D161: 5 | E161: ANTIOQUIA | F161: ACTIVIDADES FINANCIERAS Y DE SEGUROS | G161: 6495 | H161: K | I161: Natural | J161: MICRO | K161: 250000
B162: 5266 | C162: ENVIGADO | D162: 5 | E162: ANTIOQUIA | F162: COMERCIO AL POR MAYOR Y AL POR MENOR; REPARACIÓN DE VEHÍCULOS AUTOMOTORES Y MOTOCICLETAS | G162: 4620 | H162: G | I162: Natural | J162: MICRO | K162: 350000
B163: 47001 | C163: SANTA MARTA | D163: 47 | E163: MAGDALENA | F163: ALOJAMIENTO Y SERVICIOS DE COMIDA | G163: 5611 | H163: I | I163: Natural | J163: MICRO | K163: 3749374
B164: 5001 | C164: MEDELLÍN | D164: 5 | E164: ANTIOQUIA | F164: ALOJAMIENTO Y SERVICIOS DE COMIDA | G164: 5611 | H164: I | I164: Natural | J164: MICRO | K164: 250000
B165: 5631 | C165: SABANETA | D165: 5 | E165: ANTIOQUIA | F165: INDUSTRIAS MANUFACTURERAS | G165: 3110 | H165: C | I165: Natural | J165: PEQUEÑA | K165: 1200000
B166: 5001 | C166: MEDELLÍN | D166: 5 | E166: ANTIOQUIA | F166: COMERCIO AL POR MAYOR Y AL POR MENOR; REPARACIÓN DE VEHÍCULOS AUTOMOTORES Y MOTOCICLETAS | G166: 4530 | H166: G | I166: Natural | J166: MICRO | K166: 227131
B167: 5001 | C167: MEDELLÍN | D167: 5 | E167: ANTIOQUIA | F167: COMERCIO AL POR MAYOR Y AL POR MENOR; REPARACIÓN DE VEHÍCULOS AUTOMOTORES Y MOTOCICLETAS | G167: 4711 | H167: G | I167: Natural | J167: PEQUEÑA | K167: 750000
B168: 5368 | C168: JERICÓ | D168: 5 | E168: ANTIOQUIA | F168: INDUSTRIAS MANUFACTURERAS | G168: 1084 | H168: C | I168: Natural | J168: PEQUEÑA | K168: 12498126
B169: 5631 | C169: SABANETA | D169: 5 | E169: ANTIOQUIA | F169: COMERCIO AL POR MAYOR Y AL POR MENOR; REPARACIÓN DE VEHÍCULOS AUTOMOTORES Y MOTOCICLETAS | G169: 4541 | H169: G | I169: Natural | J169: MICRO | K169: 3108211
B170: 5001 | C170: MEDELLÍN | D170: 5 | E170: ANTIOQUIA | F170: COMERCIO AL POR MAYOR Y AL POR MENOR; REPARACIÓN DE VEHÍCULOS AUTOMOTORES Y MOTOCICLETAS | G170: 4723 | H170: G | I170: Natural | J170: MICRO | K170: 200000
B171: 5736 | C171: SEGOVIA | D171: 5 | E171: ANTIOQUIA | F171: COMERCIO AL POR MAYOR Y AL POR MENOR; REPARACIÓN DE VEHÍCULOS AUTOMOTORES Y MOTOCICLETAS | G171: 4723 | H171: G | I171: Natural | J171: MICRO | K171: 6275572
B172: 5837 | C172: TURBO | D172: 5 | E172: ANTIOQUIA | F172: COMERCIO AL POR MAYOR Y AL POR MENOR; REPARACIÓN DE VEHÍCULOS AUTOMOTORES Y MOTOCICLETAS | G172: 4761 | H172: G | I172: Natural | J172: PEQUEÑA | K172: 6061847
B173: 5001 | C173: MEDELLÍN | D173: 5 | E173: ANTIOQUIA | F173: ACTIVIDADES PROFESIONALES, CIENTÍFICAS Y TÉCNICAS | G173: 6920 | H173: M | I173: Natural | J173: MICRO | K173: 1226818
B174: 70001 | C174: SINCELEJO | D174: 70 | E174: SUCRE | F174: COMERCIO AL POR MAYOR Y AL POR MENOR; REPARACIÓN DE VEHÍCULOS AUTOMOTORES Y MOTOCICLETAS | G174: 4530 | H174: G | I174: Natural | J174: MICRO | K174: 1176818
B175: 8638 | C175: SABANALARGA | D175: 8 | E175: ATLÁNTICO | F175: COMERCIO AL POR MAYOR Y AL POR MENOR; REPARACIÓN DE VEHÍCULOS AUTOMOTORES Y MOTOCICLETAS | G175: 4773 | H175: G | I175: Natural | J175: PEQUEÑA | K175: 14498128
B176: 8001 | C176: BARRANQUILLA | D176: 8 | E176: ATLÁNTICO | F176: ACTIVIDADES DE ATENCIÓN DE LA SALUD HUMANA Y DE ASISTENCIA SOCIAL | G176: 8621 | H176: Q | I176: Natural | J176: MICRO | K176: 227131
B177: 8001 | C177: BARRANQUILLA | D177: 8 | E177: ATLÁNTICO | F177: COMERCIO AL POR MAYOR Y AL POR MENOR; REPARACIÓN DE VEHÍCULOS AUTOMOTORES Y MOTOCICLETAS | G177: 4751 | H177: G | I177: Natural | J177: MICRO | K177: 700000
B178: 13001 | C178: CARTAGENA | D178: 13 | E178: BOLÍVAR | F178: COMERCIO AL POR MAYOR Y AL POR MENOR; REPARACIÓN DE VEHÍCULOS AUTOMOTORES Y MOTOCICLETAS | G178: 4759 | H178: G | I178: Natural | J178: MICRO | K178: 2013409
B179: 15759 | C179: SOGAMOSO | D179: 15 | E179: BOYACÁ | F179: COMERCIO AL POR MAYOR Y AL POR MENOR; REPARACIÓN DE VEHÍCULOS AUTOMOTORES Y MOTOCICLETAS | G179: 4530 | H179: G | I179: Natural | J179: PEQUEÑA | K179: 2385655
B180: 15759 | C180: SOGAMOSO | D180: 15 | E180: BOYACÁ | F180: ALOJAMIENTO Y SERVICIOS DE COMIDA | G180: 5613 | H180: I | I180: Natural | J180: PEQUEÑA | K180: 227131
B181: 11001 | C181: BOGOTÁ, D.C. | D181: 11 | E181: BOGOTÁ, D.C. | F181: ACTIVIDADES PROFESIONALES, CIENTÍFICAS Y TÉCNICAS | G181: 6920 | H181: M | I181: Natural | J181: MICRO | K181: 2000000
B182: 85139 | C182: MANÍ | D182: 85 | E182: CASANARE | F182: INDUSTRIAS MANUFACTURERAS | G182: 1630 | H182: C | I182: Natural | J182: MICRO | K182: 635966
B183: 85430 | C183: TRINIDAD | D183: 85 | E183: CASANARE | F183: ALOJAMIENTO Y SERVICIOS DE COMIDA | G183: 5511 | H183: I | I183: Natural | J183: MICRO | K183: 681393
B184: 85001 | C184: YOPAL | D184: 85 | E184: CASANARE | F184: INDUSTRIAS MANUFACTURERAS | G184: 3312 | H184: C | I184: Natural | J184: PEQUEÑA | K184: 3450000
B185: 20011 | C185: AGUACHICA | D185: 20 | E185: CESAR | F185: INDUSTRIAS MANUFACTURERAS | G185: 2511 | H185: C | I185: Natural | J185: PEQUEÑA | K185: 9189917
B186: 63001 | C186: ARMENIA | D186: 63 | E186: QUINDÍO | F186: TRANSPORTE Y ALMACENAMIENTO | G186: 4923 | H186: H | I186: Natural | J186: MICRO | K186: 1281704
B187: 63001 | C187: ARMENIA | D187: 63 | E187: QUINDÍO | F187: TRANSPORTE Y ALMACENAMIENTO | G187: 4923 | H187: H | I187: Natural | J187: MICRO | K187: 795114
B188: 63001 | C188: ARMENIA | D188: 63 | E188: QUINDÍO | F188: AGRICULTURA, GANADERÍA, CAZA, SILVICULTURA Y PESCA | G188: 129 | H188: A | I188: Natural | J188: MICRO | K188: 150000
B189: 63001 | C189: ARMENIA | D189: 63 | E189: QUINDÍO | F189: TRANSPORTE Y ALMACENAMIENTO | G189: 4923 | H189: H | I189: Natural | J189: MICRO | K189: 317983
B190: 66170 | C190: DOSQUEBRADAS | D190: 66 | E190: RISARALDA | F190: TRANSPORTE Y ALMACENAMIENTO | G190: 4923 | H190: H | I190: Natural | J190: MICRO | K190: 900000
B191: 63001 | C191: ARMENIA | D191: 63 | E191: QUINDÍO | F191: INDUSTRIAS MANUFACTURERAS | G191: 1410 | H191: C | I191: Natural | J191: MICRO | K191: 1227131
B192: 52001 | C192: PASTO | D192: 52 | E192: NARIÑO | F192: TRANSPORTE Y ALMACENAMIENTO | G192: 4923 | H192: H | I192: Natural | J192: MICRO | K192: 227131
B193: 63001 | C193: ARMENIA | D193: 63 | E193: QUINDÍO | F193: COMERCIO AL POR MAYOR Y AL POR MENOR; REPARACIÓN DE VEHÍCULOS AUTOMOTORES Y MOTOCICLETAS | G193: 4719 | H193: G | I193: Natural | J193: MICRO | K193: 1303949
B194: 66001 | C194: PEREIRA | D194: 66 | E194: RISARALDA | F194: ALOJAMIENTO Y SERVICIOS DE COMIDA | G194: 5613 | H194: I | I194: Natural | J194: MICRO | K194: 2089604
B195: 66170 | C195: DOSQUEBRADAS | D195: 66 | E195: RISARALDA | F195: CONSTRUCCIÓN | G195: 4111 | H195: F | I195: Natural | J195: MEDIANA | K195: 22621693
B196: 66594 | C196: QUINCHÍA | D196: 66 | E196: RISARALDA | F196: COMERCIO AL POR MAYOR Y AL POR MENOR; REPARACIÓN DE VEHÍCULOS AUTOMOTORES Y MOTOCICLETAS | G196: 4723 | H196: G | I196: Natural | J196: MICRO | K196: 772245
B197: 66001 | C197: PEREIRA | D197: 66 | E197: RISARALDA | F197: EDUCACIÓN | G197: 8512 | H197: P | I197: Natural | J197: MICRO | K197: 1700000
B198: 66001 | C198: PEREIRA | D198: 66 | E198: RISARALDA | F198: TRANSPORTE Y ALMACENAMIENTO | G198: 5320 | H198: H | I198: Natural | J198: MICRO | K198: 400000
B199: 66001 | C199: PEREIRA | D199: 66 | E199: RISARALDA | F199: ALOJAMIENTO Y SERVICIOS DE COMIDA | G199: 5611 | H199: I | I199: Natural | J199: MICRO | K199: 350000
B200: 66001 | C200: PEREIRA | D200: 66 | E200: RISARALDA | F200: COMERCIO AL POR MAYOR Y AL POR MENOR; REPARACIÓN DE VEHÍCULOS AUTOMOTORES Y MOTOCICLETAS | G200: 4719 | H200: G | I200: Natural | J200: PEQUEÑA | K200: 250000
... 4300 more rows

Sheet insumos2 (hidden)
A1: TIPO DE IDENTIFICACION POSTULANTE | B1: NUMERO IDENTIFICACION EMPRESA | C1: CIUDAD - DIVIPOLA - R | D1: Municipio | E1: TOTAL COTIZANTES CON CONCEPTO DE CONFORMIDAD TOTAL A GIRAR | F1: TOTAL COTIZANTES CON CONCEPTO DE NO CONFORMIDAD | G1: TIPO DE PERSONA | H1: Departamento DIVIPOLA (P) | I1: Nombre dpto | J1: ESTADO_TOTAL A GIRAR | K1: Tamaño del Empleador | L1: STRCODPAR_CIIU_EMPRESA | M1: ACTIVIDAD ECONOMICA | N1: ACTIVIDAD ECONOMICA | O1: Division 3DC_TD 3D | P1: grupo especial 2DC_TD 3D | Q1: SEXO_F_ | R1: SEXO_M_ | S1: SEXO_ND_ | T1: Jovenes | U1: Mujeres 28 años | V1: Hombres 28 años | X1: Departamentos | Y1: empleadores | Z1: Departamentos | AA1: empleadores | AH1: TIPO DE IDENTIFICACION POSTULANTE | AI1: NUMERO IDENTIFICACION EMPRESA | AJ1: CIUDAD - DIVIPOLA - R | AK1: Municipio | AL1: TOTAL COTIZANTES CON CONCEPTO DE CONFORMIDAD TOTAL A GIRAR | AM1: TOTAL COTIZANTES CON CONCEPTO DE NO CONFORMIDAD | AN1: TIPO DE PERSONA | AO1: Departamento DIVIPOLA (P) | AP1: Nombre dpto | AQ1: ESTADO_TOTAL A GIRAR | AR1: Tamaño del Empleador | AS1: STRCODPAR_CIIU_EMPRESA | AT1: ACTIVIDAD ECONOMICA | AU1: ACTIVIDAD ECONOMICA | AV1: Division 3DC_TD 3D | AW1: grupo especial 2DC_TD 3D | AX1: SEXO_F_ | AY1: SEXO_M_ | AZ1: SEXO_ND_ | BA1: Jovenes | BB1: Mujeres 28 años | BC1: Hombres 28 años | BF1: Departamentos | BG1: empleadores | BH1: Departamentos | BI1: empleadores | BJ1: nomdpto | BL1: =BJ1 -> nomdpto | BM1: empleadores | BN1: empleados | BP1: codmunicipio | BQ1: aportantes | BR1: codmunicipio | BS1: aportantes | BT1: cod_dpto | BU1: nom_dpto | BV1: nom_mpio | BW1: empleadores | BX1: empleados | BZ1: Grupo | CA1: empleadores | CB1: empleados | CC1: Grupo | CD1: empleadores | CE1: empleados | CJ1: Jovenes | CK1: Mujeres > 28 años | CL1: Hombres> 28 años | CP1: Jovenes | CQ1: Mujeres > 28 años | CR1: Hombres> 28 años | CU1: Jovenes | CV1: Mujeres > 28 años | CW1: Hombres> 28 años
C2: 17380 | D2: LA DORADA | E2: 0 | F2: 0 | G2: Natural | H2: 17 | I2: CALDAS | J2: 0 | K2: MICRO | L2: 141 | M2: AGRICULTURA, GANADERÍA, CAZA, SILVICULTURA Y PESCA | N2: A | O2: Ganadería | P2: Ganadería | Q2: 0 | R2: 0 | S2: 0 | T2: 0 | U2: 0 | V2: 0 | X2: 68 | Y2: =COUNTIFS($J$2:$J$399999,"Aprobado con subsidio",$H$2:$H$399999,X2) -> 1023 | Z2: =_xlfn._xlws.SORT($X$2:$Y$34,2,-1) -> 11 | AA2: 6852 | AB2: =VLOOKUP(Z2,Hoja4!$A$29:$B$61,2,FALSE) -> Bogotá | AH2: =_xlfn._xlws.FILTER($A$2:$V$399999,$N$2:$N$399999=Visor!$N$4,"") -> 0 | AI2: 0 | AJ2: 5001 | AK2: MEDELLÍN | AL2: 0 | AM2: 1 | AN2: Natural | AO2: 5 | AP2: ANTIOQUIA | AQ2: 0 | AR2: MICRO | AS2: 3315 | AT2: INDUSTRIAS MANUFACTURERAS | AU2: C | AV2: Mantenimiento y reparación especializado de productos elaborados en metal y de maquinaria y equipo | AW2: Instalación, mantenimiento y reparación especializado de maquinaria y equipo | AX2: 0 | AY2: 0 | AZ2: 0 | BA2: 0 | BB2: 0 | BC2: 0 | BF2: 68 | BG2: =COUNTIFS($AQ$2:$AQ$399999,"Aprobado con subsidio",$AO$2:$AO$399999,BF2) -> 184 | BH2: =_xlfn._xlws.SORT($BF$2:$BG$34,2,-1) -> 11 | BI2: 920 | BJ2: =VLOOKUP(BH2,Hoja4!$A$29:$B$61,2,FALSE) -> Bogotá | BL2: =BJ2 -> Bogotá | BM2: =BI2 -> 920 | BN2: =SUMIFS($AL$2:$AL$399999,$AQ$2:$AQ$399999,"Aprobado con subsidio",$AO$2:$AO$399999,BH2) -> 15255 | BP2: =_xlfn.UNIQUE($AJ$2:$AJ$399999) -> 5001 | BQ2: =COUNTIFS($AQ$2:$AQ$399999,"Aprobado con subsidio",$AJ$2:$AJ$399999,BP2) -> 433 | BR2: =_xlfn._xlws.SORT($BP$2:$BQ$1122,2,-1) -> 11001 | BS2: 920 | BT2: =IF(LEN(BR2)=5,MID(BR2,1,2),MID(BR2,1,1))*1 -> 11 | BU2: =VLOOKUP(BT2,Hoja4!$A$29:$B$61,2,FALSE) -> Bogotá | BV2: =VLOOKUP(BR2,Hoja4!$D$29:$E$1150,2,FALSE) -> Bogotá, d.c. | BW2: =BS2 -> 920 | BX2: =SUMIFS($AL$2:$AL$399999,$AJ$2:$AJ$399999,BR2) -> 15255 | BZ2: =_xlfn.UNIQUE($AW$2:$AW$399999) -> Instalación, mantenimiento y reparación especializado de maquinaria y equipo | CA2: =COUNTIFS($AW$2:$AW$399999,BZ2,$AQ$2:$AQ$399999,"Aprobado con subsidio") -> 261 | CB2: =SUMIFS($AL$2:$AL$399999,$AW$2:$AW$399999,BZ2,$AQ$2:$AQ$399999,"Aprobado con subsidio") -> 2691 | CC2: =_xlfn._xlws.SORT(BZ2:CB26,2,-1) -> Elaboración de productos alimenticios | CD2: 621 | CE2: 12023 | CI2: =_xlfn.UNIQUE($M$2:$M$400000) -> AGRICULTURA, GANADERÍA, CAZA, SILVICULTURA Y PESCA | CJ2: =SUMIFS(T$2:T$400000,$M$2:$M$400000,$CI2,$J$2:$J$400000,"Aprobado con subsidio") -> 11050 | CK2: =SUMIFS(U$2:U$400000,$M$2:$M$400000,$CI2,$J$2:$J$400000,"Aprobado con subsidio") -> 1376 | CL2: 1409 | CO2: =_xlfn._xlws.SORT(CI2:CL23,2,-1) -> ACTIVIDADES DE SERVICIOS ADMINISTRATIVOS Y DE APOYO | CP2: 151798 | CQ2: 28628 | CR2: 9925 | CT2: =IF(CO23=0,"TOTAL",CO23) -> TOTAL | CU2: =IF(CT2="Total",SUM($CP$2:$CP$23)/SUM($CP$2:$CR$23),CP23/SUM($CP23:$CR23)) -> 0.7323484013 | CV2: =IF(CT2="Total",SUM($CQ$2:$CQ$23)/SUM($CP$2:$CR$23),CQ23/SUM($CP23:$CR23)) -> 0.1453314798 | CW2: =IF(CT2="Total",SUM($CR$2:$CR$23)/SUM($CP$2:$CR$23),CR23/SUM($CP23:$CR23)) -> 0.1223201189
C3: 68001 | D3: BUCARAMANGA | E3: 0 | F3: 0 | G3: Natural | H3: 68 | I3: SANTANDER | J3: 0 | K3: 0 | L3: 4771 | M3: COMERCIO AL POR MAYOR Y AL POR MENOR; REPARACIÓN DE VEHÍCULOS AUTOMOTORES Y MOTOCICLETAS | N3: G | O3: Comercio al por menor de otros productos en establecimientos especializados | P3: Comercio al por menor de otros productos en establecimientos especializados | Q3: 0 | R3: 0 | S3: 0 | T3: 0 | U3: 0 | V3: 0 | X3: 13 | Y3: =COUNTIFS($J$2:$J$399999,"Aprobado con subsidio",$H$2:$H$399999,X3) -> 409 | Z3: 5 | AA3: 4303 | AB3: =VLOOKUP(Z3,Hoja4!$A$29:$B$61,2,FALSE) -> Antioquia | AH3: 0 | AI3: 0 | AJ3: 5615 | AK3: RIONEGRO | AL3: 0 | AM3: 0 | AN3: Natural | AO3: 5 | AP3: ANTIOQUIA | AQ3: 0 | AR3: PEQUEÑA | AS3: 2012 | AT3: INDUSTRIAS MANUFACTURERAS | AU3: C | AV3: Fabricación de sustancias químicas básicas, abonos y compuestos inorgánicos nitrogenados, plásticos y caucho sintético en formas primarias | AW3: Fabricación de sustancias y productos químicos | AX3: 0 | AY3: 0 | AZ3: 0 | BA3: 0 | BB3: 0 | BC3: 0 | BF3: 13 | BG3: 33 | BH3: 5 | BI3: 892 | BJ3: =VLOOKUP(BH3,Hoja4!$A$29:$B$61,2,FALSE) -> Antioquia | BL3: =BJ3 -> Antioquia | BM3: =BI3 -> 892 | BN3: 17086 | BP3: 5615 | BQ3: 36 | BR3: 5001 | BS3: 433 | BT3: =IF(LEN(BR3)=5,MID(BR3,1,2),MID(BR3,1,1))*1 -> 5 | BU3: =VLOOKUP(BT3,Hoja4!$A$29:$B$61,2,FALSE) -> Antioquia | BV3: =VLOOKUP(BR3,Hoja4!$D$29:$E$1150,2,FALSE) -> Medellín | BW3: 433 | BX3: 8606 | BZ3: Fabricación de sustancias y productos químicos | CA3: 138 | CB3: 1475 | CC3: Confección de prendas de vestir | CD3: 600 | CE3: 16470 | CI3: COMERCIO AL POR MAYOR Y AL POR MENOR; REPARACIÓN DE VEHÍCULOS AUTOMOTORES Y MOTOCICLETAS | CJ3: =SUMIFS(T$2:T$400000,$M$2:$M$400000,$CI3,$J$2:$J$400000,"Aprobado con subsidio") -> 40228 | CK3: 7270 | CL3: 4631 | CO3: COMERCIO AL POR MAYOR Y AL POR MENOR; REPARACIÓN DE VEHÍCULOS AUTOMOTORES Y MOTOCICLETAS | CP3: 40228 | CQ3: 7270 | CR3: 4631 | CT3: =IF(CO2=0,"Total",CO2) -> ACTIVIDADES DE SERVICIOS ADMINISTRATIVOS Y DE APOYO | CU3: =IF(CT3="Total",SUM($CP$2:$CP$23)/SUM($CP$2:$CR$23),CP2/SUM($CP2:$CR2)) -> 0.797463633 | CV3: =IF(CT3="Total",SUM($CQ$2:$CQ$23)/SUM($CP$2:$CR$23),CQ2/SUM($CP2:$CR2)) -> 0.1503958477 | CW3: =IF(CT3="Total",SUM($CR$2:$CR$23)/SUM($CP$2:$CR$23),CR2/SUM($CP2:$CR2)) -> 0.05214051936
C4: 5001 | D4: MEDELLÍN | E4: 2 | F4: 1 | G4: Natural | H4: 5 | I4: ANTIOQUIA | J4: Aprobado con subsidio | K4: MICRO | L4: 141 | M4: AGRICULTURA, GANADERÍA, CAZA, SILVICULTURA Y PESCA | N4: A | O4: Ganadería | P4: Ganadería | Q4: 0 | R4: 2 | S4: 0 | T4: 2 | U4: 0 | V4: 0 | X4: 15 | Y4: 299 | Z4: 76 | AA4: 1890 | AB4: =VLOOKUP(Z4,Hoja4!$A$29:$B$61,2,FALSE) -> Valle del cauca | AH4: 0 | AI4: 0 | AJ4: 11001 | AK4: BOGOTÁ, D.C. | AL4: 2 | AM4: 1 | AN4: Natural | AO4: 11 | AP4: BOGOTÁ, D.C. | AQ4: Aprobado con subsidio | AR4: MICRO | AS4: 1313 | AT4: INDUSTRIAS MANUFACTURERAS | AU4: C | AV4: Preparación, hilatura, tejeduría y acabado de productos textiles | AW4: Fabricación de productos textiles | AX4: 2 | AY4: 0 | AZ4: 0 | BA4: 1 | BB4: 1 | BC4: 0 | BF4: 15 | BG4: 29 | BH4: 76 | BI4: 323 | BJ4: =VLOOKUP(BH4,Hoja4!$A$29:$B$61,2,FALSE) -> Valle del cauca | BL4: Valle del cauca | BM4: 323 | BN4: 6425 | BP4: 11001 | BQ4: 920 | BR4: 76001 | BS4: 200 | BT4: 76 | BU4: =VLOOKUP(BT4,Hoja4!$A$29:$B$61,2,FALSE) -> Valle del cauca | BV4: =VLOOKUP(BR4,Hoja4!$D$29:$E$1150,2,FALSE) -> Cali | BW4: 200 | BX4: 2764 | BZ4: Fabricación de productos textiles | CA4: 138 | CB4: 2535 | CC4: Instalación, mantenimiento y reparación especializado de maquinaria y equipo | CD4: 261 | CE4: 2691 | CI4: INDUSTRIAS MANUFACTURERAS | CJ4: 39181 | CK4: 7854 | CL4: 5908 | CO4: INDUSTRIAS MANUFACTURERAS | CP4: 39181 | CQ4: 7854 | CR4: 5908 | CT4: COMERCIO AL POR MAYOR Y AL POR MENOR; REPARACIÓN DE VEHÍCULOS AUTOMOTORES Y MOTOCICLETAS | CU4: 0.7717009726 | CV4: 0.13946172 | CW4: 0.08883730745
C5: 41001 | D5: NEIVA | E5: 0 | F5: 0 | G5: Natural | H5: 41 | I5: HUILA | J5: 0 | K5: 0 | L5: 4773 | M5: COMERCIO AL POR MAYOR Y AL POR MENOR; REPARACIÓN DE VEHÍCULOS AUTOMOTORES Y MOTOCICLETAS | N5: G | O5: Comercio al por menor de otros productos en establecimientos especializados | P5: Comercio al por menor de otros productos en establecimientos especializados | Q5: 0 | R5: 0 | S5: 0 | T5: 0 | U5: 0 | V5: 0 | X5: 5 | Y5: 4303 | Z5: 68 | AA5: 1023 | AB5: =VLOOKUP(Z5,Hoja4!$A$29:$B$61,2,FALSE) -> Santander | AH5: 0 | AI5: 0 | AJ5: 11001 | AK5: BOGOTÁ, D.C. | AL5: 0 | AM5: 0 | AN5: Natural | AO5: 11 | AP5: BOGOTÁ, D.C. | AQ5: 0 | AR5: MICRO | AS5: 2711 | AT5: INDUSTRIAS MANUFACTURERAS | AU5: C | AV5: Fabricación de motores, generadores y transformadores eléctricos y de aparatos de distribución y control de la energía eléctrica | AW5: Fabricación de aparatos y equipo eléctrico | AX5: 0 | AY5: 0 | AZ5: 0 | BA5: 0 | BB5: 0 | BC5: 0 | BF5: 5 | BG5: 892 | BH5: 25 | BI5: 198 | BJ5: =VLOOKUP(BH5,Hoja4!$A$29:$B$61,2,FALSE) -> Cundinamarca | BL5: Cundinamarca | BM5: 198 | BN5: 2491 | BP5: 25875 | BQ5: 2 | BR5: 5360 | BS5: 124 | BT5: 5 | BU5: =VLOOKUP(BT5,Hoja4!$A$29:$B$61,2,FALSE) -> Antioquia | BV5: =VLOOKUP(BR5,Hoja4!$D$29:$E$1150,2,FALSE) -> Itagüí | BW5: 124 | BX5: 1737 | BZ5: Fabricación de aparatos y equipo eléctrico | CA5: 55 | CB5: 1324 | CC5: Fabricación de productos elaborados de metal, excepto maquinaria y equipo | CD5: 256 | CE5: 2583 | CI5: ALOJAMIENTO Y SERVICIOS DE COMIDA | CJ5: 19466 | CK5: 5196 | CL5: 2337 | CO5: CONSTRUCCIÓN | CP5: 25579 | CQ5: 4280 | CR5: 21476 | CT5: INDUSTRIAS MANUFACTURERAS | CU5: 0.7400600646 | CV5: 0.1483482236 | CW5: 0.1115917118
C6: 25307 | D6: GIRARDOT | E6: 1 | F6: 3 | G6: Natural | H6: 25 | I6: CUNDINAMARCA | J6: Aprobado con subsidio | K6: MICRO | L6: 4530 | M6: COMERCIO AL POR MAYOR Y AL POR MENOR; REPARACIÓN DE VEHÍCULOS AUTOMOTORES Y MOTOCICLETAS | N6: G | O6: Comercio de partes, piezas (autopartes) y accesorios (lujos) para vehículos automotores | P6: Comercio de partes, piezas (autopartes) y accesorios (lujos) para vehículos automotores | Q6: 1 | R6: 0 | S6: 0 | T6: 1 | U6: 0 | V6: 0 | X6: 76 | Y6: 1890 | Z6: 25 | AA6: 961 | AB6: =VLOOKUP(Z6,Hoja4!$A$29:$B$61,2,FALSE) -> Cundinamarca | AH6: 0 | AI6: 0 | AJ6: 11001 | AK6: BOGOTÁ, D.C. | AL6: 0 | AM6: 0 | AN6: Natural | AO6: 11 | AP6: BOGOTÁ, D.C. | AQ6: 0 | AR6: PEQUEÑA | AS6: 1513 | AT6: INDUSTRIAS MANUFACTURERAS | AU6: C | AV6: Curtido y recurtido de cueros; fabricación de artículos de viaje, bolsos de mano y artículos similares, y fabricación de artículos de talabartería y guarnicionería; adobo y teñido de pieles | AW6: Curtido y recurtido de cueros; fabricación de calzado; fabricación de artículos de viaje, maletas, bolsos de mano y artículos similares, y fabricación de artículos de talabartería y guarnicionería; adobo y teñido de pieles | AX6: 0 | AY6: 0 | AZ6: 0 | BA6: 0 | BB6: 0 | BC6: 0 | BF6: 76 | BG6: 323 | BH6: 68 | BI6: 184 | BJ6: =VLOOKUP(BH6,Hoja4!$A$29:$B$61,2,FALSE) -> Santander | BL6: Santander | BM6: 184 | BN6: 1747 | BP6: 5360 | BQ6: 124 | BR6: 68001 | BS6: 114 | BT6: 68 | BU6: =VLOOKUP(BT6,Hoja4!$A$29:$B$61,2,FALSE) -> Santander | BV6: =VLOOKUP(BR6,Hoja4!$D$29:$E$1150,2,FALSE) -> Bucaramanga | BW6: 114 | BX6: 1232 | BZ6: Curtido y recurtido de cueros; fabricación de calzado; fabricación de artículos de viaje, maletas, bolsos de mano y artículos similares, y fabricación de artículos de talabartería y guarnicionería; adobo y teñido de pieles | CA6: 93 | CB6: 1374 | CC6: Fabricación de productos de caucho y de plástico | CD6: 179 | CE6: 2561 | CI6: TRANSPORTE Y ALMACENAMIENTO | CJ6: 14540 | CK6: 2530 | CL6: 6518 | CO6: INFORMACIÓN Y COMUNICACIONES | CP6: 22368 | CQ6: 2975 | CR6: 3085 | CT6: CONSTRUCCIÓN | CU6: 0.49827603 | CV6: 0.08337391643 | CW6: 0.4183500536
C7: 5001 | D7: MEDELLÍN | E7: 0 | F7: 1 | G7: Natural | H7: 5 | I7: ANTIOQUIA | J7: 0 | K7: MICRO | L7: 3315 | M7: INDUSTRIAS MANUFACTURERAS | N7: C | O7: Mantenimiento y reparación especializado de productos elaborados en metal y de maquinaria y equipo | P7: Instalación, mantenimiento y reparación especializado de maquinaria y equipo | Q7: 0 | R7: 0 | S7: 0 | T7: 0 | U7: 0 | V7: 0 | X7: 54 | Y7: 535 | Z7: 8 | AA7: 807 | AB7: =VLOOKUP(Z7,Hoja4!$A$29:$B$61,2,FALSE) -> Atlántico | AH7: 0 | AI7: 0 | AJ7: 25875 | AK7: VILLETA | AL7: 1 | AM7: 0 | AN7: Natural | AO7: 25 | AP7: CUNDINAMARCA | AQ7: Aprobado con subsidio | AR7: PEQUEÑA | AS7: 1081 | AT7: INDUSTRIAS MANUFACTURERAS | AU7: C | AV7: Elaboración de otros productos alimenticios | AW7: Elaboración de productos alimenticios | AX7: 1 | AY7: 0 | AZ7: 0 | BA7: 1 | BB7: 0 | BC7: 0 | BF7: 54 | BG7: 85 | BH7: 8 | BI7: 109 | BJ7: =VLOOKUP(BH7,Hoja4!$A$29:$B$61,2,FALSE) -> Atlántico | BL7: Atlántico | BM7: 109 | BN7: 2568 | BP7: 15176 | BQ7: 1 | BR7: 8001 | BS7: 91 | BT7: 8 | BU7: =VLOOKUP(BT7,Hoja4!$A$29:$B$61,2,FALSE) -> Atlántico | BV7: =VLOOKUP(BR7,Hoja4!$D$29:$E$1150,2,FALSE) -> Barranquilla | BW7: 91 | BX7: 2042 | BZ7: Elaboración de productos alimenticios | CA7: 621 | CB7: 12023 | CC7: Fabricación de sustancias y productos químicos | CD7: 138 | CE7: 1475 | CI7: OTRAS | CJ7: 7 | CK7: 4 | CL7: 11 | CO7: ALOJAMIENTO Y SERVICIOS DE COMIDA | CP7: 19466 | CQ7: 5196 | CR7: 2337 | CT7: INFORMACIÓN Y COMUNICACIONES | CU7: 0.786829886 | CV7: 0.1046503447 | CW7: 0.1085197692
C8: 5001 | D8: MEDELLÍN | E8: 0 | F8: 0 | G8: Natural | H8: 5 | I8: ANTIOQUIA | J8: 0 | K8: MICRO | L8: 5611 | M8: ALOJAMIENTO Y SERVICIOS DE COMIDA | N8: I | O8: Actividades de restaurantes, cafeterías y servicio móvil de comidas | P8: Actividades de restaurantes, cafeterías y servicio móvil de comidas | Q8: 0 | R8: 0 | S8: 0 | T8: 0 | U8: 0 | V8: 0 | X8: 11 | Y8: 6852 | Z8: 54 | AA8: 535 | AB8: =VLOOKUP(Z8,Hoja4!$A$29:$B$61,2,FALSE) -> Norte de stder | AH8: 0 | AI8: 0 | AJ8: 5360 | AK8: ITAGUI | AL8: 0 | AM8: 0 | AN8: Natural | AO8: 5 | AP8: ANTIOQUIA | AQ8: 0 | AR8: MICRO | AS8: 1921 | AT8: INDUSTRIAS MANUFACTURERAS | AU8: C | AV8: Fabricación de productos de la refinación del petróleo | AW8: Coquización, fabricación de productos de la refinación del petróleo y actividad de mezcla de combustibles | AX8: 0 | AY8: 0 | AZ8: 0 | BA8: 0 | BB8: 0 | BC8: 0 | BF8: 11 | BG8: 920 | BH8: 54 | BI8: 85 | BJ8: =VLOOKUP(BH8,Hoja4!$A$29:$B$61,2,FALSE) -> Norte de stder | BL8: Norte de stder | BM8: 85 | BN8: 757 | BP8: 15759 | BQ8: 6 | BR8: 54001 | BS8: 67 | BT8: 54 | BU8: =VLOOKUP(BT8,Hoja4!$A$29:$B$61,2,FALSE) -> Norte de stder | BV8: =VLOOKUP(BR8,Hoja4!$D$29:$E$1150,2,FALSE) -> Cucuta | BW8: 67 | BX8: 606 | BZ8: Coquización, fabricación de productos de la refinación del petróleo y actividad de mezcla de combustibles | CA8: 7 | CB8: 48 | CC8: Fabricación de productos textiles | CD8: 138 | CE8: 2535 | CI8: EDUCACIÓN | CJ8: 4661 | CK8: 2735 | CL8: 367 | CO8: ACTIVIDADES DE ATENCIÓN DE LA SALUD HUMANA Y DE ASISTENCIA SOCIAL | CP8: 18733 | CQ8: 4973 | CR8: 867 | CT8: ALOJAMIENTO Y SERVICIOS DE COMIDA | CU8: 0.7209896663 | CV8: 0.1924515723 | CW8: 0.08655876144
C9: 5001 | D9: MEDELLÍN | E9: 2 | F9: 0 | G9: Natural | H9: 5 | I9: ANTIOQUIA | J9: Aprobado con subsidio | K9: MICRO | L9: 5611 | M9: ALOJAMIENTO Y SERVICIOS DE COMIDA | N9: I | O9: Actividades de restaurantes, cafeterías y servicio móvil de comidas | P9: Actividades de restaurantes, cafeterías y servicio móvil de comidas | Q9: 0 | R9: 2 | S9: 0 | T9: 2 | U9: 0 | V9: 0 | X9: 66 | Y9: 491 | Z9: 66 | AA9: 491 | AB9: =VLOOKUP(Z9,Hoja4!$A$29:$B$61,2,FALSE) -> Risaralda | AH9: 0 | AI9: 0 | AJ9: 5001 | AK9: MEDELLÍN | AL9: 2 | AM9: 0 | AN9: Natural | AO9: 5 | AP9: ANTIOQUIA | AQ9: Aprobado con subsidio | AR9: MICRO | AS9: 3240 | AT9: INDUSTRIAS MANUFACTURERAS | AU9: C | AV9: Fabricación de juegos, juguetes y rompecabezas | AW9: Otras industrias manufactureras | AX9: 1 | AY9: 1 | AZ9: 0 | BA9: 1 | BB9: 0 | BC9: 1 | BF9: 66 | BG9: 85 | BH9: 66 | BI9: 85 | BJ9: =VLOOKUP(BH9,Hoja4!$A$29:$B$61,2,FALSE) -> Risaralda | BL9: Risaralda | BM9: 85 | BN9: 1780 | BP9: 18205 | BQ9: 1 | BR9: 17001 | BS9: 53 | BT9: 17 | BU9: =VLOOKUP(BT9,Hoja4!$A$29:$B$61,2,FALSE) -> Caldas | BV9: =VLOOKUP(BR9,Hoja4!$D$29:$E$1150,2,FALSE) -> Manizales | BW9: 53 | BX9: 621 | BZ9: Otras industrias manufactureras | CA9: 110 | CB9: 1180 | CC9: Otras industrias manufactureras | CD9: 110 | CE9: 1180 | CI9: CONSTRUCCIÓN | CJ9: 25579 | CK9: 4280 | CL9: 21476 | CO9: ACTIVIDADES PROFESIONALES, CIENTÍFICAS Y TÉCNICAS | CP9: 15871 | CQ9: 3452 | CR9: 4759 | CT9: ACTIVIDADES DE ATENCIÓN DE LA SALUD HUMANA Y DE ASISTENCIA SOCIAL | CU9: 0.7623407805 | CV9: 0.2023765922 | CW9: 0.03528262727
C10: 11001 | D10: BOGOTÁ, D.C. | E10: 3 | F10: 5 | G10: Natural | H10: 11 | I10: BOGOTÁ, D.C. | J10: Aprobado con subsidio | K10: MICRO | L10: 4663 | M10: COMERCIO AL POR MAYOR Y AL POR MENOR; REPARACIÓN DE VEHÍCULOS AUTOMOTORES Y MOTOCICLETAS | N10: G | O10: Comercio al por mayor especializado de otros productos | P10: Comercio al por mayor especializado de otros productos | Q10: 0 | R10: 3 | S10: 0 | T10: 3 | U10: 0 | V10: 0 | X10: 52 | Y10: 275 | Z10: 13 | AA10: 409 | AB10: =VLOOKUP(Z10,Hoja4!$A$29:$B$61,2,FALSE) -> Bolívar | AH10: 0 | AI10: 0 | AJ10: 11001 | AK10: BOGOTÁ, D.C. | AL10: 0 | AM10: 0 | AN10: Natural | AO10: 11 | AP10: BOGOTÁ, D.C. | AQ10: 0 | AR10: MICRO | AS10: 1410 | AT10: INDUSTRIAS MANUFACTURERAS | AU10: C | AV10: Confección de prendas de vestir, excepto prendas de piel | AW10: Confección de prendas de vestir | AX10: 0 | AY10: 0 | AZ10: 0 | BA10: 0 | BB10: 0 | BC10: 0 | BF10: 52 | BG10: 24 | BH10: 17 | BI10: 62 | BJ10: =VLOOKUP(BH10,Hoja4!$A$29:$B$61,2,FALSE) -> Caldas | BL10: Caldas | BM10: 62 | BN10: 686 | BP10: 52560 | BQ10: 1 | BR10: 5380 | BS10: 48 | BT10: 5 | BU10: =VLOOKUP(BT10,Hoja4!$A$29:$B$61,2,FALSE) -> Antioquia | BV10: =VLOOKUP(BR10,Hoja4!$D$29:$E$1150,2,FALSE) -> La estrella | BW10: 48 | BX10: 622 | BZ10: Confección de prendas de vestir | CA10: 600 | CB10: 16470 | CC10: Fabricación de muebles, colchones y somieres | CD10: 108 | CE10: 1058 | CI10: ACTIVIDADES PROFESIONALES, CIENTÍFICAS Y TÉCNICAS | CJ10: 15871 | CK10: 3452 | CL10: 4759 | CO10: TRANSPORTE Y ALMACENAMIENTO | CP10: 14540 | CQ10: 2530 | CR10: 6518 | CT10: ACTIVIDADES PROFESIONALES, CIENTÍFICAS Y TÉCNICAS | CU10: 0.6590399468 | CV10: 0.1433435761 | CW10: 0.197616477
C11: 15176 | D11: CHIQUINQUIRÁ | E11: 3 | F11: 1 | G11: Natural | H11: 15 | I11: BOYACÁ | J11: Aprobado con subsidio | K11: MICRO | L11: 4752 | M11: COMERCIO AL POR MAYOR Y AL POR MENOR; REPARACIÓN DE VEHÍCULOS AUTOMOTORES Y MOTOCICLETAS | N11: G | O11: Comercio al por menor de otros enseres domésticos en establecimientos especializados | P11: Comercio al por menor de otros enseres domésticos en establecimientos especializados | Q11: 1 | R11: 2 | S11: 0 | T11: 2 | U11: 0 | V11: 1 | X11: 19 | Y11: 129 | Z11: 73 | AA11: 377 | AB11: =VLOOKUP(Z11,Hoja4!$A$29:$B$61,2,FALSE) -> Tolima | AH11: 0 | AI11: 0 | AJ11: 15176 | AK11: CHIQUINQUIRÁ | AL11: 4 | AM11: 8 | AN11: Natural | AO11: 15 | AP11: BOYACÁ | AQ11: Aprobado con subsidio | AR11: MICRO | AS11: 1081 | AT11: INDUSTRIAS MANUFACTURERAS | AU11: C | AV11: Elaboración de otros productos alimenticios | AW11: Elaboración de productos alimenticios | AX11: 2 | AY11: 2 | AZ11: 0 | BA11: 4 | BB11: 0 | BC11: 0 | BF11: 19 | BG11: 20 | BH11: 73 | BI11: 43 | BJ11: =VLOOKUP(BH11,Hoja4!$A$29:$B$61,2,FALSE) -> Tolima | BL11: Tolima | BM11: 43 | BN11: 491 | BP11: 54001 | BQ11: 67 | BR11: 76892 | BS11: 46 | BT11: 76 | BU11: =VLOOKUP(BT11,Hoja4!$A$29:$B$61,2,FALSE) -> Valle del cauca | BV11: =VLOOKUP(BR11,Hoja4!$D$29:$E$1150,2,FALSE) -> Yumbo | BW11: 46 | BX11: 2276 | BZ11: Fabricación de vehículos automotores, remolques y semirremolques | CA11: 48 | CB11: 656 | CC11: Actividades de impresión y de producción de copias a partir de grabaciones originales | CD11: 97 | CE11: 563 | CI11: ACTIVIDADES DE SERVICIOS ADMINISTRATIVOS Y DE APOYO | CJ11: 151798 | CK11: 28628 | CL11: 9925 | CO11: AGRICULTURA, GANADERÍA, CAZA, SILVICULTURA Y PESCA | CP11: 11050 | CQ11: 1376 | CR11: 1409 | CT11: TRANSPORTE Y ALMACENAMIENTO | CU11: 0.6164151263 | CV11: 0.1072579278 | CW11: 0.2763269459
C12: 76001 | D12: CALI | E12: 1 | F12: 0 | G12: Natural | H12: 76 | I12: VALLE DEL CAUCA | J12: Aprobado con subsidio | K12: MICRO | L12: 4774 | M12: COMERCIO AL POR MAYOR Y AL POR MENOR; REPARACIÓN DE VEHÍCULOS AUTOMOTORES Y MOTOCICLETAS | N12: G | O12: Comercio al por menor de otros productos en establecimientos especializados | P12: Comercio al por menor de otros productos en establecimientos especializados | Q12: 0 | R12: 1 | S12: 0 | T12: 1 | U12: 0 | V12: 0 | X12: 47 | Y12: 194 | Z12: 17 | AA12: 373 | AB12: =VLOOKUP(Z12,Hoja4!$A$29:$B$61,2,FALSE) -> Caldas | AH12: 0 | AI12: 0 | AJ12: 11001 | AK12: BOGOTÁ, D.C. | AL12: 2 | AM12: 0 | AN12: Natural | AO12: 11 | AP12: BOGOTÁ, D.C. | AQ12: Aprobado con subsidio | AR12: MICRO | AS12: 2920 | AT12: INDUSTRIAS MANUFACTURERAS | AU12: C | AV12: Fabricación de carrocerías para vehículos automotores; fabricación de remolques y semirremolques | AW12: Fabricación de vehículos automotores, remolques y semirremolques | AX12: 2 | AY12: 0 | AZ12: 0 | BA12: 0 | BB12: 2 | BC12: 0 | BF12: 47 | BG12: 13 | BH12: 13 | BI12: 33 | BJ12: =VLOOKUP(BH12,Hoja4!$A$29:$B$61,2,FALSE) -> Bolívar | BL12: Bolívar | BM12: 33 | BN12: 888 | BP12: 68001 | BQ12: 114 | BR12: 66170 | BS12: 43 | BT12: 66 | BU12: =VLOOKUP(BT12,Hoja4!$A$29:$B$61,2,FALSE) -> Risaralda | BV12: =VLOOKUP(BR12,Hoja4!$D$29:$E$1150,2,FALSE) -> Dosquebradas | BW12: 43 | BX12: 935 | BZ12: Fabricación de otros productos minerales no metálicos | CA12: 79 | CB12: 1311 | CC12: Curtido y recurtido de cueros; fabricación de calzado; fabricación de artículos de viaje, maletas, bolsos de mano y artículos similares, y fabricación de artículos de talabartería y guarnicionería; adobo y teñido de pieles | CD12: 93 | CE12: 1374 | CI12: ACTIVIDADES ARTÍSTICAS, DE ENTRETENIMIENTO Y RECREACIÓN | CJ12: 5210 | CK12: 1341 | CL12: 356 | CO12: ACTIVIDADES ARTÍSTICAS, DE ENTRETENIMIENTO Y RECREACIÓN | CP12: 5210 | CQ12: 1341 | CR12: 356 | CT12: AGRICULTURA, GANADERÍA, CAZA, SILVICULTURA Y PESCA | CU12: 0.7986989519 | CV12: 0.09945789664 | CW12: 0.1018431514
C13: 76001 | D13: CALI | E13: 2 | F13: 1 | G13: Natural | H13: 76 | I13: VALLE DEL CAUCA | J13: Aprobado con subsidio | K13: MICRO | L13: 5511 | M13: ALOJAMIENTO Y SERVICIOS DE COMIDA | N13: I | O13: Actividades de alojamiento de estancias cortas | P13: Actividades de alojamiento de estancias cortas | Q13: 2 | R13: 0 | S13: 0 | T13: 2 | U13: 0 | V13: 0 | X13: 50 | Y13: 349 | Z13: 50 | AA13: 349 | AB13: =VLOOKUP(Z13,Hoja4!$A$29:$B$61,2,FALSE) -> Meta | AH13: 0 | AI13: 0 | AJ13: 15759 | AK13: SOGAMOSO | AL13: 1 | AM13: 2 | AN13: Natural | AO13: 15 | AP13: BOYACÁ | AQ13: Aprobado con subsidio | AR13: PEQUEÑA | AS13: 2395 | AT13: INDUSTRIAS MANUFACTURERAS | AU13: C | AV13: Fabricación de productos minerales no metálicos n.c.p. | AW13: Fabricación de otros productos minerales no metálicos | AX13: 0 | AY13: 1 | AZ13: 0 | BA13: 0 | BB13: 0 | BC13: 1 | BF13: 50 | BG13: 21 | BH13: 63 | BI13: 31 | BJ13: =VLOOKUP(BH13,Hoja4!$A$29:$B$61,2,FALSE) -> Quindío | BL13: Quindío | BM13: 31 | BN13: 423 | BP13: 68861 | BQ13: 2 | BR13: 5266 | BS13: 42 | BT13: 5 | BU13: =VLOOKUP(BT13,Hoja4!$A$29:$B$61,2,FALSE) -> Antioquia | BV13: =VLOOKUP(BR13,Hoja4!$D$29:$E$1150,2,FALSE) -> Envigado | BW13: 42 | BX13: 1018 | BZ13: Fabricación de productos elaborados de metal, excepto maquinaria y equipo | CA13: 256 | CB13: 2583 | CC13: Fabricación de maquinaria y equipo n.c.p. | CD13: 84 | CE13: 1053 | CI13: ACTIVIDADES INMOBILIARIAS | CJ13: 1270 | CK13: 476 | CL13: 340 | CO13: EDUCACIÓN | CP13: 4661 | CQ13: 2735 | CR13: 367 | CT13: ACTIVIDADES ARTÍSTICAS, DE ENTRETENIMIENTO Y RECREACIÓN | CU13: 0.7543072246 | CV13: 0.1941508614 | CW13: 0.051541914
C14: 41001 | D14: NEIVA | E14: 4 | F14: 0 | G14: Natural | H14: 41 | I14: HUILA | J14: Aprobado con subsidio | K14: MICRO | L14: 4729 | M14: COMERCIO AL POR MAYOR Y AL POR MENOR; REPARACIÓN DE VEHÍCULOS AUTOMOTORES Y MOTOCICLETAS | N14: G | O14: Comercio al por menor de alimentos (víveres en general), bebidas y tabaco, en establecimientos especializados | P14: Comercio al por menor de alimentos (víveres en general), bebidas y tabaco, en establecimientos especializados | Q14: 4 | R14: 0 | S14: 0 | T14: 1 | U14: 3 | V14: 0 | X14: 63 | Y14: 255 | Z14: 41 | AA14: 302 | AB14: =VLOOKUP(Z14,Hoja4!$A$29:$B$61,2,FALSE) -> Huila | AH14: 0 | AI14: 0 | AJ14: 11001 | AK14: BOGOTÁ, D.C. | AL14: 0 | AM14: 0 | AN14: Natural | AO14: 11 | AP14: BOGOTÁ, D.C. | AQ14: 0 | AR14: PEQUEÑA | AS14: 1410 | AT14: INDUSTRIAS MANUFACTURERAS | AU14: C | AV14: Confección de prendas de vestir, excepto prendas de piel | AW14: Confección de prendas de vestir | AX14: 0 | AY14: 0 | AZ14: 0 | BA14: 0 | BB14: 0 | BC14: 0 | BF14: 63 | BG14: 31 | BH14: 15 | BI14: 29 | BJ14: =VLOOKUP(BH14,Hoja4!$A$29:$B$61,2,FALSE) -> Boyacá | BL14: Boyacá | BM14: 29 | BN14: 439 | BP14: 76001 | BQ14: 200 | BR14: 5631 | BS14: 41 | BT14: 5 | BU14: =VLOOKUP(BT14,Hoja4!$A$29:$B$61,2,FALSE) -> Antioquia | BV14: =VLOOKUP(BR14,Hoja4!$D$29:$E$1150,2,FALSE) -> Sabaneta | BW14: 41 | BX14: 918 | BZ14: Transformación de la madera y fabricación de productos de madera y de corcho, excepto muebles; fabricación de artículos de cestería y espartería | CA14: 77 | CB14: 601 | CC14: Fabricación de otros productos minerales no metálicos | CD14: 79 | CE14: 1311 | CI14: EXPLOTACIÓN DE MINAS Y CANTERAS | CJ14: 1724 | CK14: 172 | CL14: 849 | CO14: ACTIVIDADES FINANCIERAS Y DE SEGUROS | CP14: 3378 | CQ14: 938 | CR14: 125 | CT14: EDUCACIÓN | CU14: 0.6004122118 | CV14: 0.3523122504 | CW14: 0.04727553781
C15: 52356 | D15: IPIALES | E15: 2 | F15: 0 | G15: Natural | H15: 52 | I15: NARIÑO | J15: Aprobado con subsidio | K15: MICRO | L15: 4923 | M15: TRANSPORTE Y ALMACENAMIENTO | N15: H | O15: Transporte terrestre publico automotor | P15: Transporte terrestre publico automotor | Q15: 0 | R15: 2 | S15: 0 | T15: 0 | U15: 0 | V15: 2 | X15: 70 | Y15: 81 | Z15: 15 | AA15: 299 | AB15: =VLOOKUP(Z15,Hoja4!$A$29:$B$61,2,FALSE) -> Boyacá | AH15: 0 | AI15: 0 | AJ15: 11001 | AK15: BOGOTÁ, D.C. | AL15: 2 | AM15: 8 | AN15: Natural | AO15: 11 | AP15: BOGOTÁ, D.C. | AQ15: Aprobado con subsidio | AR15: MICRO | AS15: 1081 | AT15: INDUSTRIAS MANUFACTURERAS | AU15: C | AV15: Elaboración de otros productos alimenticios | AW15: Elaboración de productos alimenticios | AX15: 1 | AY15: 1 | AZ15: 0 | BA15: 2 | BB15: 0 | BC15: 0 | BF15: 70 | BG15: 12 | BH15: 52 | BI15: 24 | BJ15: =VLOOKUP(BH15,Hoja4!$A$29:$B$61,2,FALSE) -> Nariño | BL15: Nariño | BM15: 24 | BN15: 116 | BP15: 76248 | BQ15: 3 | BR15: 73001 | BS15: 40 | BT15: 73 | BU15: =VLOOKUP(BT15,Hoja4!$A$29:$B$61,2,FALSE) -> Tolima | BV15: =VLOOKUP(BR15,Hoja4!$D$29:$E$1150,2,FALSE) -> Ibagué | BW15: 40 | BX15: 477 | BZ15: Actividades de impresión y de producción de copias a partir de grabaciones originales | CA15: 97 | CB15: 563 | CC15: Transformación de la madera y fabricación de productos de madera y de corcho, excepto muebles; fabricación de artículos de cestería y espartería | CD15: 77 | CE15: 601 | CI15: ACTIVIDADES FINANCIERAS Y DE SEGUROS | CJ15: 3378 | CK15: 938 | CL15: 125 | CO15: OTRAS ACTIVIDADES DE SERVICIOS | CP15: 3149 | CQ15: 994 | CR15: 552 | CT15: ACTIVIDADES FINANCIERAS Y DE SEGUROS | CU15: 0.7606394956 | CV15: 0.2112136906 | CW15: 0.02814681378
C16: 54001 | D16: CÚCUTA | E16: 7 | F16: 12 | G16: Natural | H16: 54 | I16: NORTE DE SANTANDER | J16: Aprobado con subsidio | K16: PEQUEÑA | L16: 90 | M16: OTRAS | N16: Otras | O16: Otras | P16: Otras | Q16: 1 | R16: 6 | S16: 0 | T16: 0 | U16: 1 | V16: 6 | X16: 41 | Y16: 302 | Z16: 52 | AA16: 275 | AB16: =VLOOKUP(Z16,Hoja4!$A$29:$B$61,2,FALSE) -> Nariño | AH16: 0 | AI16: 0 | AJ16: 11001 | AK16: BOGOTÁ, D.C. | AL16: 0 | AM16: 0 | AN16: Natural | AO16: 11 | AP16: BOGOTÁ, D.C. | AQ16: 0 | AR16: MICRO | AS16: 2592 | AT16: INDUSTRIAS MANUFACTURERAS | AU16: C | AV16: Fabricación de otros productos elaborados de metal y actividades de servicios relacionadas con el trabajo de metales | AW16: Fabricación de productos elaborados de metal, excepto maquinaria y equipo | AX16: 0 | AY16: 0 | AZ16: 0 | BA16: 0 | BB16: 0 | BC16: 0 | BF16: 41 | BG16: 24 | BH16: 41 | BI16: 24 | BJ16: =VLOOKUP(BH16,Hoja4!$A$29:$B$61,2,FALSE) -> Huila | BL16: Huila | BM16: 24 | BN16: 118 | BP16: 76892 | BQ16: 46 | BR16: 66001 | BS16: 39 | BT16: 66 | BU16: =VLOOKUP(BT16,Hoja4!$A$29:$B$61,2,FALSE) -> Risaralda | BV16: =VLOOKUP(BR16,Hoja4!$D$29:$E$1150,2,FALSE) -> Pereira | BW16: 39 | BX16: 770 | BZ16: Fabricación de muebles, colchones y somieres | CA16: 108 | CB16: 1058 | CC16: Fabricación de papel, cartón y productos de papel y cartón | CD16: 62 | CE16: 472 | CI16: ACTIVIDADES DE ATENCIÓN DE LA SALUD HUMANA Y DE ASISTENCIA SOCIAL | CJ16: 18733 | CK16: 4973 | CL16: 867 | CO16: ADMINISTRACIÓN PÚBLICA Y DEFENSA; PLANES DE SEGURIDAD SOCIAL DE AFILIACIÓN OBLIGATORIA | CP16: 2336 | CQ16: 338 | CR16: 7 | CT16: OTRAS ACTIVIDADES DE SERVICIOS | CU16: 0.670713525 | CV16: 0.21171459 | CW16: 0.117571885
C17: 54405 | D17: LOS PATIOS | E17: 2 | F17: 0 | G17: Natural | H17: 54 | I17: NORTE DE SANTANDER | J17: Aprobado con subsidio | K17: MICRO | L17: 4923 | M17: TRANSPORTE Y ALMACENAMIENTO | N17: H | O17: Transporte terrestre publico automotor | P17: Transporte terrestre publico automotor | Q17: 1 | R17: 1 | S17: 0 | T17: 1 | U17: 0 | V17: 1 | X17: 25 | Y17: 961 | Z17: 63 | AA17: 255 | AB17: =VLOOKUP(Z17,Hoja4!$A$29:$B$61,2,FALSE) -> Quindío | AH17: 0 | AI17: 0 | AJ17: 18205 | AK17: CURILLO | AL17: 5 | AM17: 7 | AN17: Natural | AO17: 18 | AP17: CAQUETÁ | AQ17: Aprobado con subsidio | AR17: MICRO | AS17: 1040 | AT17: INDUSTRIAS MANUFACTURERAS | AU17: C | AV17: Elaboración de productos lácteos | AW17: Elaboración de productos alimenticios | AX17: 1 | AY17: 4 | AZ17: 0 | BA17: 2 | BB17: 1 | BC17: 2 | BF17: 25 | BG17: 198 | BH17: 50 | BI17: 21 | BJ17: =VLOOKUP(BH17,Hoja4!$A$29:$B$61,2,FALSE) -> Meta | BL17: Meta | BM17: 21 | BN17: 211 | BP17: 15238 | BQ17: 9 | BR17: 25214 | BS17: 38 | BT17: 25 | BU17: =VLOOKUP(BT17,Hoja4!$A$29:$B$61,2,FALSE) -> Cundinamarca | BV17: =VLOOKUP(BR17,Hoja4!$D$29:$E$1150,2,FALSE) -> Cota | BW17: 38 | BX17: 294 | BZ17: Fabricación de productos de caucho y de plástico | CA17: 179 | CB17: 2561 | CC17: Fabricación de aparatos y equipo eléctrico | CD17: 55 | CE17: 1324 | CI17: OTRAS ACTIVIDADES DE SERVICIOS | CJ17: 3149 | CK17: 994 | CL17: 552 | CO17: EXPLOTACIÓN DE MINAS Y CANTERAS | CP17: 1724 | CQ17: 172 | CR17: 849 | CT17: ADMINISTRACIÓN PÚBLICA Y DEFENSA; PLANES DE SEGURIDAD SOCIAL DE AFILIACIÓN OBLIGATORIA | CU17: 0.8713166729 | CV17: 0.1260723611 | CW17: 0.002610966057
C18: 76400 | D18: LA UNIÓN | E18: 0 | F18: 0 | G18: Natural | H18: 76 | I18: VALLE DEL CAUCA | J18: 0 | K18: MICRO | L18: 4620 | M18: COMERCIO AL POR MAYOR Y AL POR MENOR; REPARACIÓN DE VEHÍCULOS AUTOMOTORES Y MOTOCICLETAS | N18: G | O18: Comercio al por mayor de materias primas agropecuarias; animales vivos | P18: Comercio al por mayor de materias primas agropecuarias; animales vivos | Q18: 0 | R18: 0 | S18: 0 | T18: 0 | U18: 0 | V18: 0 | X18: 8 | Y18: 807 | Z18: 23 | AA18: 198 | AB18: =VLOOKUP(Z18,Hoja4!$A$29:$B$61,2,FALSE) -> Córdoba | AH18: 0 | AI18: 0 | AJ18: 52560 | AK18: POTOSÍ | AL18: 2 | AM18: 4 | AN18: Natural | AO18: 52 | AP18: NARIÑO | AQ18: Aprobado con subsidio | AR18: MICRO | AS18: 1040 | AT18: INDUSTRIAS MANUFACTURERAS | AU18: C | AV18: Elaboración de productos lácteos | AW18: Elaboración de productos alimenticios | AX18: 1 | AY18: 1 | AZ18: 0 | BA18: 2 | BB18: 0 | BC18: 0 | BF18: 8 | BG18: 109 | BH18: 19 | BI18: 20 | BJ18: =VLOOKUP(BH18,Hoja4!$A$29:$B$61,2,FALSE) -> Cauca | BL18: Cauca | BM18: 20 | BN18: 420 | BP18: 85010 | BQ18: 1 | BR18: 5615 | BS18: 36 | BT18: 5 | BU18: =VLOOKUP(BT18,Hoja4!$A$29:$B$61,2,FALSE) -> Antioquia | BV18: =VLOOKUP(BR18,Hoja4!$D$29:$E$1150,2,FALSE) -> Rionegro | BW18: 36 | BX18: 1430 | BZ18: Fabricación de papel, cartón y productos de papel y cartón | CA18: 62 | CB18: 472 | CC18: Fabricación de vehículos automotores, remolques y semirremolques | CD18: 48 | CE18: 656 | CI18: ACTIVIDADES DE LOS HOGARES INDIVIDUALES EN CALIDAD DE EMPLEADORES; ACTIVIDADES NO DIFERENCIADAS DE LOS HOGARES INDIVIDUALES COMO PRODUCTORES DE BIENES Y SERVICIOS PARA USO PROPIO | CJ18: 12 | CK18: 29 | CL18: 0 | CO18: ACTIVIDADES INMOBILIARIAS | CP18: 1270 | CQ18: 476 | CR18: 340 | CT18: EXPLOTACIÓN DE MINAS Y CANTERAS | CU18: 0.6280510018 | CV18: 0.06265938069 | CW18: 0.3092896175
C19: 63001 | D19: ARMENIA | E19: 0 | F19: 0 | G19: Natural | H19: 63 | I19: QUINDÍO | J19: 0 | K19: PEQUEÑA | L19: 4771 | M19: COMERCIO AL POR MAYOR Y AL POR MENOR; REPARACIÓN DE VEHÍCULOS AUTOMOTORES Y MOTOCICLETAS | N19: G | O19: Comercio al por menor de otros productos en establecimientos especializados | P19: Comercio al por menor de otros productos en establecimientos especializados | Q19: 0 | R19: 0 | S19: 0 | T19: 0 | U19: 0 | V19: 0 | X19: 85 | Y19: 119 | Z19: 47 | AA19: 194 | AB19: =VLOOKUP(Z19,Hoja4!$A$29:$B$61,2,FALSE) -> Magdalena | AH19: 0 | AI19: 0 | AJ19: 54001 | AK19: CÚCUTA | AL19: 1 | AM19: 8 | AN19: Natural | AO19: 54 | AP19: NORTE DE SANTANDER | AQ19: Aprobado con subsidio | AR19: MICRO | AS19: 2599 | AT19: INDUSTRIAS MANUFACTURERAS | AU19: C | AV19: Fabricación de otros productos elaborados de metal y actividades de servicios relacionadas con el trabajo de metales | AW19: Fabricación de productos elaborados de metal, excepto maquinaria y equipo | AX19: 0 | AY19: 1 | AZ19: 0 | BA19: 1 | BB19: 0 | BC19: 0 | BF19: 85 | BG19: 11 | BH19: 23 | BI19: 17 | BJ19: =VLOOKUP(BH19,Hoja4!$A$29:$B$61,2,FALSE) -> Córdoba | BL19: Córdoba | BM19: 17 | BN19: 408 | BP19: 8001 | BQ19: 91 | BR19: 76520 | BS19: 33 | BT19: 76 | BU19: =VLOOKUP(BT19,Hoja4!$A$29:$B$61,2,FALSE) -> Valle del cauca | BV19: =VLOOKUP(BR19,Hoja4!$D$29:$E$1150,2,FALSE) -> Palmira | BW19: 33 | BX19: 537 | BZ19: Elaboración de bebidas | CA19: 41 | CB19: 542 | CC19: Elaboración de bebidas | CD19: 41 | CE19: 542 | CI19: INFORMACIÓN Y COMUNICACIONES | CJ19: 22368 | CK19: 2975 | CL19: 3085 | CO19: DISTRIBUCIÓN DE AGUA; EVACUACIÓN Y TRATAMIENTO DE AGUAS RESIDUALES, GESTIÓN DE DESECHOS Y ACTIVIDADES DE SANEAMIENTO AMBIENTAL | CP19: 1056 | CQ19: 175 | CR19: 214 | CT19: ACTIVIDADES INMOBILIARIAS | CU19: 0.6088207095 | CV19: 0.2281879195 | CW19: 0.162991371
C20: 52001 | D20: PASTO | E20: 0 | F20: 0 | G20: Natural | H20: 52 | I20: NARIÑO | J20: 0 | K20: MICRO | L20: 5611 | M20: ALOJAMIENTO Y SERVICIOS DE COMIDA | N20: I | O20: Actividades de restaurantes, cafeterías y servicio móvil de comidas | P20: Actividades de restaurantes, cafeterías y servicio móvil de comidas | Q20: 0 | R20: 0 | S20: 0 | T20: 0 | U20: 0 | V20: 0 | X20: 73 | Y20: 377 | Z20: 20 | AA20: 160 | AB20: =VLOOKUP(Z20,Hoja4!$A$29:$B$61,2,FALSE) -> Cesar | AH20: 0 | AI20: 0 | AJ20: 68001 | AK20: BUCARAMANGA | AL20: 1 | AM20: 1 | AN20: Natural | AO20: 68 | AP20: SANTANDER | AQ20: Aprobado con subsidio | AR20: PEQUEÑA | AS20: 1610 | AT20: INDUSTRIAS MANUFACTURERAS | AU20: C | AV20: Aserrado, acepillado e impregnación de la madera | AW20: Transformación de la madera y fabricación de productos de madera y de corcho, excepto muebles; fabricación de artículos de cestería y espartería | AX20: 0 | AY20: 1 | AZ20: 0 | BA20: 1 | BB20: 0 | BC20: 0 | BF20: 73 | BG20: 43 | BH20: 47 | BI20: 13 | BJ20: =VLOOKUP(BH20,Hoja4!$A$29:$B$61,2,FALSE) -> Magdalena | BL20: Magdalena | BM20: 13 | BN20: 49 | BP20: 20001 | BQ20: 7 | BR20: 13001 | BS20: 31 | BT20: 13 | BU20: =VLOOKUP(BT20,Hoja4!$A$29:$B$61,2,FALSE) -> Bolívar | BV20: =VLOOKUP(BR20,Hoja4!$D$29:$E$1150,2,FALSE) -> Cartagena de ind | BW20: 31 | BX20: 572 | BZ20: Fabricación de maquinaria y equipo n.c.p. | CA20: 84 | CB20: 1053 | CC20: Fabricación de productos farmacéuticos, sustancias químicas medicinales y productos botánicos de uso farmacéutico | CD20: 36 | CE20: 843 | CI20: SUMINISTRO DE ELECTRICIDAD, GAS, VAPOR Y AIRE ACONDICIONADO | CJ20: 321 | CK20: 58 | CL20: 57 | CO20: SUMINISTRO DE ELECTRICIDAD, GAS, VAPOR Y AIRE ACONDICIONADO | CP20: 321 | CQ20: 58 | CR20: 57 | CT20: DISTRIBUCIÓN DE AGUA; EVACUACIÓN Y TRATAMIENTO DE AGUAS RESIDUALES, GESTIÓN DE DESECHOS Y ACTIVIDADES DE SANEAMIENTO AMBIENTAL | CU20: 0.7307958478 | CV20: 0.1211072664 | CW20: 0.1480968858
C21: 76828 | D21: TRUJILLO | E21: 6 | F21: 0 | G21: Natural | H21: 76 | I21: VALLE DEL CAUCA | J21: Aprobado con subsidio | K21: MICRO | L21: 4752 | M21: COMERCIO AL POR MAYOR Y AL POR MENOR; REPARACIÓN DE VEHÍCULOS AUTOMOTORES Y MOTOCICLETAS | N21: G | O21: Comercio al por menor de otros enseres domésticos en establecimientos especializados | P21: Comercio al por menor de otros enseres domésticos en establecimientos especializados | Q21: 3 | R21: 3 | S21: 0 | T21: 3 | U21: 0 | V21: 3 | X21: 20 | Y21: 160 | Z21: 19 | AA21: 129 | AB21: =VLOOKUP(Z21,Hoja4!$A$29:$B$61,2,FALSE) -> Cauca | AH21: 0 | AI21: 0 | AJ21: 54001 | AK21: CÚCUTA | AL21: 2 | AM21: 2 | AN21: Natural | AO21: 54 | AP21: NORTE DE SANTANDER | AQ21: Aprobado con subsidio | AR21: MICRO | AS21: 1410 | AT21: INDUSTRIAS MANUFACTURERAS | AU21: C | AV21: Confección de prendas de vestir, excepto prendas de piel | AW21: Confección de prendas de vestir | AX21: 1 | AY21: 1 | AZ21: 0 | BA21: 2 | BB21: 0 | BC21: 0 | BF21: 20 | BG21: 11 | BH21: 70 | BI21: 12 | BJ21: =VLOOKUP(BH21,Hoja4!$A$29:$B$61,2,FALSE) -> Sucre | BL21: Sucre | BM21: 12 | BN21: 44 | BP21: 5318 | BQ21: 15 | BR21: 63001 | BS21: 25 | BT21: 63 | BU21: =VLOOKUP(BT21,Hoja4!$A$29:$B$61,2,FALSE) -> Quindío | BV21: =VLOOKUP(BR21,Hoja4!$D$29:$E$1150,2,FALSE) -> Armenia | BW21: 25 | BX21: 303 | BZ21: Fabricación de productos metalúrgicos básicos | CA21: 35 | CB21: 710 | CC21: Fabricación de productos metalúrgicos básicos | CD21: 35 | CE21: 710 | CI21: ADMINISTRACIÓN PÚBLICA Y DEFENSA; PLANES DE SEGURIDAD SOCIAL DE AFILIACIÓN OBLIGATORIA | CJ21: 2336 | CK21: 338 | CL21: 7 | CO21: ACTIVIDADES DE LOS HOGARES INDIVIDUALES EN CALIDAD DE EMPLEADORES; ACTIVIDADES NO DIFERENCIADAS DE LOS HOGARES INDIVIDUALES COMO PRODUCTORES DE BIENES Y SERVICIOS PARA USO PROPIO | CP21: 12 | CQ21: 29 | CR21: 0 | CT21: SUMINISTRO DE ELECTRICIDAD, GAS, VAPOR Y AIRE ACONDICIONADO | CU21: 0.7362385321 | CV21: 0.1330275229 | CW21: 0.130733945
C22: 76001 | D22: CALI | E22: 0 | F22: 0 | G22: Natural | H22: 76 | I22: VALLE DEL CAUCA | J22: 0 | K22: MICRO | L22: 121 | M22: AGRICULTURA, GANADERÍA, CAZA, SILVICULTURA Y PESCA | N22: A | O22: Cultivos agrícolas permanentes | P22: Cultivos agrícolas permanentes | Q22: 0 | R22: 0 | S22: 0 | T22: 0 | U22: 0 | V22: 0 | X22: 97 | Y22: 2 | Z22: 85 | AA22: 119 | AB22: =VLOOKUP(Z22,Hoja4!$A$29:$B$61,2,FALSE) -> Casanare | AH22: 0 | AI22: 0 | AJ22: 68861 | AK22: VÉLEZ | AL22: 1 | AM22: 0 | AN22: Natural | AO22: 68 | AP22: SANTANDER | AQ22: Aprobado con subsidio | AR22: MICRO | AS22: 1089 | AT22: INDUSTRIAS MANUFACTURERAS | AU22: C | AV22: Elaboración de otros productos alimenticios | AW22: Elaboración de productos alimenticios | AX22: 1 | AY22: 0 | AZ22: 0 | BA22: 1 | BB22: 0 | BC22: 0 | BF22: 97 | BG22: 0 | BH22: 85 | BI22: 11 | BJ22: =VLOOKUP(BH22,Hoja4!$A$29:$B$61,2,FALSE) -> Casanare | BL22: Casanare | BM22: 11 | BN22: 132 | BP22: 41001 | BQ22: 20 | BR22: 25754 | BS22: 25 | BT22: 25 | BU22: =VLOOKUP(BT22,Hoja4!$A$29:$B$61,2,FALSE) -> Cundinamarca | BV22: =VLOOKUP(BR22,Hoja4!$D$29:$E$1150,2,FALSE) -> Soacha | BW22: 25 | BX22: 318 | BZ22: Fabricación de productos farmacéuticos, sustancias químicas medicinales y productos botánicos de uso farmacéutico | CA22: 36 | CB22: 843 | CC22: Fabricación de productos informáticos, electrónicos y ópticos | CD22: 22 | CE22: 214 | CI22: DISTRIBUCIÓN DE AGUA; EVACUACIÓN Y TRATAMIENTO DE AGUAS RESIDUALES, GESTIÓN DE DESECHOS Y ACTIVIDADES DE SANEAMIENTO AMBIENTAL | CJ22: 1056 | CK22: 175 | CL22: 214 | CO22: OTRAS | CP22: 7 | CQ22: 4 | CR22: 11 | CT22: ACTIVIDADES DE LOS HOGARES INDIVIDUALES EN CALIDAD DE EMPLEADORES; ACTIVIDADES NO DIFERENCIADAS DE LOS HOGARES INDIVIDUALES COMO PRODUCTORES DE BIENES Y SERVICIOS PARA USO PROPIO | CU22: 0.2926829268 | CV22: 0.7073170732 | CW22: 0
C23: 5615 | D23: RIONEGRO | E23: 0 | F23: 0 | G23: Natural | H23: 5 | I23: ANTIOQUIA | J23: 0 | K23: PEQUEÑA | L23: 2012 | M23: INDUSTRIAS MANUFACTURERAS | N23: C | O23: Fabricación de sustancias químicas básicas, abonos y compuestos inorgánicos nitrogenados, plásticos y caucho sintético en formas primarias | P23: Fabricación de sustancias y productos químicos | Q23: 0 | R23: 0 | S23: 0 | T23: 0 | U23: 0 | V23: 0 | X23: 81 | Y23: 34 | Z23: 18 | AA23: 89 | AB23: =VLOOKUP(Z23,Hoja4!$A$29:$B$61,2,FALSE) -> Caquetá | AH23: 0 | AI23: 0 | AJ23: 76001 | AK23: CALI | AL23: 2 | AM23: 9 | AN23: Natural | AO23: 76 | AP23: VALLE DEL CAUCA | AQ23: Aprobado con subsidio | AR23: MICRO | AS23: 1811 | AT23: INDUSTRIAS MANUFACTURERAS | AU23: C | AV23: Actividades de impresión y actividades de servicios relacionados con la impresión | AW23: Actividades de impresión y de producción de copias a partir de grabaciones originales | AX23: 2 | AY23: 0 | AZ23: 0 | BA23: 2 | BB23: 0 | BC23: 0 | BF23: 81 | BG23: 1 | BH23: 20 | BI23: 11 | BJ23: =VLOOKUP(BH23,Hoja4!$A$29:$B$61,2,FALSE) -> Cesar | BL23: Cesar | BM23: 11 | BN23: 113 | BP23: 18753 | BQ23: 2 | BR23: 5088 | BS23: 24 | BT23: 5 | BU23: =VLOOKUP(BT23,Hoja4!$A$29:$B$61,2,FALSE) -> Antioquia | BV23: =VLOOKUP(BR23,Hoja4!$D$29:$E$1150,2,FALSE) -> Bello | BW23: 24 | BX23: 229 | BZ23: Fabricación de productos informáticos, electrónicos y ópticos | CA23: 22 | CB23: 214 | CC23: Fabricación de otros tipos de equipo de transporte | CD23: 11 | CE23: 556 | CI23: 0 | CJ23: 0 | CK23: 0 | CL23: 0 | CO23: 0 | CP23: 0 | CQ23: 0 | CR23: 0 | CT23: OTRAS | CU23: 0.3181818182 | CV23: 0.1818181818 | CW23: 0.5
C24: 11001 | D24: BOGOTÁ, D.C. | E24: 2 | F24: 1 | G24: Natural | H24: 11 | I24: BOGOTÁ, D.C. | J24: Aprobado con subsidio | K24: MICRO | L24: 1313 | M24: INDUSTRIAS MANUFACTURERAS | N24: C | O24: Preparación, hilatura, tejeduría y acabado de productos textiles | P24: Fabricación de productos textiles | Q24: 2 | R24: 0 | S24: 0 | T24: 1 | U24: 1 | V24: 0 | X24: 44 | Y24: 42 | Z24: 70 | AA24: 81 | AB24: =VLOOKUP(Z24,Hoja4!$A$29:$B$61,2,FALSE) -> Sucre | AH24: 0 | AI24: 0 | AJ24: 11001 | AK24: BOGOTÁ, D.C. | AL24: 0 | AM24: 0 | AN24: Natural | AO24: 11 | AP24: BOGOTÁ, D.C. | AQ24: 0 | AR24: MICRO | AS24: 2599 | AT24: INDUSTRIAS MANUFACTURERAS | AU24: C | AV24: Fabricación de otros productos elaborados de metal y actividades de servicios relacionadas con el trabajo de metales | AW24: Fabricación de productos elaborados de metal, excepto maquinaria y equipo | AX24: 0 | AY24: 0 | AZ24: 0 | BA24: 0 | BB24: 0 | BC24: 0 | BF24: 44 | BG24: 0 | BH24: 18 | BI24: 9 | BJ24: =VLOOKUP(BH24,Hoja4!$A$29:$B$61,2,FALSE) -> Caquetá | BL24: Caquetá | BM24: 9 | BN24: 47 | BP24: 95001 | BQ24: 0 | BR24: 68307 | BS24: 24 | BT24: 68 | BU24: =VLOOKUP(BT24,Hoja4!$A$29:$B$61,2,FALSE) -> Santander | BV24: =VLOOKUP(BR24,Hoja4!$D$29:$E$1150,2,FALSE) -> Girón | BW24: 24 | BX24: 312 | BZ24: Fabricación de otros tipos de equipo de transporte | CA24: 11 | CB24: 556 | CC24: Coquización, fabricación de productos de la refinación del petróleo y actividad de mezcla de combustibles | CD24: 7 | CE24: 48
C25: 25214 | D25: COTA | E25: 0 | F25: 0 | G25: Natural | H25: 25 | I25: CUNDINAMARCA | J25: 0 | K25: PEQUEÑA | L25: 8530 | M25: EDUCACIÓN | N25: P | O25: Establecimientos que combinan diferentes niveles de educación | P25: Establecimientos que combinan diferentes niveles de educación | Q25: 0 | R25: 0 | S25: 0 | T25: 0 | U25: 0 | V25: 0 | X25: 17 | Y25: 373 | Z25: 44 | AA25: 42 | AB25: =VLOOKUP(Z25,Hoja4!$A$29:$B$61,2,FALSE) -> La guajira | AH25: 0 | AI25: 0 | AJ25: 5001 | AK25: MEDELLÍN | AL25: 0 | AM25: 0 | AN25: Natural | AO25: 5 | AP25: ANTIOQUIA | AQ25: 0 | AR25: PEQUEÑA | AS25: 1410 | AT25: INDUSTRIAS MANUFACTURERAS | AU25: C | AV25: Confección de prendas de vestir, excepto prendas de piel | AW25: Confección de prendas de vestir | AX25: 0 | AY25: 0 | AZ25: 0 | BA25: 0 | BB25: 0 | BC25: 0 | BF25: 17 | BG25: 62 | BH25: 86 | BI25: 3 | BJ25: =VLOOKUP(BH25,Hoja4!$A$29:$B$61,2,FALSE) -> Putumayo | BL25: =BJ25 -> Putumayo | BM25: =BI25 -> 3 | BN25: 5 | BP25: 5686 | BQ25: 5 | BR25: 25286 | BS25: 23 | BT25: 25 | BU25: =VLOOKUP(BT25,Hoja4!$A$29:$B$61,2,FALSE) -> Cundinamarca | BV25: =VLOOKUP(BR25,Hoja4!$D$29:$E$1150,2,FALSE) -> Funza | BW25: 23 | BX25: 262 | BZ25: Elaboración de productos de tabaco | CA25: 2 | CB25: 100 | CC25: Elaboración de productos de tabaco | CD25: 2 | CE25: 100
C26: 50001 | D26: VILLAVICENCIO | E26: 0 | F26: 0 | G26: Natural | H26: 50 | I26: META | J26: 0 | K26: MICRO | L26: 4530 | M26: COMERCIO AL POR MAYOR Y AL POR MENOR; REPARACIÓN DE VEHÍCULOS AUTOMOTORES Y MOTOCICLETAS | N26: G | O26: Comercio de partes, piezas (autopartes) y accesorios (lujos) para vehículos automotores | P26: Comercio de partes, piezas (autopartes) y accesorios (lujos) para vehículos automotores | Q26: 0 | R26: 0 | S26: 0 | T26: 0 | U26: 0 | V26: 0 | X26: 18 | Y26: 89 | Z26: 86 | AA26: 42 | AB26: =VLOOKUP(Z26,Hoja4!$A$29:$B$61,2,FALSE) -> Putumayo | AH26: 0 | AI26: 0 | AJ26: 76248 | AK26: EL CERRITO | AL26: 0 | AM26: 0 | AN26: Natural | AO26: 76 | AP26: VALLE DEL CAUCA | AQ26: 0 | AR26: MICRO | AS26: 3110 | AT26: INDUSTRIAS MANUFACTURERAS | AU26: C | AV26: Fabricación de muebles | AW26: Fabricación de muebles, colchones y somieres | AX26: 0 | AY26: 0 | AZ26: 0 | BA26: 0 | BB26: 0 | BC26: 0 | BF26: 18 | BG26: 9 | BH26: 81 | BI26: 1 | BJ26: =VLOOKUP(BH26,Hoja4!$A$29:$B$61,2,FALSE) -> Arauca | BL26: Arauca | BM26: =BI26 -> 1 | BN26: 244 | BP26: 5631 | BQ26: 41 | BR26: 25473 | BS26: 22 | BT26: 25 | BU26: =VLOOKUP(BT26,Hoja4!$A$29:$B$61,2,FALSE) -> Cundinamarca | BV26: =VLOOKUP(BR26,Hoja4!$D$29:$E$1150,2,FALSE) -> Mosquera | BW26: 22 | BX26: 290 | BZ26: 0 | CA26: 0 | CB26: 0 | CC26: 0 | CD26: 0 | CE26: 0
C27: 11001 | D27: BOGOTÁ, D.C. | E27: 1 | F27: 1 | G27: Natural | H27: 11 | I27: BOGOTÁ, D.C. | J27: Aprobado con subsidio | K27: MICRO | L27: 4754 | M27: COMERCIO AL POR MAYOR Y AL POR MENOR; REPARACIÓN DE VEHÍCULOS AUTOMOTORES Y MOTOCICLETAS | N27: G | O27: Comercio al por menor de otros enseres domésticos en establecimientos especializados | P27: Comercio al por menor de otros enseres domésticos en establecimientos especializados | Q27: 0 | R27: 1 | S27: 0 | T27: 1 | U27: 0 | V27: 0 | X27: 23 | Y27: 198 | Z27: 81 | AA27: 34 | AB27: =VLOOKUP(Z27,Hoja4!$A$29:$B$61,2,FALSE) -> Arauca | AH27: 0 | AI27: 0 | AJ27: 76892 | AK27: YUMBO | AL27: 0 | AM27: 0 | AN27: Natural | AO27: 76 | AP27: VALLE DEL CAUCA | AQ27: 0 | AR27: MICRO | AS27: 1690 | AT27: INDUSTRIAS MANUFACTURERAS | AU27: C | AV27: Fabricación de otros productos de madera; fabricación de artículos de corcho, cestería y espartería | AW27: Transformación de la madera y fabricación de productos de madera y de corcho, excepto muebles; fabricación de artículos de cestería y espartería | AX27: 0 | AY27: 0 | AZ27: 0 | BA27: 0 | BB27: 0 | BC27: 0 | BF27: 23 | BG27: 17 | BH27: 97 | BI27: 0 | BJ27: =VLOOKUP(BH27,Hoja4!$A$29:$B$61,2,FALSE) -> Vaupés | BL27: Vaupés | BM27: =BI27 -> 0 | BN27: 0 | BP27: 5368 | BQ27: 2 | BR27: 41001 | BS27: 20 | BT27: 41 | BU27: =VLOOKUP(BT27,Hoja4!$A$29:$B$61,2,FALSE) -> Huila | BV27: =VLOOKUP(BR27,Hoja4!$D$29:$E$1150,2,FALSE) -> Neiva | BW27: 20 | BX27: 107 | CA27: 0 | CB27: 0
C28: 11001 | D28: BOGOTÁ, D.C. | E28: 2 | F28: 2 | G28: Natural | H28: 11 | I28: BOGOTÁ, D.C. | J28: Aprobado con subsidio | K28: MICRO | L28: 8512 | M28: EDUCACIÓN | N28: P | O28: Educación de la primera infancia, preescolar y básica primaria | P28: Educación de la primera infancia, preescolar y básica primaria | Q28: 2 | R28: 0 | S28: 0 | T28: 0 | U28: 2 | V28: 0 | X28: 88 | Y28: 22 | Z28: 88 | AA28: 22 | AB28: =VLOOKUP(Z28,Hoja4!$A$29:$B$61,2,FALSE) -> San Andrés | AH28: 0 | AI28: 0 | AJ28: 76001 | AK28: CALI | AL28: 2 | AM28: 1 | AN28: Natural | AO28: 76 | AP28: VALLE DEL CAUCA | AQ28: Aprobado con subsidio | AR28: MICRO | AS28: 1081 | AT28: INDUSTRIAS MANUFACTURERAS | AU28: C | AV28: Elaboración de otros productos alimenticios | AW28: Elaboración de productos alimenticios | AX28: 1 | AY28: 1 | AZ28: 0 | BA28: 0 | BB28: 1 | BC28: 1 | BF28: 88 | BG28: 0 | BH28: 44 | BI28: 0 | BJ28: =VLOOKUP(BH28,Hoja4!$A$29:$B$61,2,FALSE) -> La guajira | BL28: La guajira | BM28: =BI28 -> 0 | BN28: 0 | BP28: 85139 | BQ28: 1 | BR28: 52001 | BS28: 19 | BT28: 52 | BU28: =VLOOKUP(BT28,Hoja4!$A$29:$B$61,2,FALSE) -> Nariño | BV28: =VLOOKUP(BR28,Hoja4!$D$29:$E$1150,2,FALSE) -> Pasto | BW28: 19 | BX28: 99 | CA28: =SUM(CA2:CA27) -> 3160 | CB28: =SUM(CB2:CB27) -> 52943
C29: 25181 | D29: CHOACHÍ | E29: 1 | F29: 0 | G29: Natural | H29: 25 | I29: CUNDINAMARCA | J29: Aprobado con subsidio | K29: MICRO | L29: 145 | M29: AGRICULTURA, GANADERÍA, CAZA, SILVICULTURA Y PESCA | N29: A | O29: Ganadería | P29: Ganadería | Q29: 0 | R29: 1 | S29: 0 | T29: 0 | U29: 0 | V29: 1 | X29: 91 | Y29: 12 | Z29: 27 | AA29: 13 | AB29: =VLOOKUP(Z29,Hoja4!$A$29:$B$61,2,FALSE) -> Chocó | AH29: 0 | AI29: 0 | AJ29: 76001 | AK29: CALI | AL29: 1 | AM29: 11 | AN29: Natural | AO29: 76 | AP29: VALLE DEL CAUCA | AQ29: Aprobado con subsidio | AR29: PEQUEÑA | AS29: 1410 | AT29: INDUSTRIAS MANUFACTURERAS | AU29: C | AV29: Confección de prendas de vestir, excepto prendas de piel | AW29: Confección de prendas de vestir | AX29: 1 | AY29: 0 | AZ29: 0 | BA29: 1 | BB29: 0 | BC29: 0 | BF29: 91 | BG29: 0 | BH29: 88 | BI29: 0 | BJ29: =VLOOKUP(BH29,Hoja4!$A$29:$B$61,2,FALSE) -> San Andrés | BL29: Otros | BM29: =SUM(BI29:BI34) -> 0 | BN29: =SUMIFS($AL$2:$AL$399999,$AQ$2:$AQ$399999,"Aprobado con subsidio")-SUM(BN2:BN28) -> 0 | BP29: 85001 | BQ29: 8 | BR29: 25817 | BS29: 17 | BU29: Otros | BV29: Otros | BW29: =SUM(BS29:BS1000) -> 539 | BX29: =SUMIFS($AL$2:$AL$399999,$AQ$2:$AQ$399999,"Aprobado con subsidio")-SUM(BX2:BX28) -> 8311
C30: 25181 | D30: CHOACHÍ | E30: 1 | F30: 1 | G30: Natural | H30: 25 | I30: CUNDINAMARCA | J30: Aprobado con subsidio | K30: PEQUEÑA | L30: 4663 | M30: COMERCIO AL POR MAYOR Y AL POR MENOR; REPARACIÓN DE VEHÍCULOS AUTOMOTORES Y MOTOCICLETAS | N30: G | O30: Comercio al por mayor especializado de otros productos | P30: Comercio al por mayor especializado de otros productos | Q30: 0 | R30: 1 | S30: 0 | T30: 0 | U30: 0 | V30: 1 | X30: 95 | Y30: 8 | Z30: 91 | AA30: 12 | AB30: =VLOOKUP(Z30,Hoja4!$A$29:$B$61,2,FALSE) -> Amazonas | AH30: 0 | AI30: 0 | AJ30: 15238 | AK30: DUITAMA | AL30: 2 | AM30: 0 | AN30: Natural | AO30: 15 | AP30: BOYACÁ | AQ30: Aprobado con subsidio | AR30: MICRO | AS30: 1392 | AT30: INDUSTRIAS MANUFACTURERAS | AU30: C | AV30: Fabricación de otros productos textiles | AW30: Fabricación de productos textiles | AX30: 0 | AY30: 2 | AZ30: 0 | BA30: 1 | BB30: 0 | BC30: 1 | BF30: 95 | BG30: 0 | BH30: 91 | BI30: 0 | BJ30: =VLOOKUP(BH30,Hoja4!$A$29:$B$61,2,FALSE) -> Amazonas | BL30: Total | BM30: =SUM(BM2:BM29) -> 3160 | BN30: =SUM(BN2:BN29) -> 52943 | BP30: 20011 | BQ30: 1 | BR30: 50001 | BS30: 16 | BU30: Total | BW30: =SUM(BW2:BW29) -> 3160 | BX30: =SUM(BX2:BX29) -> 52943
C31: 11001 | D31: BOGOTÁ, D.C. | E31: 0 | F31: 0 | G31: Natural | H31: 11 | I31: BOGOTÁ, D.C. | J31: 0 | K31: PEQUEÑA | L31: 4520 | M31: COMERCIO AL POR MAYOR Y AL POR MENOR; REPARACIÓN DE VEHÍCULOS AUTOMOTORES Y MOTOCICLETAS | N31: G | O31: Mantenimiento y reparación de vehículos automotores | P31: Mantenimiento y reparación de vehículos automotores | Q31: 0 | R31: 0 | S31: 0 | T31: 0 | U31: 0 | V31: 0 | X31: 86 | Y31: 42 | Z31: 95 | AA31: 8 | AB31: =VLOOKUP(Z31,Hoja4!$A$29:$B$61,2,FALSE) -> Guaviare | AH31: 0 | AI31: 0 | AJ31: 11001 | AK31: BOGOTÁ, D.C. | AL31: 1 | AM31: 0 | AN31: Natural | AO31: 11 | AP31: BOGOTÁ, D.C. | AQ31: Aprobado con subsidio | AR31: MICRO | AS31: 1081 | AT31: INDUSTRIAS MANUFACTURERAS | AU31: C | AV31: Elaboración de otros productos alimenticios | AW31: Elaboración de productos alimenticios | AX31: 1 | AY31: 0 | AZ31: 0 | BA31: 0 | BB31: 1 | BC31: 0 | BF31: 86 | BG31: 3 | BH31: 95 | BI31: 0 | BJ31: =VLOOKUP(BH31,Hoja4!$A$29:$B$61,2,FALSE) -> Guaviare | BP31: 63001 | BQ31: 25 | BR31: 5318 | BS31: 15
C32: 25279 | D32: FOMEQUE | E32: 1 | F32: 5 | G32: Natural | H32: 25 | I32: CUNDINAMARCA | J32: Aprobado con subsidio | K32: PEQUEÑA | L32: 145 | M32: AGRICULTURA, GANADERÍA, CAZA, SILVICULTURA Y PESCA | N32: A | O32: Ganadería | P32: Ganadería | Q32: 0 | R32: 1 | S32: 0 | T32: 1 | U32: 0 | V32: 0 | X32: 27 | Y32: 13 | Z32: 94 | AA32: 3 | AB32: =VLOOKUP(Z32,Hoja4!$A$29:$B$61,2,FALSE) -> Guainía | AH32: 0 | AI32: 0 | AJ32: 15238 | AK32: DUITAMA | AL32: 0 | AM32: 0 | AN32: Natural | AO32: 15 | AP32: BOYACÁ | AQ32: 0 | AR32: MICRO | AS32: 1040 | AT32: INDUSTRIAS MANUFACTURERAS | AU32: C | AV32: Elaboración de productos lácteos | AW32: Elaboración de productos alimenticios | AX32: 0 | AY32: 0 | AZ32: 0 | BA32: 0 | BB32: 0 | BC32: 0 | BF32: 27 | BG32: 0 | BH32: 27 | BI32: 0 | BJ32: =VLOOKUP(BH32,Hoja4!$A$29:$B$61,2,FALSE) -> Chocó | BP32: 66170 | BQ32: 43 | BR32: 68276 | BS32: 14
C33: 25214 | D33: COTA | E33: 1 | F33: 6 | G33: Natural | H33: 25 | I33: CUNDINAMARCA | J33: Aprobado con subsidio | K33: MICRO | L33: 4290 | M33: CONSTRUCCIÓN | N33: F | O33: Construcción de otras obras de ingeniería civil | P33: Construcción de otras obras de ingeniería civil | Q33: 0 | R33: 1 | S33: 0 | T33: 0 | U33: 0 | V33: 1 | X33: 94 | Y33: 3 | Z33: 97 | AA33: 2 | AB33: =VLOOKUP(Z33,Hoja4!$A$29:$B$61,2,FALSE) -> Vaupés | AH33: 0 | AI33: 0 | AJ33: 85010 | AK33: AGUAZUL | AL33: 0 | AM33: 0 | AN33: Natural | AO33: 85 | AP33: CASANARE | AQ33: 0 | AR33: GRANDE | AS33: 3311 | AT33: INDUSTRIAS MANUFACTURERAS | AU33: C | AV33: Mantenimiento y reparación especializado de productos elaborados en metal y de maquinaria y equipo | AW33: Instalación, mantenimiento y reparación especializado de maquinaria y equipo | AX33: 0 | AY33: 0 | AZ33: 0 | BA33: 0 | BB33: 0 | BC33: 0 | BF33: 94 | BG33: 0 | BH33: 94 | BI33: 0 | BJ33: =VLOOKUP(BH33,Hoja4!$A$29:$B$61,2,FALSE) -> Guainía | BP33: 66682 | BQ33: 2 | BR33: 5440 | BS33: 14
C34: 25758 | D34: SOPÓ | E34: 1 | F34: 3 | G34: Natural | H34: 25 | I34: CUNDINAMARCA | J34: Aprobado con subsidio | K34: MICRO | L34: 141 | M34: AGRICULTURA, GANADERÍA, CAZA, SILVICULTURA Y PESCA | N34: A | O34: Ganadería | P34: Ganadería | Q34: 0 | R34: 1 | S34: 0 | T34: 1 | U34: 0 | V34: 0 | X34: 99 | Y34: 2 | Z34: 99 | AA34: 2 | AB34: =VLOOKUP(Z34,Hoja4!$A$29:$B$61,2,FALSE) -> Vichada | AH34: 0 | AI34: 0 | AJ34: 8001 | AK34: BARRANQUILLA | AL34: 1 | AM34: 3 | AN34: Natural | AO34: 8 | AP34: ATLÁNTICO | AQ34: Aprobado con subsidio | AR34: PEQUEÑA | AS34: 1081 | AT34: INDUSTRIAS MANUFACTURERAS | AU34: C | AV34: Elaboración de otros productos alimenticios | AW34: Elaboración de productos alimenticios | AX34: 0 | AY34: 1 | AZ34: 0 | BA34: 1 | BB34: 0 | BC34: 0 | BF34: 99 | BG34: 0 | BH34: 99 | BI34: 0 | BJ34: =VLOOKUP(BH34,Hoja4!$A$29:$B$61,2,FALSE) -> Vichada | BP34: 66001 | BQ34: 39 | BR34: 23001 | BS34: 13
C35: 25297 | D35: GACHETÁ | E35: 1 | F35: 3 | G35: Natural | H35: 25 | I35: CUNDINAMARCA | J35: Aprobado con subsidio | K35: MICRO | L35: 4663 | M35: COMERCIO AL POR MAYOR Y AL POR MENOR; REPARACIÓN DE VEHÍCULOS AUTOMOTORES Y MOTOCICLETAS | N35: G | O35: Comercio al por mayor especializado de otros productos | P35: Comercio al por mayor especializado de otros productos | Q35: 1 | R35: 0 | S35: 0 | T35: 1 | U35: 0 | V35: 0 | AH35: 0 | AI35: 0 | AJ35: 20001 | AK35: VALLEDUPAR | AL35: 11 | AM35: 0 | AN35: Natural | AO35: 20 | AP35: CESAR | AQ35: Aprobado con subsidio | AR35: PEQUEÑA | AS35: 1410 | AT35: INDUSTRIAS MANUFACTURERAS | AU35: C | AV35: Confección de prendas de vestir, excepto prendas de piel | AW35: Confección de prendas de vestir | AX35: 6 | AY35: 5 | AZ35: 0 | BA35: 3 | BB35: 4 | BC35: 4 | BP35: 5088 | BQ35: 24 | BR35: 25430 | BS35: 13
C36: 11001 | D36: BOGOTÁ, D.C. | E36: 0 | F36: 0 | G36: Natural | H36: 11 | I36: BOGOTÁ, D.C. | J36: 0 | K36: MICRO | L36: 2711 | M36: INDUSTRIAS MANUFACTURERAS | N36: C | O36: Fabricación de motores, generadores y transformadores eléctricos y de aparatos de distribución y control de la energía eléctrica | P36: Fabricación de aparatos y equipo eléctrico | Q36: 0 | R36: 0 | S36: 0 | T36: 0 | U36: 0 | V36: 0 | AH36: 0 | AI36: 0 | AJ36: 5318 | AK36: GUARNE | AL36: 6 | AM36: 12 | AN36: Natural | AO36: 5 | AP36: ANTIOQUIA | AQ36: Aprobado con subsidio | AR36: PEQUEÑA | AS36: 2221 | AT36: INDUSTRIAS MANUFACTURERAS | AU36: C | AV36: Fabricación de productos de plástico | AW36: Fabricación de productos de caucho y de plástico | AX36: 4 | AY36: 2 | AZ36: 0 | BA36: 2 | BB36: 4 | BC36: 0 | BP36: 17380 | BQ36: 1 | BR36: 5308 | BS36: 13
C37: 11001 | D37: BOGOTÁ, D.C. | E37: 0 | F37: 0 | G37: Natural | H37: 11 | I37: BOGOTÁ, D.C. | J37: 0 | K37: PEQUEÑA | L37: 8521 | M37: EDUCACIÓN | N37: P | O37: Educación secundaria y de formación laboral | P37: Educación secundaria y de formación laboral | Q37: 0 | R37: 0 | S37: 0 | T37: 0 | U37: 0 | V37: 0 | AH37: 0 | AI37: 0 | AJ37: 76001 | AK37: CALI | AL37: 1 | AM37: 1 | AN37: Natural | AO37: 76 | AP37: VALLE DEL CAUCA | AQ37: Aprobado con subsidio | AR37: PEQUEÑA | AS37: 1313 | AT37: INDUSTRIAS MANUFACTURERAS | AU37: C | AV37: Preparación, hilatura, tejeduría y acabado de productos textiles | AW37: Fabricación de productos textiles | AX37: 1 | AY37: 0 | AZ37: 0 | BA37: 1 | BB37: 0 | BC37: 0 | BP37: 17001 | BQ37: 53 | BR37: 5697 | BS37: 13
C38: 11001 | D38: BOGOTÁ, D.C. | E38: 0 | F38: 0 | G38: Natural | H38: 11 | I38: BOGOTÁ, D.C. | J38: 0 | K38: PEQUEÑA | L38: 1513 | M38: INDUSTRIAS MANUFACTURERAS | N38: C | O38: Curtido y recurtido de cueros; fabricación de artículos de viaje, bolsos de mano y artículos similares, y fabricación de artículos de talabartería y guarnicionería; adobo y teñido de pieles | P38: Curtido y recurtido de cueros; fabricación de calzado; fabricación de artículos de viaje, maletas, bolsos de mano y artículos similares, y fabricación de artículos de talabartería y guarnicionería; adobo y teñido de pieles | Q38: 0 | R38: 0 | S38: 0 | T38: 0 | U38: 0 | V38: 0 | AH38: 0 | AI38: 0 | AJ38: 41001 | AK38: NEIVA | AL38: 2 | AM38: 5 | AN38: Natural | AO38: 41 | AP38: HUILA | AQ38: Aprobado con subsidio | AR38: MICRO | AS38: 1081 | AT38: INDUSTRIAS MANUFACTURERAS | AU38: C | AV38: Elaboración de otros productos alimenticios | AW38: Elaboración de productos alimenticios | AX38: 1 | AY38: 1 | AZ38: 0 | BA38: 2 | BB38: 0 | BC38: 0 | BP38: 19698 | BQ38: 1 | BR38: 68081 | BS38: 12
C39: 11001 | D39: BOGOTÁ, D.C. | E39: 1 | F39: 3 | G39: Natural | H39: 11 | I39: BOGOTÁ, D.C. | J39: Aprobado con subsidio | K39: MICRO | L39: 7310 | M39: ACTIVIDADES PROFESIONALES, CIENTÍFICAS Y TÉCNICAS | N39: M | O39: Publicidad | P39: Publicidad | Q39: 0 | R39: 1 | S39: 0 | T39: 1 | U39: 0 | V39: 0 | AH39: 0 | AI39: 0 | AJ39: 18753 | AK39: SAN VICENTE DEL CAGUÁN | AL39: 2 | AM39: 1 | AN39: Natural | AO39: 18 | AP39: CAQUETÁ | AQ39: Aprobado con subsidio | AR39: MICRO | AS39: 1040 | AT39: INDUSTRIAS MANUFACTURERAS | AU39: C | AV39: Elaboración de productos lácteos | AW39: Elaboración de productos alimenticios | AX39: 0 | AY39: 2 | AZ39: 0 | BA39: 2 | BB39: 0 | BC39: 0 | BP39: 52835 | BQ39: 1 | BR39: 5237 | BS39: 12
C40: 15407 | D40: VILLA DE LEYVA | E40: 0 | F40: 0 | G40: Natural | H40: 15 | I40: BOYACÁ | J40: 0 | K40: MICRO | L40: 5511 | M40: ALOJAMIENTO Y SERVICIOS DE COMIDA | N40: I | O40: Actividades de alojamiento de estancias cortas | P40: Actividades de alojamiento de estancias cortas | Q40: 0 | R40: 0 | S40: 0 | T40: 0 | U40: 0 | V40: 0 | AH40: 0 | AI40: 0 | AJ40: 95001 | AK40: SAN JOSÉ DEL GUAVIARE | AL40: 0 | AM40: 0 | AN40: Natural | AO40: 95 | AP40: GUAVIARE | AQ40: 0 | AR40: MICRO | AS40: 1040 | AT40: INDUSTRIAS MANUFACTURERAS | AU40: C | AV40: Elaboración de productos lácteos | AW40: Elaboración de productos alimenticios | AX40: 0 | AY40: 0 | AZ40: 0 | BA40: 0 | BB40: 0 | BC40: 0 | BP40: 52001 | BQ40: 19 | BR40: 47001 | BS40: 12
C41: 25754 | D41: SOACHA | E41: 2 | F41: 0 | G41: Natural | H41: 25 | I41: CUNDINAMARCA | J41: Aprobado con subsidio | K41: MICRO | L41: 8219 | M41: ACTIVIDADES DE SERVICIOS ADMINISTRATIVOS Y DE APOYO | N41: N | O41: Actividades administrativas y de apoyo de oficina | P41: Actividades administrativas y de apoyo de oficina | Q41: 2 | R41: 0 | S41: 0 | T41: 1 | U41: 1 | V41: 0 | AH41: 0 | AI41: 0 | AJ41: 5001 | AK41: MEDELLÍN | AL41: 1 | AM41: 2 | AN41: Natural | AO41: 5 | AP41: ANTIOQUIA | AQ41: Aprobado con subsidio | AR41: MICRO | AS41: 2511 | AT41: INDUSTRIAS MANUFACTURERAS | AU41: C | AV41: Fabricación de productos metálicos para uso estructural, tanques, depósitos y generadores de vapor. | AW41: Fabricación de productos elaborados de metal, excepto maquinaria y equipo | AX41: 0 | AY41: 1 | AZ41: 0 | BA41: 1 | BB41: 0 | BC41: 0 | BP41: 54405 | BQ41: 7 | BR41: 5212 | BS41: 10
C42: 11001 | D42: BOGOTÁ, D.C. | E42: 12 | F42: 11 | G42: Natural | H42: 11 | I42: BOGOTÁ, D.C. | J42: Aprobado con subsidio | K42: PEQUEÑA | L42: 6910 | M42: ACTIVIDADES PROFESIONALES, CIENTÍFICAS Y TÉCNICAS | N42: M | O42: Actividades jurídicas | P42: Actividades jurídicas | Q42: 9 | R42: 3 | S42: 0 | T42: 12 | U42: 0 | V42: 0 | AH42: 0 | AI42: 0 | AJ42: 5001 | AK42: MEDELLÍN | AL42: 4 | AM42: 2 | AN42: Natural | AO42: 5 | AP42: ANTIOQUIA | AQ42: Aprobado con subsidio | AR42: MICRO | AS42: 1089 | AT42: INDUSTRIAS MANUFACTURERAS | AU42: C | AV42: Elaboración de otros productos alimenticios | AW42: Elaboración de productos alimenticios | AX42: 3 | AY42: 1 | AZ42: 0 | BA42: 2 | BB42: 2 | BC42: 0 | BP42: 68081 | BQ42: 12 | BR42: 15238 | BS42: 9
C43: 11001 | D43: BOGOTÁ, D.C. | E43: 0 | F43: 2 | G43: Natural | H43: 11 | I43: BOGOTÁ, D.C. | J43: Aprobado con subsidio | K43: MICRO | L43: 4751 | M43: COMERCIO AL POR MAYOR Y AL POR MENOR; REPARACIÓN DE VEHÍCULOS AUTOMOTORES Y MOTOCICLETAS | N43: G | O43: Comercio al por menor de otros enseres domésticos en establecimientos especializados | P43: Comercio al por menor de otros enseres domésticos en establecimientos especializados | Q43: 0 | R43: 0 | S43: 0 | T43: 0 | U43: 0 | V43: 0 | AH43: 0 | AI43: 0 | AJ43: 5686 | AK43: SANTA ROSA DE OSOS | AL43: 4 | AM43: 7 | AN43: Natural | AO43: 5 | AP43: ANTIOQUIA | AQ43: Aprobado con subsidio | AR43: MICRO | AS43: 1610 | AT43: INDUSTRIAS MANUFACTURERAS | AU43: C | AV43: Aserrado, acepillado e impregnación de la madera | AW43: Transformación de la madera y fabricación de productos de madera y de corcho, excepto muebles; fabricación de artículos de cestería y espartería | AX43: 0 | AY43: 4 | AZ43: 0 | BA43: 0 | BB43: 0 | BC43: 4 | BP43: 50006 | BQ43: 2 | BR43: 25899 | BS43: 9
C44: 25785 | D44: TABIO | E44: 1 | F44: 2 | G44: Natural | H44: 25 | I44: CUNDINAMARCA | J44: Aprobado con subsidio | K44: MICRO | L44: 9004 | M44: ACTIVIDADES ARTÍSTICAS, DE ENTRETENIMIENTO Y RECREACIÓN | N44: R | O44: Actividades creativas, artísticas y de entretenimiento | P44: Actividades creativas, artísticas y de entretenimiento | Q44: 1 | R44: 0 | S44: 0 | T44: 1 | U44: 0 | V44: 0 | AH44: 0 | AI44: 0 | AJ44: 5001 | AK44: MEDELLÍN | AL44: 1 | AM44: 5 | AN44: Natural | AO44: 5 | AP44: ANTIOQUIA | AQ44: Aprobado con subsidio | AR44: PEQUEÑA | AS44: 1081 | AT44: INDUSTRIAS MANUFACTURERAS | AU44: C | AV44: Elaboración de otros productos alimenticios | AW44: Elaboración de productos alimenticios | AX44: 0 | AY44: 1 | AZ44: 0 | BA44: 1 | BB44: 0 | BC44: 0 | BP44: 76834 | BQ44: 3 | BR44: 85001 | BS44: 8
C45: 25799 | D45: TENJO | E45: 0 | F45: 0 | G45: Natural | H45: 25 | I45: CUNDINAMARCA | J45: 0 | K45: PEQUEÑA | L45: 4711 | M45: COMERCIO AL POR MAYOR Y AL POR MENOR; REPARACIÓN DE VEHÍCULOS AUTOMOTORES Y MOTOCICLETAS | N45: G | O45: Comercio al por menor en establecimientos no especializados | P45: Comercio al por menor en establecimientos no especializados | Q45: 0 | R45: 0 | S45: 0 | T45: 0 | U45: 0 | V45: 0 | AH45: 0 | AI45: 0 | AJ45: 5631 | AK45: SABANETA | AL45: 5 | AM45: 17 | AN45: Natural | AO45: 5 | AP45: ANTIOQUIA | AQ45: Aprobado con subsidio | AR45: PEQUEÑA | AS45: 3110 | AT45: INDUSTRIAS MANUFACTURERAS | AU45: C | AV45: Fabricación de muebles | AW45: Fabricación de muebles, colchones y somieres | AX45: 3 | AY45: 2 | AZ45: 0 | BA45: 1 | BB45: 3 | BC45: 1 | BP45: 76670 | BQ45: 2 | BR45: 5129 | BS45: 8
C46: 50001 | D46: VILLAVICENCIO | E46: 4 | F46: 5 | G46: Natural | H46: 50 | I46: META | J46: Aprobado con subsidio | K46: MICRO | L46: 4729 | M46: COMERCIO AL POR MAYOR Y AL POR MENOR; REPARACIÓN DE VEHÍCULOS AUTOMOTORES Y MOTOCICLETAS | N46: G | O46: Comercio al por menor de alimentos (víveres en general), bebidas y tabaco, en establecimientos especializados | P46: Comercio al por menor de alimentos (víveres en general), bebidas y tabaco, en establecimientos especializados | Q46: 0 | R46: 4 | S46: 0 | T46: 4 | U46: 0 | V46: 0 | AH46: 0 | AI46: 0 | AJ46: 5368 | AK46: JERICÓ | AL46: 13 | AM46: 5 | AN46: Natural | AO46: 5 | AP46: ANTIOQUIA | AQ46: Aprobado con subsidio | AR46: PEQUEÑA | AS46: 1084 | AT46: INDUSTRIAS MANUFACTURERAS | AU46: C | AV46: Elaboración de otros productos alimenticios | AW46: Elaboración de productos alimenticios | AX46: 8 | AY46: 5 | AZ46: 0 | BA46: 8 | BB46: 4 | BC46: 1 | BP46: 5761 | BQ46: 0 | BR46: 76147 | BS46: 8
C47: 25875 | D47: VILLETA | E47: 1 | F47: 0 | G47: Natural | H47: 25 | I47: CUNDINAMARCA | J47: Aprobado con subsidio | K47: PEQUEÑA | L47: 1081 | M47: INDUSTRIAS MANUFACTURERAS | N47: C | O47: Elaboración de otros productos alimenticios | P47: Elaboración de productos alimenticios | Q47: 1 | R47: 0 | S47: 0 | T47: 1 | U47: 0 | V47: 0 | AH47: 0 | AI47: 0 | AJ47: 8001 | AK47: BARRANQUILLA | AL47: 0 | AM47: 0 | AN47: Natural | AO47: 8 | AP47: ATLÁNTICO | AQ47: 0 | AR47: MICRO | AS47: 3312 | AT47: INDUSTRIAS MANUFACTURERAS | AU47: C | AV47: Mantenimiento y reparación especializado de productos elaborados en metal y de maquinaria y equipo | AW47: Instalación, mantenimiento y reparación especializado de maquinaria y equipo | AX47: 0 | AY47: 0 | AZ47: 0 | BA47: 0 | BB47: 0 | BC47: 0 | BP47: 5148 | BQ47: 3 | BR47: 20001 | BS47: 7
C48: 25269 | D48: FACATATIVÁ | E48: 6 | F48: 1 | G48: Natural | H48: 25 | I48: CUNDINAMARCA | J48: Aprobado con subsidio | K48: MICRO | L48: 8560 | M48: EDUCACIÓN | N48: P | O48: Actividades de apoyo a la educación | P48: Actividades de apoyo a la educación | Q48: 3 | R48: 3 | S48: 0 | T48: 2 | U48: 1 | V48: 3 | AH48: 0 | AI48: 0 | AJ48: 15759 | AK48: SOGAMOSO | AL48: 0 | AM48: 0 | AN48: Natural | AO48: 15 | AP48: BOYACÁ | AQ48: 0 | AR48: MICRO | AS48: 2790 | AT48: INDUSTRIAS MANUFACTURERAS | AU48: C | AV48: Fabricación de otros tipos de equipo eléctrico n.c.p. | AW48: Fabricación de aparatos y equipo eléctrico | AX48: 0 | AY48: 0 | AZ48: 0 | BA48: 0 | BB48: 0 | BC48: 0 | BP48: 19130 | BQ48: 2 | BR48: 54405 | BS48: 7
C49: 85001 | D49: YOPAL | E49: 4 | F49: 0 | G49: Natural | H49: 85 | I49: CASANARE | J49: Aprobado con subsidio | K49: MICRO | L49: 4769 | M49: COMERCIO AL POR MAYOR Y AL POR MENOR; REPARACIÓN DE VEHÍCULOS AUTOMOTORES Y MOTOCICLETAS | N49: G | O49: Comercio al por menor de artículos culturales y de entretenimiento, en establecimientos especializados | P49: Comercio al por menor de artículos culturales y de entretenimiento, en establecimientos especializados | Q49: 3 | R49: 1 | S49: 0 | T49: 3 | U49: 1 | V49: 0 | AH49: 0 | AI49: 0 | AJ49: 85139 | AK49: MANÍ | AL49: 2 | AM49: 0 | AN49: Natural | AO49: 85 | AP49: CASANARE | AQ49: Aprobado con subsidio | AR49: MICRO | AS49: 1630 | AT49: INDUSTRIAS MANUFACTURERAS | AU49: C | AV49: Fabricación de partes y piezas de madera, de carpintería y ebanistería para la construcción | AW49: Transformación de la madera y fabricación de productos de madera y de corcho, excepto muebles; fabricación de artículos de cestería y espartería | AX49: 0 | AY49: 2 | AZ49: 0 | BA49: 1 | BB49: 0 | BC49: 1 | BP49: 5376 | BQ49: 4 | BR49: 70001 | BS49: 7
C50: 50001 | D50: VILLAVICENCIO | E50: 0 | F50: 0 | G50: Natural | H50: 50 | I50: META | J50: 0 | K50: MICRO | L50: 6810 | M50: ACTIVIDADES INMOBILIARIAS | N50: L | O50: Actividades inmobiliarias realizadas con bienes propios o arrendados | P50: Actividades inmobiliarias realizadas con bienes propios o arrendados | Q50: 0 | R50: 0 | S50: 0 | T50: 0 | U50: 0 | V50: 0 | AH50: 0 | AI50: 0 | AJ50: 85001 | AK50: YOPAL | AL50: 15 | AM50: 30 | AN50: Natural | AO50: 85 | AP50: CASANARE | AQ50: Aprobado con subsidio | AR50: PEQUEÑA | AS50: 3312 | AT50: INDUSTRIAS MANUFACTURERAS | AU50: C | AV50: Mantenimiento y reparación especializado de productos elaborados en metal y de maquinaria y equipo | AW50: Instalación, mantenimiento y reparación especializado de maquinaria y equipo | AX50: 1 | AY50: 14 | AZ50: 0 | BA50: 5 | BB50: 1 | BC50: 9 | BP50: 73001 | BQ50: 40 | BR50: 8296 | BS50: 7
C51: 5360 | D51: ITAGUI | E51: 0 | F51: 0 | G51: Natural | H51: 5 | I51: ANTIOQUIA | J51: 0 | K51: MICRO | L51: 1921 | M51: INDUSTRIAS MANUFACTURERAS | N51: C | O51: Fabricación de productos de la refinación del petróleo | P51: Coquización, fabricación de productos de la refinación del petróleo y actividad de mezcla de combustibles | Q51: 0 | R51: 0 | S51: 0 | T51: 0 | U51: 0 | V51: 0 | AH51: 0 | AI51: 0 | AJ51: 20011 | AK51: AGUACHICA | AL51: 8 | AM51: 4 | AN51: Natural | AO51: 20 | AP51: CESAR | AQ51: Aprobado con subsidio | AR51: PEQUEÑA | AS51: 2511 | AT51: INDUSTRIAS MANUFACTURERAS | AU51: C | AV51: Fabricación de productos metálicos para uso estructural, tanques, depósitos y generadores de vapor. | AW51: Fabricación de productos elaborados de metal, excepto maquinaria y equipo | AX51: 2 | AY51: 6 | AZ51: 0 | BA51: 7 | BB51: 1 | BC51: 0 | BP51: 25290 | BQ51: 6 | BR51: 25126 | BS51: 7
C52: 5001 | D52: MEDELLÍN | E52: 1 | F52: 0 | G52: Natural | H52: 5 | I52: ANTIOQUIA | J52: Aprobado con subsidio | K52: MICRO | L52: 90 | M52: OTRAS | N52: Otras | O52: Otras | P52: Otras | Q52: 0 | R52: 1 | S52: 0 | T52: 0 | U52: 0 | V52: 1 | AH52: 0 | AI52: 0 | AJ52: 63001 | AK52: ARMENIA | AL52: 1 | AM52: 0 | AN52: Natural | AO52: 63 | AP52: QUINDÍO | AQ52: Aprobado con subsidio | AR52: MICRO | AS52: 1410 | AT52: INDUSTRIAS MANUFACTURERAS | AU52: C | AV52: Confección de prendas de vestir, excepto prendas de piel | AW52: Confección de prendas de vestir | AX52: 0 | AY52: 1 | AZ52: 0 | BA52: 1 | BB52: 0 | BC52: 0 | BP52: 50001 | BQ52: 16 | BR52: 76364 | BS52: 7
C53: 15759 | D53: SOGAMOSO | E53: 1 | F53: 3 | G53: Natural | H53: 15 | I53: BOYACÁ | J53: Aprobado con subsidio | K53: MICRO | L53: 4799 | M53: COMERCIO AL POR MAYOR Y AL POR MENOR; REPARACIÓN DE VEHÍCULOS AUTOMOTORES Y MOTOCICLETAS | N53: G | O53: Comercio al por menor no realizado en establecimientos, puestos de venta o mercados | P53: Comercio al por menor no realizado en establecimientos, puestos de venta o mercados | Q53: 1 | R53: 0 | S53: 0 | T53: 1 | U53: 0 | V53: 0 | AH53: 0 | AI53: 0 | AJ53: 66170 | AK53: DOSQUEBRADAS | AL53: 0 | AM53: 0 | AN53: Natural | AO53: 66 | AP53: RISARALDA | AQ53: 0 | AR53: PEQUEÑA | AS53: 3311 | AT53: INDUSTRIAS MANUFACTURERAS | AU53: C | AV53: Mantenimiento y reparación especializado de productos elaborados en metal y de maquinaria y equipo | AW53: Instalación, mantenimiento y reparación especializado de maquinaria y equipo | AX53: 0 | AY53: 0 | AZ53: 0 | BA53: 0 | BB53: 0 | BC53: 0 | BP53: 18001 | BQ53: 6 | BR53: 15759 | BS53: 6
C54: 5001 | D54: MEDELLÍN | E54: 0 | F54: 0 | G54: Natural | H54: 5 | I54: ANTIOQUIA | J54: 0 | K54: MICRO | L54: 141 | M54: AGRICULTURA, GANADERÍA, CAZA, SILVICULTURA Y PESCA | N54: A | O54: Ganadería | P54: Ganadería | Q54: 0 | R54: 0 | S54: 0 | T54: 0 | U54: 0 | V54: 0 | AH54: 0 | AI54: 0 | AJ54: 66682 | AK54: SANTA ROSA DE CABAL | AL54: 0 | AM54: 0 | AN54: Natural | AO54: 66 | AP54: RISARALDA | AQ54: 0 | AR54: PEQUEÑA | AS54: 2712 | AT54: INDUSTRIAS MANUFACTURERAS | AU54: C | AV54: Fabricación de motores, generadores y transformadores eléctricos y de aparatos de distribución y control de la energía eléctrica | AW54: Fabricación de aparatos y equipo eléctrico | AX54: 0 | AY54: 0 | AZ54: 0 | BA54: 0 | BB54: 0 | BC54: 0 | BP54: 66400 | BQ54: 1 | BR54: 25290 | BS54: 6
C55: 5001 | D55: MEDELLÍN | E55: 1 | F55: 2 | G55: Natural | H55: 5 | I55: ANTIOQUIA | J55: Aprobado con subsidio | K55: MICRO | L55: 5611 | M55: ALOJAMIENTO Y SERVICIOS DE COMIDA | N55: I | O55: Actividades de restaurantes, cafeterías y servicio móvil de comidas | P55: Actividades de restaurantes, cafeterías y servicio móvil de comidas | Q55: 0 | R55: 1 | S55: 0 | T55: 0 | U55: 0 | V55: 1 | AH55: 0 | AI55: 0 | AJ55: 66001 | AK55: PEREIRA | AL55: 2 | AM55: 17 | AN55: Natural | AO55: 66 | AP55: RISARALDA | AQ55: Aprobado con subsidio | AR55: PEQUEÑA | AS55: 1410 | AT55: INDUSTRIAS MANUFACTURERAS | AU55: C | AV55: Confección de prendas de vestir, excepto prendas de piel | AW55: Confección de prendas de vestir | AX55: 2 | AY55: 0 | AZ55: 0 | BA55: 2 | BB55: 0 | BC55: 0 | BP55: 25754 | BQ55: 25 | BR55: 18001 | BS55: 6
C56: 5001 | D56: MEDELLÍN | E56: 3 | F56: 0 | G56: Natural | H56: 5 | I56: ANTIOQUIA | J56: Aprobado con subsidio | K56: MICRO | L56: 4722 | M56: COMERCIO AL POR MAYOR Y AL POR MENOR; REPARACIÓN DE VEHÍCULOS AUTOMOTORES Y MOTOCICLETAS | N56: G | O56: Comercio al por menor de alimentos (víveres en general), bebidas y tabaco, en establecimientos especializados | P56: Comercio al por menor de alimentos (víveres en general), bebidas y tabaco, en establecimientos especializados | Q56: 1 | R56: 2 | S56: 0 | T56: 1 | U56: 1 | V56: 1 | AH56: 0 | AI56: 0 | AJ56: 66001 | AK56: PEREIRA | AL56: 0 | AM56: 0 | AN56: Natural | AO56: 66 | AP56: RISARALDA | AQ56: 0 | AR56: MICRO | AS56: 1081 | AT56: INDUSTRIAS MANUFACTURERAS | AU56: C | AV56: Elaboración de otros productos alimenticios | AW56: Elaboración de productos alimenticios | AX56: 0 | AY56: 0 | AZ56: 0 | BA56: 0 | BB56: 0 | BC56: 0 | BP56: 15087 | BQ56: 0 | BR56: 15001 | BS56: 6
C57: 5001 | D57: MEDELLÍN | E57: 2 | F57: 0 | G57: Natural | H57: 5 | I57: ANTIOQUIA | J57: Aprobado con subsidio | K57: MICRO | L57: 3240 | M57: INDUSTRIAS MANUFACTURERAS | N57: C | O57: Fabricación de juegos, juguetes y rompecabezas | P57: Otras industrias manufactureras | Q57: 1 | R57: 1 | S57: 0 | T57: 1 | U57: 0 | V57: 1 | AH57: 0 | AI57: 0 | AJ57: 5088 | AK57: BELLO | AL57: 0 | AM57: 0 | AN57: Natural | AO57: 5 | AP57: ANTIOQUIA | AQ57: 0 | AR57: MICRO | AS57: 1081 | AT57: INDUSTRIAS MANUFACTURERAS | AU57: C | AV57: Elaboración de otros productos alimenticios | AW57: Elaboración de productos alimenticios | AX57: 0 | AY57: 0 | AZ57: 0 | BA57: 0 | BB57: 0 | BC57: 0 | BP57: 47288 | BQ57: 1 | BR57: 54874 | BS57: 6
C58: 5001 | D58: MEDELLÍN | E58: 1 | F58: 0 | G58: Natural | H58: 5 | I58: ANTIOQUIA | J58: Aprobado con subsidio | K58: MICRO | L58: 4771 | M58: COMERCIO AL POR MAYOR Y AL POR MENOR; REPARACIÓN DE VEHÍCULOS AUTOMOTORES Y MOTOCICLETAS | N58: G | O58: Comercio al por menor de otros productos en establecimientos especializados | P58: Comercio al por menor de otros productos en establecimientos especializados | Q58: 1 | R58: 0 | S58: 0 | T58: 1 | U58: 0 | V58: 0 | AH58: 0 | AI58: 0 | AJ58: 17380 | AK58: LA DORADA | AL58: 1 | AM58: 0 | AN58: Natural | AO58: 17 | AP58: CALDAS | AQ58: Aprobado con subsidio | AR58: MICRO | AS58: 1610 | AT58: INDUSTRIAS MANUFACTURERAS | AU58: C | AV58: Aserrado, acepillado e impregnación de la madera | AW58: Transformación de la madera y fabricación de productos de madera y de corcho, excepto muebles; fabricación de artículos de cestería y espartería | AX58: 0 | AY58: 1 | AZ58: 0 | BA58: 1 | BB58: 0 | BC58: 0 | BP58: 5045 | BQ58: 2 | BR58: 5079 | BS58: 6
C59: 41001 | D59: NEIVA | E59: 0 | F59: 0 | G59: Natural | H59: 41 | I59: HUILA | J59: 0 | K59: MICRO | L59: 4755 | M59: COMERCIO AL POR MAYOR Y AL POR MENOR; REPARACIÓN DE VEHÍCULOS AUTOMOTORES Y MOTOCICLETAS | N59: G | O59: Comercio al por menor de otros enseres domésticos en establecimientos especializados | P59: Comercio al por menor de otros enseres domésticos en establecimientos especializados | Q59: 0 | R59: 0 | S59: 0 | T59: 0 | U59: 0 | V59: 0 | AH59: 0 | AI59: 0 | AJ59: 17001 | AK59: MANIZALES | AL59: 0 | AM59: 0 | AN59: Natural | AO59: 17 | AP59: CALDAS | AQ59: 0 | AR59: MEDIANA | AS59: 1523 | AT59: INDUSTRIAS MANUFACTURERAS | AU59: C | AV59: Fabricación de calzado | AW59: Curtido y recurtido de cueros; fabricación de calzado; fabricación de artículos de viaje, maletas, bolsos de mano y artículos similares, y fabricación de artículos de talabartería y guarnicionería; adobo y teñido de pieles | AX59: 0 | AY59: 0 | AZ59: 0 | BA59: 0 | BB59: 0 | BC59: 0 | BP59: 5266 | BQ59: 42 | BR59: 76130 | BS59: 6
C60: 5591 | D60: PUERTO TRIUNFO | E60: 0 | F60: 0 | G60: Natural | H60: 5 | I60: ANTIOQUIA | J60: 0 | K60: MICRO | L60: 4711 | M60: COMERCIO AL POR MAYOR Y AL POR MENOR; REPARACIÓN DE VEHÍCULOS AUTOMOTORES Y MOTOCICLETAS | N60: G | O60: Comercio al por menor en establecimientos no especializados | P60: Comercio al por menor en establecimientos no especializados | Q60: 0 | R60: 0 | S60: 0 | T60: 0 | U60: 0 | V60: 0 | AH60: 0 | AI60: 0 | AJ60: 19698 | AK60: SANTANDER DE QUILICHAO | AL60: 0 | AM60: 0 | AN60: Natural | AO60: 19 | AP60: CAUCA | AQ60: 0 | AR60: MICRO | AS60: 1052 | AT60: INDUSTRIAS MANUFACTURERAS | AU60: C | AV60: Elaboración de productos de molinería, almidones y productos derivados del almidón | AW60: Elaboración de productos alimenticios | AX60: 0 | AY60: 0 | AZ60: 0 | BA60: 0 | BB60: 0 | BC60: 0 | BP60: 70001 | BQ60: 7 | BR60: 25175 | BS60: 6
C61: 5001 | D61: MEDELLÍN | E61: 0 | F61: 0 | G61: Natural | H61: 5 | I61: ANTIOQUIA | J61: 0 | K61: PEQUEÑA | L61: 121 | M61: AGRICULTURA, GANADERÍA, CAZA, SILVICULTURA Y PESCA | N61: A | O61: Cultivos agrícolas permanentes | P61: Cultivos agrícolas permanentes | Q61: 0 | R61: 0 | S61: 0 | T61: 0 | U61: 0 | V61: 0 | AH61: 0 | AI61: 0 | AJ61: 11001 | AK61: BOGOTÁ, D.C. | AL61: 1 | AM61: 0 | AN61: Natural | AO61: 11 | AP61: BOGOTÁ, D.C. | AQ61: Aprobado con subsidio | AR61: MICRO | AS61: 1410 | AT61: INDUSTRIAS MANUFACTURERAS | AU61: C | AV61: Confección de prendas de vestir, excepto prendas de piel | AW61: Confección de prendas de vestir | AX61: 0 | AY61: 1 | AZ61: 0 | BA61: 1 | BB61: 0 | BC61: 0 | BP61: 15516 | BQ61: 1 | BR61: 5686 | BS61: 5
C62: 5264 | D62: ENTRERRIOS | E62: 0 | F62: 0 | G62: Natural | H62: 5 | I62: ANTIOQUIA | J62: 0 | K62: MEDIANA | L62: 121 | M62: AGRICULTURA, GANADERÍA, CAZA, SILVICULTURA Y PESCA | N62: A | O62: Cultivos agrícolas permanentes | P62: Cultivos agrícolas permanentes | Q62: 0 | R62: 0 | S62: 0 | T62: 0 | U62: 0 | V62: 0 | AH62: 0 | AI62: 0 | AJ62: 11001 | AK62: BOGOTÁ, D.C. | AL62: 3 | AM62: 4 | AN62: Natural | AO62: 11 | AP62: BOGOTÁ, D.C. | AQ62: Aprobado con subsidio | AR62: MICRO | AS62: 2394 | AT62: INDUSTRIAS MANUFACTURERAS | AU62: C | AV62: Fabricación de productos minerales no metálicos n.c.p. | AW62: Fabricación de otros productos minerales no metálicos | AX62: 2 | AY62: 1 | AZ62: 0 | BA62: 2 | BB62: 1 | BC62: 0 | BP62: 86001 | BQ62: 3 | BR62: 68547 | BS62: 5
C63: 5264 | D63: ENTRERRIOS | E63: 0 | F63: 0 | G63: Natural | H63: 5 | I63: ANTIOQUIA | J63: 0 | K63: MICRO | L63: 121 | M63: AGRICULTURA, GANADERÍA, CAZA, SILVICULTURA Y PESCA | N63: A | O63: Cultivos agrícolas permanentes | P63: Cultivos agrícolas permanentes | Q63: 0 | R63: 0 | S63: 0 | T63: 0 | U63: 0 | V63: 0 | AH63: 0 | AI63: 0 | AJ63: 20001 | AK63: VALLEDUPAR | AL63: 1 | AM63: 9 | AN63: Natural | AO63: 20 | AP63: CESAR | AQ63: Aprobado con subsidio | AR63: MICRO | AS63: 1089 | AT63: INDUSTRIAS MANUFACTURERAS | AU63: C | AV63: Elaboración de otros productos alimenticios | AW63: Elaboración de productos alimenticios | AX63: 0 | AY63: 1 | AZ63: 0 | BA63: 1 | BB63: 0 | BC63: 0 | BP63: 54518 | BQ63: 3 | BR63: 76111 | BS63: 5
C64: 23001 | D64: MONTERÍA | E64: 0 | F64: 0 | G64: Natural | H64: 23 | I64: CÓRDOBA | J64: 0 | K64: MEDIANA | L64: 4711 | M64: COMERCIO AL POR MAYOR Y AL POR MENOR; REPARACIÓN DE VEHÍCULOS AUTOMOTORES Y MOTOCICLETAS | N64: G | O64: Comercio al por menor en establecimientos no especializados | P64: Comercio al por menor en establecimientos no especializados | Q64: 0 | R64: 0 | S64: 0 | T64: 0 | U64: 0 | V64: 0 | AH64: 0 | AI64: 0 | AJ64: 52835 | AK64: SAN ANDRES DE TUMACO | AL64: 3 | AM64: 0 | AN64: Natural | AO64: 52 | AP64: NARIÑO | AQ64: Aprobado con subsidio | AR64: MICRO | AS64: 1410 | AT64: INDUSTRIAS MANUFACTURERAS | AU64: C | AV64: Confección de prendas de vestir, excepto prendas de piel | AW64: Confección de prendas de vestir | AX64: 2 | AY64: 1 | AZ64: 0 | BA64: 2 | BB64: 1 | BC64: 0 | BP64: 68079 | BQ64: 1 | BR64: 25799 | BS64: 5
C65: 5001 | D65: MEDELLÍN | E65: 0 | F65: 0 | G65: Natural | H65: 5 | I65: ANTIOQUIA | J65: 0 | K65: PEQUEÑA | L65: 4711 | M65: COMERCIO AL POR MAYOR Y AL POR MENOR; REPARACIÓN DE VEHÍCULOS AUTOMOTORES Y MOTOCICLETAS | N65: G | O65: Comercio al por menor en establecimientos no especializados | P65: Comercio al por menor en establecimientos no especializados | Q65: 0 | R65: 0 | S65: 0 | T65: 0 | U65: 0 | V65: 0 | AH65: 0 | AI65: 0 | AJ65: 52001 | AK65: PASTO | AL65: 0 | AM65: 0 | AN65: Natural | AO65: 52 | AP65: NARIÑO | AQ65: 0 | AR65: MICRO | AS65: 1081 | AT65: INDUSTRIAS MANUFACTURERAS | AU65: C | AV65: Elaboración de otros productos alimenticios | AW65: Elaboración de productos alimenticios | AX65: 0 | AY65: 0 | AZ65: 0 | BA65: 0 | BB65: 0 | BC65: 0 | BP65: 23001 | BQ65: 13 | BR65: 25758 | BS65: 5
C66: 11001 | D66: BOGOTÁ, D.C. | E66: 0 | F66: 0 | G66: Natural | H66: 11 | I66: BOGOTÁ, D.C. | J66: 0 | K66: MICRO | L66: 1410 | M66: INDUSTRIAS MANUFACTURERAS | N66: C | O66: Confección de prendas de vestir, excepto prendas de piel | P66: Confección de prendas de vestir | Q66: 0 | R66: 0 | S66: 0 | T66: 0 | U66: 0 | V66: 0 | AH66: 0 | AI66: 0 | AJ66: 52001 | AK66: PASTO | AL66: 3 | AM66: 2 | AN66: Natural | AO66: 52 | AP66: NARIÑO | AQ66: Aprobado con subsidio | AR66: MICRO | AS66: 1811 | AT66: INDUSTRIAS MANUFACTURERAS | AU66: C | AV66: Actividades de impresión y actividades de servicios relacionados con la impresión | AW66: Actividades de impresión y de producción de copias a partir de grabaciones originales | AX66: 3 | AY66: 0 | AZ66: 0 | BA66: 0 | BB66: 3 | BC66: 0 | BP66: 25899 | BQ66: =COUNTIFS($AQ$2:$AQ$399999,"Aprobado con subsidio",$AJ$2:$AJ$399999,BP66) -> 9 | BR66: 68679 | BS66: 5
C67: 11001 | D67: BOGOTÁ, D.C. | E67: 1 | F67: 7 | G67: Natural | H67: 11 | I67: BOGOTÁ, D.C. | J67: Aprobado con subsidio | K67: PEQUEÑA | L67: 4771 | M67: COMERCIO AL POR MAYOR Y AL POR MENOR; REPARACIÓN DE VEHÍCULOS AUTOMOTORES Y MOTOCICLETAS | N67: G | O67: Comercio al por menor de otros productos en establecimientos especializados | P67: Comercio al por menor de otros productos en establecimientos especializados | Q67: 1 | R67: 0 | S67: 0 | T67: 1 | U67: 0 | V67: 0 | AH67: 0 | AI67: 0 | AJ67: 54001 | AK67: CÚCUTA | AL67: 3 | AM67: 1 | AN67: Natural | AO67: 54 | AP67: NORTE DE SANTANDER | AQ67: Aprobado con subsidio | AR67: PEQUEÑA | AS67: 1610 | AT67: INDUSTRIAS MANUFACTURERAS | AU67: C | AV67: Aserrado, acepillado e impregnación de la madera | AW67: Transformación de la madera y fabricación de productos de madera y de corcho, excepto muebles; fabricación de artículos de cestería y espartería | AX67: 0 | AY67: 3 | AZ67: 0 | BA67: 3 | BB67: 0 | BC67: 0 | BP67: 68547 | BQ67: 5 | BR67: 8758 | BS67: 5
C68: 5209 | D68: CONCORDIA | E68: 0 | F68: 0 | G68: Natural | H68: 5 | I68: ANTIOQUIA | J68: 0 | K68: MICRO | L68: 123 | M68: AGRICULTURA, GANADERÍA, CAZA, SILVICULTURA Y PESCA | N68: A | O68: Cultivos agrícolas permanentes | P68: Cultivos agrícolas permanentes | Q68: 0 | R68: 0 | S68: 0 | T68: 0 | U68: 0 | V68: 0 | AH68: 0 | AI68: 0 | AJ68: 54001 | AK68: CÚCUTA | AL68: 2 | AM68: 3 | AN68: Natural | AO68: 54 | AP68: NORTE DE SANTANDER | AQ68: Aprobado con subsidio | AR68: PEQUEÑA | AS68: 1630 | AT68: INDUSTRIAS MANUFACTURERAS | AU68: C | AV68: Fabricación de partes y piezas de madera, de carpintería y ebanistería para la construcción | AW68: Transformación de la madera y fabricación de productos de madera y de corcho, excepto muebles; fabricación de artículos de cestería y espartería | AX68: 0 | AY68: 2 | AZ68: 0 | BA68: 2 | BB68: 0 | BC68: 0 | BP68: 15001 | BQ68: 6 | BR68: 5030 | BS68: 5
C69: 5697 | D69: EL SANTUARIO | E69: 1 | F69: 1 | G69: Natural | H69: 5 | I69: ANTIOQUIA | J69: Aprobado con subsidio | K69: MICRO | L69: 4773 | M69: COMERCIO AL POR MAYOR Y AL POR MENOR; REPARACIÓN DE VEHÍCULOS AUTOMOTORES Y MOTOCICLETAS | N69: G | O69: Comercio al por menor de otros productos en establecimientos especializados | P69: Comercio al por menor de otros productos en establecimientos especializados | Q69: 1 | R69: 0 | S69: 0 | T69: 1 | U69: 0 | V69: 0 | AH69: 0 | AI69: 0 | AJ69: 54001 | AK69: CÚCUTA | AL69: 0 | AM69: 0 | AN69: Natural | AO69: 54 | AP69: NORTE DE SANTANDER | AQ69: 0 | AR69: MICRO | AS69: 3313 | AT69: INDUSTRIAS MANUFACTURERAS | AU69: C | AV69: Mantenimiento y reparación especializado de productos elaborados en metal y de maquinaria y equipo | AW69: Instalación, mantenimiento y reparación especializado de maquinaria y equipo | AX69: 0 | AY69: 0 | AZ69: 0 | BA69: 0 | BB69: 0 | BC69: 0 | BP69: 54820 | BQ69: 1 | BR69: 5376 | BS69: 4
C70: 5001 | D70: MEDELLÍN | E70: 0 | F70: 0 | G70: Natural | H70: 5 | I70: ANTIOQUIA | J70: 0 | K70: PEQUEÑA | L70: 141 | M70: AGRICULTURA, GANADERÍA, CAZA, SILVICULTURA Y PESCA | N70: A | O70: Ganadería | P70: Ganadería | Q70: 0 | R70: 0 | S70: 0 | T70: 0 | U70: 0 | V70: 0 | AH70: 0 | AI70: 0 | AJ70: 54405 | AK70: LOS PATIOS | AL70: 0 | AM70: 0 | AN70: Natural | AO70: 54 | AP70: NORTE DE SANTANDER | AQ70: 0 | AR70: MICRO | AS70: 2395 | AT70: INDUSTRIAS MANUFACTURERAS | AU70: C | AV70: Fabricación de productos minerales no metálicos n.c.p. | AW70: Fabricación de otros productos minerales no metálicos | AX70: 0 | AY70: 0 | AZ70: 0 | BA70: 0 | BB70: 0 | BC70: 0 | BP70: 76109 | BQ70: 2 | BR70: 19001 | BS70: 4
C71: 11001 | D71: BOGOTÁ, D.C. | E71: 1 | F71: 1 | G71: Natural | H71: 11 | I71: BOGOTÁ, D.C. | J71: Aprobado con subsidio | K71: MICRO | L71: 4652 | M71: COMERCIO AL POR MAYOR Y AL POR MENOR; REPARACIÓN DE VEHÍCULOS AUTOMOTORES Y MOTOCICLETAS | N71: G | O71: Comercio al por mayor de maquinaria y equipo | P71: Comercio al por mayor de maquinaria y equipo | Q71: 0 | R71: 1 | S71: 0 | T71: 1 | U71: 0 | V71: 0 | AH71: 0 | AI71: 0 | AJ71: 68081 | AK71: BARRANCABERMEJA | AL71: 1 | AM71: 0 | AN71: Natural | AO71: 68 | AP71: SANTANDER | AQ71: Aprobado con subsidio | AR71: MICRO | AS71: 3311 | AT71: INDUSTRIAS MANUFACTURERAS | AU71: C | AV71: Mantenimiento y reparación especializado de productos elaborados en metal y de maquinaria y equipo | AW71: Instalación, mantenimiento y reparación especializado de maquinaria y equipo | AX71: 0 | AY71: 1 | AZ71: 0 | BA71: 1 | BB71: 0 | BC71: 0 | BP71: 5237 | BQ71: 12 | BR71: 5541 | BS71: 4
C72: 54001 | D72: CÚCUTA | E72: 2 | F72: 0 | G72: Natural | H72: 54 | I72: NORTE DE SANTANDER | J72: Aprobado con subsidio | K72: PEQUEÑA | L72: 4631 | M72: COMERCIO AL POR MAYOR Y AL POR MENOR; REPARACIÓN DE VEHÍCULOS AUTOMOTORES Y MOTOCICLETAS | N72: G | O72: Comercio al por mayor de alimentos, bebidas y tabaco | P72: Comercio al por mayor de alimentos, bebidas y tabaco | Q72: 0 | R72: 2 | S72: 0 | T72: 2 | U72: 0 | V72: 0 | AH72: 0 | AI72: 0 | AJ72: 68001 | AK72: BUCARAMANGA | AL72: 1 | AM72: 1 | AN72: Natural | AO72: 68 | AP72: SANTANDER | AQ72: Aprobado con subsidio | AR72: MICRO | AS72: 1410 | AT72: INDUSTRIAS MANUFACTURERAS | AU72: C | AV72: Confección de prendas de vestir, excepto prendas de piel | AW72: Confección de prendas de vestir | AX72: 1 | AY72: 0 | AZ72: 0 | BA72: 0 | BB72: 1 | BC72: 0 | BP72: 5642 | BQ72: 2 | BR72: 19573 | BS72: 4
C73: 5001 | D73: MEDELLÍN | E73: 1 | F73: 2 | G73: Natural | H73: 5 | I73: ANTIOQUIA | J73: Aprobado con subsidio | K73: MICRO | L73: 6810 | M73: ACTIVIDADES INMOBILIARIAS | N73: L | O73: Actividades inmobiliarias realizadas con bienes propios o arrendados | P73: Actividades inmobiliarias realizadas con bienes propios o arrendados | Q73: 0 | R73: 1 | S73: 0 | T73: 0 | U73: 0 | V73: 1 | AH73: 0 | AI73: 0 | AJ73: 68001 | AK73: BUCARAMANGA | AL73: 1 | AM73: 2 | AN73: Natural | AO73: 68 | AP73: SANTANDER | AQ73: Aprobado con subsidio | AR73: MICRO | AS73: 1410 | AT73: INDUSTRIAS MANUFACTURERAS | AU73: C | AV73: Confección de prendas de vestir, excepto prendas de piel | AW73: Confección de prendas de vestir | AX73: 1 | AY73: 0 | AZ73: 0 | BA73: 1 | BB73: 0 | BC73: 0 | BP73: 5129 | BQ73: 8 | BR73: 63401 | BS73: 4
C74: 15667 | D74: SAN LUIS DE GACENO | E74: 0 | F74: 0 | G74: Natural | H74: 15 | I74: BOYACÁ | J74: 0 | K74: MICRO | L74: 4711 | M74: COMERCIO AL POR MAYOR Y AL POR MENOR; REPARACIÓN DE VEHÍCULOS AUTOMOTORES Y MOTOCICLETAS | N74: G | O74: Comercio al por menor en establecimientos no especializados | P74: Comercio al por menor en establecimientos no especializados | Q74: 0 | R74: 0 | S74: 0 | T74: 0 | U74: 0 | V74: 0 | AH74: 0 | AI74: 0 | AJ74: 68861 | AK74: VÉLEZ | AL74: 0 | AM74: 0 | AN74: Natural | AO74: 68 | AP74: SANTANDER | AQ74: 0 | AR74: MICRO | AS74: 1089 | AT74: INDUSTRIAS MANUFACTURERAS | AU74: C | AV74: Elaboración de otros productos alimenticios | AW74: Elaboración de productos alimenticios | AX74: 0 | AY74: 0 | AZ74: 0 | BA74: 0 | BB74: 0 | BC74: 0 | BP74: 5209 | BQ74: 1 | BR74: 8433 | BS74: 4
C75: 15759 | D75: SOGAMOSO | E75: 4 | F75: 4 | G75: Natural | H75: 15 | I75: BOYACÁ | J75: Aprobado con subsidio | K75: MICRO | L75: 8512 | M75: EDUCACIÓN | N75: P | O75: Educación de la primera infancia, preescolar y básica primaria | P75: Educación de la primera infancia, preescolar y básica primaria | Q75: 4 | R75: 0 | S75: 0 | T75: 1 | U75: 3 | V75: 0 | AH75: 0 | AI75: 0 | AJ75: 50006 | AK75: ACACÍAS | AL75: 0 | AM75: 0 | AN75: Natural | AO75: 50 | AP75: META | AQ75: 0 | AR75: PEQUEÑA | AS75: 3110 | AT75: INDUSTRIAS MANUFACTURERAS | AU75: C | AV75: Fabricación de muebles | AW75: Fabricación de muebles, colchones y somieres | AX75: 0 | AY75: 0 | AZ75: 0 | BA75: 0 | BB75: 0 | BC75: 0 | BP75: 5212 | BQ75: 10 | BR75: 76248 | BS75: 3
C76: 15176 | D76: CHIQUINQUIRÁ | E76: 4 | F76: 8 | G76: Natural | H76: 15 | I76: BOYACÁ | J76: Aprobado con subsidio | K76: MICRO | L76: 1081 | M76: INDUSTRIAS MANUFACTURERAS | N76: C | O76: Elaboración de otros productos alimenticios | P76: Elaboración de productos alimenticios | Q76: 2 | R76: 2 | S76: 0 | T76: 4 | U76: 0 | V76: 0 | AH76: 0 | AI76: 0 | AJ76: 68001 | AK76: BUCARAMANGA | AL76: 1 | AM76: 0 | AN76: Natural | AO76: 68 | AP76: SANTANDER | AQ76: Aprobado con subsidio | AR76: MICRO | AS76: 3110 | AT76: INDUSTRIAS MANUFACTURERAS | AU76: C | AV76: Fabricación de muebles | AW76: Fabricación de muebles, colchones y somieres | AX76: 0 | AY76: 1 | AZ76: 0 | BA76: 0 | BB76: 0 | BC76: 1 | BP76: 68307 | BQ76: 24 | BR76: 76834 | BS76: 3
C77: 11001 | D77: BOGOTÁ, D.C. | E77: 2 | F77: 0 | G77: Natural | H77: 11 | I77: BOGOTÁ, D.C. | J77: Aprobado con subsidio | K77: MICRO | L77: 2920 | M77: INDUSTRIAS MANUFACTURERAS | N77: C | O77: Fabricación de carrocerías para vehículos automotores; fabricación de remolques y semirremolques | P77: Fabricación de vehículos automotores, remolques y semirremolques | Q77: 2 | R77: 0 | S77: 0 | T77: 0 | U77: 2 | V77: 0 | AH77: 0 | AI77: 0 | AJ77: 76834 | AK77: TULUÁ | AL77: 0 | AM77: 0 | AN77: Natural | AO77: 76 | AP77: VALLE DEL CAUCA | AQ77: 0 | AR77: PEQUEÑA | AS77: 3110 | AT77: INDUSTRIAS MANUFACTURERAS | AU77: C | AV77: Fabricación de muebles | AW77: Fabricación de muebles, colchones y somieres | AX77: 0 | AY77: 0 | AZ77: 0 | BA77: 0 | BB77: 0 | BC77: 0 | BP77: 25123 | BQ77: 1 | BR77: 5148 | BS77: 3
C78: 15238 | D78: DUITAMA | E78: 1 | F78: 1 | G78: Natural | H78: 15 | I78: BOYACÁ | J78: Aprobado con subsidio | K78: MICRO | L78: 4923 | M78: TRANSPORTE Y ALMACENAMIENTO | N78: H | O78: Transporte terrestre publico automotor | P78: Transporte terrestre publico automotor | Q78: 0 | R78: 1 | S78: 0 | T78: 1 | U78: 0 | V78: 0 | AH78: 0 | AI78: 0 | AJ78: 76670 | AK78: SAN PEDRO | AL78: 7 | AM78: 4 | AN78: Natural | AO78: 76 | AP78: VALLE DEL CAUCA | AQ78: Aprobado con subsidio | AR78: PEQUEÑA | AS78: 1620 | AT78: INDUSTRIAS MANUFACTURERAS | AU78: C | AV78: Fabricación de hojas de madera para enchapado; fabricación de tableros contrachapados, tableros laminados, tableros de partículas y otros tableros y paneles | AW78: Transformación de la madera y fabricación de productos de madera y de corcho, excepto muebles; fabricación de artículos de cestería y espartería | AX78: 5 | AY78: 2 | AZ78: 0 | BA78: 2 | BB78: 4 | BC78: 1 | BP78: 47001 | BQ78: 12 | BR78: 86001 | BS78: 3
C79: 85001 | D79: YOPAL | E79: 2 | F79: 1 | G79: Natural | H79: 85 | I79: CASANARE | J79: Aprobado con subsidio | K79: MICRO | L79: 4542 | M79: COMERCIO AL POR MAYOR Y AL POR MENOR; REPARACIÓN DE VEHÍCULOS AUTOMOTORES Y MOTOCICLETAS | N79: G | O79: Comercio, mantenimiento y reparación de motocicletas y de sus partes, piezas y accesorios | P79: Comercio, mantenimiento y reparación de motocicletas y de sus partes, piezas y accesorios | Q79: 1 | R79: 1 | S79: 0 | T79: 2 | U79: 0 | V79: 0 | AH79: 0 | AI79: 0 | AJ79: 5001 | AK79: MEDELLÍN | AL79: 14 | AM79: 47 | AN79: Natural | AO79: 5 | AP79: ANTIOQUIA | AQ79: Aprobado con subsidio | AR79: PEQUEÑA | AS79: 1410 | AT79: INDUSTRIAS MANUFACTURERAS | AU79: C | AV79: Confección de prendas de vestir, excepto prendas de piel | AW79: Confección de prendas de vestir | AX79: 7 | AY79: 7 | AZ79: 0 | BA79: 1 | BB79: 7 | BC79: 6 | BP79: 54874 | BQ79: 6 | BR79: 54518 | BS79: 3
C80: 15759 | D80: SOGAMOSO | E80: 1 | F80: 2 | G80: Natural | H80: 15 | I80: BOYACÁ | J80: Aprobado con subsidio | K80: PEQUEÑA | L80: 2395 | M80: INDUSTRIAS MANUFACTURERAS | N80: C | O80: Fabricación de productos minerales no metálicos n.c.p. | P80: Fabricación de otros productos minerales no metálicos | Q80: 0 | R80: 1 | S80: 0 | T80: 0 | U80: 0 | V80: 1 | AH80: 0 | AI80: 0 | AJ80: 5001 | AK80: MEDELLÍN | AL80: 0 | AM80: 0 | AN80: Natural | AO80: 5 | AP80: ANTIOQUIA | AQ80: 0 | AR80: PEQUEÑA | AS80: 1709 | AT80: INDUSTRIAS MANUFACTURERAS | AU80: C | AV80: Fabricación de papel, cartón y productos de papel y cartón | AW80: Fabricación de papel, cartón y productos de papel y cartón | AX80: 0 | AY80: 0 | AZ80: 0 | BA80: 0 | BB80: 0 | BC80: 0 | BP80: 68276 | BQ80: 14 | BR80: 19845 | BS80: 3
C81: 11001 | D81: BOGOTÁ, D.C. | E81: 1 | F81: 1 | G81: Natural | H81: 11 | I81: BOGOTÁ, D.C. | J81: Aprobado con subsidio | K81: MICRO | L81: 4663 | M81: COMERCIO AL POR MAYOR Y AL POR MENOR; REPARACIÓN DE VEHÍCULOS AUTOMOTORES Y MOTOCICLETAS | N81: G | O81: Comercio al por mayor especializado de otros productos | P81: Comercio al por mayor especializado de otros productos | Q81: 0 | R81: 1 | S81: 0 | T81: 1 | U81: 0 | V81: 0 | AH81: 0 | AI81: 0 | AJ81: 5360 | AK81: ITAGUI | AL81: 7 | AM81: 27 | AN81: Natural | AO81: 5 | AP81: ANTIOQUIA | AQ81: Aprobado con subsidio | AR81: MEDIANA | AS81: 1011 | AT81: INDUSTRIAS MANUFACTURERAS | AU81: C | AV81: Procesamiento y conservación de carne, pescado, crustáceos y moluscos | AW81: Elaboración de productos alimenticios | AX81: 3 | AY81: 4 | AZ81: 0 | BA81: 7 | BB81: 0 | BC81: 0 | BP81: 76520 | BQ81: 33 | BR81: 17873 | BS81: 3
C82: 11001 | D82: BOGOTÁ, D.C. | E82: 0 | F82: 0 | G82: Natural | H82: 11 | I82: BOGOTÁ, D.C. | J82: 0 | K82: PEQUEÑA | L82: 1410 | M82: INDUSTRIAS MANUFACTURERAS | N82: C | O82: Confección de prendas de vestir, excepto prendas de piel | P82: Confección de prendas de vestir | Q82: 0 | R82: 0 | S82: 0 | T82: 0 | U82: 0 | V82: 0 | AH82: 0 | AI82: 0 | AJ82: 5761 | AK82: SOPETRÁN | AL82: 0 | AM82: 0 | AN82: Natural | AO82: 5 | AP82: ANTIOQUIA | AQ82: 0 | AR82: MICRO | AS82: 1081 | AT82: INDUSTRIAS MANUFACTURERAS | AU82: C | AV82: Elaboración de otros productos alimenticios | AW82: Elaboración de productos alimenticios | AX82: 0 | AY82: 0 | AZ82: 0 | BA82: 0 | BB82: 0 | BC82: 0 | BP82: 5079 | BQ82: 6 | BR82: 5670 | BS82: 3
C83: 15753 | D83: SOATÁ | E83: 2 | F83: 1 | G83: Natural | H83: 15 | I83: BOYACÁ | J83: Aprobado con subsidio | K83: MICRO | L83: 4631 | M83: COMERCIO AL POR MAYOR Y AL POR MENOR; REPARACIÓN DE VEHÍCULOS AUTOMOTORES Y MOTOCICLETAS | N83: G | O83: Comercio al por mayor de alimentos, bebidas y tabaco | P83: Comercio al por mayor de alimentos, bebidas y tabaco | Q83: 0 | R83: 2 | S83: 0 | T83: 0 | U83: 0 | V83: 2 | AH83: 0 | AI83: 0 | AJ83: 5148 | AK83: EL CARMEN DE VIBORAL | AL83: 0 | AM83: 0 | AN83: Natural | AO83: 5 | AP83: ANTIOQUIA | AQ83: 0 | AR83: MICRO | AS83: 1630 | AT83: INDUSTRIAS MANUFACTURERAS | AU83: C | AV83: Fabricación de partes y piezas de madera, de carpintería y ebanistería para la construcción | AW83: Transformación de la madera y fabricación de productos de madera y de corcho, excepto muebles; fabricación de artículos de cestería y espartería | AX83: 0 | AY83: 0 | AZ83: 0 | BA83: 0 | BB83: 0 | BC83: 0 | BP83: 5664 | BQ83: 2 | BR83: 68655 | BS83: 3
C84: 54874 | D84: VILLA DEL ROSARIO | E84: 0 | F84: 0 | G84: Natural | H84: 54 | I84: NORTE DE SANTANDER | J84: 0 | K84: MICRO | L84: 5630 | M84: ALOJAMIENTO Y SERVICIOS DE COMIDA | N84: I | O84: Expendio de bebidas alcohólicas para el consumo dentro del establecimiento | P84: Expendio de bebidas alcohólicas para el consumo dentro del establecimiento | Q84: 0 | R84: 0 | S84: 0 | T84: 0 | U84: 0 | V84: 0 | AH84: 0 | AI84: 0 | AJ84: 19130 | AK84: CAJIBÍO | AL84: 1 | AM84: 9 | AN84: Natural | AO84: 19 | AP84: CAUCA | AQ84: Aprobado con subsidio | AR84: MICRO | AS84: 1610 | AT84: INDUSTRIAS MANUFACTURERAS | AU84: C | AV84: Aserrado, acepillado e impregnación de la madera | AW84: Transformación de la madera y fabricación de productos de madera y de corcho, excepto muebles; fabricación de artículos de cestería y espartería | AX84: 0 | AY84: 1 | AZ84: 0 | BA84: 1 | BB84: 0 | BC84: 0 | BP84: 63130 | BQ84: 1 | BR84: 5887 | BS84: 3
C85: 11001 | D85: BOGOTÁ, D.C. | E85: 2 | F85: 8 | G85: Natural | H85: 11 | I85: BOGOTÁ, D.C. | J85: Aprobado con subsidio | K85: MICRO | L85: 1081 | M85: INDUSTRIAS MANUFACTURERAS | N85: C | O85: Elaboración de otros productos alimenticios | P85: Elaboración de productos alimenticios | Q85: 1 | R85: 1 | S85: 0 | T85: 2 | U85: 0 | V85: 0 | AH85: 0 | AI85: 0 | AJ85: 5376 | AK85: LA CEJA | AL85: 1 | AM85: 2 | AN85: Natural | AO85: 5 | AP85: ANTIOQUIA | AQ85: Aprobado con subsidio | AR85: MICRO | AS85: 1610 | AT85: INDUSTRIAS MANUFACTURERAS | AU85: C | AV85: Aserrado, acepillado e impregnación de la madera | AW85: Transformación de la madera y fabricación de productos de madera y de corcho, excepto muebles; fabricación de artículos de cestería y espartería | AX85: 0 | AY85: 1 | AZ85: 0 | BA85: 1 | BB85: 0 | BC85: 0 | BP85: 13001 | BQ85: 31 | BR85: 25875 | BS85: 2
C86: 11001 | D86: BOGOTÁ, D.C. | E86: 5 | F86: 2 | G86: Natural | H86: 11 | I86: BOGOTÁ, D.C. | J86: Aprobado con subsidio | K86: MICRO | L86: 4923 | M86: TRANSPORTE Y ALMACENAMIENTO | N86: H | O86: Transporte terrestre publico automotor | P86: Transporte terrestre publico automotor | Q86: 1 | R86: 4 | S86: 0 | T86: 2 | U86: 1 | V86: 2 | AH86: 0 | AI86: 0 | AJ86: 73001 | AK86: IBAGUÉ | AL86: 11 | AM86: 2 | AN86: Natural | AO86: 73 | AP86: TOLIMA | AQ86: Aprobado con subsidio | AR86: MICRO | AS86: 1410 | AT86: INDUSTRIAS MANUFACTURERAS | AU86: C | AV86: Confección de prendas de vestir, excepto prendas de piel | AW86: Confección de prendas de vestir | AX86: 11 | AY86: 0 | AZ86: 0 | BA86: 3 | BB86: 8 | BC86: 0 | BP86: 19001 | BQ86: 4 | BR86: 68861 | BS86: 2
C87: 85001 | D87: YOPAL | E87: 0 | F87: 0 | G87: Natural | H87: 85 | I87: CASANARE | J87: 0 | K87: MICRO | L87: 811 | M87: EXPLOTACIÓN DE MINAS Y CANTERAS | N87: B | O87: Extracción de piedra, arena, arcillas, cal, yeso, caolín, bentonitas y similares | P87: Extracción de piedra, arena, arcillas, cal, yeso, caolín, bentonitas y similares | Q87: 0 | R87: 0 | S87: 0 | T87: 0 | U87: 0 | V87: 0 | AH87: 0 | AI87: 0 | AJ87: 5001 | AK87: MEDELLÍN | AL87: 0 | AM87: 0 | AN87: Natural | AO87: 5 | AP87: ANTIOQUIA | AQ87: 0 | AR87: MICRO | AS87: 3110 | AT87: INDUSTRIAS MANUFACTURERAS | AU87: C | AV87: Fabricación de muebles | AW87: Fabricación de muebles, colchones y somieres | AX87: 0 | AY87: 0 | AZ87: 0 | BA87: 0 | BB87: 0 | BC87: 0 | BP87: 5541 | BQ87: 4 | BR87: 18753 | BS87: 2
C88: 15808 | D88: TINJACÁ | E88: 0 | F88: 0 | G88: Natural | H88: 15 | I88: BOYACÁ | J88: 0 | K88: MICRO | L88: 4752 | M88: COMERCIO AL POR MAYOR Y AL POR MENOR; REPARACIÓN DE VEHÍCULOS AUTOMOTORES Y MOTOCICLETAS | N88: G | O88: Comercio al por menor de otros enseres domésticos en establecimientos especializados | P88: Comercio al por menor de otros enseres domésticos en establecimientos especializados | Q88: 0 | R88: 0 | S88: 0 | T88: 0 | U88: 0 | V88: 0 | AH88: 0 | AI88: 0 | AJ88: 76834 | AK88: TULUÁ | AL88: 0 | AM88: 0 | AN88: Natural | AO88: 76 | AP88: VALLE DEL CAUCA | AQ88: 0 | AR88: PEQUEÑA | AS88: 3110 | AT88: INDUSTRIAS MANUFACTURERAS | AU88: C | AV88: Fabricación de muebles | AW88: Fabricación de muebles, colchones y somieres | AX88: 0 | AY88: 0 | AZ88: 0 | BA88: 0 | BB88: 0 | BC88: 0 | BP88: 41298 | BQ88: 0 | BR88: 5368 | BS88: 2
C89: 11001 | D89: BOGOTÁ, D.C. | E89: 0 | F89: 0 | G89: Natural | H89: 11 | I89: BOGOTÁ, D.C. | J89: 0 | K89: MICRO | L89: 2592 | M89: INDUSTRIAS MANUFACTURERAS | N89: C | O89: Fabricación de otros productos elaborados de metal y actividades de servicios relacionadas con el trabajo de metales | P89: Fabricación de productos elaborados de metal, excepto maquinaria y equipo | Q89: 0 | R89: 0 | S89: 0 | T89: 0 | U89: 0 | V89: 0 | AH89: 0 | AI89: 0 | AJ89: 66170 | AK89: DOSQUEBRADAS | AL89: 3 | AM89: 6 | AN89: Natural | AO89: 66 | AP89: RISARALDA | AQ89: Aprobado con subsidio | AR89: PEQUEÑA | AS89: 2511 | AT89: INDUSTRIAS MANUFACTURERAS | AU89: C | AV89: Fabricación de productos metálicos para uso estructural, tanques, depósitos y generadores de vapor. | AW89: Fabricación de productos elaborados de metal, excepto maquinaria y equipo | AX89: 1 | AY89: 2 | AZ89: 0 | BA89: 2 | BB89: 1 | BC89: 0 | BP89: 25286 | BQ89: 23 | BR89: 66682 | BS89: 2
C90: 11001 | D90: BOGOTÁ, D.C. | E90: 5 | F90: 0 | G90: Natural | H90: 11 | I90: BOGOTÁ, D.C. | J90: Aprobado con subsidio | K90: MICRO | L90: 5611 | M90: ALOJAMIENTO Y SERVICIOS DE COMIDA | N90: I | O90: Actividades de restaurantes, cafeterías y servicio móvil de comidas | P90: Actividades de restaurantes, cafeterías y servicio móvil de comidas | Q90: 2 | R90: 3 | S90: 0 | T90: 0 | U90: 2 | V90: 3 | AH90: 0 | AI90: 0 | AJ90: 76001 | AK90: CALI | AL90: 1 | AM90: 2 | AN90: Natural | AO90: 76 | AP90: VALLE DEL CAUCA | AQ90: Aprobado con subsidio | AR90: MICRO | AS90: 1522 | AT90: INDUSTRIAS MANUFACTURERAS | AU90: C | AV90: Fabricación de calzado | AW90: Curtido y recurtido de cueros; fabricación de calzado; fabricación de artículos de viaje, maletas, bolsos de mano y artículos similares, y fabricación de artículos de talabartería y guarnicionería; adobo y teñido de pieles | AX90: 1 | AY90: 0 | AZ90: 0 | BA90: 1 | BB90: 0 | BC90: 0 | BP90: 70124 | BQ90: 1 | BR90: 50006 | BS90: 2
C91: 18001 | D91: FLORENCIA | E91: 0 | F91: 0 | G91: Natural | H91: 18 | I91: CAQUETÁ | J91: 0 | K91: MICRO | L91: 4651 | M91: COMERCIO AL POR MAYOR Y AL POR MENOR; REPARACIÓN DE VEHÍCULOS AUTOMOTORES Y MOTOCICLETAS | N91: G | O91: Comercio al por mayor de maquinaria y equipo | P91: Comercio al por mayor de maquinaria y equipo | Q91: 0 | R91: 0 | S91: 0 | T91: 0 | U91: 0 | V91: 0 | AH91: 0 | AI91: 0 | AJ91: 76001 | AK91: CALI | AL91: 0 | AM91: 0 | AN91: Natural | AO91: 76 | AP91: VALLE DEL CAUCA | AQ91: 0 | AR91: PEQUEÑA | AS91: 3311 | AT91: INDUSTRIAS MANUFACTURERAS | AU91: C | AV91: Mantenimiento y reparación especializado de productos elaborados en metal y de maquinaria y equipo | AW91: Instalación, mantenimiento y reparación especializado de maquinaria y equipo | AX91: 0 | AY91: 0 | AZ91: 0 | BA91: 0 | BB91: 0 | BC91: 0 | BP91: 52227 | BQ91: 1 | BR91: 76670 | BS91: 2
C92: 5266 | D92: ENVIGADO | E92: 1 | F92: 0 | G92: Natural | H92: 5 | I92: ANTIOQUIA | J92: Aprobado con subsidio | K92: MICRO | L92: 4541 | M92: COMERCIO AL POR MAYOR Y AL POR MENOR; REPARACIÓN DE VEHÍCULOS AUTOMOTORES Y MOTOCICLETAS | N92: G | O92: Comercio, mantenimiento y reparación de motocicletas y de sus partes, piezas y accesorios | P92: Comercio, mantenimiento y reparación de motocicletas y de sus partes, piezas y accesorios | Q92: 1 | R92: 0 | S92: 0 | T92: 1 | U92: 0 | V92: 0 | AH92: 0 | AI92: 0 | AJ92: 76001 | AK92: CALI | AL92: 1 | AM92: 0 | AN92: Natural | AO92: 76 | AP92: VALLE DEL CAUCA | AQ92: Aprobado con subsidio | AR92: MICRO | AS92: 1811 | AT92: INDUSTRIAS MANUFACTURERAS | AU92: C | AV92: Actividades de impresión y actividades de servicios relacionados con la impresión | AW92: Actividades de impresión y de producción de copias a partir de grabaciones originales | AX92: 0 | AY92: 1 | AZ92: 0 | BA92: 1 | BB92: 0 | BC92: 0 | BP92: 5380 | BQ92: 48 | BR92: 19130 | BS92: 2
C93: 76001 | D93: CALI | E93: 0 | F93: 0 | G93: Natural | H93: 76 | I93: VALLE DEL CAUCA | J93: 0 | K93: MICRO | L93: 4530 | M93: COMERCIO AL POR MAYOR Y AL POR MENOR; REPARACIÓN DE VEHÍCULOS AUTOMOTORES Y MOTOCICLETAS | N93: G | O93: Comercio de partes, piezas (autopartes) y accesorios (lujos) para vehículos automotores | P93: Comercio de partes, piezas (autopartes) y accesorios (lujos) para vehículos automotores | Q93: 0 | R93: 0 | S93: 0 | T93: 0 | U93: 0 | V93: 0 | AH93: 0 | AI93: 0 | AJ93: 76001 | AK93: CALI | AL93: 3 | AM93: 1 | AN93: Natural | AO93: 76 | AP93: VALLE DEL CAUCA | AQ93: Aprobado con subsidio | AR93: MICRO | AS93: 2023 | AT93: INDUSTRIAS MANUFACTURERAS | AU93: C | AV93: Fabricación de otros productos químicos | AW93: Fabricación de sustancias y productos químicos | AX93: 3 | AY93: 0 | AZ93: 0 | BA93: 3 | BB93: 0 | BC93: 0 | BP93: 25745 | BQ93: 1 | BR93: 5045 | BS93: 2
C94: 66001 | D94: PEREIRA | E94: 3 | F94: 0 | G94: Natural | H94: 66 | I94: RISARALDA | J94: Aprobado con subsidio | K94: MICRO | L94: 4290 | M94: CONSTRUCCIÓN | N94: F | O94: Construcción de otras obras de ingeniería civil | P94: Construcción de otras obras de ingeniería civil | Q94: 1 | R94: 2 | S94: 0 | T94: 1 | U94: 1 | V94: 1 | AH94: 0 | AI94: 0 | AJ94: 76001 | AK94: CALI | AL94: 4 | AM94: 7 | AN94: Natural | AO94: 76 | AP94: VALLE DEL CAUCA | AQ94: Aprobado con subsidio | AR94: MICRO | AS94: 1081 | AT94: INDUSTRIAS MANUFACTURERAS | AU94: C | AV94: Elaboración de otros productos alimenticios | AW94: Elaboración de productos alimenticios | AX94: 4 | AY94: 0 | AZ94: 0 | BA94: 1 | BB94: 3 | BC94: 0 | BP94: 25430 | BQ94: 13 | BR94: 76109 | BS94: 2
C95: 66001 | D95: PEREIRA | E95: 0 | F95: 0 | G95: Natural | H95: 66 | I95: RISARALDA | J95: 0 | K95: MICRO | L95: 4711 | M95: COMERCIO AL POR MAYOR Y AL POR MENOR; REPARACIÓN DE VEHÍCULOS AUTOMOTORES Y MOTOCICLETAS | N95: G | O95: Comercio al por menor en establecimientos no especializados | P95: Comercio al por menor en establecimientos no especializados | Q95: 0 | R95: 0 | S95: 0 | T95: 0 | U95: 0 | V95: 0 | AH95: 0 | AI95: 0 | AJ95: 76001 | AK95: CALI | AL95: 1 | AM95: 0 | AN95: Natural | AO95: 76 | AP95: VALLE DEL CAUCA | AQ95: Aprobado con subsidio | AR95: MICRO | AS95: 2511 | AT95: INDUSTRIAS MANUFACTURERAS | AU95: C | AV95: Fabricación de productos metálicos para uso estructural, tanques, depósitos y generadores de vapor. | AW95: Fabricación de productos elaborados de metal, excepto maquinaria y equipo | AX95: 0 | AY95: 1 | AZ95: 0 | BA95: 1 | BB95: 0 | BC95: 0 | BP95: 13836 | BQ95: 2 | BR95: 5642 | BS95: 2
C96: 66594 | D96: QUINCHÍA | E96: 2 | F96: 1 | G96: Natural | H96: 66 | I96: RISARALDA | J96: Aprobado con subsidio | K96: MICRO | L96: 4711 | M96: COMERCIO AL POR MAYOR Y AL POR MENOR; REPARACIÓN DE VEHÍCULOS AUTOMOTORES Y MOTOCICLETAS | N96: G | O96: Comercio al por menor en establecimientos no especializados | P96: Comercio al por menor en establecimientos no especializados | Q96: 0 | R96: 2 | S96: 0 | T96: 2 | U96: 0 | V96: 0 | AH96: 0 | AI96: 0 | AJ96: 76001 | AK96: CALI | AL96: 0 | AM96: 0 | AN96: Natural | AO96: 76 | AP96: VALLE DEL CAUCA | AQ96: 0 | AR96: MICRO | AS96: 1410 | AT96: INDUSTRIAS MANUFACTURERAS | AU96: C | AV96: Confección de prendas de vestir, excepto prendas de piel | AW96: Confección de prendas de vestir | AX96: 0 | AY96: 0 | AZ96: 0 | BA96: 0 | BB96: 0 | BC96: 0 | BP96: 76111 | BQ96: 5 | BR96: 5664 | BS96: 2
C97: 63001 | D97: ARMENIA | E97: 0 | F97: 0 | G97: Natural | H97: 63 | I97: QUINDÍO | J97: 0 | K97: MICRO | L97: 5611 | M97: ALOJAMIENTO Y SERVICIOS DE COMIDA | N97: I | O97: Actividades de restaurantes, cafeterías y servicio móvil de comidas | P97: Actividades de restaurantes, cafeterías y servicio móvil de comidas | Q97: 0 | R97: 0 | S97: 0 | T97: 0 | U97: 0 | V97: 0 | AH97: 0 | AI97: 0 | AJ97: 66001 | AK97: PEREIRA | AL97: 4 | AM97: 2 | AN97: Natural | AO97: 66 | AP97: RISARALDA | AQ97: Aprobado con subsidio | AR97: MICRO | AS97: 1410 | AT97: INDUSTRIAS MANUFACTURERAS | AU97: C | AV97: Confección de prendas de vestir, excepto prendas de piel | AW97: Confección de prendas de vestir | AX97: 2 | AY97: 2 | AZ97: 0 | BA97: 2 | BB97: 2 | BC97: 0 | BP97: 8296 | BQ97: 7 | BR97: 13836 | BS97: 2
C98: 63001 | D98: ARMENIA | E98: 0 | F98: 0 | G98: Natural | H98: 63 | I98: QUINDÍO | J98: 0 | K98: MICRO | L98: 8530 | M98: EDUCACIÓN | N98: P | O98: Establecimientos que combinan diferentes niveles de educación | P98: Establecimientos que combinan diferentes niveles de educación | Q98: 0 | R98: 0 | S98: 0 | T98: 0 | U98: 0 | V98: 0 | AH98: 0 | AI98: 0 | AJ98: 11001 | AK98: BOGOTÁ, D.C. | AL98: 0 | AM98: 0 | AN98: Natural | AO98: 11 | AP98: BOGOTÁ, D.C. | AQ98: 0 | AR98: PEQUEÑA | AS98: 2229 | AT98: INDUSTRIAS MANUFACTURERAS | AU98: C | AV98: Fabricación de productos de plástico | AW98: Fabricación de productos de caucho y de plástico | AX98: 0 | AY98: 0 | AZ98: 0 | BA98: 0 | BB98: 0 | BC98: 0 | BP98: 25799 | BQ98: 5 | BR98: 5400 | BS98: 2
C99: 66170 | D99: DOSQUEBRADAS | E99: 1 | F99: 0 | G99: Natural | H99: 66 | I99: RISARALDA | J99: Aprobado con subsidio | K99: MICRO | L99: 4775 | M99: COMERCIO AL POR MAYOR Y AL POR MENOR; REPARACIÓN DE VEHÍCULOS AUTOMOTORES Y MOTOCICLETAS | N99: G | O99: Comercio al por menor de otros productos en establecimientos especializados | P99: Comercio al por menor de otros productos en establecimientos especializados | Q99: 0 | R99: 1 | S99: 0 | T99: 1 | U99: 0 | V99: 0 | AH99: 0 | AI99: 0 | AJ99: 25290 | AK99: FUSAGASUGÁ | AL99: 0 | AM99: 0 | AN99: Natural | AO99: 25 | AP99: CUNDINAMARCA | AQ99: 0 | AR99: MICRO | AS99: 3110 | AT99: INDUSTRIAS MANUFACTURERAS | AU99: C | AV99: Fabricación de muebles | AW99: Fabricación de muebles, colchones y somieres | AX99: 0 | AY99: 0 | AZ99: 0 | BA99: 0 | BB99: 0 | BC99: 0 | BP99: 25126 | BQ99: 7 | BR99: 5607 | BS99: 2
C100: 66170 | D100: DOSQUEBRADAS | E100: 5 | F100: 4 | G100: Natural | H100: 66 | I100: RISARALDA | J100: Aprobado con subsidio | K100: PEQUEÑA | L100: 6910 | M100: ACTIVIDADES PROFESIONALES, CIENTÍFICAS Y TÉCNICAS | N100: M | O100: Actividades jurídicas | P100: Actividades jurídicas | Q100: 4 | R100: 1 | S100: 0 | T100: 3 | U100: 2 | V100: 0 | AH100: 0 | AI100: 0 | AJ100: 54001 | AK100: CÚCUTA | AL100: 2 | AM100: 0 | AN100: Natural | AO100: 54 | AP100: NORTE DE SANTANDER | AQ100: Aprobado con subsidio | AR100: PEQUEÑA | AS100: 3312 | AT100: INDUSTRIAS MANUFACTURERAS | AU100: C | AV100: Mantenimiento y reparación especializado de productos elaborados en metal y de maquinaria y equipo | AW100: Instalación, mantenimiento y reparación especializado de maquinaria y equipo | AX100: 0 | AY100: 2 | AZ100: 0 | BA100: 2 | BB100: 0 | BC100: 0 | BP100: 25817 | BQ100: 17 | BR100: 17541 | BS100: 2
C101: 66001 | D101: PEREIRA | E101: 0 | F101: 0 | G101: Natural | H101: 66 | I101: RISARALDA | J101: 0 | K101: PEQUEÑA | L101: 4754 | M101: COMERCIO AL POR MAYOR Y AL POR MENOR; REPARACIÓN DE VEHÍCULOS AUTOMOTORES Y MOTOCICLETAS | N101: G | O101: Comercio al por menor de otros enseres domésticos en establecimientos especializados | P101: Comercio al por menor de otros enseres domésticos en establecimientos especializados | Q101: 0 | R101: 0 | S101: 0 | T101: 0 | U101: 0 | V101: 0 | AH101: 0 | AI101: 0 | AJ101: 11001 | AK101: BOGOTÁ, D.C. | AL101: 0 | AM101: 0 | AN101: Natural | AO101: 11 | AP101: BOGOTÁ, D.C. | AQ101: 0 | AR101: MICRO | AS101: 3110 | AT101: INDUSTRIAS MANUFACTURERAS | AU101: C | AV101: Fabricación de muebles | AW101: Fabricación de muebles, colchones y somieres | AX101: 0 | AY101: 0 | AZ101: 0 | BA101: 0 | BB101: 0 | BC101: 0 | BP101: 5400 | BQ101: 2 | BR101: 19300 | BS101: 2
C102: 17777 | D102: SUPÍA | E102: 0 | F102: 0 | G102: Natural | H102: 17 | I102: CALDAS | J102: 0 | K102: PEQUEÑA | L102: 4759 | M102: COMERCIO AL POR MAYOR Y AL POR MENOR; REPARACIÓN DE VEHÍCULOS AUTOMOTORES Y MOTOCICLETAS | N102: G | O102: Comercio al por menor de otros enseres domésticos en establecimientos especializados | P102: Comercio al por menor de otros enseres domésticos en establecimientos especializados | Q102: 0 | R102: 0 | S102: 0 | T102: 0 | U102: 0 | V102: 0 | AH102: 0 | AI102: 0 | AJ102: 50001 | AK102: VILLAVICENCIO | AL102: 14 | AM102: 2 | AN102: Natural | AO102: 50 | AP102: META | AQ102: Aprobado con subsidio | AR102: MICRO | AS102: 1081 | AT102: INDUSTRIAS MANUFACTURERAS | AU102: C | AV102: Elaboración de otros productos alimenticios | AW102: Elaboración de productos alimenticios | AX102: 6 | AY102: 8 | AZ102: 0 | BA102: 6 | BB102: 4 | BC102: 4 | BP102: 76130 | BQ102: 6 | BR102: 20621 | BS102: 2
C103: 18205 | D103: CURILLO | E103: 5 | F103: 7 | G103: Natural | H103: 18 | I103: CAQUETÁ | J103: Aprobado con subsidio | K103: MICRO | L103: 1040 | M103: INDUSTRIAS MANUFACTURERAS | N103: C | O103: Elaboración de productos lácteos | P103: Elaboración de productos alimenticios | Q103: 1 | R103: 4 | S103: 0 | T103: 2 | U103: 1 | V103: 2 | AH103: 0 | AI103: 0 | AJ103: 18001 | AK103: FLORENCIA | AL103: 2 | AM103: 3 | AN103: Natural | AO103: 18 | AP103: CAQUETÁ | AQ103: Aprobado con subsidio | AR103: MICRO | AS103: 1040 | AT103: INDUSTRIAS MANUFACTURERAS | AU103: C | AV103: Elaboración de productos lácteos | AW103: Elaboración de productos alimenticios | AX103: 0 | AY103: 2 | AZ103: 0 | BA103: 0 | BB103: 0 | BC103: 2 | BP103: 76364 | BQ103: 7 | BR103: 25269 | BS103: 2
C104: 19001 | D104: POPAYÁN | E104: 3 | F104: 0 | G104: Natural | H104: 19 | I104: CAUCA | J104: Aprobado con subsidio | K104: MICRO | L104: 8559 | M104: EDUCACIÓN | N104: P | O104: Otros tipos de educación | P104: Otros tipos de educación | Q104: 1 | R104: 2 | S104: 0 | T104: 0 | U104: 1 | V104: 2 | AH104: 0 | AI104: 0 | AJ104: 18753 | AK104: SAN VICENTE DEL CAGUÁN | AL104: 3 | AM104: 1 | AN104: Natural | AO104: 18 | AP104: CAQUETÁ | AQ104: Aprobado con subsidio | AR104: MICRO | AS104: 1104 | AT104: INDUSTRIAS MANUFACTURERAS | AU104: C | AV104: Elaboración de bebidas | AW104: Elaboración de bebidas | AX104: 0 | AY104: 3 | AZ104: 0 | BA104: 0 | BB104: 0 | BC104: 3 | BP104: 25758 | BQ104: 5 | BR104: 25743 | BS104: 2
C105: 19698 | D105: SANTANDER DE QUILICHAO | E105: 0 | F105: 0 | G105: Natural | H105: 19 | I105: CAUCA | J105: 0 | K105: MICRO | L105: 4719 | M105: COMERCIO AL POR MAYOR Y AL POR MENOR; REPARACIÓN DE VEHÍCULOS AUTOMOTORES Y MOTOCICLETAS | N105: G | O105: Comercio al por menor en establecimientos no especializados | P105: Comercio al por menor en establecimientos no especializados | Q105: 0 | R105: 0 | S105: 0 | T105: 0 | U105: 0 | V105: 0 | AH105: 0 | AI105: 0 | AJ105: 18001 | AK105: FLORENCIA | AL105: 0 | AM105: 0 | AN105: Natural | AO105: 18 | AP105: CAQUETÁ | AQ105: 0 | AR105: MICRO | AS105: 1081 | AT105: INDUSTRIAS MANUFACTURERAS | AU105: C | AV105: Elaboración de otros productos alimenticios | AW105: Elaboración de productos alimenticios | AX105: 0 | AY105: 0 | AZ105: 0 | BA105: 0 | BB105: 0 | BC105: 0 | BP105: 5440 | BQ105: 14 | BR105: 25769 | BS105: 2
C106: 76001 | D106: CALI | E106: 4 | F106: 0 | G106: Natural | H106: 76 | I106: VALLE DEL CAUCA | J106: Aprobado con subsidio | K106: MICRO | L106: 4752 | M106: COMERCIO AL POR MAYOR Y AL POR MENOR; REPARACIÓN DE VEHÍCULOS AUTOMOTORES Y MOTOCICLETAS | N106: G | O106: Comercio al por menor de otros enseres domésticos en establecimientos especializados | P106: Comercio al por menor de otros enseres domésticos en establecimientos especializados | Q106: 4 | R106: 0 | S106: 0 | T106: 4 | U106: 0 | V106: 0 | AH106: 0 | AI106: 0 | AJ106: 18001 | AK106: FLORENCIA | AL106: 3 | AM106: 3 | AN106: Natural | AO106: 18 | AP106: CAQUETÁ | AQ106: Aprobado con subsidio | AR106: MICRO | AS106: 2511 | AT106: INDUSTRIAS MANUFACTURERAS | AU106: C | AV106: Fabricación de productos metálicos para uso estructural, tanques, depósitos y generadores de vapor. | AW106: Fabricación de productos elaborados de metal, excepto maquinaria y equipo | AX106: 0 | AY106: 3 | AZ106: 0 | BA106: 2 | BB106: 0 | BC106: 1 | BP106: 25473 | BQ106: 22 | BR106: 76020 | BS106: 2
C107: 41001 | D107: NEIVA | E107: 46 | F107: 107 | G107: Natural | H107: 41 | I107: HUILA | J107: Aprobado con subsidio | K107: PEQUEÑA | L107: 4752 | M107: COMERCIO AL POR MAYOR Y AL POR MENOR; REPARACIÓN DE VEHÍCULOS AUTOMOTORES Y MOTOCICLETAS | N107: G | O107: Comercio al por menor de otros enseres domésticos en establecimientos especializados | P107: Comercio al por menor de otros enseres domésticos en establecimientos especializados | Q107: 1 | R107: 45 | S107: 0 | T107: 18 | U107: 1 | V107: 27 | AH107: 0 | AI107: 0 | AJ107: 5001 | AK107: MEDELLÍN | AL107: 2 | AM107: 2 | AN107: Natural | AO107: 5 | AP107: ANTIOQUIA | AQ107: Aprobado con subsidio | AR107: MICRO | AS107: 1081 | AT107: INDUSTRIAS MANUFACTURERAS | AU107: C | AV107: Elaboración de otros productos alimenticios | AW107: Elaboración de productos alimenticios | AX107: 0 | AY107: 2 | AZ107: 0 | BA107: 1 | BB107: 0 | BC107: 1 | BP107: 25214 | BQ107: 38 | BR107: 19142 | BS107: 2
C108: 41001 | D108: NEIVA | E108: 1 | F108: 8 | G108: Natural | H108: 41 | I108: HUILA | J108: Aprobado con subsidio | K108: PEQUEÑA | L108: 4711 | M108: COMERCIO AL POR MAYOR Y AL POR MENOR; REPARACIÓN DE VEHÍCULOS AUTOMOTORES Y MOTOCICLETAS | N108: G | O108: Comercio al por menor en establecimientos no especializados | P108: Comercio al por menor en establecimientos no especializados | Q108: 1 | R108: 0 | S108: 0 | T108: 1 | U108: 0 | V108: 0 | AH108: 0 | AI108: 0 | AJ108: 66170 | AK108: DOSQUEBRADAS | AL108: 3 | AM108: 0 | AN108: Natural | AO108: 66 | AP108: RISARALDA | AQ108: Aprobado con subsidio | AR108: MICRO | AS108: 2819 | AT108: INDUSTRIAS MANUFACTURERAS | AU108: C | AV108: Fabricación de maquinaria y equipo de uso general | AW108: Fabricación de maquinaria y equipo n.c.p. | AX108: 1 | AY108: 2 | AZ108: 0 | BA108: 1 | BB108: 1 | BC108: 1 | BP108: 19573 | BQ108: 4 | BR108: 5138 | BS108: 2
C109: 41551 | D109: PITALITO | E109: 2 | F109: 3 | G109: Natural | H109: 41 | I109: HUILA | J109: Aprobado con subsidio | K109: MICRO | L109: 4754 | M109: COMERCIO AL POR MAYOR Y AL POR MENOR; REPARACIÓN DE VEHÍCULOS AUTOMOTORES Y MOTOCICLETAS | N109: G | O109: Comercio al por menor de otros enseres domésticos en establecimientos especializados | P109: Comercio al por menor de otros enseres domésticos en establecimientos especializados | Q109: 1 | R109: 1 | S109: 0 | T109: 1 | U109: 1 | V109: 0 | AH109: 0 | AI109: 0 | AJ109: 11001 | AK109: BOGOTÁ, D.C. | AL109: 0 | AM109: 0 | AN109: Natural | AO109: 11 | AP109: BOGOTÁ, D.C. | AQ109: 0 | AR109: MICRO | AS109: 1313 | AT109: INDUSTRIAS MANUFACTURERAS | AU109: C | AV109: Preparación, hilatura, tejeduría y acabado de productos textiles | AW109: Fabricación de productos textiles | AX109: 0 | AY109: 0 | AZ109: 0 | BA109: 0 | BB109: 0 | BC109: 0 | BP109: 5308 | BQ109: 13 | BR109: 5313 | BS109: 2
C110: 41551 | D110: PITALITO | E110: 2 | F110: 0 | G110: Natural | H110: 41 | I110: HUILA | J110: Aprobado con subsidio | K110: MICRO | L110: 4620 | M110: COMERCIO AL POR MAYOR Y AL POR MENOR; REPARACIÓN DE VEHÍCULOS AUTOMOTORES Y MOTOCICLETAS | N110: G | O110: Comercio al por mayor de materias primas agropecuarias; animales vivos | P110: Comercio al por mayor de materias primas agropecuarias; animales vivos | Q110: 1 | R110: 1 | S110: 0 | T110: 2 | U110: 0 | V110: 0 | AH110: 0 | AI110: 0 | AJ110: 66400 | AK110: LA VIRGINIA | AL110: 2 | AM110: 1 | AN110: Natural | AO110: 66 | AP110: RISARALDA | AQ110: Aprobado con subsidio | AR110: MICRO | AS110: 2511 | AT110: INDUSTRIAS MANUFACTURERAS | AU110: C | AV110: Fabricación de productos metálicos para uso estructural, tanques, depósitos y generadores de vapor. | AW110: Fabricación de productos elaborados de metal, excepto maquinaria y equipo | AX110: 0 | AY110: 2 | AZ110: 0 | BA110: 2 | BB110: 0 | BC110: 0 | BP110: 25175 | BQ110: 6 | BR110: 5890 | BS110: 2
C111: 54498 | D111: OCAÑA | E111: 2 | F111: 4 | G111: Natural | H111: 54 | I111: NORTE DE SANTANDER | J111: Aprobado con subsidio | K111: MICRO | L111: 4541 | M111: COMERCIO AL POR MAYOR Y AL POR MENOR; REPARACIÓN DE VEHÍCULOS AUTOMOTORES Y MOTOCICLETAS | N111: G | O111: Comercio, mantenimiento y reparación de motocicletas y de sus partes, piezas y accesorios | P111: Comercio, mantenimiento y reparación de motocicletas y de sus partes, piezas y accesorios | Q111: 1 | R111: 1 | S111: 0 | T111: 2 | U111: 0 | V111: 0 | AH111: 0 | AI111: 0 | AJ111: 11001 | AK111: BOGOTÁ, D.C. | AL111: 2 | AM111: 0 | AN111: Natural | AO111: 11 | AP111: BOGOTÁ, D.C. | AQ111: Aprobado con subsidio | AR111: MICRO | AS111: 1811 | AT111: INDUSTRIAS MANUFACTURERAS | AU111: C | AV111: Actividades de impresión y actividades de servicios relacionados con la impresión | AW111: Actividades de impresión y de producción de copias a partir de grabaciones originales | AX111: 1 | AY111: 1 | AZ111: 0 | BA111: 2 | BB111: 0 | BC111: 0 | BP111: 76100 | BQ111: 0 | BR111: 15176 | BS111: 1
C112: 52001 | D112: PASTO | E112: 0 | F112: 0 | G112: Natural | H112: 52 | I112: NARIÑO | J112: 0 | K112: MICRO | L112: 4530 | M112: COMERCIO AL POR MAYOR Y AL POR MENOR; REPARACIÓN DE VEHÍCULOS AUTOMOTORES Y MOTOCICLETAS | N112: G | O112: Comercio de partes, piezas (autopartes) y accesorios (lujos) para vehículos automotores | P112: Comercio de partes, piezas (autopartes) y accesorios (lujos) para vehículos automotores | Q112: 0 | R112: 0 | S112: 0 | T112: 0 | U112: 0 | V112: 0 | AH112: 0 | AI112: 0 | AJ112: 11001 | AK112: BOGOTÁ, D.C. | AL112: 2 | AM112: 0 | AN112: Natural | AO112: 11 | AP112: BOGOTÁ, D.C. | AQ112: Aprobado con subsidio | AR112: MICRO | AS112: 1081 | AT112: INDUSTRIAS MANUFACTURERAS | AU112: C | AV112: Elaboración de otros productos alimenticios | AW112: Elaboración de productos alimenticios | AX112: 2 | AY112: 0 | AZ112: 0 | BA112: 0 | BB112: 2 | BC112: 0 | BP112: 54498 | BQ112: 0 | BR112: 18205 | BS112: 1
C113: 52001 | D113: PASTO | E113: 0 | F113: 0 | G113: Natural | H113: 52 | I113: NARIÑO | J113: 0 | K113: MICRO | L113: 4752 | M113: COMERCIO AL POR MAYOR Y AL POR MENOR; REPARACIÓN DE VEHÍCULOS AUTOMOTORES Y MOTOCICLETAS | N113: G | O113: Comercio al por menor de otros enseres domésticos en establecimientos especializados | P113: Comercio al por menor de otros enseres domésticos en establecimientos especializados | Q113: 0 | R113: 0 | S113: 0 | T113: 0 | U113: 0 | V113: 0 | AH113: 0 | AI113: 0 | AJ113: 11001 | AK113: BOGOTÁ, D.C. | AL113: 0 | AM113: 0 | AN113: Natural | AO113: 11 | AP113: BOGOTÁ, D.C. | AQ113: 0 | AR113: MICRO | AS113: 1081 | AT113: INDUSTRIAS MANUFACTURERAS | AU113: C | AV113: Elaboración de otros productos alimenticios | AW113: Elaboración de productos alimenticios | AX113: 0 | AY113: 0 | AZ113: 0 | BA113: 0 | BB113: 0 | BC113: 0 | BP113: 68406 | BQ113: 1 | BR113: 52560 | BS113: 1
C114: 52001 | D114: PASTO | E114: 0 | F114: 0 | G114: Natural | H114: 52 | I114: NARIÑO | J114: 0 | K114: MICRO | L114: 5512 | M114: ALOJAMIENTO Y SERVICIOS DE COMIDA | N114: I | O114: Actividades de alojamiento de estancias cortas | P114: Actividades de alojamiento de estancias cortas | Q114: 0 | R114: 0 | S114: 0 | T114: 0 | U114: 0 | V114: 0 | AH114: 0 | AI114: 0 | AJ114: 25754 | AK114: SOACHA | AL114: 1 | AM114: 1 | AN114: Natural | AO114: 25 | AP114: CUNDINAMARCA | AQ114: Aprobado con subsidio | AR114: MICRO | AS114: 2399 | AT114: INDUSTRIAS MANUFACTURERAS | AU114: C | AV114: Fabricación de productos minerales no metálicos n.c.p. | AW114: Fabricación de otros productos minerales no metálicos | AX114: 0 | AY114: 1 | AZ114: 0 | BA114: 0 | BB114: 0 | BC114: 1 | BP114: 25200 | BQ114: 1 | BR114: 85010 | BS114: 1
C115: 52317 | D115: GUACHUCAL | E115: 2 | F115: 0 | G115: Natural | H115: 52 | I115: NARIÑO | J115: Aprobado con subsidio | K115: PEQUEÑA | L115: 4731 | M115: COMERCIO AL POR MAYOR Y AL POR MENOR; REPARACIÓN DE VEHÍCULOS AUTOMOTORES Y MOTOCICLETAS | N115: G | O115: Comercio al por menor de combustible, lubricantes, aditivos y productos de limpieza para automotores, en establecimientos especializados | P115: Comercio al por menor de combustible, lubricantes, aditivos y productos de limpieza para automotores, en establecimientos especializados | Q115: 0 | R115: 2 | S115: 0 | T115: 2 | U115: 0 | V115: 0 | AH115: 0 | AI115: 0 | AJ115: 11001 | AK115: BOGOTÁ, D.C. | AL115: 2 | AM115: 0 | AN115: Natural | AO115: 11 | AP115: BOGOTÁ, D.C. | AQ115: Aprobado con subsidio | AR115: MICRO | AS115: 3312 | AT115: INDUSTRIAS MANUFACTURERAS | AU115: C | AV115: Mantenimiento y reparación especializado de productos elaborados en metal y de maquinaria y equipo | AW115: Instalación, mantenimiento y reparación especializado de maquinaria y equipo | AX115: 0 | AY115: 2 | AZ115: 0 | BA115: 1 | BB115: 0 | BC115: 1 | BP115: 63594 | BQ115: 1 | BR115: 85139 | BS115: 1
C116: 52001 | D116: PASTO | E116: 0 | F116: 0 | G116: Natural | H116: 52 | I116: NARIÑO | J116: 0 | K116: MICRO | L116: 4731 | M116: COMERCIO AL POR MAYOR Y AL POR MENOR; REPARACIÓN DE VEHÍCULOS AUTOMOTORES Y MOTOCICLETAS | N116: G | O116: Comercio al por menor de combustible, lubricantes, aditivos y productos de limpieza para automotores, en establecimientos especializados | P116: Comercio al por menor de combustible, lubricantes, aditivos y productos de limpieza para automotores, en establecimientos especializados | Q116: 0 | R116: 0 | S116: 0 | T116: 0 | U116: 0 | V116: 0 | AH116: 0 | AI116: 0 | AJ116: 11001 | AK116: BOGOTÁ, D.C. | AL116: 0 | AM116: 0 | AN116: Natural | AO116: 11 | AP116: BOGOTÁ, D.C. | AQ116: 0 | AR116: MICRO | AS116: 2229 | AT116: INDUSTRIAS MANUFACTURERAS | AU116: C | AV116: Fabricación de productos de plástico | AW116: Fabricación de productos de caucho y de plástico | AX116: 0 | AY116: 0 | AZ116: 0 | BA116: 0 | BB116: 0 | BC116: 0 | BP116: 63401 | BQ116: 4 | BR116: 20011 | BS116: 1
C117: 52560 | D117: POTOSÍ | E117: 2 | F117: 4 | G117: Natural | H117: 52 | I117: NARIÑO | J117: Aprobado con subsidio | K117: MICRO | L117: 1040 | M117: INDUSTRIAS MANUFACTURERAS | N117: C | O117: Elaboración de productos lácteos | P117: Elaboración de productos alimenticios | Q117: 1 | R117: 1 | S117: 0 | T117: 2 | U117: 0 | V117: 0 | AH117: 0 | AI117: 0 | AJ117: 11001 | AK117: BOGOTÁ, D.C. | AL117: 4 | AM117: 2 | AN117: Natural | AO117: 11 | AP117: BOGOTÁ, D.C. | AQ117: Aprobado con subsidio | AR117: MICRO | AS117: 1410 | AT117: INDUSTRIAS MANUFACTURERAS | AU117: C | AV117: Confección de prendas de vestir, excepto prendas de piel | AW117: Confección de prendas de vestir | AX117: 4 | AY117: 0 | AZ117: 0 | BA117: 3 | BB117: 1 | BC117: 0 | BP117: 68679 | BQ117: 5 | BR117: 17380 | BS117: 1
C118: 52683 | D118: SANDONÁ | E118: 2 | F118: 2 | G118: Natural | H118: 52 | I118: NARIÑO | J118: Aprobado con subsidio | K118: MICRO | L118: 4711 | M118: COMERCIO AL POR MAYOR Y AL POR MENOR; REPARACIÓN DE VEHÍCULOS AUTOMOTORES Y MOTOCICLETAS | N118: G | O118: Comercio al por menor en establecimientos no especializados | P118: Comercio al por menor en establecimientos no especializados | Q118: 1 | R118: 1 | S118: 0 | T118: 0 | U118: 1 | V118: 1 | AH118: 0 | AI118: 0 | AJ118: 11001 | AK118: BOGOTÁ, D.C. | AL118: 3 | AM118: 6 | AN118: Natural | AO118: 11 | AP118: BOGOTÁ, D.C. | AQ118: Aprobado con subsidio | AR118: MICRO | AS118: 1410 | AT118: INDUSTRIAS MANUFACTURERAS | AU118: C | AV118: Confección de prendas de vestir, excepto prendas de piel | AW118: Confección de prendas de vestir | AX118: 1 | AY118: 2 | AZ118: 0 | BA118: 3 | BB118: 0 | BC118: 0 | BP118: 5607 | BQ118: 2 | BR118: 19698 | BS118: 1
C119: 54001 | D119: CÚCUTA | E119: 1 | F119: 8 | G119: Natural | H119: 54 | I119: NORTE DE SANTANDER | J119: Aprobado con subsidio | K119: MICRO | L119: 2599 | M119: INDUSTRIAS MANUFACTURERAS | N119: C | O119: Fabricación de otros productos elaborados de metal y actividades de servicios relacionadas con el trabajo de metales | P119: Fabricación de productos elaborados de metal, excepto maquinaria y equipo | Q119: 0 | R119: 1 | S119: 0 | T119: 1 | U119: 0 | V119: 0 | AH119: 0 | AI119: 0 | AJ119: 11001 | AK119: BOGOTÁ, D.C. | AL119: 0 | AM119: 0 | AN119: Natural | AO119: 11 | AP119: BOGOTÁ, D.C. | AQ119: 0 | AR119: MICRO | AS119: 1410 | AT119: INDUSTRIAS MANUFACTURERAS | AU119: C | AV119: Confección de prendas de vestir, excepto prendas de piel | AW119: Confección de prendas de vestir | AX119: 0 | AY119: 0 | AZ119: 0 | BA119: 0 | BB119: 0 | BC119: 0 | BP119: 5579 | BQ119: 1 | BR119: 52835 | BS119: 1
C120: 54001 | D120: CÚCUTA | E120: 1 | F120: 5 | G120: Natural | H120: 54 | I120: NORTE DE SANTANDER | J120: Aprobado con subsidio | K120: MICRO | L120: 4923 | M120: TRANSPORTE Y ALMACENAMIENTO | N120: H | O120: Transporte terrestre publico automotor | P120: Transporte terrestre publico automotor | Q120: 0 | R120: 1 | S120: 0 | T120: 1 | U120: 0 | V120: 0 | AH120: 0 | AI120: 0 | AJ120: 11001 | AK120: BOGOTÁ, D.C. | AL120: 1 | AM120: 63 | AN120: Natural | AO120: 11 | AP120: BOGOTÁ, D.C. | AQ120: Aprobado con subsidio | AR120: MEDIANA | AS120: 3110 | AT120: INDUSTRIAS MANUFACTURERAS | AU120: C | AV120: Fabricación de muebles | AW120: Fabricación de muebles, colchones y somieres | AX120: 1 | AY120: 0 | AZ120: 0 | BA120: 1 | BB120: 0 | BC120: 0 | BP120: 25307 | BQ120: 1 | BR120: 66400 | BS120: 1
C121: 54498 | D121: OCAÑA | E121: 0 | F121: 0 | G121: Natural | H121: 54 | I121: NORTE DE SANTANDER | J121: 0 | K121: MICRO | L121: 4923 | M121: TRANSPORTE Y ALMACENAMIENTO | N121: H | O121: Transporte terrestre publico automotor | P121: Transporte terrestre publico automotor | Q121: 0 | R121: 0 | S121: 0 | T121: 0 | U121: 0 | V121: 0 | AH121: 0 | AI121: 0 | AJ121: 15087 | AK121: BELÉN | AL121: 0 | AM121: 0 | AN121: Natural | AO121: 15 | AP121: BOYACÁ | AQ121: 0 | AR121: MICRO | AS121: 1040 | AT121: INDUSTRIAS MANUFACTURERAS | AU121: C | AV121: Elaboración de productos lácteos | AW121: Elaboración de productos alimenticios | AX121: 0 | AY121: 0 | AZ121: 0 | BA121: 0 | BB121: 0 | BC121: 0 | BP121: 5310 | BQ121: 1 | BR121: 47288 | BS121: 1
C122: 54518 | D122: PAMPLONA | E122: 2 | F122: 12 | G122: Natural | H122: 54 | I122: NORTE DE SANTANDER | J122: Aprobado con subsidio | K122: PEQUEÑA | L122: 5611 | M122: ALOJAMIENTO Y SERVICIOS DE COMIDA | N122: I | O122: Actividades de restaurantes, cafeterías y servicio móvil de comidas | P122: Actividades de restaurantes, cafeterías y servicio móvil de comidas | Q122: 2 | R122: 0 | S122: 0 | T122: 2 | U122: 0 | V122: 0 | AH122: 0 | AI122: 0 | AJ122: 11001 | AK122: BOGOTÁ, D.C. | AL122: 0 | AM122: 0 | AN122: Natural | AO122: 11 | AP122: BOGOTÁ, D.C. | AQ122: 0 | AR122: MICRO | AS122: 2410 | AT122: INDUSTRIAS MANUFACTURERAS | AU122: C | AV122: Industrias básicas de hierro y de acero | AW122: Fabricación de productos metalúrgicos básicos | AX122: 0 | AY122: 0 | AZ122: 0 | BA122: 0 | BB122: 0 | BC122: 0 | BP122: 5147 | BQ122: 1 | BR122: 15516 | BS122: 1
C123: 54001 | D123: CÚCUTA | E123: 0 | F123: 0 | G123: Natural | H123: 54 | I123: NORTE DE SANTANDER | J123: 0 | K123: MICRO | L123: 4752 | M123: COMERCIO AL POR MAYOR Y AL POR MENOR; REPARACIÓN DE VEHÍCULOS AUTOMOTORES Y MOTOCICLETAS | N123: G | O123: Comercio al por menor de otros enseres domésticos en establecimientos especializados | P123: Comercio al por menor de otros enseres domésticos en establecimientos especializados | Q123: 0 | R123: 0 | S123: 0 | T123: 0 | U123: 0 | V123: 0 | AH123: 0 | AI123: 0 | AJ123: 11001 | AK123: BOGOTÁ, D.C. | AL123: 3 | AM123: 0 | AN123: Natural | AO123: 11 | AP123: BOGOTÁ, D.C. | AQ123: Aprobado con subsidio | AR123: MICRO | AS123: 1521 | AT123: INDUSTRIAS MANUFACTURERAS | AU123: C | AV123: Fabricación de calzado | AW123: Curtido y recurtido de cueros; fabricación de calzado; fabricación de artículos de viaje, maletas, bolsos de mano y artículos similares, y fabricación de artículos de talabartería y guarnicionería; adobo y teñido de pieles | AX123: 0 | AY123: 3 | AZ123: 0 | BA123: 0 | BB123: 0 | BC123: 3 | BP123: 5042 | BQ123: 1 | BR123: 68079 | BS123: 1
C124: 68001 | D124: BUCARAMANGA | E124: 1 | F124: 1 | G124: Natural | H124: 68 | I124: SANTANDER | J124: Aprobado con subsidio | K124: PEQUEÑA | L124: 1610 | M124: INDUSTRIAS MANUFACTURERAS | N124: C | O124: Aserrado, acepillado e impregnación de la madera | P124: Transformación de la madera y fabricación de productos de madera y de corcho, excepto muebles; fabricación de artículos de cestería y espartería | Q124: 0 | R124: 1 | S124: 0 | T124: 1 | U124: 0 | V124: 0 | AH124: 0 | AI124: 0 | AJ124: 11001 | AK124: BOGOTÁ, D.C. | AL124: 7 | AM124: 29 | AN124: Natural | AO124: 11 | AP124: BOGOTÁ, D.C. | AQ124: Aprobado con subsidio | AR124: MEDIANA | AS124: 1081 | AT124: INDUSTRIAS MANUFACTURERAS | AU124: C | AV124: Elaboración de otros productos alimenticios | AW124: Elaboración de productos alimenticios | AX124: 6 | AY124: 1 | AZ124: 0 | BA124: 7 | BB124: 0 | BC124: 0 | BP124: 23162 | BQ124: 1 | BR124: 54820 | BS124: 1
C125: 11001 | D125: BOGOTÁ, D.C. | E125: 0 | F125: 0 | G125: Natural | H125: 11 | I125: BOGOTÁ, D.C. | J125: 0 | K125: MICRO | L125: 4773 | M125: COMERCIO AL POR MAYOR Y AL POR MENOR; REPARACIÓN DE VEHÍCULOS AUTOMOTORES Y MOTOCICLETAS | N125: G | O125: Comercio al por menor de otros productos en establecimientos especializados | P125: Comercio al por menor de otros productos en establecimientos especializados | Q125: 0 | R125: 0 | S125: 0 | T125: 0 | U125: 0 | V125: 0 | AH125: 0 | AI125: 0 | AJ125: 47288 | AK125: FUNDACIÓN | AL125: 4 | AM125: 1 | AN125: Natural | AO125: 47 | AP125: MAGDALENA | AQ125: Aprobado con subsidio | AR125: MICRO | AS125: 1011 | AT125: INDUSTRIAS MANUFACTURERAS | AU125: C | AV125: Procesamiento y conservación de carne, pescado, crustáceos y moluscos | AW125: Elaboración de productos alimenticios | AX125: 0 | AY125: 4 | AZ125: 0 | BA125: 3 | BB125: 0 | BC125: 1 | BP125: 23417 | BQ125: 1 | BR125: 5209 | BS125: 1
C126: 68001 | D126: BUCARAMANGA | E126: 3 | F126: 2 | G126: Natural | H126: 68 | I126: SANTANDER | J126: Aprobado con subsidio | K126: MICRO | L126: 4774 | M126: COMERCIO AL POR MAYOR Y AL POR MENOR; REPARACIÓN DE VEHÍCULOS AUTOMOTORES Y MOTOCICLETAS | N126: G | O126: Comercio al por menor de otros productos en establecimientos especializados | P126: Comercio al por menor de otros productos en establecimientos especializados | Q126: 3 | R126: 0 | S126: 0 | T126: 3 | U126: 0 | V126: 0 | AH126: 0 | AI126: 0 | AJ126: 5045 | AK126: APARTADÓ | AL126: 24 | AM126: 29 | AN126: Natural | AO126: 5 | AP126: ANTIOQUIA | AQ126: Aprobado con subsidio | AR126: PEQUEÑA | AS126: 1089 | AT126: INDUSTRIAS MANUFACTURERAS | AU126: C | AV126: Elaboración de otros productos alimenticios | AW126: Elaboración de productos alimenticios | AX126: 20 | AY126: 4 | AZ126: 0 | BA126: 24 | BB126: 0 | BC126: 0 | BP126: 76275 | BQ126: 0 | BR126: 25123 | BS126: 1
C127: 68001 | D127: BUCARAMANGA | E127: 0 | F127: 0 | G127: Natural | H127: 68 | I127: SANTANDER | J127: 0 | K127: MICRO | L127: 4729 | M127: COMERCIO AL POR MAYOR Y AL POR MENOR; REPARACIÓN DE VEHÍCULOS AUTOMOTORES Y MOTOCICLETAS | N127: G | O127: Comercio al por menor de alimentos (víveres en general), bebidas y tabaco, en establecimientos especializados | P127: Comercio al por menor de alimentos (víveres en general), bebidas y tabaco, en establecimientos especializados | Q127: 0 | R127: 0 | S127: 0 | T127: 0 | U127: 0 | V127: 0 | AH127: 0 | AI127: 0 | AJ127: 5001 | AK127: MEDELLÍN | AL127: 1 | AM127: 0 | AN127: Natural | AO127: 5 | AP127: ANTIOQUIA | AQ127: Aprobado con subsidio | AR127: MICRO | AS127: 1081 | AT127: INDUSTRIAS MANUFACTURERAS | AU127: C | AV127: Elaboración de otros productos alimenticios | AW127: Elaboración de productos alimenticios | AX127: 1 | AY127: 0 | AZ127: 0 | BA127: 1 | BB127: 0 | BC127: 0 | BP127: 17541 | BQ127: 2 | BR127: 63130 | BS127: 1
C128: 68307 | D128: GIRÓN | E128: 0 | F128: 0 | G128: Natural | H128: 68 | I128: SANTANDER | J128: 0 | K128: PEQUEÑA | L128: 8513 | M128: EDUCACIÓN | N128: P | O128: Educación de la primera infancia, preescolar y básica primaria | P128: Educación de la primera infancia, preescolar y básica primaria | Q128: 0 | R128: 0 | S128: 0 | T128: 0 | U128: 0 | V128: 0 | AH128: 0 | AI128: 0 | AJ128: 5001 | AK128: MEDELLÍN | AL128: 18 | AM128: 2 | AN128: Natural | AO128: 5 | AP128: ANTIOQUIA | AQ128: Aprobado con subsidio | AR128: MICRO | AS128: 1410 | AT128: INDUSTRIAS MANUFACTURERAS | AU128: C | AV128: Confección de prendas de vestir, excepto prendas de piel | AW128: Confección de prendas de vestir | AX128: 16 | AY128: 2 | AZ128: 0 | BA128: 5 | BB128: 13 | BC128: 0 | BP128: 19300 | BQ128: 2 | BR128: 70124 | BS128: 1
C129: 11001 | D129: BOGOTÁ, D.C. | E129: 13 | F129: 12 | G129: Natural | H129: 11 | I129: BOGOTÁ, D.C. | J129: Aprobado con subsidio | K129: MICRO | L129: 4731 | M129: COMERCIO AL POR MAYOR Y AL POR MENOR; REPARACIÓN DE VEHÍCULOS AUTOMOTORES Y MOTOCICLETAS | N129: G | O129: Comercio al por menor de combustible, lubricantes, aditivos y productos de limpieza para automotores, en establecimientos especializados | P129: Comercio al por menor de combustible, lubricantes, aditivos y productos de limpieza para automotores, en establecimientos especializados | Q129: 8 | R129: 5 | S129: 0 | T129: 5 | U129: 4 | V129: 4 | AH129: 0 | AI129: 0 | AJ129: 5266 | AK129: ENVIGADO | AL129: 0 | AM129: 0 | AN129: Natural | AO129: 5 | AP129: ANTIOQUIA | AQ129: 0 | AR129: MICRO | AS129: 1081 | AT129: INDUSTRIAS MANUFACTURERAS | AU129: C | AV129: Elaboración de otros productos alimenticios | AW129: Elaboración de productos alimenticios | AX129: 0 | AY129: 0 | AZ129: 0 | BA129: 0 | BB129: 0 | BC129: 0 | BP129: 19845 | BQ129: 3 | BR129: 52227 | BS129: 1
C130: 54001 | D130: CÚCUTA | E130: 2 | F130: 2 | G130: Natural | H130: 54 | I130: NORTE DE SANTANDER | J130: Aprobado con subsidio | K130: MICRO | L130: 1410 | M130: INDUSTRIAS MANUFACTURERAS | N130: C | O130: Confección de prendas de vestir, excepto prendas de piel | P130: Confección de prendas de vestir | Q130: 1 | R130: 1 | S130: 0 | T130: 2 | U130: 0 | V130: 0 | AH130: 0 | AI130: 0 | AJ130: 5360 | AK130: ITAGUI | AL130: 0 | AM130: 0 | AN130: Natural | AO130: 5 | AP130: ANTIOQUIA | AQ130: 0 | AR130: PEQUEÑA | AS130: 1020 | AT130: INDUSTRIAS MANUFACTURERAS | AU130: C | AV130: Procesamiento y conservación de frutas, legumbres, hortalizas y tubérculos | AW130: Elaboración de productos alimenticios | AX130: 0 | AY130: 0 | AZ130: 0 | BA130: 0 | BB130: 0 | BC130: 0 | BP130: 20621 | BQ130: =COUNTIFS($AQ$2:$AQ$399999,"Aprobado con subsidio",$AJ$2:$AJ$399999,BP130) -> 2 | BR130: 25745 | BS130: 1
C131: 68001 | D131: BUCARAMANGA | E131: 1 | F131: 0 | G131: Natural | H131: 68 | I131: SANTANDER | J131: Aprobado con subsidio | K131: MICRO | L131: 7420 | M131: ACTIVIDADES PROFESIONALES, CIENTÍFICAS Y TÉCNICAS | N131: M | O131: Actividades de fotografía | P131: Actividades de fotografía | Q131: 0 | R131: 1 | S131: 0 | T131: 0 | U131: 0 | V131: 1 | AH131: 0 | AI131: 0 | AJ131: 8001 | AK131: BARRANQUILLA | AL131: 7 | AM131: 11 | AN131: Natural | AO131: 8 | AP131: ATLÁNTICO | AQ131: Aprobado con subsidio | AR131: PEQUEÑA | AS131: 1089 | AT131: INDUSTRIAS MANUFACTURERAS | AU131: C | AV131: Elaboración de otros productos alimenticios | AW131: Elaboración de productos alimenticios | AX131: 5 | AY131: 2 | AZ131: 0 | BA131: 2 | BB131: 5 | BC131: 0 | BP131: 8433 | BQ131: 4 | BR131: 68406 | BS131: 1
C132: 68081 | D132: BARRANCABERMEJA | E132: 0 | F132: 0 | G132: Natural | H132: 68 | I132: SANTANDER | J132: 0 | K132: MICRO | L132: 4731 | M132: COMERCIO AL POR MAYOR Y AL POR MENOR; REPARACIÓN DE VEHÍCULOS AUTOMOTORES Y MOTOCICLETAS | N132: G | O132: Comercio al por menor de combustible, lubricantes, aditivos y productos de limpieza para automotores, en establecimientos especializados | P132: Comercio al por menor de combustible, lubricantes, aditivos y productos de limpieza para automotores, en establecimientos especializados | Q132: 0 | R132: 0 | S132: 0 | T132: 0 | U132: 0 | V132: 0 | AH132: 0 | AI132: 0 | AJ132: 70001 | AK132: SINCELEJO | AL132: 6 | AM132: 0 | AN132: Natural | AO132: 70 | AP132: SUCRE | AQ132: Aprobado con subsidio | AR132: MICRO | AS132: 1081 | AT132: INDUSTRIAS MANUFACTURERAS | AU132: C | AV132: Elaboración de otros productos alimenticios | AW132: Elaboración de productos alimenticios | AX132: 4 | AY132: 2 | AZ132: 0 | BA132: 5 | BB132: 0 | BC132: 1 | BP132: 81001 | BQ132: 1 | BR132: 25200 | BS132: 1
C133: 68679 | D133: SAN GIL | E133: 5 | F133: 11 | G133: Natural | H133: 68 | I133: SANTANDER | J133: Aprobado con subsidio | K133: PEQUEÑA | L133: 4711 | M133: COMERCIO AL POR MAYOR Y AL POR MENOR; REPARACIÓN DE VEHÍCULOS AUTOMOTORES Y MOTOCICLETAS | N133: G | O133: Comercio al por menor en establecimientos no especializados | P133: Comercio al por menor en establecimientos no especializados | Q133: 2 | R133: 3 | S133: 0 | T133: 5 | U133: 0 | V133: 0 | AH133: 0 | AI133: 0 | AJ133: 15176 | AK133: CHIQUINQUIRÁ | AL133: 0 | AM133: 0 | AN133: Natural | AO133: 15 | AP133: BOYACÁ | AQ133: 0 | AR133: MICRO | AS133: 1081 | AT133: INDUSTRIAS MANUFACTURERAS | AU133: C | AV133: Elaboración de otros productos alimenticios | AW133: Elaboración de productos alimenticios | AX133: 0 | AY133: 0 | AZ133: 0 | BA133: 0 | BB133: 0 | BC133: 0 | BP133: 8758 | BQ133: 5 | BR133: 63594 | BS133: 1
C134: 5001 | D134: MEDELLÍN | E134: 0 | F134: 0 | G134: Natural | H134: 5 | I134: ANTIOQUIA | J134: 0 | K134: PEQUEÑA | L134: 4390 | M134: CONSTRUCCIÓN | N134: F | O134: Otras actividades especializadas para la construcción de edificios y obras de ingeniería civil | P134: Otras actividades especializadas para la construcción de edificios y obras de ingeniería civil | Q134: 0 | R134: 0 | S134: 0 | T134: 0 | U134: 0 | V134: 0 | AH134: 0 | AI134: 0 | AJ134: 11001 | AK134: BOGOTÁ, D.C. | AL134: 1 | AM134: 3 | AN134: Natural | AO134: 11 | AP134: BOGOTÁ, D.C. | AQ134: Aprobado con subsidio | AR134: MICRO | AS134: 1081 | AT134: INDUSTRIAS MANUFACTURERAS | AU134: C | AV134: Elaboración de otros productos alimenticios | AW134: Elaboración de productos alimenticios | AX134: 1 | AY134: 0 | AZ134: 0 | BA134: 0 | BB134: 1 | BC134: 0 | BP134: 25740 | BQ134: 1 | BR134: 5579 | BS134: 1
C135: 68861 | D135: VÉLEZ | E135: 1 | F135: 0 | G135: Natural | H135: 68 | I135: SANTANDER | J135: Aprobado con subsidio | K135: MICRO | L135: 1089 | M135: INDUSTRIAS MANUFACTURERAS | N135: C | O135: Elaboración de otros productos alimenticios | P135: Elaboración de productos alimenticios | Q135: 1 | R135: 0 | S135: 0 | T135: 1 | U135: 0 | V135: 0 | AH135: 0 | AI135: 0 | AJ135: 25754 | AK135: SOACHA | AL135: 0 | AM135: 0 | AN135: Natural | AO135: 25 | AP135: CUNDINAMARCA | AQ135: 0 | AR135: MICRO | AS135: 2410 | AT135: INDUSTRIAS MANUFACTURERAS | AU135: C | AV135: Industrias básicas de hierro y de acero | AW135: Fabricación de productos metalúrgicos básicos | AX135: 0 | AY135: 0 | AZ135: 0 | BA135: 0 | BB135: 0 | BC135: 0 | BP135: 25269 | BQ135: 2 | BR135: 25307 | BS135: 1
C136: 68001 | D136: BUCARAMANGA | E136: 0 | F136: 0 | G136: Natural | H136: 68 | I136: SANTANDER | J136: 0 | K136: MICRO | L136: 6621 | M136: ACTIVIDADES FINANCIERAS Y DE SEGUROS | N136: K | O136: Actividades de servicios auxiliares de los servicios de seguros y pensiones | P136: Actividades de servicios auxiliares de los servicios de seguros y pensiones | Q136: 0 | R136: 0 | S136: 0 | T136: 0 | U136: 0 | V136: 0 | AH136: 0 | AI136: 0 | AJ136: 11001 | AK136: BOGOTÁ, D.C. | AL136: 1 | AM136: 5 | AN136: Natural | AO136: 11 | AP136: BOGOTÁ, D.C. | AQ136: Aprobado con subsidio | AR136: MICRO | AS136: 1081 | AT136: INDUSTRIAS MANUFACTURERAS | AU136: C | AV136: Elaboración de otros productos alimenticios | AW136: Elaboración de productos alimenticios | AX136: 1 | AY136: 0 | AZ136: 0 | BA136: 1 | BB136: 0 | BC136: 0 | BP136: 25288 | BQ136: 1 | BR136: 5310 | BS136: 1
C137: 68001 | D137: BUCARAMANGA | E137: 4 | F137: 88 | G137: Natural | H137: 68 | I137: SANTANDER | J137: Aprobado con subsidio | K137: MEDIANA | L137: 4711 | M137: COMERCIO AL POR MAYOR Y AL POR MENOR; REPARACIÓN DE VEHÍCULOS AUTOMOTORES Y MOTOCICLETAS | N137: G | O137: Comercio al por menor en establecimientos no especializados | P137: Comercio al por menor en establecimientos no especializados | Q137: 4 | R137: 0 | S137: 0 | T137: 4 | U137: 0 | V137: 0 | AH137: 0 | AI137: 0 | AJ137: 68001 | AK137: BUCARAMANGA | AL137: 0 | AM137: 0 | AN137: Natural | AO137: 68 | AP137: SANTANDER | AQ137: 0 | AR137: PEQUEÑA | AS137: 1410 | AT137: INDUSTRIAS MANUFACTURERAS | AU137: C | AV137: Confección de prendas de vestir, excepto prendas de piel | AW137: Confección de prendas de vestir | AX137: 0 | AY137: 0 | AZ137: 0 | BA137: 0 | BB137: 0 | BC137: 0 | BP137: 25873 | BQ137: 1 | BR137: 5147 | BS137: 1
C138: 68079 | D138: BARICHARA | E138: 0 | F138: 0 | G138: Natural | H138: 68 | I138: SANTANDER | J138: 0 | K138: PEQUEÑA | L138: 5511 | M138: ALOJAMIENTO Y SERVICIOS DE COMIDA | N138: I | O138: Actividades de alojamiento de estancias cortas | P138: Actividades de alojamiento de estancias cortas | Q138: 0 | R138: 0 | S138: 0 | T138: 0 | U138: 0 | V138: 0 | AH138: 0 | AI138: 0 | AJ138: 15238 | AK138: DUITAMA | AL138: 2 | AM138: 6 | AN138: Natural | AO138: 15 | AP138: BOYACÁ | AQ138: Aprobado con subsidio | AR138: MICRO | AS138: 2599 | AT138: INDUSTRIAS MANUFACTURERAS | AU138: C | AV138: Fabricación de otros productos elaborados de metal y actividades de servicios relacionadas con el trabajo de metales | AW138: Fabricación de productos elaborados de metal, excepto maquinaria y equipo | AX138: 0 | AY138: 2 | AZ138: 0 | BA138: 2 | BB138: 0 | BC138: 0 | BP138: 8634 | BQ138: 1 | BR138: 5042 | BS138: 1
C139: 11001 | D139: BOGOTÁ, D.C. | E139: 3 | F139: 0 | G139: Natural | H139: 11 | I139: BOGOTÁ, D.C. | J139: Aprobado con subsidio | K139: MICRO | L139: 8121 | M139: ACTIVIDADES DE SERVICIOS ADMINISTRATIVOS Y DE APOYO | N139: N | O139: Actividades de limpieza | P139: Actividades de limpieza | Q139: 2 | R139: 1 | S139: 0 | T139: 0 | U139: 2 | V139: 1 | AH139: 0 | AI139: 0 | AJ139: 15516 | AK139: PAIPA | AL139: 2 | AM139: 0 | AN139: Natural | AO139: 15 | AP139: BOYACÁ | AQ139: Aprobado con subsidio | AR139: MICRO | AS139: 1040 | AT139: INDUSTRIAS MANUFACTURERAS | AU139: C | AV139: Elaboración de productos lácteos | AW139: Elaboración de productos alimenticios | AX139: 0 | AY139: 2 | AZ139: 0 | BA139: 2 | BB139: 0 | BC139: 0 | BP139: 5030 | BQ139: 5 | BR139: 23162 | BS139: 1
C140: 73001 | D140: IBAGUÉ | E140: 0 | F140: 0 | G140: Natural | H140: 73 | I140: TOLIMA | J140: 0 | K140: MICRO | L140: 4751 | M140: COMERCIO AL POR MAYOR Y AL POR MENOR; REPARACIÓN DE VEHÍCULOS AUTOMOTORES Y MOTOCICLETAS | N140: G | O140: Comercio al por menor de otros enseres domésticos en establecimientos especializados | P140: Comercio al por menor de otros enseres domésticos en establecimientos especializados | Q140: 0 | R140: 0 | S140: 0 | T140: 0 | U140: 0 | V140: 0 | AH140: 0 | AI140: 0 | AJ140: 17001 | AK140: MANIZALES | AL140: 0 | AM140: 0 | AN140: Natural | AO140: 17 | AP140: CALDAS | AQ140: 0 | AR140: MICRO | AS140: 1084 | AT140: INDUSTRIAS MANUFACTURERAS | AU140: C | AV140: Elaboración de otros productos alimenticios | AW140: Elaboración de productos alimenticios | AX140: 0 | AY140: 0 | AZ140: 0 | BA140: 0 | BB140: 0 | BC140: 0 | BP140: 5697 | BQ140: 13 | BR140: 23417 | BS140: 1
C141: 41001 | D141: NEIVA | E141: 3 | F141: 10 | G141: Natural | H141: 41 | I141: HUILA | J141: Aprobado con subsidio | K141: MICRO | L141: 5511 | M141: ALOJAMIENTO Y SERVICIOS DE COMIDA | N141: I | O141: Actividades de alojamiento de estancias cortas | P141: Actividades de alojamiento de estancias cortas | Q141: 1 | R141: 2 | S141: 0 | T141: 3 | U141: 0 | V141: 0 | AH141: 0 | AI141: 0 | AJ141: 17001 | AK141: MANIZALES | AL141: 16 | AM141: 37 | AN141: Natural | AO141: 17 | AP141: CALDAS | AQ141: Aprobado con subsidio | AR141: PEQUEÑA | AS141: 1523 | AT141: INDUSTRIAS MANUFACTURERAS | AU141: C | AV141: Fabricación de calzado | AW141: Curtido y recurtido de cueros; fabricación de calzado; fabricación de artículos de viaje, maletas, bolsos de mano y artículos similares, y fabricación de artículos de talabartería y guarnicionería; adobo y teñido de pieles | AX141: 15 | AY141: 1 | AZ141: 0 | BA141: 6 | BB141: 10 | BC141: 0 | BP141: 19455 | BQ141: 1 | BR141: 81001 | BS141: 1
C142: 11001 | D142: BOGOTÁ, D.C. | E142: 0 | F142: 0 | G142: Natural | H142: 11 | I142: BOGOTÁ, D.C. | J142: 0 | K142: MICRO | L142: 6910 | M142: ACTIVIDADES PROFESIONALES, CIENTÍFICAS Y TÉCNICAS | N142: M | O142: Actividades jurídicas | P142: Actividades jurídicas | Q142: 0 | R142: 0 | S142: 0 | T142: 0 | U142: 0 | V142: 0 | AH142: 0 | AI142: 0 | AJ142: 17001 | AK142: MANIZALES | AL142: 10 | AM142: 21 | AN142: Natural | AO142: 17 | AP142: CALDAS | AQ142: Aprobado con subsidio | AR142: PEQUEÑA | AS142: 1081 | AT142: INDUSTRIAS MANUFACTURERAS | AU142: C | AV142: Elaboración de otros productos alimenticios | AW142: Elaboración de productos alimenticios | AX142: 10 | AY142: 0 | AZ142: 0 | BA142: 8 | BB142: 2 | BC142: 0 | BP142: 15542 | BQ142: 0 | BR142: 25740 | BS142: 1
C143: 73001 | D143: IBAGUÉ | E143: 4 | F143: 0 | G143: Natural | H143: 73 | I143: TOLIMA | J143: Aprobado con subsidio | K143: MICRO | L143: 4773 | M143: COMERCIO AL POR MAYOR Y AL POR MENOR; REPARACIÓN DE VEHÍCULOS AUTOMOTORES Y MOTOCICLETAS | N143: G | O143: Comercio al por menor de otros productos en establecimientos especializados | P143: Comercio al por menor de otros productos en establecimientos especializados | Q143: 3 | R143: 1 | S143: 0 | T143: 0 | U143: 3 | V143: 1 | AH143: 0 | AI143: 0 | AJ143: 76001 | AK143: CALI | AL143: 0 | AM143: 0 | AN143: Natural | AO143: 76 | AP143: VALLE DEL CAUCA | AQ143: 0 | AR143: MICRO | AS143: 1089 | AT143: INDUSTRIAS MANUFACTURERAS | AU143: C | AV143: Elaboración de otros productos alimenticios | AW143: Elaboración de productos alimenticios | AX143: 0 | AY143: 0 | AZ143: 0 | BA143: 0 | BB143: 0 | BC143: 0 | BP143: 76113 | BQ143: 1 | BR143: 25288 | BS143: 1
C144: 76001 | D144: CALI | E144: 2 | F144: 9 | G144: Natural | H144: 76 | I144: VALLE DEL CAUCA | J144: Aprobado con subsidio | K144: MICRO | L144: 1811 | M144: INDUSTRIAS MANUFACTURERAS | N144: C | O144: Actividades de impresión y actividades de servicios relacionados con la impresión | P144: Actividades de impresión y de producción de copias a partir de grabaciones originales | Q144: 2 | R144: 0 | S144: 0 | T144: 2 | U144: 0 | V144: 0 | AH144: 0 | AI144: 0 | AJ144: 17001 | AK144: MANIZALES | AL144: 0 | AM144: 0 | AN144: Natural | AO144: 17 | AP144: CALDAS | AQ144: 0 | AR144: PEQUEÑA | AS144: 1523 | AT144: INDUSTRIAS MANUFACTURERAS | AU144: C | AV144: Fabricación de calzado | AW144: Curtido y recurtido de cueros; fabricación de calzado; fabricación de artículos de viaje, maletas, bolsos de mano y artículos similares, y fabricación de artículos de talabartería y guarnicionería; adobo y teñido de pieles | AX144: 0 | AY144: 0 | AZ144: 0 | BA144: 0 | BB144: 0 | BC144: 0 | BP144: 76403 | BQ144: 1 | BR144: 25873 | BS144: 1
C145: 73001 | D145: IBAGUÉ | E145: 1 | F145: 0 | G145: Natural | H145: 73 | I145: TOLIMA | J145: Aprobado con subsidio | K145: MICRO | L145: 4752 | M145: COMERCIO AL POR MAYOR Y AL POR MENOR; REPARACIÓN DE VEHÍCULOS AUTOMOTORES Y MOTOCICLETAS | N145: G | O145: Comercio al por menor de otros enseres domésticos en establecimientos especializados | P145: Comercio al por menor de otros enseres domésticos en establecimientos especializados | Q145: 0 | R145: 1 | S145: 0 | T145: 1 | U145: 0 | V145: 0 | AH145: 0 | AI145: 0 | AJ145: 66170 | AK145: DOSQUEBRADAS | AL145: 2 | AM145: 3 | AN145: Natural | AO145: 66 | AP145: RISARALDA | AQ145: Aprobado con subsidio | AR145: MICRO | AS145: 2511 | AT145: INDUSTRIAS MANUFACTURERAS | AU145: C | AV145: Fabricación de productos metálicos para uso estructural, tanques, depósitos y generadores de vapor. | AW145: Fabricación de productos elaborados de metal, excepto maquinaria y equipo | AX145: 0 | AY145: 2 | AZ145: 0 | BA145: 0 | BB145: 0 | BC145: 2 | BP145: 17614 | BQ145: 1 | BR145: 8634 | BS145: 1
C146: 73268 | D146: ESPINAL | E146: 0 | F146: 0 | G146: Natural | H146: 73 | I146: TOLIMA | J146: 0 | K146: PEQUEÑA | L146: 4290 | M146: CONSTRUCCIÓN | N146: F | O146: Construcción de otras obras de ingeniería civil | P146: Construcción de otras obras de ingeniería civil | Q146: 0 | R146: 0 | S146: 0 | T146: 0 | U146: 0 | V146: 0 | AH146: 0 | AI146: 0 | AJ146: 73001 | AK146: IBAGUÉ | AL146: 1 | AM146: 0 | AN146: Natural | AO146: 73 | AP146: TOLIMA | AQ146: Aprobado con subsidio | AR146: MICRO | AS146: 1081 | AT146: INDUSTRIAS MANUFACTURERAS | AU146: C | AV146: Elaboración de otros productos alimenticios | AW146: Elaboración de productos alimenticios | AX146: 0 | AY146: 1 | AZ146: 0 | BA146: 1 | BB146: 0 | BC146: 0 | BP146: 17433 | BQ146: 1 | BR146: 19455 | BS146: 1
C147: 5001 | D147: MEDELLÍN | E147: 0 | F147: 0 | G147: Natural | H147: 5 | I147: ANTIOQUIA | J147: 0 | K147: MICRO | L147: 4719 | M147: COMERCIO AL POR MAYOR Y AL POR MENOR; REPARACIÓN DE VEHÍCULOS AUTOMOTORES Y MOTOCICLETAS | N147: G | O147: Comercio al por menor en establecimientos no especializados | P147: Comercio al por menor en establecimientos no especializados | Q147: 0 | R147: 0 | S147: 0 | T147: 0 | U147: 0 | V147: 0 | AH147: 0 | AI147: 0 | AJ147: 86001 | AK147: MOCOA | AL147: 0 | AM147: 0 | AN147: Natural | AO147: 86 | AP147: PUTUMAYO | AQ147: 0 | AR147: MICRO | AS147: 1081 | AT147: INDUSTRIAS MANUFACTURERAS | AU147: C | AV147: Elaboración de otros productos alimenticios | AW147: Elaboración de productos alimenticios | AX147: 0 | AY147: 0 | AZ147: 0 | BA147: 0 | BB147: 0 | BC147: 0 | BP147: 25743 | BQ147: 2 | BR147: 76113 | BS147: 1
C148: 50001 | D148: VILLAVICENCIO | E148: 10 | F148: 13 | G148: Natural | H148: 50 | I148: META | J148: Aprobado con subsidio | K148: PEQUEÑA | L148: 5511 | M148: ALOJAMIENTO Y SERVICIOS DE COMIDA | N148: I | O148: Actividades de alojamiento de estancias cortas | P148: Actividades de alojamiento de estancias cortas | Q148: 4 | R148: 6 | S148: 0 | T148: 7 | U148: 3 | V148: 0 | AH148: 0 | AI148: 0 | AJ148: 54518 | AK148: PAMPLONA | AL148: 3 | AM148: 1 | AN148: Natural | AO148: 54 | AP148: NORTE DE SANTANDER | AQ148: Aprobado con subsidio | AR148: PEQUEÑA | AS148: 1081 | AT148: INDUSTRIAS MANUFACTURERAS | AU148: C | AV148: Elaboración de otros productos alimenticios | AW148: Elaboración de productos alimenticios | AX148: 3 | AY148: 0 | AZ148: 0 | BA148: 1 | BB148: 2 | BC148: 0 | BP148: 54261 | BQ148: 1 | BR148: 76403 | BS148: 1
C149: 76834 | D149: TULUÁ | E149: 1 | F149: 4 | G149: Natural | H149: 76 | I149: VALLE DEL CAUCA | J149: Aprobado con subsidio | K149: PEQUEÑA | L149: 4751 | M149: COMERCIO AL POR MAYOR Y AL POR MENOR; REPARACIÓN DE VEHÍCULOS AUTOMOTORES Y MOTOCICLETAS | N149: G | O149: Comercio al por menor de otros enseres domésticos en establecimientos especializados | P149: Comercio al por menor de otros enseres domésticos en establecimientos especializados | Q149: 1 | R149: 0 | S149: 0 | T149: 0 | U149: 1 | V149: 0 | AH149: 0 | AI149: 0 | AJ149: 68079 | AK149: BARICHARA | AL149: 0 | AM149: 0 | AN149: Natural | AO149: 68 | AP149: SANTANDER | AQ149: 0 | AR149: MICRO | AS149: 1081 | AT149: INDUSTRIAS MANUFACTURERAS | AU149: C | AV149: Elaboración de otros productos alimenticios | AW149: Elaboración de productos alimenticios | AX149: 0 | AY149: 0 | AZ149: 0 | BA149: 0 | BB149: 0 | BC149: 0 | BP149: 50226 | BQ149: 1 | BR149: 17614 | BS149: 1
C150: 76020 | D150: ALCALÁ | E150: 6 | F150: 1 | G150: Natural | H150: 76 | I150: VALLE DEL CAUCA | J150: Aprobado con subsidio | K150: MICRO | L150: 4752 | M150: COMERCIO AL POR MAYOR Y AL POR MENOR; REPARACIÓN DE VEHÍCULOS AUTOMOTORES Y MOTOCICLETAS | N150: G | O150: Comercio al por menor de otros enseres domésticos en establecimientos especializados | P150: Comercio al por menor de otros enseres domésticos en establecimientos especializados | Q150: 2 | R150: 4 | S150: 0 | T150: 2 | U150: 2 | V150: 2 | AH150: 0 | AI150: 0 | AJ150: 68861 | AK150: VÉLEZ | AL150: 1 | AM150: 2 | AN150: Natural | AO150: 68 | AP150: SANTANDER | AQ150: Aprobado con subsidio | AR150: PEQUEÑA | AS150: 1089 | AT150: INDUSTRIAS MANUFACTURERAS | AU150: C | AV150: Elaboración de otros productos alimenticios | AW150: Elaboración de productos alimenticios | AX150: 0 | AY150: 1 | AZ150: 0 | BA150: 1 | BB150: 0 | BC150: 0 | BP150: 70771 | BQ150: 1 | BR150: 17433 | BS150: 1
C151: 76001 | D151: CALI | E151: 0 | F151: 0 | G151: Natural | H151: 76 | I151: VALLE DEL CAUCA | J151: 0 | K151: PEQUEÑA | L151: 4762 | M151: COMERCIO AL POR MAYOR Y AL POR MENOR; REPARACIÓN DE VEHÍCULOS AUTOMOTORES Y MOTOCICLETAS | N151: G | O151: Comercio al por menor de artículos culturales y de entretenimiento, en establecimientos especializados | P151: Comercio al por menor de artículos culturales y de entretenimiento, en establecimientos especializados | Q151: 0 | R151: 0 | S151: 0 | T151: 0 | U151: 0 | V151: 0 | AH151: 0 | AI151: 0 | AJ151: 17001 | AK151: MANIZALES | AL151: 3 | AM151: 21 | AN151: Natural | AO151: 17 | AP151: CALDAS | AQ151: Aprobado con subsidio | AR151: PEQUEÑA | AS151: 1081 | AT151: INDUSTRIAS MANUFACTURERAS | AU151: C | AV151: Elaboración de otros productos alimenticios | AW151: Elaboración de productos alimenticios | AX151: 2 | AY151: 1 | AZ151: 0 | BA151: 3 | BB151: 0 | BC151: 0 | BP151: 17873 | BQ151: 3 | BR151: 54261 | BS151: 1
C152: 76001 | D152: CALI | E152: 0 | F152: 0 | G152: Natural | H152: 76 | I152: VALLE DEL CAUCA | J152: 0 | K152: PEQUEÑA | L152: 150 | M152: AGRICULTURA, GANADERÍA, CAZA, SILVICULTURA Y PESCA | N152: A | O152: Explotación mixta (agrícola y pecuaria) | P152: Explotación mixta (agrícola y pecuaria) | Q152: 0 | R152: 0 | S152: 0 | T152: 0 | U152: 0 | V152: 0 | AH152: 0 | AI152: 0 | AJ152: 17001 | AK152: MANIZALES | AL152: 0 | AM152: 0 | AN152: Natural | AO152: 17 | AP152: CALDAS | AQ152: 0 | AR152: MICRO | AS152: 1812 | AT152: INDUSTRIAS MANUFACTURERAS | AU152: C | AV152: Actividades de impresión y actividades de servicios relacionados con la impresión | AW152: Fabricación de papel, cartón y productos de papel y cartón | AX152: 0 | AY152: 0 | AZ152: 0 | BA152: 0 | BB152: 0 | BC152: 0 | BP152: 25769 | BQ152: 2 | BR152: 50226 | BS152: 1
C153: 11001 | D153: BOGOTÁ, D.C. | E153: 0 | F153: 0 | G153: Natural | H153: 11 | I153: BOGOTÁ, D.C. | J153: 0 | K153: MICRO | L153: 2599 | M153: INDUSTRIAS MANUFACTURERAS | N153: C | O153: Fabricación de otros productos elaborados de metal y actividades de servicios relacionadas con el trabajo de metales | P153: Fabricación de productos elaborados de metal, excepto maquinaria y equipo | Q153: 0 | R153: 0 | S153: 0 | T153: 0 | U153: 0 | V153: 0 | AH153: 0 | AI153: 0 | AJ153: 17001 | AK153: MANIZALES | AL153: 4 | AM153: 18 | AN153: Natural | AO153: 17 | AP153: CALDAS | AQ153: Aprobado con subsidio | AR153: PEQUEÑA | AS153: 1523 | AT153: INDUSTRIAS MANUFACTURERAS | AU153: C | AV153: Fabricación de calzado | AW153: Curtido y recurtido de cueros; fabricación de calzado; fabricación de artículos de viaje, maletas, bolsos de mano y artículos similares, y fabricación de artículos de talabartería y guarnicionería; adobo y teñido de pieles | AX153: 4 | AY153: 0 | AZ153: 0 | BA153: 2 | BB153: 2 | BC153: 0 | BP153: 25183 | BQ153: 1 | BR153: 70771 | BS153: 1
C154: 76001 | D154: CALI | E154: 5 | F154: 0 | G154: Natural | H154: 76 | I154: VALLE DEL CAUCA | J154: Aprobado con subsidio | K154: MICRO | L154: 5611 | M154: ALOJAMIENTO Y SERVICIOS DE COMIDA | N154: I | O154: Actividades de restaurantes, cafeterías y servicio móvil de comidas | P154: Actividades de restaurantes, cafeterías y servicio móvil de comidas | Q154: 2 | R154: 3 | S154: 0 | T154: 2 | U154: 1 | V154: 2 | AH154: 0 | AI154: 0 | AJ154: 52001 | AK154: PASTO | AL154: 10 | AM154: 2 | AN154: Natural | AO154: 52 | AP154: NARIÑO | AQ154: Aprobado con subsidio | AR154: MICRO | AS154: 2229 | AT154: INDUSTRIAS MANUFACTURERAS | AU154: C | AV154: Fabricación de productos de plástico | AW154: Fabricación de productos de caucho y de plástico | AX154: 6 | AY154: 4 | AZ154: 0 | BA154: 5 | BB154: 3 | BC154: 2 | BP154: 23189 | BQ154: 1 | BR154: 25183 | BS154: 1
C155: 5001 | D155: MEDELLÍN | E155: 0 | F155: 0 | G155: Natural | H155: 5 | I155: ANTIOQUIA | J155: 0 | K155: PEQUEÑA | L155: 1410 | M155: INDUSTRIAS MANUFACTURERAS | N155: C | O155: Confección de prendas de vestir, excepto prendas de piel | P155: Confección de prendas de vestir | Q155: 0 | R155: 0 | S155: 0 | T155: 0 | U155: 0 | V155: 0 | AH155: 0 | AI155: 0 | AJ155: 76001 | AK155: CALI | AL155: 0 | AM155: 0 | AN155: Natural | AO155: 76 | AP155: VALLE DEL CAUCA | AQ155: 0 | AR155: PEQUEÑA | AS155: 1690 | AT155: INDUSTRIAS MANUFACTURERAS | AU155: C | AV155: Fabricación de otros productos de madera; fabricación de artículos de corcho, cestería y espartería | AW155: Transformación de la madera y fabricación de productos de madera y de corcho, excepto muebles; fabricación de artículos de cestería y espartería | AX155: 0 | AY155: 0 | AZ155: 0 | BA155: 0 | BB155: 0 | BC155: 0 | BP155: 23466 | BQ155: 1 | BR155: 23189 | BS155: 1
C156: 76122 | D156: CAICEDONIA | E156: 1 | F156: 1 | G156: Natural | H156: 76 | I156: VALLE DEL CAUCA | J156: Aprobado con subsidio | K156: MICRO | L156: 6920 | M156: ACTIVIDADES PROFESIONALES, CIENTÍFICAS Y TÉCNICAS | N156: M | O156: Actividades de contabilidad, teneduría de libros, auditoria financiera y asesoría tributaria | P156: Actividades de contabilidad, teneduría de libros, auditoria financiera y asesoría tributaria | Q156: 1 | R156: 0 | S156: 0 | T156: 1 | U156: 0 | V156: 0 | AH156: 0 | AI156: 0 | AJ156: 76001 | AK156: CALI | AL156: 3 | AM156: 4 | AN156: Natural | AO156: 76 | AP156: VALLE DEL CAUCA | AQ156: Aprobado con subsidio | AR156: PEQUEÑA | AS156: 1089 | AT156: INDUSTRIAS MANUFACTURERAS | AU156: C | AV156: Elaboración de otros productos alimenticios | AW156: Elaboración de productos alimenticios | AX156: 1 | AY156: 2 | AZ156: 0 | BA156: 2 | BB156: 1 | BC156: 0 | BP156: 76020 | BQ156: 2 | BR156: 23466 | BS156: 1
C157: 76248 | D157: EL CERRITO | E157: 0 | F157: 0 | G157: Natural | H157: 76 | I157: VALLE DEL CAUCA | J157: 0 | K157: MICRO | L157: 3110 | M157: INDUSTRIAS MANUFACTURERAS | N157: C | O157: Fabricación de muebles | P157: Fabricación de muebles, colchones y somieres | Q157: 0 | R157: 0 | S157: 0 | T157: 0 | U157: 0 | V157: 0 | AH157: 0 | AI157: 0 | AJ157: 52001 | AK157: PASTO | AL157: 4 | AM157: 0 | AN157: Natural | AO157: 52 | AP157: NARIÑO | AQ157: Aprobado con subsidio | AR157: MICRO | AS157: 1410 | AT157: INDUSTRIAS MANUFACTURERAS | AU157: C | AV157: Confección de prendas de vestir, excepto prendas de piel | AW157: Confección de prendas de vestir | AX157: 3 | AY157: 1 | AZ157: 0 | BA157: 4 | BB157: 0 | BC157: 0 | BP157: 68077 | BQ157: 1 | BR157: 68077 | BS157: 1
C158: 50001 | D158: VILLAVICENCIO | E158: 0 | F158: 0 | G158: Natural | H158: 50 | I158: META | J158: 0 | K158: MICRO | L158: 4719 | M158: COMERCIO AL POR MAYOR Y AL POR MENOR; REPARACIÓN DE VEHÍCULOS AUTOMOTORES Y MOTOCICLETAS | N158: G | O158: Comercio al por menor en establecimientos no especializados | P158: Comercio al por menor en establecimientos no especializados | Q158: 0 | R158: 0 | S158: 0 | T158: 0 | U158: 0 | V158: 0 | AH158: 0 | AI158: 0 | AJ158: 76001 | AK158: CALI | AL158: 2 | AM158: 1 | AN158: Natural | AO158: 76 | AP158: VALLE DEL CAUCA | AQ158: Aprobado con subsidio | AR158: PEQUEÑA | AS158: 1089 | AT158: INDUSTRIAS MANUFACTURERAS | AU158: C | AV158: Elaboración de otros productos alimenticios | AW158: Elaboración de productos alimenticios | AX158: 2 | AY158: 0 | AZ158: 0 | BA158: 2 | BB158: 0 | BC158: 0 | BP158: 41551 | BQ158: 1 | BR158: 41551 | BS158: 1
C159: 76892 | D159: YUMBO | E159: 0 | F159: 0 | G159: Natural | H159: 76 | I159: VALLE DEL CAUCA | J159: 0 | K159: MICRO | L159: 1690 | M159: INDUSTRIAS MANUFACTURERAS | N159: C | O159: Fabricación de otros productos de madera; fabricación de artículos de corcho, cestería y espartería | P159: Transformación de la madera y fabricación de productos de madera y de corcho, excepto muebles; fabricación de artículos de cestería y espartería | Q159: 0 | R159: 0 | S159: 0 | T159: 0 | U159: 0 | V159: 0 | AH159: 0 | AI159: 0 | AJ159: 76001 | AK159: CALI | AL159: 0 | AM159: 0 | AN159: Natural | AO159: 76 | AP159: VALLE DEL CAUCA | AQ159: 0 | AR159: PEQUEÑA | AS159: 1089 | AT159: INDUSTRIAS MANUFACTURERAS | AU159: C | AV159: Elaboración de otros productos alimenticios | AW159: Elaboración de productos alimenticios | AX159: 0 | AY159: 0 | AZ159: 0 | BA159: 0 | BB159: 0 | BC159: 0 | BP159: 41524 | BQ159: 1 | BR159: 41524 | BS159: 1
C160: 76400 | D160: LA UNIÓN | E160: 8 | F160: 12 | G160: Natural | H160: 76 | I160: VALLE DEL CAUCA | J160: Aprobado con subsidio | K160: PEQUEÑA | L160: 130 | M160: AGRICULTURA, GANADERÍA, CAZA, SILVICULTURA Y PESCA | N160: A | O160: Propagación de plantas (actividades de los viveros, excepto viveros forestales) | P160: Propagación de plantas (actividades de los viveros, excepto viveros forestales) | Q160: 0 | R160: 8 | S160: 0 | T160: 7 | U160: 0 | V160: 1 | AH160: 0 | AI160: 0 | AJ160: 5686 | AK160: SANTA ROSA DE OSOS | AL160: 0 | AM160: 0 | AN160: Natural | AO160: 5 | AP160: ANTIOQUIA | AQ160: 0 | AR160: PEQUEÑA | AS160: 1410 | AT160: INDUSTRIAS MANUFACTURERAS | AU160: C | AV160: Confección de prendas de vestir, excepto prendas de piel | AW160: Confección de prendas de vestir | AX160: 0 | AY160: 0 | AZ160: 0 | BA160: 0 | BB160: 0 | BC160: 0 | BP160: 20710 | BQ160: 0 | BR160: 52399 | BS160: 1
C161: 76001 | D161: CALI | E161: 1 | F161: 0 | G161: Natural | H161: 76 | I161: VALLE DEL CAUCA | J161: Aprobado con subsidio | K161: MICRO | L161: 4741 | M161: COMERCIO AL POR MAYOR Y AL POR MENOR; REPARACIÓN DE VEHÍCULOS AUTOMOTORES Y MOTOCICLETAS | N161: G | O161: Comercio al por menor de equipos de informática y de comunicaciones, en establecimientos especializados | P161: Comercio al por menor de equipos de informática y de comunicaciones, en establecimientos especializados | Q161: 0 | R161: 1 | S161: 0 | T161: 0 | U161: 0 | V161: 1 | AH161: 0 | AI161: 0 | AJ161: 5001 | AK161: MEDELLÍN | AL161: 6 | AM161: 14 | AN161: Natural | AO161: 5 | AP161: ANTIOQUIA | AQ161: Aprobado con subsidio | AR161: PEQUEÑA | AS161: 1051 | AT161: INDUSTRIAS MANUFACTURERAS | AU161: C | AV161: Elaboración de productos de molinería, almidones y productos derivados del almidón | AW161: Elaboración de productos alimenticios | AX161: 2 | AY161: 4 | AZ161: 0 | BA161: 6 | BB161: 0 | BC161: 0 | BP161: 52399 | BQ161: 1 | BR161: 17174 | BS161: 1
C162: 76001 | D162: CALI | E162: 2 | F162: 1 | G162: Natural | H162: 76 | I162: VALLE DEL CAUCA | J162: Aprobado con subsidio | K162: MICRO | L162: 1081 | M162: INDUSTRIAS MANUFACTURERAS | N162: C | O162: Elaboración de otros productos alimenticios | P162: Elaboración de productos alimenticios | Q162: 1 | R162: 1 | S162: 0 | T162: 0 | U162: 1 | V162: 1 | AH162: 0 | AI162: 0 | AJ162: 5001 | AK162: MEDELLÍN | AL162: 2 | AM162: 0 | AN162: Natural | AO162: 5 | AP162: ANTIOQUIA | AQ162: Aprobado con subsidio | AR162: MICRO | AS162: 1410 | AT162: INDUSTRIAS MANUFACTURERAS | AU162: C | AV162: Confección de prendas de vestir, excepto prendas de piel | AW162: Confección de prendas de vestir | AX162: 2 | AY162: 0 | AZ162: 0 | BA162: 0 | BB162: 2 | BC162: 0 | BP162: 52356 | BQ162: 0 | BR162: 25377 | BS162: 1
C163: 76122 | D163: CAICEDONIA | E163: 0 | F163: 0 | G163: Natural | H163: 76 | I163: VALLE DEL CAUCA | J163: 0 | K163: MEDIANA | L163: 4669 | M163: COMERCIO AL POR MAYOR Y AL POR MENOR; REPARACIÓN DE VEHÍCULOS AUTOMOTORES Y MOTOCICLETAS | N163: G | O163: Comercio al por mayor especializado de otros productos | P163: Comercio al por mayor especializado de otros productos | Q163: 0 | R163: 0 | S163: 0 | T163: 0 | U163: 0 | V163: 0 | AH163: 0 | AI163: 0 | AJ163: 5615 | AK163: RIONEGRO | AL163: 2 | AM163: 0 | AN163: Natural | AO163: 5 | AP163: ANTIOQUIA | AQ163: Aprobado con subsidio | AR163: MICRO | AS163: 1081 | AT163: INDUSTRIAS MANUFACTURERAS | AU163: C | AV163: Elaboración de otros productos alimenticios | AW163: Elaboración de productos alimenticios | AX163: 1 | AY163: 1 | AZ163: 0 | BA163: 2 | BB163: 0 | BC163: 0 | BP163: 76147 | BQ163: 8 | BR163: 76233 | BS163: 1
C164: 76001 | D164: CALI | E164: 1 | F164: 11 | G164: Natural | H164: 76 | I164: VALLE DEL CAUCA | J164: Aprobado con subsidio | K164: PEQUEÑA | L164: 1410 | M164: INDUSTRIAS MANUFACTURERAS | N164: C | O164: Confección de prendas de vestir, excepto prendas de piel | P164: Confección de prendas de vestir | Q164: 1 | R164: 0 | S164: 0 | T164: 1 | U164: 0 | V164: 0 | AH164: 0 | AI164: 0 | AJ164: 8001 | AK164: BARRANQUILLA | AL164: 0 | AM164: 0 | AN164: Natural | AO164: 8 | AP164: ATLÁNTICO | AQ164: 0 | AR164: MICRO | AS164: 1811 | AT164: INDUSTRIAS MANUFACTURERAS | AU164: C | AV164: Actividades de impresión y actividades de servicios relacionados con la impresión | AW164: Actividades de impresión y de producción de copias a partir de grabaciones originales | AX164: 0 | AY164: 0 | AZ164: 0 | BA164: 0 | BB164: 0 | BC164: 0 | BP164: 17174 | BQ164: 1 | BR164: 25402 | BS164: 1
C165: 76834 | D165: TULUÁ | E165: 6 | F165: 0 | G165: Natural | H165: 76 | I165: VALLE DEL CAUCA | J165: Aprobado con subsidio | K165: MICRO | L165: 4774 | M165: COMERCIO AL POR MAYOR Y AL POR MENOR; REPARACIÓN DE VEHÍCULOS AUTOMOTORES Y MOTOCICLETAS | N165: G | O165: Comercio al por menor de otros productos en establecimientos especializados | P165: Comercio al por menor de otros productos en establecimientos especializados | Q165: 3 | R165: 3 | S165: 0 | T165: 4 | U165: 2 | V165: 0 | AH165: 0 | AI165: 0 | AJ165: 11001 | AK165: BOGOTÁ, D.C. | AL165: 6 | AM165: 0 | AN165: Natural | AO165: 11 | AP165: BOGOTÁ, D.C. | AQ165: Aprobado con subsidio | AR165: MICRO | AS165: 1410 | AT165: INDUSTRIAS MANUFACTURERAS | AU165: C | AV165: Confección de prendas de vestir, excepto prendas de piel | AW165: Confección de prendas de vestir | AX165: 4 | AY165: 2 | AZ165: 0 | BA165: 5 | BB165: 1 | BC165: 0 | BP165: 25377 | BQ165: 1 | BR165: 73449 | BS165: 1
C166: 76111 | D166: GUADALAJARA DE BUGA | E166: 1 | F166: 1 | G166: Natural | H166: 76 | I166: VALLE DEL CAUCA | J166: Aprobado con subsidio | K166: MICRO | L166: 4923 | M166: TRANSPORTE Y ALMACENAMIENTO | N166: H | O166: Transporte terrestre publico automotor | P166: Transporte terrestre publico automotor | Q166: 0 | R166: 1 | S166: 0 | T166: 0 | U166: 0 | V166: 1 | AH166: 0 | AI166: 0 | AJ166: 23001 | AK166: MONTERÍA | AL166: 0 | AM166: 0 | AN166: Natural | AO166: 23 | AP166: CÓRDOBA | AQ166: 0 | AR166: MICRO | AS166: 1089 | AT166: INDUSTRIAS MANUFACTURERAS | AU166: C | AV166: Elaboración de otros productos alimenticios | AW166: Elaboración de productos alimenticios | AX166: 0 | AY166: 0 | AZ166: 0 | BA166: 0 | BB166: 0 | BC166: 0 | BP166: 76233 | BQ166: 1 | BR166: 25718 | BS166: 1
C167: 76001 | D167: CALI | E167: 0 | F167: 0 | G167: Natural | H167: 76 | I167: VALLE DEL CAUCA | J167: 0 | K167: PEQUEÑA | L167: 4773 | M167: COMERCIO AL POR MAYOR Y AL POR MENOR; REPARACIÓN DE VEHÍCULOS AUTOMOTORES Y MOTOCICLETAS | N167: G | O167: Comercio al por menor de otros productos en establecimientos especializados | P167: Comercio al por menor de otros productos en establecimientos especializados | Q167: 0 | R167: 0 | S167: 0 | T167: 0 | U167: 0 | V167: 0 | AH167: 0 | AI167: 0 | AJ167: 50001 | AK167: VILLAVICENCIO | AL167: 0 | AM167: 0 | AN167: Natural | AO167: 50 | AP167: META | AQ167: 0 | AR167: MICRO | AS167: 1410 | AT167: INDUSTRIAS MANUFACTURERAS | AU167: C | AV167: Confección de prendas de vestir, excepto prendas de piel | AW167: Confección de prendas de vestir | AX167: 0 | AY167: 0 | AZ167: 0 | BA167: 0 | BB167: 0 | BC167: 0 | BP167: 25402 | BQ167: 1 | BR167: 15764 | BS167: 1
C168: 5088 | D168: BELLO | E168: 2 | F168: 1 | G168: Natural | H168: 5 | I168: ANTIOQUIA | J168: Aprobado con subsidio | K168: MICRO | L168: 4752 | M168: COMERCIO AL POR MAYOR Y AL POR MENOR; REPARACIÓN DE VEHÍCULOS AUTOMOTORES Y MOTOCICLETAS | N168: G | O168: Comercio al por menor de otros enseres domésticos en establecimientos especializados | P168: Comercio al por menor de otros enseres domésticos en establecimientos especializados | Q168: 0 | R168: 2 | S168: 0 | T168: 2 | U168: 0 | V168: 0 | AH168: 0 | AI168: 0 | AJ168: 25899 | AK168: ZIPAQUIRÁ | AL168: 16 | AM168: 9 | AN168: Natural | AO168: 25 | AP168: CUNDINAMARCA | AQ168: Aprobado con subsidio | AR168: PEQUEÑA | AS168: 1040 | AT168: INDUSTRIAS MANUFACTURERAS | AU168: C | AV168: Elaboración de productos lácteos | AW168: Elaboración de productos alimenticios | AX168: 14 | AY168: 2 | AZ168: 0 | BA168: 6 | BB168: 10 | BC168: 0 | BP168: 73449 | BQ168: 1 | BR168: 15491 | BS168: 1
C169: 41551 | D169: PITALITO | E169: 1 | F169: 32 | G169: Natural | H169: 41 | I169: HUILA | J169: Aprobado con subsidio | K169: MEDIANA | L169: 4711 | M169: COMERCIO AL POR MAYOR Y AL POR MENOR; REPARACIÓN DE VEHÍCULOS AUTOMOTORES Y MOTOCICLETAS | N169: G | O169: Comercio al por menor en establecimientos no especializados | P169: Comercio al por menor en establecimientos no especializados | Q169: 1 | R169: 0 | S169: 0 | T169: 1 | U169: 0 | V169: 0 | AH169: 0 | AI169: 0 | AJ169: 41001 | AK169: NEIVA | AL169: 4 | AM169: 0 | AN169: Natural | AO169: 41 | AP169: HUILA | AQ169: Aprobado con subsidio | AR169: MICRO | AS169: 1709 | AT169: INDUSTRIAS MANUFACTURERAS | AU169: C | AV169: Fabricación de papel, cartón y productos de papel y cartón | AW169: Fabricación de papel, cartón y productos de papel y cartón | AX169: 1 | AY169: 3 | AZ169: 0 | BA169: 3 | BB169: 1 | BC169: 0 | BP169: 17616 | BQ169: 0 | BR169: 20250 | BS169: 1
C170: 15001 | D170: TUNJA | E170: 0 | F170: 0 | G170: Natural | H170: 15 | I170: BOYACÁ | J170: 0 | K170: MICRO | L170: 7420 | M170: ACTIVIDADES PROFESIONALES, CIENTÍFICAS Y TÉCNICAS | N170: M | O170: Actividades de fotografía | P170: Actividades de fotografía | Q170: 0 | R170: 0 | S170: 0 | T170: 0 | U170: 0 | V170: 0 | AH170: 0 | AI170: 0 | AJ170: 52001 | AK170: PASTO | AL170: 1 | AM170: 1 | AN170: Natural | AO170: 52 | AP170: NARIÑO | AQ170: Aprobado con subsidio | AR170: MICRO | AS170: 1081 | AT170: INDUSTRIAS MANUFACTURERAS | AU170: C | AV170: Elaboración de otros productos alimenticios | AW170: Elaboración de productos alimenticios | AX170: 0 | AY170: 1 | AZ170: 0 | BA170: 1 | BB170: 0 | BC170: 0 | BP170: 25718 | BQ170: 1 | BR170: 25736 | BS170: 1
C171: 15001 | D171: TUNJA | E171: 0 | F171: 0 | G171: Natural | H171: 15 | I171: BOYACÁ | J171: 0 | K171: MICRO | L171: 8512 | M171: EDUCACIÓN | N171: P | O171: Educación de la primera infancia, preescolar y básica primaria | P171: Educación de la primera infancia, preescolar y básica primaria | Q171: 0 | R171: 0 | S171: 0 | T171: 0 | U171: 0 | V171: 0 | AH171: 0 | AI171: 0 | AJ171: 54001 | AK171: CÚCUTA | AL171: 0 | AM171: 0 | AN171: Natural | AO171: 54 | AP171: NORTE DE SANTANDER | AQ171: 0 | AR171: MICRO | AS171: 1081 | AT171: INDUSTRIAS MANUFACTURERAS | AU171: C | AV171: Elaboración de otros productos alimenticios | AW171: Elaboración de productos alimenticios | AX171: 0 | AY171: 0 | AZ171: 0 | BA171: 0 | BB171: 0 | BC171: 0 | BP171: 15764 | BQ171: 1 | BR171: 25295 | BS171: 1
C172: 11001 | D172: BOGOTÁ, D.C. | E172: 2 | F172: 9 | G172: Natural | H172: 11 | I172: BOGOTÁ, D.C. | J172: Aprobado con subsidio | K172: PEQUEÑA | L172: 8521 | M172: EDUCACIÓN | N172: P | O172: Educación secundaria y de formación laboral | P172: Educación secundaria y de formación laboral | Q172: 1 | R172: 1 | S172: 0 | T172: 2 | U172: 0 | V172: 0 | AH172: 0 | AI172: 0 | AJ172: 68001 | AK172: BUCARAMANGA | AL172: 13 | AM172: 2 | AN172: Natural | AO172: 68 | AP172: SANTANDER | AQ172: Aprobado con subsidio | AR172: MICRO | AS172: 1410 | AT172: INDUSTRIAS MANUFACTURERAS | AU172: C | AV172: Confección de prendas de vestir, excepto prendas de piel | AW172: Confección de prendas de vestir | AX172: 9 | AY172: 4 | AZ172: 0 | BA172: 7 | BB172: 5 | BC172: 1 | BP172: 63190 | BQ172: 0 | BR172: 68689 | BS172: 1
C173: 11001 | D173: BOGOTÁ, D.C. | E173: 4 | F173: 6 | G173: Natural | H173: 11 | I173: BOGOTÁ, D.C. | J173: Aprobado con subsidio | K173: MICRO | L173: 5611 | M173: ALOJAMIENTO Y SERVICIOS DE COMIDA | N173: I | O173: Actividades de restaurantes, cafeterías y servicio móvil de comidas | P173: Actividades de restaurantes, cafeterías y servicio móvil de comidas | Q173: 1 | R173: 3 | S173: 0 | T173: 4 | U173: 0 | V173: 0 | AH173: 0 | AI173: 0 | AJ173: 68547 | AK173: PIEDECUESTA | AL173: 0 | AM173: 0 | AN173: Natural | AO173: 68 | AP173: SANTANDER | AQ173: 0 | AR173: PEQUEÑA | AS173: 1410 | AT173: INDUSTRIAS MANUFACTURERAS | AU173: C | AV173: Confección de prendas de vestir, excepto prendas de piel | AW173: Confección de prendas de vestir | AX173: 0 | AY173: 0 | AZ173: 0 | BA173: 0 | BB173: 0 | BC173: 0 | BP173: 20045 | BQ173: 0 | BR173: 76036 | BS173: 1
C174: 11001 | D174: BOGOTÁ, D.C. | E174: 23 | F174: 47 | G174: Natural | H174: 11 | I174: BOGOTÁ, D.C. | J174: Aprobado con subsidio | K174: PEQUEÑA | L174: 4210 | M174: CONSTRUCCIÓN | N174: F | O174: Construcción de carreteras y vías de ferrocarril | P174: Construcción de carreteras y vías de ferrocarril | Q174: 12 | R174: 11 | S174: 0 | T174: 16 | U174: 4 | V174: 3 | AH174: 0 | AI174: 0 | AJ174: 68001 | AK174: BUCARAMANGA | AL174: 0 | AM174: 0 | AN174: Natural | AO174: 68 | AP174: SANTANDER | AQ174: 0 | AR174: MICRO | AS174: 1084 | AT174: INDUSTRIAS MANUFACTURERAS | AU174: C | AV174: Elaboración de otros productos alimenticios | AW174: Elaboración de productos alimenticios | AX174: 0 | AY174: 0 | AZ174: 0 | BA174: 0 | BB174: 0 | BC174: 0 | BP174: 5670 | BQ174: 3 | BR174: 8573 | BS174: 1
C175: 5631 | D175: SABANETA | E175: 2 | F175: 5 | G175: Natural | H175: 5 | I175: ANTIOQUIA | J175: Aprobado con subsidio | K175: MICRO | L175: 4771 | M175: COMERCIO AL POR MAYOR Y AL POR MENOR; REPARACIÓN DE VEHÍCULOS AUTOMOTORES Y MOTOCICLETAS | N175: G | O175: Comercio al por menor de otros productos en establecimientos especializados | P175: Comercio al por menor de otros productos en establecimientos especializados | Q175: 2 | R175: 0 | S175: 0 | T175: 2 | U175: 0 | V175: 0 | AH175: 0 | AI175: 0 | AJ175: 73001 | AK175: IBAGUÉ | AL175: 3 | AM175: 1 | AN175: Natural | AO175: 73 | AP175: TOLIMA | AQ175: Aprobado con subsidio | AR175: MICRO | AS175: 3110 | AT175: INDUSTRIAS MANUFACTURERAS | AU175: C | AV175: Fabricación de muebles | AW175: Fabricación de muebles, colchones y somieres | AX175: 2 | AY175: 1 | AZ175: 0 | BA175: 2 | BB175: 0 | BC175: 1 | BP175: 15491 | BQ175: 1 | BR175: 68755 | BS175: 1
C176: 18001 | D176: FLORENCIA | E176: 3 | F176: 2 | G176: Natural | H176: 18 | I176: CAQUETÁ | J176: Aprobado con subsidio | K176: MICRO | L176: 4643 | M176: COMERCIO AL POR MAYOR Y AL POR MENOR; REPARACIÓN DE VEHÍCULOS AUTOMOTORES Y MOTOCICLETAS | N176: G | O176: Comercio al por mayor de artículos y enseres domésticos (incluidas prendas de vestir) | P176: Comercio al por mayor de artículos y enseres domésticos (incluidas prendas de vestir) | Q176: 1 | R176: 2 | S176: 0 | T176: 2 | U176: 1 | V176: 0 | AH176: 0 | AI176: 0 | AJ176: 5001 | AK176: MEDELLÍN | AL176: 6 | AM176: 3 | AN176: Natural | AO176: 5 | AP176: ANTIOQUIA | AQ176: Aprobado con subsidio | AR176: MICRO | AS176: 2221 | AT176: INDUSTRIAS MANUFACTURERAS | AU176: C | AV176: Fabricación de productos de plástico | AW176: Fabricación de productos de caucho y de plástico | AX176: 2 | AY176: 4 | AZ176: 0 | BA176: 6 | BB176: 0 | BC176: 0 | BP176: 20250 | BQ176: 1 | BR176: 73268 | BS176: 1
C177: 41001 | D177: NEIVA | E177: 0 | F177: 0 | G177: Natural | H177: 41 | I177: HUILA | J177: 0 | K177: MICRO | L177: 4661 | M177: COMERCIO AL POR MAYOR Y AL POR MENOR; REPARACIÓN DE VEHÍCULOS AUTOMOTORES Y MOTOCICLETAS | N177: G | O177: Comercio al por mayor especializado de otros productos | P177: Comercio al por mayor especializado de otros productos | Q177: 0 | R177: 0 | S177: 0 | T177: 0 | U177: 0 | V177: 0 | AH177: 0 | AI177: 0 | AJ177: 15001 | AK177: TUNJA | AL177: 6 | AM177: 0 | AN177: Natural | AO177: 15 | AP177: BOYACÁ | AQ177: Aprobado con subsidio | AR177: MICRO | AS177: 1630 | AT177: INDUSTRIAS MANUFACTURERAS | AU177: C | AV177: Fabricación de partes y piezas de madera, de carpintería y ebanistería para la construcción | AW177: Transformación de la madera y fabricación de productos de madera y de corcho, excepto muebles; fabricación de artículos de cestería y espartería | AX177: 2 | AY177: 4 | AZ177: 0 | BA177: 2 | BB177: 2 | BC177: 2 | BP177: 68655 | BQ177: 3 | BR177: 85162 | BS177: 1
C178: 18001 | D178: FLORENCIA | E178: 1 | F178: 1 | G178: Natural | H178: 18 | I178: CAQUETÁ | J178: Aprobado con subsidio | K178: MICRO | L178: 8020 | M178: ACTIVIDADES DE SERVICIOS ADMINISTRATIVOS Y DE APOYO | N178: N | O178: Actividades de servicios de sistemas de seguridad | P178: Actividades de servicios de sistemas de seguridad | Q178: 0 | R178: 1 | S178: 0 | T178: 1 | U178: 0 | V178: 0 | AH178: 0 | AI178: 0 | AJ178: 5045 | AK178: APARTADÓ | AL178: 2 | AM178: 0 | AN178: Natural | AO178: 5 | AP178: ANTIOQUIA | AQ178: Aprobado con subsidio | AR178: MICRO | AS178: 1089 | AT178: INDUSTRIAS MANUFACTURERAS | AU178: C | AV178: Elaboración de otros productos alimenticios | AW178: Elaboración de productos alimenticios | AX178: 2 | AY178: 0 | AZ178: 0 | BA178: 2 | BB178: 0 | BC178: 0 | BP178: 54810 | BQ178: 0 | BR178: 5154 | BS178: 1
C179: 18001 | D179: FLORENCIA | E179: 2 | F179: 1 | G179: Natural | H179: 18 | I179: CAQUETÁ | J179: Aprobado con subsidio | K179: MICRO | L179: 4741 | M179: COMERCIO AL POR MAYOR Y AL POR MENOR; REPARACIÓN DE VEHÍCULOS AUTOMOTORES Y MOTOCICLETAS | N179: G | O179: Comercio al por menor de equipos de informática y de comunicaciones, en establecimientos especializados | P179: Comercio al por menor de equipos de informática y de comunicaciones, en establecimientos especializados | Q179: 1 | R179: 1 | S179: 0 | T179: 2 | U179: 0 | V179: 0 | AH179: 0 | AI179: 0 | AJ179: 68001 | AK179: BUCARAMANGA | AL179: 7 | AM179: 1 | AN179: Natural | AO179: 68 | AP179: SANTANDER | AQ179: Aprobado con subsidio | AR179: MICRO | AS179: 3110 | AT179: INDUSTRIAS MANUFACTURERAS | AU179: C | AV179: Fabricación de muebles | AW179: Fabricación de muebles, colchones y somieres | AX179: 2 | AY179: 5 | AZ179: 0 | BA179: 1 | BB179: 2 | BC179: 4 | BP179: 25736 | BQ179: 1 | BR179: 15469 | BS179: 1
C180: 70001 | D180: SINCELEJO | E180: 1 | F180: 1 | G180: Natural | H180: 70 | I180: SUCRE | J180: Aprobado con subsidio | K180: MICRO | L180: 4530 | M180: COMERCIO AL POR MAYOR Y AL POR MENOR; REPARACIÓN DE VEHÍCULOS AUTOMOTORES Y MOTOCICLETAS | N180: G | O180: Comercio de partes, piezas (autopartes) y accesorios (lujos) para vehículos automotores | P180: Comercio de partes, piezas (autopartes) y accesorios (lujos) para vehículos automotores | Q180: 1 | R180: 0 | S180: 0 | T180: 1 | U180: 0 | V180: 0 | AH180: 0 | AI180: 0 | AJ180: 18001 | AK180: FLORENCIA | AL180: 10 | AM180: 4 | AN180: Natural | AO180: 18 | AP180: CAQUETÁ | AQ180: Aprobado con subsidio | AR180: PEQUEÑA | AS180: 1081 | AT180: INDUSTRIAS MANUFACTURERAS | AU180: C | AV180: Elaboración de otros productos alimenticios | AW180: Elaboración de productos alimenticios | AX180: 7 | AY180: 3 | AZ180: 0 | BA180: 4 | BB180: 4 | BC180: 2 | BP180: 19142 | BQ180: 2 | BR180: 15646 | BS180: 1
C181: 8758 | D181: SOLEDAD | E181: 0 | F181: 0 | G181: Natural | H181: 8 | I181: ATLÁNTICO | J181: 0 | K181: MICRO | L181: 6920 | M181: ACTIVIDADES PROFESIONALES, CIENTÍFICAS Y TÉCNICAS | N181: M | O181: Actividades de contabilidad, teneduría de libros, auditoria financiera y asesoría tributaria | P181: Actividades de contabilidad, teneduría de libros, auditoria financiera y asesoría tributaria | Q181: 0 | R181: 0 | S181: 0 | T181: 0 | U181: 0 | V181: 0 | AH181: 0 | AI181: 0 | AJ181: 54820 | AK181: TOLEDO | AL181: 3 | AM181: 2 | AN181: Natural | AO181: 54 | AP181: NORTE DE SANTANDER | AQ181: Aprobado con subsidio | AR181: MICRO | AS181: 1040 | AT181: INDUSTRIAS MANUFACTURERAS | AU181: C | AV181: Elaboración de productos lácteos | AW181: Elaboración de productos alimenticios | AX181: 0 | AY181: 3 | AZ181: 0 | BA181: 2 | BB181: 0 | BC181: 1 | BP181: 25295 | BQ181: 1 | BR181: 41396 | BS181: 1
C182: 23001 | D182: MONTERÍA | E182: 3 | F182: 0 | G182: Natural | H182: 23 | I182: CÓRDOBA | J182: Aprobado con subsidio | K182: MICRO | L182: 4541 | M182: COMERCIO AL POR MAYOR Y AL POR MENOR; REPARACIÓN DE VEHÍCULOS AUTOMOTORES Y MOTOCICLETAS | N182: G | O182: Comercio, mantenimiento y reparación de motocicletas y de sus partes, piezas y accesorios | P182: Comercio, mantenimiento y reparación de motocicletas y de sus partes, piezas y accesorios | Q182: 1 | R182: 2 | S182: 0 | T182: 3 | U182: 0 | V182: 0 | AH182: 0 | AI182: 0 | AJ182: 25290 | AK182: FUSAGASUGÁ | AL182: 2 | AM182: 1 | AN182: Natural | AO182: 25 | AP182: CUNDINAMARCA | AQ182: Aprobado con subsidio | AR182: MICRO | AS182: 1020 | AT182: INDUSTRIAS MANUFACTURERAS | AU182: C | AV182: Procesamiento y conservación de frutas, legumbres, hortalizas y tubérculos | AW182: Elaboración de productos alimenticios | AX182: 0 | AY182: 2 | AZ182: 0 | BA182: 2 | BB182: 0 | BC182: 0 | BP182: 76306 | BQ182: 0 | BR182: 50287 | BS182: 1
C183: 23001 | D183: MONTERÍA | E183: 0 | F183: 0 | G183: Natural | H183: 23 | I183: CÓRDOBA | J183: 0 | K183: MICRO | L183: 4752 | M183: COMERCIO AL POR MAYOR Y AL POR MENOR; REPARACIÓN DE VEHÍCULOS AUTOMOTORES Y MOTOCICLETAS | N183: G | O183: Comercio al por menor de otros enseres domésticos en establecimientos especializados | P183: Comercio al por menor de otros enseres domésticos en establecimientos especializados | Q183: 0 | R183: 0 | S183: 0 | T183: 0 | U183: 0 | V183: 0 | AH183: 0 | AI183: 0 | AJ183: 11001 | AK183: BOGOTÁ, D.C. | AL183: 0 | AM183: 0 | AN183: Natural | AO183: 11 | AP183: BOGOTÁ, D.C. | AQ183: 0 | AR183: MICRO | AS183: 1020 | AT183: INDUSTRIAS MANUFACTURERAS | AU183: C | AV183: Procesamiento y conservación de frutas, legumbres, hortalizas y tubérculos | AW183: Elaboración de productos alimenticios | AX183: 0 | AY183: 0 | AZ183: 0 | BA183: 0 | BB183: 0 | BC183: 0 | BP183: 68689 | BQ183: 1 | BR183: 50568 | BS183: 1
C184: 23001 | D184: MONTERÍA | E184: 5 | F184: 7 | G184: Natural | H184: 23 | I184: CÓRDOBA | J184: Aprobado con subsidio | K184: PEQUEÑA | L184: 4752 | M184: COMERCIO AL POR MAYOR Y AL POR MENOR; REPARACIÓN DE VEHÍCULOS AUTOMOTORES Y MOTOCICLETAS | N184: G | O184: Comercio al por menor de otros enseres domésticos en establecimientos especializados | P184: Comercio al por menor de otros enseres domésticos en establecimientos especializados | Q184: 4 | R184: 1 | S184: 0 | T184: 4 | U184: 1 | V184: 0 | AH184: 0 | AI184: 0 | AJ184: 63001 | AK184: ARMENIA | AL184: 0 | AM184: 0 | AN184: Natural | AO184: 63 | AP184: QUINDÍO | AQ184: 0 | AR184: PEQUEÑA | AS184: 1081 | AT184: INDUSTRIAS MANUFACTURERAS | AU184: C | AV184: Elaboración de otros productos alimenticios | AW184: Elaboración de productos alimenticios | AX184: 0 | AY184: 0 | AZ184: 0 | BA184: 0 | BB184: 0 | BC184: 0 | BP184: 76036 | BQ184: 1 | BR184: 25438 | BS184: 1
C185: 91001 | D185: LETICIA | E185: 3 | F185: 2 | G185: Natural | H185: 91 | I185: AMAZONAS | J185: Aprobado con subsidio | K185: MICRO | L185: 5613 | M185: ALOJAMIENTO Y SERVICIOS DE COMIDA | N185: I | O185: Actividades de restaurantes, cafeterías y servicio móvil de comidas | P185: Actividades de restaurantes, cafeterías y servicio móvil de comidas | Q185: 3 | R185: 0 | S185: 0 | T185: 2 | U185: 1 | V185: 0 | AH185: 0 | AI185: 0 | AJ185: 63001 | AK185: ARMENIA | AL185: 0 | AM185: 0 | AN185: Natural | AO185: 63 | AP185: QUINDÍO | AQ185: 0 | AR185: MICRO | AS185: 1511 | AT185: INDUSTRIAS MANUFACTURERAS | AU185: C | AV185: Curtido y recurtido de cueros; fabricación de artículos de viaje, bolsos de mano y artículos similares, y fabricación de artículos de talabartería y guarnicionería; adobo y teñido de pieles | AW185: Curtido y recurtido de cueros; fabricación de calzado; fabricación de artículos de viaje, maletas, bolsos de mano y artículos similares, y fabricación de artículos de talabartería y guarnicionería; adobo y teñido de pieles | AX185: 0 | AY185: 0 | AZ185: 0 | BA185: 0 | BB185: 0 | BC185: 0 | BP185: 5138 | BQ185: 2 | BR185: 5190 | BS185: 1
C186: 15667 | D186: SAN LUIS DE GACENO | E186: 0 | F186: 0 | G186: Natural | H186: 15 | I186: BOYACÁ | J186: 0 | K186: MICRO | L186: 4731 | M186: COMERCIO AL POR MAYOR Y AL POR MENOR; REPARACIÓN DE VEHÍCULOS AUTOMOTORES Y MOTOCICLETAS | N186: G | O186: Comercio al por menor de combustible, lubricantes, aditivos y productos de limpieza para automotores, en establecimientos especializados | P186: Comercio al por menor de combustible, lubricantes, aditivos y productos de limpieza para automotores, en establecimientos especializados | Q186: 0 | R186: 0 | S186: 0 | T186: 0 | U186: 0 | V186: 0 | AH186: 0 | AI186: 0 | AJ186: 63001 | AK186: ARMENIA | AL186: 0 | AM186: 0 | AN186: Natural | AO186: 63 | AP186: QUINDÍO | AQ186: 0 | AR186: MICRO | AS186: 1082 | AT186: INDUSTRIAS MANUFACTURERAS | AU186: C | AV186: Elaboración de otros productos alimenticios | AW186: Elaboración de productos alimenticios | AX186: 0 | AY186: 0 | AZ186: 0 | BA186: 0 | BB186: 0 | BC186: 0 | BP186: 8573 | BQ186: 1 | BR186: 15835 | BS186: 1
C187: 15001 | D187: TUNJA | E187: 0 | F187: 0 | G187: Natural | H187: 15 | I187: BOYACÁ | J187: 0 | K187: MICRO | L187: 4772 | M187: COMERCIO AL POR MAYOR Y AL POR MENOR; REPARACIÓN DE VEHÍCULOS AUTOMOTORES Y MOTOCICLETAS | N187: G | O187: Comercio al por menor de otros productos en establecimientos especializados | P187: Comercio al por menor de otros productos en establecimientos especializados | Q187: 0 | R187: 0 | S187: 0 | T187: 0 | U187: 0 | V187: 0 | AH187: 0 | AI187: 0 | AJ187: 5001 | AK187: MEDELLÍN | AL187: 0 | AM187: 0 | AN187: Natural | AO187: 5 | AP187: ANTIOQUIA | AQ187: 0 | AR187: PEQUEÑA | AS187: 1313 | AT187: INDUSTRIAS MANUFACTURERAS | AU187: C | AV187: Preparación, hilatura, tejeduría y acabado de productos textiles | AW187: Fabricación de productos textiles | AX187: 0 | AY187: 0 | AZ187: 0 | BA187: 0 | BB187: 0 | BC187: 0 | BP187: 68755 | BQ187: 1 | BR187: 76126 | BS187: 1
C188: 15776 | D188: SUTAMARCHÁN | E188: 7 | F188: 4 | G188: Natural | H188: 15 | I188: BOYACÁ | J188: Aprobado con subsidio | K188: PEQUEÑA | L188: 5611 | M188: ALOJAMIENTO Y SERVICIOS DE COMIDA | N188: I | O188: Actividades de restaurantes, cafeterías y servicio móvil de comidas | P188: Actividades de restaurantes, cafeterías y servicio móvil de comidas | Q188: 4 | R188: 3 | S188: 0 | T188: 5 | U188: 2 | V188: 0 | AH188: 0 | AI188: 0 | AJ188: 76109 | AK188: BUENAVENTURA | AL188: 1 | AM188: 9 | AN188: Natural | AO188: 76 | AP188: VALLE DEL CAUCA | AQ188: Aprobado con subsidio | AR188: PEQUEÑA | AS188: 1081 | AT188: INDUSTRIAS MANUFACTURERAS | AU188: C | AV188: Elaboración de otros productos alimenticios | AW188: Elaboración de productos alimenticios | AX188: 1 | AY188: 0 | AZ188: 0 | BA188: 1 | BB188: 0 | BC188: 0 | BP188: 73268 | BQ188: 1 | BR188: 70823 | BS188: 1
C189: 15001 | D189: TUNJA | E189: 1 | F189: 0 | G189: Natural | H189: 15 | I189: BOYACÁ | J189: Aprobado con subsidio | K189: MICRO | L189: 7310 | M189: ACTIVIDADES PROFESIONALES, CIENTÍFICAS Y TÉCNICAS | N189: M | O189: Publicidad | P189: Publicidad | Q189: 0 | R189: 1 | S189: 0 | T189: 1 | U189: 0 | V189: 0 | AH189: 0 | AI189: 0 | AJ189: 5237 | AK189: DON MATÍAS | AL189: 0 | AM189: 0 | AN189: Natural | AO189: 5 | AP189: ANTIOQUIA | AQ189: 0 | AR189: PEQUEÑA | AS189: 1410 | AT189: INDUSTRIAS MANUFACTURERAS | AU189: C | AV189: Confección de prendas de vestir, excepto prendas de piel | AW189: Confección de prendas de vestir | AX189: 0 | AY189: 0 | AZ189: 0 | BA189: 0 | BB189: 0 | BC189: 0 | BP189: 85162 | BQ189: 1 | BR189: 52260 | BS189: 1
C190: 15001 | D190: TUNJA | E190: 7 | F190: 0 | G190: Natural | H190: 15 | I190: BOYACÁ | J190: Aprobado con subsidio | K190: MICRO | L190: 9311 | M190: ACTIVIDADES ARTÍSTICAS, DE ENTRETENIMIENTO Y RECREACIÓN | N190: R | O190: Actividades deportivas | P190: Actividades deportivas | Q190: 4 | R190: 3 | S190: 0 | T190: 5 | U190: 1 | V190: 1 | AH190: 0 | AI190: 0 | AJ190: 5642 | AK190: SALGAR | AL190: 4 | AM190: 0 | AN190: Natural | AO190: 5 | AP190: ANTIOQUIA | AQ190: Aprobado con subsidio | AR190: MICRO | AS190: 1081 | AT190: INDUSTRIAS MANUFACTURERAS | AU190: C | AV190: Elaboración de otros productos alimenticios | AW190: Elaboración de productos alimenticios | AX190: 4 | AY190: 0 | AZ190: 0 | BA190: 2 | BB190: 2 | BC190: 0 | BP190: 5154 | BQ190: 1 | BR190: 5120 | BS190: 1
C191: 15001 | D191: TUNJA | E191: 0 | F191: 0 | G191: Natural | H191: 15 | I191: BOYACÁ | J191: 0 | K191: MICRO | L191: 4541 | M191: COMERCIO AL POR MAYOR Y AL POR MENOR; REPARACIÓN DE VEHÍCULOS AUTOMOTORES Y MOTOCICLETAS | N191: G | O191: Comercio, mantenimiento y reparación de motocicletas y de sus partes, piezas y accesorios | P191: Comercio, mantenimiento y reparación de motocicletas y de sus partes, piezas y accesorios | Q191: 0 | R191: 0 | S191: 0 | T191: 0 | U191: 0 | V191: 0 | AH191: 0 | AI191: 0 | AJ191: 5129 | AK191: CALDAS | AL191: 0 | AM191: 0 | AN191: Natural | AO191: 5 | AP191: ANTIOQUIA | AQ191: 0 | AR191: MICRO | AS191: 1610 | AT191: INDUSTRIAS MANUFACTURERAS | AU191: C | AV191: Aserrado, acepillado e impregnación de la madera | AW191: Transformación de la madera y fabricación de productos de madera y de corcho, excepto muebles; fabricación de artículos de cestería y espartería | AX191: 0 | AY191: 0 | AZ191: 0 | BA191: 0 | BB191: 0 | BC191: 0 | BP191: 15469 | BQ191: 1 | BR191: 73555 | BS191: 1
C192: 15001 | D192: TUNJA | E192: 0 | F192: 0 | G192: Natural | H192: 15 | I192: BOYACÁ | J192: 0 | K192: MICRO | L192: 4752 | M192: COMERCIO AL POR MAYOR Y AL POR MENOR; REPARACIÓN DE VEHÍCULOS AUTOMOTORES Y MOTOCICLETAS | N192: G | O192: Comercio al por menor de otros enseres domésticos en establecimientos especializados | P192: Comercio al por menor de otros enseres domésticos en establecimientos especializados | Q192: 0 | R192: 0 | S192: 0 | T192: 0 | U192: 0 | V192: 0 | AH192: 0 | AI192: 0 | AJ192: 5001 | AK192: MEDELLÍN | AL192: 0 | AM192: 0 | AN192: Natural | AO192: 5 | AP192: ANTIOQUIA | AQ192: 0 | AR192: MICRO | AS192: 1811 | AT192: INDUSTRIAS MANUFACTURERAS | AU192: C | AV192: Actividades de impresión y actividades de servicios relacionados con la impresión | AW192: Actividades de impresión y de producción de copias a partir de grabaciones originales | AX192: 0 | AY192: 0 | AZ192: 0 | BA192: 0 | BB192: 0 | BC192: 0 | BP192: 5887 | BQ192: 3 | BR192: 76869 | BS192: 1
C193: 15001 | D193: TUNJA | E193: 0 | F193: 0 | G193: Natural | H193: 15 | I193: BOYACÁ | J193: 0 | K193: MICRO | L193: 4390 | M193: CONSTRUCCIÓN | N193: F | O193: Otras actividades especializadas para la construcción de edificios y obras de ingeniería civil | P193: Otras actividades especializadas para la construcción de edificios y obras de ingeniería civil | Q193: 0 | R193: 0 | S193: 0 | T193: 0 | U193: 0 | V193: 0 | AH193: 0 | AI193: 0 | AJ193: 5001 | AK193: MEDELLÍN | AL193: 0 | AM193: 0 | AN193: Natural | AO193: 5 | AP193: ANTIOQUIA | AQ193: 0 | AR193: MICRO | AS193: 3110 | AT193: INDUSTRIAS MANUFACTURERAS | AU193: C | AV193: Fabricación de muebles | AW193: Fabricación de muebles, colchones y somieres | AX193: 0 | AY193: 0 | AZ193: 0 | BA193: 0 | BB193: 0 | BC193: 0 | BP193: 15646 | BQ193: 1 | BR193: 70670 | BS193: 1
C194: 15001 | D194: TUNJA | E194: 0 | F194: 0 | G194: Natural | H194: 15 | I194: BOYACÁ | J194: 0 | K194: MICRO | L194: 6920 | M194: ACTIVIDADES PROFESIONALES, CIENTÍFICAS Y TÉCNICAS | N194: M | O194: Actividades de contabilidad, teneduría de libros, auditoria financiera y asesoría tributaria | P194: Actividades de contabilidad, teneduría de libros, auditoria financiera y asesoría tributaria | Q194: 0 | R194: 0 | S194: 0 | T194: 0 | U194: 0 | V194: 0 | AH194: 0 | AI194: 0 | AJ194: 5001 | AK194: MEDELLÍN | AL194: 0 | AM194: 0 | AN194: Natural | AO194: 5 | AP194: ANTIOQUIA | AQ194: 0 | AR194: PEQUEÑA | AS194: 1020 | AT194: INDUSTRIAS MANUFACTURERAS | AU194: C | AV194: Procesamiento y conservación de frutas, legumbres, hortalizas y tubérculos | AW194: Elaboración de productos alimenticios | AX194: 0 | AY194: 0 | AZ194: 0 | BA194: 0 | BB194: 0 | BC194: 0 | BP194: 41396 | BQ194: =COUNTIFS($AQ$2:$AQ$399999,"Aprobado con subsidio",$AJ$2:$AJ$399999,BP194) -> 1 | BR194: 70418 | BS194: 1
C195: 15001 | D195: TUNJA | E195: 0 | F195: 0 | G195: Natural | H195: 15 | I195: BOYACÁ | J195: 0 | K195: MICRO | L195: 5612 | M195: ALOJAMIENTO Y SERVICIOS DE COMIDA | N195: I | O195: Actividades de restaurantes, cafeterías y servicio móvil de comidas | P195: Actividades de restaurantes, cafeterías y servicio móvil de comidas | Q195: 0 | R195: 0 | S195: 0 | T195: 0 | U195: 0 | V195: 0 | AH195: 0 | AI195: 0 | AJ195: 5001 | AK195: MEDELLÍN | AL195: 0 | AM195: 0 | AN195: Natural | AO195: 5 | AP195: ANTIOQUIA | AQ195: 0 | AR195: MICRO | AS195: 1089 | AT195: INDUSTRIAS MANUFACTURERAS | AU195: C | AV195: Elaboración de otros productos alimenticios | AW195: Elaboración de productos alimenticios | AX195: 0 | AY195: 0 | AZ195: 0 | BA195: 0 | BB195: 0 | BC195: 0 | BP195: 5313 | BQ195: 2 | BR195: 19517 | BS195: 1
C196: 15001 | D196: TUNJA | E196: 0 | F196: 0 | G196: Natural | H196: 15 | I196: BOYACÁ | J196: 0 | K196: MICRO | L196: 7310 | M196: ACTIVIDADES PROFESIONALES, CIENTÍFICAS Y TÉCNICAS | N196: M | O196: Publicidad | P196: Publicidad | Q196: 0 | R196: 0 | S196: 0 | T196: 0 | U196: 0 | V196: 0 | AH196: 0 | AI196: 0 | AJ196: 5209 | AK196: CONCORDIA | AL196: 2 | AM196: 0 | AN196: Natural | AO196: 5 | AP196: ANTIOQUIA | AQ196: Aprobado con subsidio | AR196: MICRO | AS196: 1062 | AT196: INDUSTRIAS MANUFACTURERAS | AU196: C | AV196: Elaboración de productos de café | AW196: Elaboración de productos alimenticios | AX196: 1 | AY196: 1 | AZ196: 0 | BA196: 2 | BB196: 0 | BC196: 0 | BP196: 50287 | BQ196: 1 | BR196: 15189 | BS196: 1
C197: 15646 | D197: SAMACÁ | E197: 0 | F197: 0 | G197: Natural | H197: 15 | I197: BOYACÁ | J197: 0 | K197: MICRO | L197: 4729 | M197: COMERCIO AL POR MAYOR Y AL POR MENOR; REPARACIÓN DE VEHÍCULOS AUTOMOTORES Y MOTOCICLETAS | N197: G | O197: Comercio al por menor de alimentos (víveres en general), bebidas y tabaco, en establecimientos especializados | P197: Comercio al por menor de alimentos (víveres en general), bebidas y tabaco, en establecimientos especializados | Q197: 0 | R197: 0 | S197: 0 | T197: 0 | U197: 0 | V197: 0 | AH197: 0 | AI197: 0 | AJ197: 5001 | AK197: MEDELLÍN | AL197: 3 | AM197: 0 | AN197: Natural | AO197: 5 | AP197: ANTIOQUIA | AQ197: Aprobado con subsidio | AR197: MICRO | AS197: 1410 | AT197: INDUSTRIAS MANUFACTURERAS | AU197: C | AV197: Confección de prendas de vestir, excepto prendas de piel | AW197: Confección de prendas de vestir | AX197: 3 | AY197: 0 | AZ197: 0 | BA197: 0 | BB197: 3 | BC197: 0 | BP197: 81065 | BQ197: 0 | BR197: 41016 | BS197: 1
C198: 15238 | D198: DUITAMA | E198: 2 | F198: 0 | G198: Natural | H198: 15 | I198: BOYACÁ | J198: Aprobado con subsidio | K198: MICRO | L198: 4923 | M198: TRANSPORTE Y ALMACENAMIENTO | N198: H | O198: Transporte terrestre publico automotor | P198: Transporte terrestre publico automotor | Q198: 0 | R198: 2 | S198: 0 | T198: 0 | U198: 0 | V198: 2 | AH198: 0 | AI198: 0 | AJ198: 5615 | AK198: RIONEGRO | AL198: 2 | AM198: 2 | AN198: Natural | AO198: 5 | AP198: ANTIOQUIA | AQ198: Aprobado con subsidio | AR198: MICRO | AS198: 1630 | AT198: INDUSTRIAS MANUFACTURERAS | AU198: C | AV198: Fabricación de partes y piezas de madera, de carpintería y ebanistería para la construcción | AW198: Transformación de la madera y fabricación de productos de madera y de corcho, excepto muebles; fabricación de artículos de cestería y espartería | AX198: 0 | AY198: 2 | AZ198: 0 | BA198: 2 | BB198: 0 | BC198: 0 | BP198: 50568 | BQ198: 1 | BR198: 95001 | BS198: 0
C199: 15238 | D199: DUITAMA | E199: 1 | F199: 1 | G199: Natural | H199: 15 | I199: BOYACÁ | J199: Aprobado con subsidio | K199: MICRO | L199: 4732 | M199: COMERCIO AL POR MAYOR Y AL POR MENOR; REPARACIÓN DE VEHÍCULOS AUTOMOTORES Y MOTOCICLETAS | N199: G | O199: Comercio al por menor de combustible, lubricantes, aditivos y productos de limpieza para automotores, en establecimientos especializados | P199: Comercio al por menor de combustible, lubricantes, aditivos y productos de limpieza para automotores, en establecimientos especializados | Q199: 0 | R199: 1 | S199: 0 | T199: 1 | U199: 0 | V199: 0 | AH199: 0 | AI199: 0 | AJ199: 5001 | AK199: MEDELLÍN | AL199: 0 | AM199: 0 | AN199: Natural | AO199: 5 | AP199: ANTIOQUIA | AQ199: 0 | AR199: MICRO | AS199: 2511 | AT199: INDUSTRIAS MANUFACTURERAS | AU199: C | AV199: Fabricación de productos metálicos para uso estructural, tanques, depósitos y generadores de vapor. | AW199: Fabricación de productos elaborados de metal, excepto maquinaria y equipo | AX199: 0 | AY199: 0 | AZ199: 0 | BA199: 0 | BB199: 0 | BC199: 0 | BP199: 25438 | BQ199: 1 | BR199: 5761 | BS199: 0
C200: 85139 | D200: MANÍ | E200: 2 | F200: 7 | G200: Natural | H200: 85 | I200: CASANARE | J200: Aprobado con subsidio | K200: PEQUEÑA | L200: 4731 | M200: COMERCIO AL POR MAYOR Y AL POR MENOR; REPARACIÓN DE VEHÍCULOS AUTOMOTORES Y MOTOCICLETAS | N200: G | O200: Comercio al por menor de combustible, lubricantes, aditivos y productos de limpieza para automotores, en establecimientos especializados | P200: Comercio al por menor de combustible, lubricantes, aditivos y productos de limpieza para automotores, en establecimientos especializados | Q200: 2 | R200: 0 | S200: 0 | T200: 2 | U200: 0 | V200: 0 | AH200: 0 | AI200: 0 | AJ200: 5001 | AK200: MEDELLÍN | AL200: 0 | AM200: 0 | AN200: Natural | AO200: 5 | AP200: ANTIOQUIA | AQ200: 0 | AR200: MICRO | AS200: 1811 | AT200: INDUSTRIAS MANUFACTURERAS | AU200: C | AV200: Actividades de impresión y actividades de servicios relacionados con la impresión | AW200: Actividades de impresión y de producción de copias a partir de grabaciones originales | AX200: 0 | AY200: 0 | AZ200: 0 | BA200: 0 | BB200: 0 | BC200: 0 | BP200: 5190 | BQ200: 1 | BR200: 15087 | BS200: 0
... 925 more rows

Sheet Hoja4 (hidden)
A1: Descripción Sección Rev. 4 | B1: Sección Rev. 4 | C1: Nombre | D1: Seccion | E1: Total | G1: Nombre | H1: Seccion | I1: Total empleadores | J1: Empleadores % | K1: Total empleados | L1: Empleados % | M1: Monto | N1: Hombres | O1: Mujeres | P1: no disponible | Q1: Actividad | R1: Indice | T1: cod_dpto | U1: Departamento | V1: % empleadores general | W1: ="% empleadores sección "&Visor!$N$4 -> % empleadores sección C
A2: AGRICULTURA, GANADERÍA, CAZA, SILVICULTURA Y PESCA | B2: A | C2: Agricultura, ganadería, caza, silvicultura y pesca | D2: =B2 -> A | E2: =COUNTIFS(insumos2!$N$2:$N$399999,Hoja4!D2,insumos2!$J$2:$J$399999,"Aprobado con subsidio") -> 549 | G2: =MID(VLOOKUP(H2,$B$2:$C$23,2,FALSE),1,36) -> Comercio al por mayor y al por menor | H2: =_xlfn._xlws.SORT($D$2:$E$23,2,-1) -> G | I2: 4652 | J2: =I2/$I$24 -> 0.2252675415 | K2: =SUMIFS(insumos2!$E$2:$E$399999,insumos2!$J$2:$J$399999,"Aprobado con subsidio",insumos2!$N$2:$N$399999,Hoja4!H2) -> 52129 | L2: =K2/$K$24 -> 0.09995493984 | M2: =SUMIFS(insumos1!$K$2:$K$372158,insumos1!$H$2:$H$372158,Hoja4!H2) -> 33818075298 | N2: =SUMIFS(insumos2!$R$2:$R$399999,insumos2!$J$2:$J$399999,"Aprobado con subsidio",insumos2!$N$2:$N$399999,Hoja4!H2) -> 21628 | O2: =SUMIFS(insumos2!$Q$2:$Q$399999,insumos2!$J$2:$J$399999,"Aprobado con subsidio",insumos2!$N$2:$N$399999,Hoja4!H2) -> 30501 | P2: =SUMIFS(insumos2!$S$2:$S$399999,insumos2!$J$2:$J$399999,"Aprobado con subsidio",insumos2!$N$2:$N$399999,Hoja4!H2) -> 0 | Q2: =G2 -> Comercio al por mayor y al por menor | R2: =O2/N2*100 -> 141.0255225 | T2: 11 | U2: BOGOTÁ, D.C. | V2: =(VLOOKUP(T2,_xlfn.ANCHORARRAY(insumos2!$Z$2),2,0)/SUM(insumos2!$AA$2:$AA$34)) -> 0.3317999128 | W2: =VLOOKUP(T2,insumos2!$BF$2:$BG$34,2,FALSE)/insumos2!$BM$30 -> 0.2911392405 | Z2: =_xlfn.UNIQUE(insumos1!F2:F5000) -> AGRICULTURA, GANADERÍA, CAZA, SILVICULTURA Y PESCA | AA2: =_xlfn.UNIQUE(insumos1!H2:H5000) -> A | AD2: =_xlfn._xlws.SORT(Z2:AA22,2,1) -> AGRICULTURA, GANADERÍA, CAZA, SILVICULTURA Y PESCA | AE2: A | AF2: =IFERROR(VLOOKUP(AE2,$B$2:$C$23,2,0),"") -> Agricultura, ganadería, caza, silvicultura y pesca
A3: EXPLOTACIÓN DE MINAS Y CANTERAS | B3: B | C3: Explotación de minas y canteras | D3: =B3 -> B | E3: =COUNTIFS(insumos2!$N$2:$N$399999,Hoja4!D3,insumos2!$J$2:$J$399999,"Aprobado con subsidio") -> 88 | G3: =MID(VLOOKUP(H3,$B$2:$C$23,2,FALSE),1,30) -> Industrias manufactureras | H3: C | I3: 3160 | J3: 0.1530192243 | K3: =SUMIFS(insumos2!$E$2:$E$399999,insumos2!$J$2:$J$399999,"Aprobado con subsidio",insumos2!$N$2:$N$399999,Hoja4!H3) -> 52943 | L3: =K3/$K$24 -> 0.1015157471 | M3: =SUMIFS(insumos1!$K$2:$K$372158,insumos1!$H$2:$H$372158,Hoja4!H3) -> 34055999302 | N3: =SUMIFS(insumos2!$R$2:$R$399999,insumos2!$J$2:$J$399999,"Aprobado con subsidio",insumos2!$N$2:$N$399999,Hoja4!H3) -> 24484 | O3: =SUMIFS(insumos2!$Q$2:$Q$399999,insumos2!$J$2:$J$399999,"Aprobado con subsidio",insumos2!$N$2:$N$399999,Hoja4!H3) -> 28459 | P3: =SUMIFS(insumos2!$S$2:$S$399999,insumos2!$J$2:$J$399999,"Aprobado con subsidio",insumos2!$N$2:$N$399999,Hoja4!H3) -> 0 | Q3: =G3 -> Industrias manufactureras | R3: 116.2350923 | T3: 5 | U3: ANTIOQUIA | V3: =(VLOOKUP(T3,_xlfn.ANCHORARRAY(insumos2!$Z$2),2,0)/SUM(insumos2!$AA$2:$AA$34)) -> 0.2083676335 | W3: =VLOOKUP(T3,insumos2!$BF$2:$BG$34,2,FALSE)/insumos2!$BM$30 -> 0.282278481 | Z3: COMERCIO AL POR MAYOR Y AL POR MENOR; REPARACIÓN DE VEHÍCULOS AUTOMOTORES Y MOTOCICLETAS | AA3: G | AD3: EXPLOTACIÓN DE MINAS Y CANTERAS | AE3: B | AF3: =IFERROR(VLOOKUP(AE3,$B$2:$C$23,2,0),"") -> Explotación de minas y canteras
A4: INDUSTRIAS MANUFACTURERAS | B4: C | C4: Industrias manufactureras | D4: C | E4: =COUNTIFS(insumos2!$N$2:$N$399999,Hoja4!D4,insumos2!$J$2:$J$399999,"Aprobado con subsidio") -> 3160 | G4: =MID(VLOOKUP(H4,$B$2:$C$23,2,FALSE),1,85) -> Actividades profesionales, científicas y técnicas | H4: M | I4: 2534 | J4: 0.1227059222 | K4: =SUMIFS(insumos2!$E$2:$E$399999,insumos2!$J$2:$J$399999,"Aprobado con subsidio",insumos2!$N$2:$N$399999,Hoja4!H4) -> 24082 | L4: 0.04617611812 | M4: =SUMIFS(insumos1!$K$2:$K$372158,insumos1!$H$2:$H$372158,Hoja4!H4) -> 14871646155 | N4: =SUMIFS(insumos2!$R$2:$R$399999,insumos2!$J$2:$J$399999,"Aprobado con subsidio",insumos2!$N$2:$N$399999,Hoja4!H4) -> 12407 | O4: =SUMIFS(insumos2!$Q$2:$Q$399999,insumos2!$J$2:$J$399999,"Aprobado con subsidio",insumos2!$N$2:$N$399999,Hoja4!H4) -> 11675 | P4: =SUMIFS(insumos2!$S$2:$S$399999,insumos2!$J$2:$J$399999,"Aprobado con subsidio",insumos2!$N$2:$N$399999,Hoja4!H4) -> 0 | Q4: Actividades profesionales, científicas y técnicas | R4: 94.10010478 | T4: 76 | U4: VALLE DEL CAUCA | V4: =(VLOOKUP(T4,_xlfn.ANCHORARRAY(insumos2!$Z$2),2,0)/SUM(insumos2!$AA$2:$AA$34)) -> 0.09152099172 | W4: =VLOOKUP(T4,insumos2!$BF$2:$BG$34,2,FALSE)/insumos2!$BM$30 -> 0.1022151899 | Z4: ALOJAMIENTO Y SERVICIOS DE COMIDA | AA4: I | AD4: INDUSTRIAS MANUFACTURERAS | AE4: C | AF4: Industrias manufactureras
A5: SUMINISTRO DE ELECTRICIDAD, GAS, VAPOR Y AIRE ACONDICIONADO | B5: D | C5: Suministro de electricidad, gas, vapor y aire acondicionado | D5: D | E5: =COUNTIFS(insumos2!$N$2:$N$399999,Hoja4!D5,insumos2!$J$2:$J$399999,"Aprobado con subsidio") -> 34 | G5: =MID(VLOOKUP(H5,$B$2:$C$23,2,FALSE),1,30) -> Construcción | H5: F | I5: 1909 | J5: 0.09244104402 | K5: =SUMIFS(insumos2!$E$2:$E$399999,insumos2!$J$2:$J$399999,"Aprobado con subsidio",insumos2!$N$2:$N$399999,Hoja4!H5) -> 51335 | L5: 0.09843248166 | M5: =SUMIFS(insumos1!$K$2:$K$372158,insumos1!$H$2:$H$372158,Hoja4!H5) -> 24746994341 | N5: =SUMIFS(insumos2!$R$2:$R$399999,insumos2!$J$2:$J$399999,"Aprobado con subsidio",insumos2!$N$2:$N$399999,Hoja4!H5) -> 42216 | O5: =SUMIFS(insumos2!$Q$2:$Q$399999,insumos2!$J$2:$J$399999,"Aprobado con subsidio",insumos2!$N$2:$N$399999,Hoja4!H5) -> 9119 | P5: =SUMIFS(insumos2!$S$2:$S$399999,insumos2!$J$2:$J$399999,"Aprobado con subsidio",insumos2!$N$2:$N$399999,Hoja4!H5) -> 0 | Q5: Construcción | R5: 21.60081486 | T5: 8 | U5: ATLÁNTICO | V5: =(VLOOKUP(T5,_xlfn.ANCHORARRAY(insumos2!$Z$2),2,0)/SUM(insumos2!$AA$2:$AA$34)) -> 0.03907801075 | W5: =VLOOKUP(T5,insumos2!$BF$2:$BG$34,2,FALSE)/insumos2!$BM$30 -> 0.03449367089 | Z5: TRANSPORTE Y ALMACENAMIENTO | AA5: H | AD5: SUMINISTRO DE ELECTRICIDAD, GAS, VAPOR Y AIRE ACONDICIONADO | AE5: D | AF5: Suministro de electricidad, gas, vapor y aire acondicionado
A6: DISTRIBUCIÓN DE AGUA; EVACUACIÓN Y TRATAMIENTO DE AGUAS RESIDUALES, GESTIÓN DE DESECHOS Y ACTIVIDADES DE SANEAMIENTO AMBIENTAL | B6: E | C6: Distribución de agua; evacuación y tratamiento de aguas residuales, gestión de desechos y actividades de saneamiento ambiental | D6: E | E6: =COUNTIFS(insumos2!$N$2:$N$399999,Hoja4!D6,insumos2!$J$2:$J$399999,"Aprobado con subsidio") -> 78 | G6: =MID(VLOOKUP(H6,$B$2:$C$23,2,FALSE),1,35) -> Actividades de servicios administra | H6: N | I6: 1537 | J6: 0.0744273885 | K6: =SUMIFS(insumos2!$E$2:$E$399999,insumos2!$J$2:$J$399999,"Aprobado con subsidio",insumos2!$N$2:$N$399999,Hoja4!H6) -> 190351 | L6: 0.3649892143 | M6: =SUMIFS(insumos1!$K$2:$K$372158,insumos1!$H$2:$H$372158,Hoja4!H6) -> 129606948917 | N6: =SUMIFS(insumos2!$R$2:$R$399999,insumos2!$J$2:$J$399999,"Aprobado con subsidio",insumos2!$N$2:$N$399999,Hoja4!H6) -> 61311 | O6: =SUMIFS(insumos2!$Q$2:$Q$399999,insumos2!$J$2:$J$399999,"Aprobado con subsidio",insumos2!$N$2:$N$399999,Hoja4!H6) -> 129040 | P6: =SUMIFS(insumos2!$S$2:$S$399999,insumos2!$J$2:$J$399999,"Aprobado con subsidio",insumos2!$N$2:$N$399999,Hoja4!H6) -> 0 | Q6: Actividades de servicios administra | R6: 210.4679421 | T6: 25 | U6: CUNDINAMARCA | V6: =(VLOOKUP(T6,_xlfn.ANCHORARRAY(insumos2!$Z$2),2,0)/SUM(insumos2!$AA$2:$AA$34)) -> 0.04653527674 | W6: =VLOOKUP(T6,insumos2!$BF$2:$BG$34,2,FALSE)/insumos2!$BM$30 -> 0.06265822785 | Z6: OTRAS | AA6: Otras | AD6: DISTRIBUCIÓN DE AGUA; EVACUACIÓN Y TRATAMIENTO DE AGUAS RESIDUALES, GESTIÓN DE DESECHOS Y ACTIVIDADES DE SANEAMIENTO AMBIENTAL | AE6: E | AF6: Distribución de agua; evacuación y tratamiento de aguas residuales, gestión de desechos y actividades de saneamiento ambiental
A7: CONSTRUCCIÓN | B7: F | C7: Construcción | D7: F | E7: =COUNTIFS(insumos2!$N$2:$N$399999,Hoja4!D7,insumos2!$J$2:$J$399999,"Aprobado con subsidio") -> 1909 | G7: =MID(VLOOKUP(H7,$B$2:$C$23,2,FALSE),1,30) -> Alojamiento y servicios de com | H7: I | I7: 1272 | J7: 0.06159508014 | K7: =SUMIFS(insumos2!$E$2:$E$399999,insumos2!$J$2:$J$399999,"Aprobado con subsidio",insumos2!$N$2:$N$399999,Hoja4!H7) -> 26999 | L7: 0.05176933033 | M7: =SUMIFS(insumos1!$K$2:$K$372158,insumos1!$H$2:$H$372158,Hoja4!H7) -> 17797454314 | N7: =SUMIFS(insumos2!$R$2:$R$399999,insumos2!$J$2:$J$399999,"Aprobado con subsidio",insumos2!$N$2:$N$399999,Hoja4!H7) -> 9543 | O7: =SUMIFS(insumos2!$Q$2:$Q$399999,insumos2!$J$2:$J$399999,"Aprobado con subsidio",insumos2!$N$2:$N$399999,Hoja4!H7) -> 17456 | P7: =SUMIFS(insumos2!$S$2:$S$399999,insumos2!$J$2:$J$399999,"Aprobado con subsidio",insumos2!$N$2:$N$399999,Hoja4!H7) -> 0 | Q7: Alojamiento y servicios de com | R7: 182.9194174 | T7: 68 | U7: SANTANDER | V7: =(VLOOKUP(T7,_xlfn.ANCHORARRAY(insumos2!$Z$2),2,0)/SUM(insumos2!$AA$2:$AA$34)) -> 0.04953755266 | W7: =VLOOKUP(T7,insumos2!$BF$2:$BG$34,2,FALSE)/insumos2!$BM$30 -> 0.0582278481 | Z7: INDUSTRIAS MANUFACTURERAS | AA7: C | AD7: CONSTRUCCIÓN | AE7: F | AF7: Construcción
A8: COMERCIO AL POR MAYOR Y AL POR MENOR; REPARACIÓN DE VEHÍCULOS AUTOMOTORES Y MOTOCICLETAS | B8: G | C8: Comercio al por mayor y al por menor; reparación de vehículos automotores y motocicletas | D8: G | E8: =COUNTIFS(insumos2!$N$2:$N$399999,Hoja4!D8,insumos2!$J$2:$J$399999,"Aprobado con subsidio") -> 4652 | G8: =MID(VLOOKUP(H8,$B$2:$C$23,2,FALSE),1,40) -> información y comunicaciones | H8: J | I8: 1048 | J8: 0.05074814779 | K8: =SUMIFS(insumos2!$E$2:$E$399999,insumos2!$J$2:$J$399999,"Aprobado con subsidio",insumos2!$N$2:$N$399999,Hoja4!H8) -> 28428 | L8: 0.05450937155 | M8: =SUMIFS(insumos1!$K$2:$K$372158,insumos1!$H$2:$H$372158,Hoja4!H8) -> 22522107951 | N8: =SUMIFS(insumos2!$R$2:$R$399999,insumos2!$J$2:$J$399999,"Aprobado con subsidio",insumos2!$N$2:$N$399999,Hoja4!H8) -> 15903 | O8: =SUMIFS(insumos2!$Q$2:$Q$399999,insumos2!$J$2:$J$399999,"Aprobado con subsidio",insumos2!$N$2:$N$399999,Hoja4!H8) -> 12525 | P8: =SUMIFS(insumos2!$S$2:$S$399999,insumos2!$J$2:$J$399999,"Aprobado con subsidio",insumos2!$N$2:$N$399999,Hoja4!H8) -> 0 | Q8: información y comunicaciones | R8: 78.75872477 | T8: 13 | U8: BOLÍVAR | V8: =(VLOOKUP(T8,_xlfn.ANCHORARRAY(insumos2!$Z$2),2,0)/SUM(insumos2!$AA$2:$AA$34)) -> 0.0198053363 | W8: =VLOOKUP(T8,insumos2!$BF$2:$BG$34,2,FALSE)/insumos2!$BM$30 -> 0.01044303797 | Z8: EDUCACIÓN | AA8: P | AD8: COMERCIO AL POR MAYOR Y AL POR MENOR; REPARACIÓN DE VEHÍCULOS AUTOMOTORES Y MOTOCICLETAS | AE8: G | AF8: Comercio al por mayor y al por menor; reparación de vehículos automotores y motocicletas
A9: TRANSPORTE Y ALMACENAMIENTO | B9: H | C9: Transporte y almacenamiento | D9: H | E9: =COUNTIFS(insumos2!$N$2:$N$399999,Hoja4!D9,insumos2!$J$2:$J$399999,"Aprobado con subsidio") -> 903 | G9: =MID(VLOOKUP(H9,$B$2:$C$23,2,FALSE),1,42) -> Actividades de atención de la salud humana | H9: Q | I9: 920 | J9: 0.04454990073 | K9: =SUMIFS(insumos2!$E$2:$E$399999,insumos2!$J$2:$J$399999,"Aprobado con subsidio",insumos2!$N$2:$N$399999,Hoja4!H9) -> 24573 | L9: 0.04711758784 | M9: =SUMIFS(insumos1!$K$2:$K$372158,insumos1!$H$2:$H$372158,Hoja4!H9) -> 17161377099 | N9: =SUMIFS(insumos2!$R$2:$R$399999,insumos2!$J$2:$J$399999,"Aprobado con subsidio",insumos2!$N$2:$N$399999,Hoja4!H9) -> 3655 | O9: =SUMIFS(insumos2!$Q$2:$Q$399999,insumos2!$J$2:$J$399999,"Aprobado con subsidio",insumos2!$N$2:$N$399999,Hoja4!H9) -> 20918 | P9: =SUMIFS(insumos2!$S$2:$S$399999,insumos2!$J$2:$J$399999,"Aprobado con subsidio",insumos2!$N$2:$N$399999,Hoja4!H9) -> 0 | Q9: Actividades de atención de la salud humana | R9: 572.3119015 | T9: 66 | U9: RISARALDA | V9: =(VLOOKUP(T9,_xlfn.ANCHORARRAY(insumos2!$Z$2),2,0)/SUM(insumos2!$AA$2:$AA$34)) -> 0.02377608833 | W9: =VLOOKUP(T9,insumos2!$BF$2:$BG$34,2,FALSE)/insumos2!$BM$30 -> 0.02689873418 | Z9: CONSTRUCCIÓN | AA9: F | AD9: TRANSPORTE Y ALMACENAMIENTO | AE9: H | AF9: Transporte y almacenamiento
A10: ALOJAMIENTO Y SERVICIOS DE COMIDA | B10: I | C10: Alojamiento y servicios de comida | D10: I | E10: =COUNTIFS(insumos2!$N$2:$N$399999,Hoja4!D10,insumos2!$J$2:$J$399999,"Aprobado con subsidio") -> 1272 | G10: =MID(VLOOKUP(H10,$B$2:$C$23,2,FALSE),1,30) -> Transporte y almacenamiento | H10: H | I10: 903 | J10: 0.04372669604 | K10: =SUMIFS(insumos2!$E$2:$E$399999,insumos2!$J$2:$J$399999,"Aprobado con subsidio",insumos2!$N$2:$N$399999,Hoja4!H10) -> 23588 | L10: 0.04522889603 | M10: =SUMIFS(insumos1!$K$2:$K$372158,insumos1!$H$2:$H$372158,Hoja4!H10) -> 13874925089 | N10: =SUMIFS(insumos2!$R$2:$R$399999,insumos2!$J$2:$J$399999,"Aprobado con subsidio",insumos2!$N$2:$N$399999,Hoja4!H10) -> 15130 | O10: =SUMIFS(insumos2!$Q$2:$Q$399999,insumos2!$J$2:$J$399999,"Aprobado con subsidio",insumos2!$N$2:$N$399999,Hoja4!H10) -> 8458 | P10: =SUMIFS(insumos2!$S$2:$S$399999,insumos2!$J$2:$J$399999,"Aprobado con subsidio",insumos2!$N$2:$N$399999,Hoja4!H10) -> 0 | Q10: Transporte y almacenamiento | R10: 55.9021811 | T10: 54 | U10: NORTE DE SANTANDER | V10: =(VLOOKUP(T10,_xlfn.ANCHORARRAY(insumos2!$Z$2),2,0)/SUM(insumos2!$AA$2:$AA$34)) -> 0.02590673575 | W10: =VLOOKUP(T10,insumos2!$BF$2:$BG$34,2,FALSE)/insumos2!$BM$30 -> 0.02689873418 | Z10: ACTIVIDADES PROFESIONALES, CIENTÍFICAS Y TÉCNICAS | AA10: M | AD10: ALOJAMIENTO Y SERVICIOS DE COMIDA | AE10: I | AF10: Alojamiento y servicios de comida
A11: INFORMACIÓN Y COMUNICACIONES | B11: J | C11: información y comunicaciones | D11: J | E11: =COUNTIFS(insumos2!$N$2:$N$399999,Hoja4!D11,insumos2!$J$2:$J$399999,"Aprobado con subsidio") -> 1048 | G11: =MID(VLOOKUP(H11,$B$2:$C$23,2,FALSE),1,30) -> Educación | H11: P | I11: 625 | J11: 0.03026487821 | K11: =SUMIFS(insumos2!$E$2:$E$399999,insumos2!$J$2:$J$399999,"Aprobado con subsidio",insumos2!$N$2:$N$399999,Hoja4!H11) -> 7763 | L11: 0.01488519246 | M11: =SUMIFS(insumos1!$K$2:$K$372158,insumos1!$H$2:$H$372158,Hoja4!H11) -> 4283047927 | N11: =SUMIFS(insumos2!$R$2:$R$399999,insumos2!$J$2:$J$399999,"Aprobado con subsidio",insumos2!$N$2:$N$399999,Hoja4!H11) -> 1380 | O11: =SUMIFS(insumos2!$Q$2:$Q$399999,insumos2!$J$2:$J$399999,"Aprobado con subsidio",insumos2!$N$2:$N$399999,Hoja4!H11) -> 6383 | P11: =SUMIFS(insumos2!$S$2:$S$399999,insumos2!$J$2:$J$399999,"Aprobado con subsidio",insumos2!$N$2:$N$399999,Hoja4!H11) -> 0 | Q11: Educación | R11: 462.5362319 | T11: 15 | U11: BOYACÁ | V11: =(VLOOKUP(T11,_xlfn.ANCHORARRAY(insumos2!$Z$2),2,0)/SUM(insumos2!$AA$2:$AA$34)) -> 0.01447871774 | W11: =VLOOKUP(T11,insumos2!$BF$2:$BG$34,2,FALSE)/insumos2!$BM$30 -> 0.00917721519 | Z11: ACTIVIDADES DE SERVICIOS ADMINISTRATIVOS Y DE APOYO | AA11: N | AD11: INFORMACIÓN Y COMUNICACIONES | AE11: J | AF11: información y comunicaciones
A12: ACTIVIDADES FINANCIERAS Y DE SEGUROS | B12: K | C12: Actividades financieras y de seguros | D12: K | E12: =COUNTIFS(insumos2!$N$2:$N$399999,Hoja4!D12,insumos2!$J$2:$J$399999,"Aprobado con subsidio") -> 323 | G12: =MID(VLOOKUP(H12,$B$2:$C$23,2,FALSE),1,30) -> Agricultura, ganadería, caza, | H12: A | I12: 549 | J12: 0.02658466902 | K12: =SUMIFS(insumos2!$E$2:$E$399999,insumos2!$J$2:$J$399999,"Aprobado con subsidio",insumos2!$N$2:$N$399999,Hoja4!H12) -> 13835 | L12: 0.02652797085 | M12: =SUMIFS(insumos1!$K$2:$K$372158,insumos1!$H$2:$H$372158,Hoja4!H12) -> 8699242511 | N12: =SUMIFS(insumos2!$R$2:$R$399999,insumos2!$J$2:$J$399999,"Aprobado con subsidio",insumos2!$N$2:$N$399999,Hoja4!H12) -> 6147 | O12: =SUMIFS(insumos2!$Q$2:$Q$399999,insumos2!$J$2:$J$399999,"Aprobado con subsidio",insumos2!$N$2:$N$399999,Hoja4!H12) -> 7688 | P12: =SUMIFS(insumos2!$S$2:$S$399999,insumos2!$J$2:$J$399999,"Aprobado con subsidio",insumos2!$N$2:$N$399999,Hoja4!H12) -> 0 | Q12: Agricultura, ganadería, caza, | R12: 125.0691394 | T12: 73 | U12: TOLIMA | V12: =(VLOOKUP(T12,_xlfn.ANCHORARRAY(insumos2!$Z$2),2,0)/SUM(insumos2!$AA$2:$AA$34)) -> 0.01825577454 | W12: =VLOOKUP(T12,insumos2!$BF$2:$BG$34,2,FALSE)/insumos2!$BM$30 -> 0.01360759494 | Z12: ACTIVIDADES ARTÍSTICAS, DE ENTRETENIMIENTO Y RECREACIÓN | AA12: R | AD12: ACTIVIDADES FINANCIERAS Y DE SEGUROS | AE12: K | AF12: Actividades financieras y de seguros
A13: ACTIVIDADES INMOBILIARIAS | B13: L | C13: Actividades inmobiliarias | D13: L | E13: =COUNTIFS(insumos2!$N$2:$N$399999,Hoja4!D13,insumos2!$J$2:$J$399999,"Aprobado con subsidio") -> 377 | G13: =MID(VLOOKUP(H13,$B$2:$C$23,2,FALSE),1,30) -> Actividades inmobiliarias | H13: L | I13: 377 | J13: 0.01825577454 | K13: =SUMIFS(insumos2!$E$2:$E$399999,insumos2!$J$2:$J$399999,"Aprobado con subsidio",insumos2!$N$2:$N$399999,Hoja4!H13) -> 2086 | L13: 0.003999808255 | M13: =SUMIFS(insumos1!$K$2:$K$372158,insumos1!$H$2:$H$372158,Hoja4!H13) -> 1022722808 | N13: =SUMIFS(insumos2!$R$2:$R$399999,insumos2!$J$2:$J$399999,"Aprobado con subsidio",insumos2!$N$2:$N$399999,Hoja4!H13) -> 845 | O13: =SUMIFS(insumos2!$Q$2:$Q$399999,insumos2!$J$2:$J$399999,"Aprobado con subsidio",insumos2!$N$2:$N$399999,Hoja4!H13) -> 1241 | P13: =SUMIFS(insumos2!$S$2:$S$399999,insumos2!$J$2:$J$399999,"Aprobado con subsidio",insumos2!$N$2:$N$399999,Hoja4!H13) -> 0 | Q13: Actividades inmobiliarias | R13: 146.8639053 | T13: 17 | U13: CALDAS | V13: =(VLOOKUP(T13,_xlfn.ANCHORARRAY(insumos2!$Z$2),2,0)/SUM(insumos2!$AA$2:$AA$34)) -> 0.01806207932 | W13: =VLOOKUP(T13,insumos2!$BF$2:$BG$34,2,FALSE)/insumos2!$BM$30 -> 0.01962025316 | Z13: ACTIVIDADES INMOBILIARIAS | AA13: L | AD13: ACTIVIDADES INMOBILIARIAS | AE13: L | AF13: Actividades inmobiliarias
A14: ACTIVIDADES PROFESIONALES, CIENTÍFICAS Y TÉCNICAS | B14: M | C14: Actividades profesionales, científicas y técnicas | D14: M | E14: =COUNTIFS(insumos2!$N$2:$N$399999,Hoja4!D14,insumos2!$J$2:$J$399999,"Aprobado con subsidio") -> 2534 | G14: =MID(VLOOKUP(H14,$B$2:$C$23,2,FALSE),1,34) -> Otras actividades de servicios | H14: S | I14: 359 | J14: 0.01738414605 | K14: =SUMIFS(insumos2!$E$2:$E$399999,insumos2!$J$2:$J$399999,"Aprobado con subsidio",insumos2!$N$2:$N$399999,Hoja4!H14) -> 4695 | L14: 0.009002444753 | M14: =SUMIFS(insumos1!$K$2:$K$372158,insumos1!$H$2:$H$372158,Hoja4!H14) -> 3148730129 | N14: =SUMIFS(insumos2!$R$2:$R$399999,insumos2!$J$2:$J$399999,"Aprobado con subsidio",insumos2!$N$2:$N$399999,Hoja4!H14) -> 1930 | O14: =SUMIFS(insumos2!$Q$2:$Q$399999,insumos2!$J$2:$J$399999,"Aprobado con subsidio",insumos2!$N$2:$N$399999,Hoja4!H14) -> 2765 | P14: =SUMIFS(insumos2!$S$2:$S$399999,insumos2!$J$2:$J$399999,"Aprobado con subsidio",insumos2!$N$2:$N$399999,Hoja4!H14) -> 0 | Q14: Otras actividades de servicios | R14: 143.2642487 | T14: 50 | U14: META | V14: =(VLOOKUP(T14,_xlfn.ANCHORARRAY(insumos2!$Z$2),2,0)/SUM(insumos2!$AA$2:$AA$34)) -> 0.01689990799 | W14: =VLOOKUP(T14,insumos2!$BF$2:$BG$34,2,FALSE)/insumos2!$BM$30 -> 0.00664556962 | Z14: ACTIVIDADES FINANCIERAS Y DE SEGUROS | AA14: K | AD14: ACTIVIDADES PROFESIONALES, CIENTÍFICAS Y TÉCNICAS | AE14: M | AF14: Actividades profesionales, científicas y técnicas
A15: ACTIVIDADES DE SERVICIOS ADMINISTRATIVOS Y DE APOYO | B15: N | C15: Actividades de servicios administrativos y de apoyo | D15: N | E15: =COUNTIFS(insumos2!$N$2:$N$399999,Hoja4!D15,insumos2!$J$2:$J$399999,"Aprobado con subsidio") -> 1537 | G15: =MID(VLOOKUP(H15,$B$2:$C$23,2,FALSE),1,40) -> Actividades financieras y de seguros | H15: K | I15: 323 | J15: 0.01564088906 | K15: =SUMIFS(insumos2!$E$2:$E$399999,insumos2!$J$2:$J$399999,"Aprobado con subsidio",insumos2!$N$2:$N$399999,Hoja4!H15) -> 4441 | L15: 0.008515411533 | M15: =SUMIFS(insumos1!$K$2:$K$372158,insumos1!$H$2:$H$372158,Hoja4!H15) -> 2928744779 | N15: =SUMIFS(insumos2!$R$2:$R$399999,insumos2!$J$2:$J$399999,"Aprobado con subsidio",insumos2!$N$2:$N$399999,Hoja4!H15) -> 1218 | O15: =SUMIFS(insumos2!$Q$2:$Q$399999,insumos2!$J$2:$J$399999,"Aprobado con subsidio",insumos2!$N$2:$N$399999,Hoja4!H15) -> 3223 | P15: =SUMIFS(insumos2!$S$2:$S$399999,insumos2!$J$2:$J$399999,"Aprobado con subsidio",insumos2!$N$2:$N$399999,Hoja4!H15) -> 0 | Q15: Actividades financieras y de seguros | R15: 264.6141215 | T15: 41 | U15: HUILA | V15: =(VLOOKUP(T15,_xlfn.ANCHORARRAY(insumos2!$Z$2),2,0)/SUM(insumos2!$AA$2:$AA$34)) -> 0.01462398915 | W15: =VLOOKUP(T15,insumos2!$BF$2:$BG$34,2,FALSE)/insumos2!$BM$30 -> 0.007594936709 | Z15: ACTIVIDADES DE ATENCIÓN DE LA SALUD HUMANA Y DE ASISTENCIA SOCIAL | AA15: Q | AD15: ACTIVIDADES DE SERVICIOS ADMINISTRATIVOS Y DE APOYO | AE15: N | AF15: Actividades de servicios administrativos y de apoyo
A16: ADMINISTRACIÓN PÚBLICA Y DEFENSA; PLANES DE SEGURIDAD SOCIAL DE AFILIACIÓN OBLIGATORIA | B16: O | C16: Administración pública y defensa; planes de seguridad social de afiliación obligatoria | D16: O | E16: =COUNTIFS(insumos2!$N$2:$N$399999,Hoja4!D16,insumos2!$J$2:$J$399999,"Aprobado con subsidio") -> 23 | G16: =MID(VLOOKUP(H16,$B$2:$C$23,2,FALSE),1,35) -> Actividades artísticas de entreteni | H16: R | I16: 243 | J16: 0.01176698465 | K16: =SUMIFS(insumos2!$E$2:$E$399999,insumos2!$J$2:$J$399999,"Aprobado con subsidio",insumos2!$N$2:$N$399999,Hoja4!H16) -> 6907 | L16: 0.01324385216 | M16: =SUMIFS(insumos1!$K$2:$K$372158,insumos1!$H$2:$H$372158,Hoja4!H16) -> 5436839818 | N16: =SUMIFS(insumos2!$R$2:$R$399999,insumos2!$J$2:$J$399999,"Aprobado con subsidio",insumos2!$N$2:$N$399999,Hoja4!H16) -> 1731 | O16: =SUMIFS(insumos2!$Q$2:$Q$399999,insumos2!$J$2:$J$399999,"Aprobado con subsidio",insumos2!$N$2:$N$399999,Hoja4!H16) -> 5176 | P16: =SUMIFS(insumos2!$S$2:$S$399999,insumos2!$J$2:$J$399999,"Aprobado con subsidio",insumos2!$N$2:$N$399999,Hoja4!H16) -> 0 | Q16: Actividades artísticas de entreteni | R16: 299.0179087 | T16: 52 | U16: NARIÑO | V16: =(VLOOKUP(T16,_xlfn.ANCHORARRAY(insumos2!$Z$2),2,0)/SUM(insumos2!$AA$2:$AA$34)) -> 0.01331654641 | W16: =VLOOKUP(T16,insumos2!$BF$2:$BG$34,2,FALSE)/insumos2!$BM$30 -> 0.007594936709 | Z16: OTRAS ACTIVIDADES DE SERVICIOS | AA16: S | AD16: ADMINISTRACIÓN PÚBLICA Y DEFENSA; PLANES DE SEGURIDAD SOCIAL DE AFILIACIÓN OBLIGATORIA | AE16: O | AF16: Administración pública y defensa; planes de seguridad social de afiliación obligatoria
A17: EDUCACIÓN | B17: P | C17: Educación | D17: P | E17: =COUNTIFS(insumos2!$N$2:$N$399999,Hoja4!D17,insumos2!$J$2:$J$399999,"Aprobado con subsidio") -> 625 | G17: =MID(VLOOKUP(H17,$B$2:$C$23,2,FALSE),1,31) -> Explotación de minas y canteras | H17: B | I17: 88 | J17: 0.004261294853 | K17: =SUMIFS(insumos2!$E$2:$E$399999,insumos2!$J$2:$J$399999,"Aprobado con subsidio",insumos2!$N$2:$N$399999,Hoja4!H17) -> 2745 | L17: 0.005263410191 | M17: =SUMIFS(insumos1!$K$2:$K$372158,insumos1!$H$2:$H$372158,Hoja4!H17) -> 1360497914 | N17: =SUMIFS(insumos2!$R$2:$R$399999,insumos2!$J$2:$J$399999,"Aprobado con subsidio",insumos2!$N$2:$N$399999,Hoja4!H17) -> 2162 | O17: =SUMIFS(insumos2!$Q$2:$Q$399999,insumos2!$J$2:$J$399999,"Aprobado con subsidio",insumos2!$N$2:$N$399999,Hoja4!H17) -> 583 | P17: =SUMIFS(insumos2!$S$2:$S$399999,insumos2!$J$2:$J$399999,"Aprobado con subsidio",insumos2!$N$2:$N$399999,Hoja4!H17) -> 0 | Q17: Explotación de minas y canteras | R17: 26.96577243 | T17: 23 | U17: CÓRDOBA | V17: =(VLOOKUP(T17,_xlfn.ANCHORARRAY(insumos2!$Z$2),2,0)/SUM(insumos2!$AA$2:$AA$34)) -> 0.009587913418 | W17: =VLOOKUP(T17,insumos2!$BF$2:$BG$34,2,FALSE)/insumos2!$BM$30 -> 0.005379746835 | Z17: ACTIVIDADES DE LOS HOGARES INDIVIDUALES EN CALIDAD DE EMPLEADORES; ACTIVIDADES NO DIFERENCIADAS DE LOS HOGARES INDIVIDUALES COMO PRODUCTORES DE BIENES Y SERVICIOS PARA USO PROPIO | AA17: T | AD17: OTRAS | AE17: Otras | AF17: Otras
A18: ACTIVIDADES DE ATENCIÓN DE LA SALUD HUMANA Y DE ASISTENCIA SOCIAL | B18: Q | C18: Actividades de atención de la salud humana y de asistencia social | D18: Q | E18: =COUNTIFS(insumos2!$N$2:$N$399999,Hoja4!D18,insumos2!$J$2:$J$399999,"Aprobado con subsidio") -> 920 | G18: =MID(VLOOKUP(H18,$B$2:$C$23,2,FALSE),1,20) -> Distribución de agua | H18: E | I18: 78 | J18: 0.003777056801 | K18: =SUMIFS(insumos2!$E$2:$E$399999,insumos2!$J$2:$J$399999,"Aprobado con subsidio",insumos2!$N$2:$N$399999,Hoja4!H18) -> 1445 | L18: 0.002770720483 | M18: =SUMIFS(insumos1!$K$2:$K$372158,insumos1!$H$2:$H$372158,Hoja4!H18) -> 976097992 | N18: =SUMIFS(insumos2!$R$2:$R$399999,insumos2!$J$2:$J$399999,"Aprobado con subsidio",insumos2!$N$2:$N$399999,Hoja4!H18) -> 841 | O18: =SUMIFS(insumos2!$Q$2:$Q$399999,insumos2!$J$2:$J$399999,"Aprobado con subsidio",insumos2!$N$2:$N$399999,Hoja4!H18) -> 604 | P18: =SUMIFS(insumos2!$S$2:$S$399999,insumos2!$J$2:$J$399999,"Aprobado con subsidio",insumos2!$N$2:$N$399999,Hoja4!H18) -> 0 | Q18: Distribución de agua | R18: 71.81926278 | T18: 63 | U18: QUINDÍO | V18: =(VLOOKUP(T18,_xlfn.ANCHORARRAY(insumos2!$Z$2),2,0)/SUM(insumos2!$AA$2:$AA$34)) -> 0.01234807031 | W18: =VLOOKUP(T18,insumos2!$BF$2:$BG$34,2,FALSE)/insumos2!$BM$30 -> 0.009810126582 | Z18: INFORMACIÓN Y COMUNICACIONES | AA18: J | AD18: EDUCACIÓN | AE18: P | AF18: Educación
A19: ACTIVIDADES ARTÍSTICAS, DE ENTRETENIMIENTO Y RECREACIÓN | B19: R | C19: Actividades artísticas de entretenimiento y recreación | D19: R | E19: =COUNTIFS(insumos2!$N$2:$N$399999,Hoja4!D19,insumos2!$J$2:$J$399999,"Aprobado con subsidio") -> 243 | G19: =MID(VLOOKUP(H19,$B$2:$C$23,2,FALSE),1,32) -> Suministro de electricidad, gas, | H19: D | I19: 34 | J19: 0.001646409375 | K19: =SUMIFS(insumos2!$E$2:$E$399999,insumos2!$J$2:$J$399999,"Aprobado con subsidio",insumos2!$N$2:$N$399999,Hoja4!H19) -> 436 | L19: 0.000836009779 | M19: =SUMIFS(insumos1!$K$2:$K$372158,insumos1!$H$2:$H$372158,Hoja4!H19) -> 168000924 | N19: =SUMIFS(insumos2!$R$2:$R$399999,insumos2!$J$2:$J$399999,"Aprobado con subsidio",insumos2!$N$2:$N$399999,Hoja4!H19) -> 249 | O19: =SUMIFS(insumos2!$Q$2:$Q$399999,insumos2!$J$2:$J$399999,"Aprobado con subsidio",insumos2!$N$2:$N$399999,Hoja4!H19) -> 187 | P19: =SUMIFS(insumos2!$S$2:$S$399999,insumos2!$J$2:$J$399999,"Aprobado con subsidio",insumos2!$N$2:$N$399999,Hoja4!H19) -> 0 | Q19: Suministro de electricidad, gas, | R19: 75.10040161 | T19: 47 | U19: MAGDALENA | V19: =(VLOOKUP(T19,_xlfn.ANCHORARRAY(insumos2!$Z$2),2,0)/SUM(insumos2!$AA$2:$AA$34)) -> 0.009394218198 | W19: =VLOOKUP(T19,insumos2!$BF$2:$BG$34,2,FALSE)/insumos2!$BM$30 -> 0.004113924051 | Z19: EXPLOTACIÓN DE MINAS Y CANTERAS | AA19: B | AD19: ACTIVIDADES DE ATENCIÓN DE LA SALUD HUMANA Y DE ASISTENCIA SOCIAL | AE19: Q | AF19: Actividades de atención de la salud humana y de asistencia social
A20: OTRAS ACTIVIDADES DE SERVICIOS | B20: S | C20: Otras actividades de servicios | D20: S | E20: =COUNTIFS(insumos2!$N$2:$N$399999,Hoja4!D20,insumos2!$J$2:$J$399999,"Aprobado con subsidio") -> 359 | G20: =MID(VLOOKUP(H20,$B$2:$C$23,2,FALSE),1,33) -> Administración pública y defensa; | H20: O | I20: 23 | J20: 0.001113747518 | K20: =SUMIFS(insumos2!$E$2:$E$399999,insumos2!$J$2:$J$399999,"Aprobado con subsidio",insumos2!$N$2:$N$399999,Hoja4!H20) -> 2681 | L20: 0.005140693159 | M20: =SUMIFS(insumos1!$K$2:$K$372158,insumos1!$H$2:$H$372158,Hoja4!H20) -> 1534823866 | N20: =SUMIFS(insumos2!$R$2:$R$399999,insumos2!$J$2:$J$399999,"Aprobado con subsidio",insumos2!$N$2:$N$399999,Hoja4!H20) -> 385 | O20: =SUMIFS(insumos2!$Q$2:$Q$399999,insumos2!$J$2:$J$399999,"Aprobado con subsidio",insumos2!$N$2:$N$399999,Hoja4!H20) -> 2296 | P20: =SUMIFS(insumos2!$S$2:$S$399999,insumos2!$J$2:$J$399999,"Aprobado con subsidio",insumos2!$N$2:$N$399999,Hoja4!H20) -> 0 | Q20: Administración pública y defensa; | R20: 596.3636364 | T20: 20 | U20: CESAR | V20: =(VLOOKUP(T20,_xlfn.ANCHORARRAY(insumos2!$Z$2),2,0)/SUM(insumos2!$AA$2:$AA$34)) -> 0.007747808823 | W20: =VLOOKUP(T20,insumos2!$BF$2:$BG$34,2,FALSE)/insumos2!$BM$30 -> 0.003481012658 | Z20: DISTRIBUCIÓN DE AGUA; EVACUACIÓN Y TRATAMIENTO DE AGUAS RESIDUALES, GESTIÓN DE DESECHOS Y ACTIVIDADES DE SANEAMIENTO AMBIENTAL | AA20: E | AD20: ACTIVIDADES ARTÍSTICAS, DE ENTRETENIMIENTO Y RECREACIÓN | AE20: R | AF20: Actividades artísticas de entretenimiento y recreación
A21: ACTIVIDADES DE LOS HOGARES INDIVIDUALES EN CALIDAD DE EMPLEADORES; ACTIVIDADES NO DIFERENCIADAS DE LOS HOGARES INDIVIDUALES COMO PRODUCTORES DE BIENES Y SERVICIOS PARA USO PROPIO | B21: T | C21: Actividad de los hogares en calidad de empleadores; actividades no diferenciadas de los hogares individuales como productores de bienes y servicios para uso propio | D21: T | E21: =COUNTIFS(insumos2!$N$2:$N$399999,Hoja4!D21,insumos2!$J$2:$J$399999,"Aprobado con subsidio") -> 6 | G21: =MID(VLOOKUP(H21,$B$2:$C$23,2,FALSE),1,30) -> Otras | H21: Otras | I21: 11 | J21: 0.0005326618566 | K21: =SUMIFS(insumos2!$E$2:$E$399999,insumos2!$J$2:$J$399999,"Aprobado con subsidio",insumos2!$N$2:$N$399999,Hoja4!H21) -> 22 | L21: 4.218397967e-05 | M21: =SUMIFS(insumos1!$K$2:$K$372158,insumos1!$H$2:$H$372158,Hoja4!H21) -> 8317358 | N21: =SUMIFS(insumos2!$R$2:$R$399999,insumos2!$J$2:$J$399999,"Aprobado con subsidio",insumos2!$N$2:$N$399999,Hoja4!H21) -> 15 | O21: =SUMIFS(insumos2!$Q$2:$Q$399999,insumos2!$J$2:$J$399999,"Aprobado con subsidio",insumos2!$N$2:$N$399999,Hoja4!H21) -> 7 | P21: =SUMIFS(insumos2!$S$2:$S$399999,insumos2!$J$2:$J$399999,"Aprobado con subsidio",insumos2!$N$2:$N$399999,Hoja4!H21) -> 0 | Q21: Otras | R21: 46.66666667 | T21: 19 | U21: CAUCA | V21: =(VLOOKUP(T21,_xlfn.ANCHORARRAY(insumos2!$Z$2),2,0)/SUM(insumos2!$AA$2:$AA$34)) -> 0.006246670863 | W21: =VLOOKUP(T21,insumos2!$BF$2:$BG$34,2,FALSE)/insumos2!$BM$30 -> 0.006329113924 | Z21: SUMINISTRO DE ELECTRICIDAD, GAS, VAPOR Y AIRE ACONDICIONADO | AA21: D | AD21: OTRAS ACTIVIDADES DE SERVICIOS | AE21: S | AF21: Otras actividades de servicios
